Workbook

Sheet Notes
A1: ThreePeriodDivergence.xlsm
A2: Coded beginning 2014-Apr-02 by Ronald McAllister (rpmac_xltt@sprynet.com)
A4: This Workbook demonstrates an EXCEL version of the ideas presented
A5: by Perry Kaufman in an article titled "Slope Divergence: Capitalizing On Uncertainty"
A6: which appears in the June 2014 issue of
A7: "Technical Analysis of Stocks and Commodities" magazine.
A9: Change Log:
A11: CalculationsAndCharts construction Notes:
A14: Data for this EXCEL example:
C16: Figure 1 from the article can be approximated by retrieving data for symbol SPY on the InputPriceData tab.
C17: Then, on the CalculationsAndCharts tab, in the "Help I want to Plot..." area, set dates 7/1/2013 and 10/13/2013.
C18: Click the "Chart These Dates" button.
C20: Figure 2 from the article can be approximated by retrieving data for symbol QQQ on the InputPriceData tab.
C21: Then, on the CalculationsAndCharts tab, in the "Help I want to Plot..." area, set dates 9/26/2012 and 12/18/2012.
C22: Click the "Chart These Dates" button.
C24: Figure 1 from the Easylanguage sidebar can be approximated by retrieving data for symbol SPY on the InputPriceData tab.
C25: Then, on the CalculationsAndCharts tab, in the "Help I want to Plot..." area, set dates 3/15/2013 and 5/16/2013.
C26: Click the "Chart These Dates" button.
C27: User control settings: fastmom = true; momperiod = 10; dvgperiods = 5, 8, and 13; and entrynumber = 1
C29: Data retrieval for SPY and QQQ may be initiated from the FOLLOW tab
C30: User may add symbols of interest in column A, one per row, anywhere below row 9.
C31: A subsequent DoubleClick on any one of these symbols will initiate a data retrieval for that symbol via the InputPriceData tab.
C32: For any data retrieval via the InputPriceData tab, the most recent trade data will be updated on
C33: the Follow sheet as long as the symbol already exists on the Follow sheet, regardless of how the data retrieval is initiated
A35: Development Notes:
A36: 1 | C36: This workbook contains and uses VBA macros.
A37: 2 | C37: Input Data
C38: The data in this workbook is sorted date descending (most recent date at the top). All formulas and
C39: VBA routines are built accordingly.
A41: Calculation and Chart Worksheet Usage Comments:
A42: 1 | C42: In General, Items in Bolded BLUE are items you may freely change to play what-if games.
C43: Be sure to have a backup copy of the spreadsheet before you alter anything else.
A44: 2 | C44: Several of the column formulas begin with "IF" logic that determines when there is sufficient data
C45: available for the subsequent calculations to be relevant. The cell will calculate to blank or the
C46: result of the calculation.
C47: In a couple of cases, this "IF" logic also sets starter values for subsequent smoothing calculations.
A48: 3 | C48: Data windowing can be performed by changing cell A11. Positive values logically "Pan" the
C49: data window represented by the Calculation sheet down the input sheet and back in time.
C50: This can have two side effects: First, data may fall outside of the fixed Y-axis scales and be clipped
C51: or fall well inside the Y-axis scales wasting a lot of chart vertical space. Second, you may move far
C52: enough back that you do not have sufficient data points to fill the left of the chart.
A53: 4 | C53: The VBA macros behind the SetChart button address these Data Windowing problems and also
C54: resizes and vertically aligns all charts on the work sheet to match the Price chart and then
C55: horizontally adjusts the X-axis positions of all charts on the work sheet so that the corresponding
C56: data points align vertically.
C57: The macros behind the SetChart button are sensitive to the user control values in cells A11 and
C58: A12, and also uses the computed values in cells A8, F11, and F12

Sheet InputPriceData
A1: SPDR S&P 500 (SPY) -PCX (Daily)
A2: Last Trade: | B2: 2014-04-08 | C2: 184.21 | D2: 185.4 | E2: 183.59 | F2: 185.1 | G2: 112659752 | H2: 4:00pm | L2: Notes: | M2: Online Yahoo Finance Query Interfaces used in the VBA code to obtain this data:
A3: Request Online Yahoo History for: | M3: A.) Price History Only: "http://ichart.finance.yahoo.com/table.csv"
A4: Symbol | B4: SPY | D4: Valid | M4: B.) Price History w/ imbedded divs n splits: "http://ichart.finance.yahoo.com/x"
A5: From | B5: 1977-01-07 | D5: Data
A6: To | B6: =TODAY() -> 2014-04-10 | D6: Types | E6: =VLOOKUP(B7,D7:E10,2,FALSE) -> d | M6: C.) Fundamentals (in this case name and exchange):
A7: Data Type | B7: Daily | D7: Daily | E7: d | M7: "http://download.finance.yahoo.com/d/quotes.csv?"
D8: Weekly | E8: w | M8: For some how-to doc regarding this particular interface, including a list of the
A9: Available Data | D9: Monthly | E9: m | M9: specific fields you can include in a request to this interface see:
A10: Bar Count: | B10: =COUNTA(B15:B54747)-1 -> 3028 | M10: http://www.gummy-stuff.org/Yahoo-data.htm
A11: From: | B11: =IF(B10<=0,"",OFFSET(B15,B10,IF(HistReqDataType="v",1,0),1,1)) -> 2002-04-01 | M11: This web site includes a downloadable working EXCEL/VBA example | W11: Trailing 12 Month Dividend Returns
A12: To: | B12: =IF(B10<=0,"",IF(HistReqDataType="v",OFFSET(B15,2,1,1,1),OFFSET(B15,1,0,1,1))) -> 2014-04-08 | M12: of the capabilities of this interface. | W12: Raw Close price on Dividend date | X12: Looking for year ago Div date | Y12: Year ago Div Date we found | Z12: row offset to year ago div Date | AA12: Same month flag | AB12: Trailing 12 Div Total | AC12: Trailing 12 Div return
Q13: Split History | S13: =COUNT(Q16:Q10996) -> 0 | T13: Running | U13: Dividend History
B14: Raw Data Values | H14: Adjusted | I14: Price Adjust | J14: Vol Adjust | K14: Adjusted Values | P14: Last | Q14: Effective | R14: Shares | T14: Vol Adjust | V14: =COUNT(U16:U10996) -> 89
A15: RelRow | B15: Date | C15: Open | D15: High | E15: Low | F15: Close | G15: Volume | H15: Close | I15: Factor | J15: Factor | K15: Open | L15: High | M15: Low | N15: Close | O15: Volume | P15: Trade | Q15: 41738 | R15: New | S15: Old | T15: 1 | U15: Date | V15: $ / Share
A16: 1 | B16: 2014-04-08 | C16: 184.26 | D16: 185.4 | E16: 183.59 | F16: 185.1 | G16: 112555400 | H16: 185.1 | I16: =H16/F16 -> 1 | J16: =INDEX(OFFSET($T$15,0,0,$S$13+1,1),MATCH(B16,OFFSET($Q$15,0,0,$S$13+1,1),-1)) -> 1 | K16: =ROUND($I16*C16,2) -> 184.26 | L16: =ROUND($I16*D16,2) -> 185.4 | M16: 183.59 | N16: 185.1 | O16: =G16*J16 -> 112555400 | U16: 2014-03-21 | V16: 0.825 | W16: =(INDEX(OFFSET($F$15,1,0,$B$10,1),MATCH(U16,OFFSET($B$15,1,0,$B$10,1),-1))) -> 186.2 | X16: =IF(MONTH(DATE(YEAR(U16)-1,MONTH(U16),DAY(U16)))<>MONTH(U16),DATE(YEAR(U16)-1,MONTH(U16),DAY(U16-1)),DATE(YEAR(U16)-1,MONTH(U16),DAY(U16))) -> 2013-03-21 | Y16: =OFFSET(U15,Z16,0,1,1) -> 2013-06-21 | Z16: =MATCH(X16,OFFSET($U$15,A16,0,$V$14+1-A16,1),-1) -> 4 | AA16: =IF(MONTH(U16)=MONTH(Y16),1,0) -> 0 | AB16: =(V16+IFERROR(SUM(OFFSET(V16,1,0,Z16-AA16-1,1)),0)) -> 3.482 | AC16: =(V16+IFERROR(SUM(OFFSET(V16,1,0,Z16-AA16-1,1)),0))/(INDEX(OFFSET($F$15,1,0,$B$10,1),MATCH(U16,OFFSET($B$15,1,0,$B$10,1),-1))) -> 0.01870032223
A17: 2 | B17: 2014-04-07 | C17: 185.95 | D17: 186.26 | E17: 183.96 | F17: 184.34 | G17: 140637400 | H17: 184.34 | I17: =H17/F17 -> 1 | J17: =INDEX(OFFSET($T$15,0,0,$S$13+1,1),MATCH(B17,OFFSET($Q$15,0,0,$S$13+1,1),-1)) -> 1 | K17: =ROUND($I17*C17,2) -> 185.95 | L17: =ROUND($I17*D17,2) -> 186.26 | M17: =ROUND($I17*E17,2) -> 183.96 | N17: =ROUND($I17*F17,2) -> 184.34 | O17: =G17*J17 -> 140637400 | U17: 2013-12-20 | V17: 0.98 | W17: =(INDEX(OFFSET($F$15,1,0,$B$10,1),MATCH(U17,OFFSET($B$15,1,0,$B$10,1),-1))) -> 181.56 | X17: =IF(MONTH(DATE(YEAR(U17)-1,MONTH(U17),DAY(U17)))<>MONTH(U17),DATE(YEAR(U17)-1,MONTH(U17),DAY(U17-1)),DATE(YEAR(U17)-1,MONTH(U17),DAY(U17))) -> 2012-12-20 | Y17: =OFFSET(U16,Z17,0,1,1) -> 2012-12-21 | Z17: =MATCH(X17,OFFSET($U$15,A17,0,$V$14+1-A17,1),-1) -> 5 | AA17: =IF(MONTH(U17)=MONTH(Y17),1,0) -> 1 | AB17: =(V17+IFERROR(SUM(OFFSET(V17,1,0,Z17-AA17-1,1)),0)) -> 3.351 | AC17: =(V17+IFERROR(SUM(OFFSET(V17,1,0,Z17-AA17-1,1)),0))/(INDEX(OFFSET($F$15,1,0,$B$10,1),MATCH(U17,OFFSET($B$15,1,0,$B$10,1),-1))) -> 0.01845670853
A18: 3 | B18: 2014-04-04 | C18: 189.66 | D18: 189.7 | E18: 186.1 | F18: 186.4 | G18: 169381000 | H18: 186.4 | I18: 1 | J18: 1 | K18: 189.66 | L18: 189.7 | M18: 186.1 | N18: 186.4 | O18: 169381000 | U18: 2013-09-20 | V18: 0.838 | W18: 170.72 | X18: 2012-09-20 | Y18: 2012-09-21 | Z18: 5 | AA18: 1 | AB18: 3.393 | AC18: 0.01987464855
A19: 4 | B19: 2014-04-03 | C19: 189.17 | D19: 189.22 | E19: 188.05 | F19: 188.63 | G19: 77206000 | H19: 188.63 | I19: 1 | J19: 1 | K19: 189.17 | L19: 189.22 | M19: 188.05 | N19: 188.63 | O19: 77206000 | U19: 2013-06-21 | V19: 0.839 | W19: 159.07 | X19: 2012-06-21 | Y19: 2012-09-21 | Z19: 4 | AA19: 0 | AB19: 3.334 | AC19: 0.02095932608
A20: 5 | B20: 2014-04-02 | C20: 188.49 | D20: 189.13 | E20: 188.14 | F20: 188.88 | G20: 78774000 | H20: 188.88 | I20: 1 | J20: 1 | K20: 188.49 | L20: 189.13 | M20: 188.14 | N20: 188.88 | O20: 78774000 | U20: 2013-03-15 | V20: 0.694 | W20: 155.83 | X20: 2012-03-15 | Y20: 2012-03-16 | Z20: 5 | AA20: 1 | AB20: 3.183 | AC20: 0.02042610537
A21: 6 | B21: 2014-04-01 | C21: 187.62 | D21: 188.36 | E21: 187 | F21: 188.25 | G21: 89193000 | H21: 188.25 | I21: 1 | J21: 1 | K21: 187.62 | L21: 188.36 | M21: 187 | N21: 188.25 | O21: 89193000 | U21: 2012-12-21 | V21: 1.022 | W21: 142.79 | X21: 2011-12-21 | Y21: 2012-03-16 | Z21: 4 | AA21: 0 | AB21: 3.103 | AC21: 0.02173121367
A22: 7 | B22: 2014-03-31 | C22: 186.67 | D22: 187.3 | E22: 185.52 | F22: 187.01 | G22: 99745000 | H22: 187.01 | I22: 1 | J22: 1 | K22: 186.67 | L22: 187.3 | M22: 185.52 | N22: 187.01 | O22: 99745000 | U22: 2012-09-21 | V22: 0.779 | W22: 145.87 | X22: 2011-09-21 | Y22: 2011-12-16 | Z22: 4 | AA22: 0 | AB22: 2.851 | AC22: 0.01954480016
A23: 8 | B23: 2014-03-28 | C23: 185.11 | D23: 186.42 | E23: 185 | F23: 185.49 | G23: 101642000 | H23: 185.49 | I23: 1 | J23: 1 | K23: 185.11 | L23: 186.42 | M23: 185 | N23: 185.49 | O23: 101642000 | U23: 2012-06-15 | V23: 0.688 | W23: 134.14 | X23: 2011-06-15 | Y23: 2011-06-17 | Z23: 5 | AA23: 1 | AB23: 2.697 | AC23: 0.02010585955
A24: 9 | B24: 2014-03-27 | C24: 184.75 | D24: 185.34 | E24: 183.9 | F24: 184.58 | G24: 142383000 | H24: 184.58 | I24: 1 | J24: 1 | K24: 184.75 | L24: 185.34 | M24: 183.9 | N24: 184.58 | O24: 142383000 | U24: 2012-03-16 | V24: 0.614 | W24: 140.3 | X24: 2011-03-16 | Y24: 2011-03-18 | Z24: 5 | AA24: 1 | AB24: 2.637 | AC24: 0.01879543835
A25: 10 | B25: 2014-03-26 | C25: 187.04 | D25: 187.34 | E25: 184.92 | F25: 184.97 | G25: 119843000 | H25: 184.97 | I25: 1 | J25: 1 | K25: 187.04 | L25: 187.34 | M25: 184.92 | N25: 184.97 | O25: 119843000 | U25: 2011-12-16 | V25: 0.77 | W25: 121.59 | X25: 2010-12-16 | Y25: 2010-12-17 | Z25: 5 | AA25: 1 | AB25: 2.576 | AC25: 0.02118595279
A26: 11 | B26: 2014-03-25 | C26: 186.37 | D26: 186.94 | E26: 185.27 | F26: 186.31 | G26: 103852000 | H26: 186.31 | I26: 1 | J26: 1 | K26: 186.37 | L26: 186.94 | M26: 185.27 | N26: 186.31 | O26: 103852000 | U26: 2011-09-16 | V26: 0.625 | W26: 121.52 | X26: 2010-09-16 | Y26: 2010-09-17 | Z26: 5 | AA26: 1 | AB26: 2.459 | AC26: 0.02023535221
A27: 12 | B27: 2014-03-24 | C27: 186.84 | D27: 187.07 | E27: 184.62 | F27: 185.43 | G27: 121411000 | H27: 185.43 | I27: 1 | J27: 1 | K27: 186.84 | L27: 187.07 | M27: 184.62 | N27: 185.43 | O27: 121411000 | U27: 2011-06-17 | V27: 0.628 | W27: 127.05 | X27: 2010-06-17 | Y27: 2010-06-18 | Z27: 5 | AA27: 1 | AB27: 2.436 | AC27: 0.01917355372
A28: 13 | B28: 2014-03-21 | C28: 187.71 | D28: 189.02 | E28: 186.03 | F28: 186.2 | G28: 163128000 | H28: 186.2 | I28: 1 | J28: 1 | K28: 187.71 | L28: 189.02 | M28: 186.03 | N28: 186.2 | O28: 163128000 | U28: 2011-03-18 | V28: 0.553 | W28: 127.76 | X28: 2010-03-18 | Y28: 2010-03-19 | Z28: 5 | AA28: 1 | AB28: 2.339 | AC28: 0.01830776456
A29: 14 | B29: 2014-03-20 | C29: 186.25 | D29: 187.89 | E29: 185.92 | F29: 187.75 | G29: 117241000 | H29: 186.93 | I29: 0.99563249 | J29: 1 | K29: 185.44 | L29: 187.07 | M29: 185.11 | N29: 186.93 | O29: 117241000 | U29: 2010-12-17 | V29: 0.653 | W29: 124.3 | X29: 2009-12-17 | Y29: 2009-12-18 | Z29: 5 | AA29: 1 | AB29: 2.266 | AC29: 0.0182300885
A30: 15 | B30: 2014-03-19 | C30: 187.68 | D30: 187.94 | E30: 185.47 | F30: 186.66 | G30: 176267300 | H30: 185.84 | I30: 0.995606986 | J30: 1 | K30: 186.86 | L30: 187.11 | M30: 184.66 | N30: 185.84 | O30: 176267300 | U30: 2010-09-17 | V30: 0.602 | W30: 112.49 | X30: 2009-09-17 | Y30: 2009-09-18 | Z30: 5 | AA30: 1 | AB30: 2.203 | AC30: 0.01958396302
A31: 16 | B31: 2014-03-18 | C31: 186.71 | D31: 187.91 | E31: 186.51 | F31: 187.66 | G31: 101804600 | H31: 186.84 | I31: 0.9956303954 | J31: 1 | K31: 185.89 | L31: 187.09 | M31: 185.7 | N31: 186.84 | O31: 101804600 | U31: 2010-06-18 | V31: 0.531 | W31: 111.73 | X31: 2009-06-18 | Y31: 2009-06-19 | Z31: 5 | AA31: 1 | AB31: 2.109 | AC31: 0.01887586145
A32: 17 | B32: 2014-03-17 | C32: 185.59 | D32: 186.77 | E32: 185.51 | F32: 186.33 | G32: 98359500 | H32: 185.51 | I32: 0.9955992057 | J32: 1 | K32: 184.77 | L32: 185.95 | M32: 184.69 | N32: 185.51 | O32: 98359500 | U32: 2010-03-19 | V32: 0.48 | W32: 115.97 | X32: 2009-03-19 | Y32: 2009-03-20 | Z32: 5 | AA32: 1 | AB32: 2.096 | AC32: 0.01807363973
A33: 18 | B33: 2014-03-14 | C33: 184.85 | D33: 185.8 | E33: 184.44 | F33: 184.66 | G33: 153919600 | H33: 183.85 | I33: 0.9956135601 | J33: 1 | K33: 184.04 | L33: 184.98 | M33: 183.63 | N33: 183.85 | O33: 153919600 | U33: 2009-12-18 | V33: 0.59 | W33: 110.21 | X33: 2008-12-18 | Y33: 2008-12-19 | Z33: 5 | AA33: 1 | AB33: 2.177 | AC33: 0.01975319844
A34: 19 | B34: 2014-03-13 | C34: 187.84 | D34: 187.99 | E34: 184.66 | F34: 185.18 | G34: 155014300 | H34: 184.37 | I34: 0.9956258775 | J34: 1 | K34: 187.02 | L34: 187.17 | M34: 183.85 | N34: 184.37 | O34: 155014300 | U34: 2009-09-18 | V34: 0.508 | W34: 106.72 | X34: 2008-09-18 | Y34: 2008-09-19 | Z34: 5 | AA34: 1 | AB34: 2.306 | AC34: 0.02160794603
A35: 20 | B35: 2014-03-12 | C35: 186.32 | D35: 187.35 | E35: 185.9 | F35: 187.28 | G35: 104824400 | H35: 186.46 | I35: 0.9956215293 | J35: 1 | K35: 185.5 | L35: 186.53 | M35: 185.09 | N35: 186.46 | O35: 104824400 | U35: 2009-06-19 | V35: 0.518 | W35: 92.04 | X35: 2008-06-19 | Y35: 2008-06-20 | Z35: 5 | AA35: 1 | AB35: 2.489 | AC35: 0.02704259018
A36: 21 | B36: 2014-03-11 | C36: 188.44 | D36: 188.71 | E36: 186.8 | F36: 187.23 | G36: 99009100 | H36: 186.41 | I36: 0.99562036 | J36: 1 | K36: 187.61 | L36: 187.88 | M36: 185.98 | N36: 186.41 | O36: 99009100 | U36: 2009-03-20 | V36: 0.561 | W36: 76.71 | X36: 2008-03-20 | Y36: 2008-03-20 | Z36: 5 | AA36: 1 | AB36: 2.64 | AC36: 0.03441533047
A37: 22 | B37: 2014-03-10 | C37: 187.97 | D37: 188.23 | E37: 187.08 | F37: 188.16 | G37: 74939200 | H37: 187.33 | I37: 0.9955888605 | J37: 1 | K37: 187.14 | L37: 187.4 | M37: 186.25 | N37: 187.33 | O37: 74939200 | U37: 2008-12-19 | V37: 0.719 | W37: 88.19 | X37: 2007-12-19 | Y37: 2007-12-21 | Z37: 5 | AA37: 1 | AB37: 2.721 | AC37: 0.0308538383
A38: 23 | B38: 2014-03-07 | C38: 188.96 | D38: 188.96 | E38: 187.43 | F38: 188.26 | G38: 114513500 | H38: 187.43 | I38: 0.9955912037 | J38: 1 | K38: 188.13 | L38: 188.13 | M38: 186.6 | N38: 187.43 | O38: 114513500 | U38: 2008-09-19 | V38: 0.691 | W38: 124.12 | X38: 2007-09-19 | Y38: 2007-09-21 | Z38: 5 | AA38: 1 | AB38: 2.777 | AC38: 0.02237350951
A39: 24 | B39: 2014-03-06 | C39: 188.21 | D39: 188.61 | E39: 187.78 | F39: 188.18 | G39: 82516500 | H39: 187.35 | I39: 0.9955893294 | J39: 1 | K39: 187.38 | L39: 187.78 | M39: 186.95 | N39: 187.35 | O39: 82516500 | U39: 2008-06-20 | V39: 0.669 | W39: 131.58 | X39: 2007-06-20 | Y39: 2007-09-21 | Z39: 4 | AA39: 0 | AB39: 2.805 | AC39: 0.02131782946
A40: 25 | B40: 2014-03-05 | C40: 187.74 | D40: 188.07 | E40: 187.45 | F40: 187.75 | G40: 88376900 | H40: 186.93 | I40: 0.99563249 | J40: 1 | K40: 186.92 | L40: 187.25 | M40: 186.63 | N40: 186.93 | O40: 88376900 | U40: 2008-03-20 | V40: 0.642 | W40: 132.08 | X40: 2007-03-20 | Y40: 2007-06-15 | Z40: 4 | AA40: 0 | AB40: 2.792 | AC40: 0.02113870382
A41: 26 | B41: 2014-03-04 | C41: 186.79 | D41: 187.98 | E41: 186.75 | F41: 187.58 | G41: 167545900 | H41: 186.76 | I41: 0.9956285318 | J41: 1 | K41: 185.97 | L41: 187.16 | M41: 185.93 | N41: 186.76 | O41: 167545900 | U41: 2007-12-21 | V41: 0.775 | W41: 148.13 | X41: 2006-12-21 | Y41: 2007-03-16 | Z41: 4 | AA41: 0 | AB41: 2.701 | AC41: 0.01823398366
A42: 27 | B42: 2014-03-03 | C42: 184.65 | D42: 185.45 | E42: 183.75 | F42: 184.98 | G42: 167748500 | H42: 184.17 | I42: 0.9956211482 | J42: 1 | K42: 183.84 | L42: 184.64 | M42: 182.95 | N42: 184.17 | O42: 167748500 | U42: 2007-09-21 | V42: 0.719 | W42: 151.97 | X42: 2006-09-21 | Y42: 2006-12-15 | Z42: 4 | AA42: 0 | AB42: 2.719 | AC42: 0.01789168915
A43: 28 | B43: 2014-02-28 | C43: 185.79 | D43: 187.15 | E43: 185.05 | F43: 186.29 | G43: 150842000 | H43: 185.47 | I43: 0.9955982608 | J43: 1 | K43: 184.97 | L43: 186.33 | M43: 184.24 | N43: 185.47 | O43: 150842000 | U43: 2007-06-15 | V43: 0.656 | W43: 153.07 | X43: 2006-06-15 | Y43: 2006-06-16 | Z43: 5 | AA43: 1 | AB43: 2.579 | AC43: 0.01684850069
A44: 29 | B44: 2014-02-27 | C44: 184.58 | D44: 185.87 | E44: 184.37 | F44: 185.82 | G44: 93880800 | H44: 185 | I44: 0.9955871273 | J44: 1 | K44: 183.77 | L44: 185.05 | M44: 183.56 | N44: 185 | O44: 93880800 | U44: 2007-03-16 | V44: 0.551 | W44: 138.53 | X44: 2006-03-16 | Y44: 2006-03-17 | Z44: 5 | AA44: 1 | AB44: 2.478 | AC44: 0.01788782213
A45: 30 | B45: 2014-02-26 | C45: 185.11 | D45: 185.6 | E45: 184.33 | F45: 184.85 | G45: 98677200 | H45: 184.04 | I45: 0.9956180687 | J45: 1 | K45: 184.3 | L45: 184.79 | M45: 183.52 | N45: 184.04 | O45: 98677200 | U45: 2006-12-15 | V45: 0.793 | W45: 142.34 | X45: 2005-12-15 | Y45: 2005-12-16 | Z45: 5 | AA45: 1 | AB45: 2.446 | AC45: 0.01718420683
A46: 31 | B46: 2014-02-25 | C46: 185.06 | D46: 185.59 | E46: 184.23 | F46: 184.84 | G46: 117085000 | H46: 184.03 | I46: 0.9956178316 | J46: 1 | K46: 184.25 | L46: 184.78 | M46: 183.42 | N46: 184.03 | O46: 117085000 | U46: 2006-09-15 | V46: 0.579 | W46: 131.96 | X46: 2005-09-15 | Y46: 2005-09-16 | Z46: 5 | AA46: 1 | AB46: 2.325 | AC46: 0.01761897545
A47: 32 | B47: 2014-02-24 | C47: 184.28 | D47: 186.15 | E47: 184.2 | F47: 184.91 | G47: 114063900 | H47: 184.1 | I47: 0.9956194906 | J47: 1 | K47: 183.47 | L47: 185.33 | M47: 183.39 | N47: 184.1 | O47: 114063900 | U47: 2006-06-16 | V47: 0.555 | W47: 124.65 | X47: 2005-06-16 | Y47: 2005-06-17 | Z47: 5 | AA47: 1 | AB47: 2.268 | AC47: 0.01819494585
A48: 33 | B48: 2014-02-21 | C48: 184.45 | D48: 184.89 | E48: 183.8 | F48: 183.89 | G48: 118116400 | H48: 183.08 | I48: 0.9955951928 | J48: 1 | K48: 183.64 | L48: 184.08 | M48: 182.99 | N48: 183.08 | O48: 118116400 | U48: 2006-03-17 | V48: 0.519 | W48: 130.62 | X48: 2005-03-17 | Y48: 2005-03-18 | Z48: 5 | AA48: 1 | AB48: 2.201 | AC48: 0.01685040576
A49: 34 | B49: 2014-02-20 | C49: 183.27 | D49: 184.52 | E49: 182.6 | F49: 184.1 | G49: 104998100 | H49: 183.29 | I49: 0.9956002173 | J49: 1 | K49: 182.46 | L49: 183.71 | M49: 181.8 | N49: 183.29 | O49: 104998100 | U49: 2005-12-16 | V49: 0.672 | W49: 126.36 | X49: 2004-12-16 | Y49: 2004-12-17 | Z49: 5 | AA49: 1 | AB49: 2.149 | AC49: 0.01700696423
A50: 35 | B50: 2014-02-19 | C50: 183.76 | D50: 184.95 | E50: 182.87 | F50: 183.02 | G50: 126524300 | H50: 182.22 | I50: 0.995628893 | J50: 1 | K50: 182.96 | L50: 184.14 | M50: 182.07 | N50: 182.22 | O50: 126524300 | U50: 2005-09-16 | V50: 0.522 | W50: 123.5 | X50: 2004-09-16 | Y50: 2004-09-17 | Z50: 6 | AA50: 1 | AB50: 2.396 | AC50: 0.01940080972
A51: 36 | B51: 2014-02-18 | C51: 184.18 | D51: 184.49 | E51: 183.65 | F51: 184.24 | G51: 80460900 | H51: 183.43 | I51: 0.9956035606 | J51: 1 | K51: 183.37 | L51: 183.68 | M51: 182.84 | N51: 183.43 | O51: 80460900 | U51: 2005-06-17 | V51: 0.488 | W51: 121.36 | X51: 2004-06-17 | Y51: 2004-06-18 | Z51: 6 | AA51: 1 | AB51: 2.343 | AC51: 0.01930619644
A52: 37 | B52: 2014-02-14 | C52: 182.84 | D52: 184.36 | E52: 182.67 | F52: 184.02 | G52: 96498400 | H52: 183.21 | I52: 0.9955983045 | J52: 1 | K52: 182.04 | L52: 183.55 | M52: 181.87 | N52: 183.21 | O52: 96498400 | U52: 2005-03-18 | V52: 0.467 | W52: 118.54 | X52: 2004-03-18 | Y52: 2004-03-19 | Z52: 6 | AA52: 1 | AB52: 2.269 | AC52: 0.01914121815
A53: 38 | B53: 2014-02-13 | C53: 180.84 | D53: 183.2 | E53: 180.83 | F53: 183.01 | G53: 100542200 | H53: 182.21 | I53: 0.9956286542 | J53: 1 | K53: 180.05 | L53: 182.4 | M53: 180.04 | N53: 182.21 | O53: 100542200 | U53: 2004-12-17 | V53: 0.568 | W53: 119.44 | X53: 2003-12-17 | Y53: 2003-12-19 | Z53: 6 | AA53: 1 | AB53: 2.197 | AC53: 0.01839417281
A54: 39 | B54: 2014-02-12 | C54: 182.25 | D54: 182.83 | E54: 181.71 | F54: 182.07 | G54: 94717700 | H54: 181.27 | I54: 0.9956060856 | J54: 1 | K54: 181.45 | L54: 182.03 | M54: 180.91 | N54: 181.27 | O54: 94717700 | U54: 2004-11-15 | V54: 0.351 | W54: 118.73 | X54: 2003-11-15 | Y54: 2003-12-19 | Z54: 5 | AA54: 0 | AB54: 2.145 | AC54: 0.01806620062
A55: 40 | B55: 2014-02-11 | C55: 180.16 | D55: 182.44 | E55: 180.04 | F55: 181.98 | G55: 117814100 | H55: 181.18 | I55: 0.9956039125 | J55: 1 | K55: 179.37 | L55: 181.64 | M55: 179.25 | N55: 181.18 | O55: 117814100 | U55: 2004-09-17 | V55: 0.469 | W55: 113.15 | X55: 2003-09-17 | Y55: 2003-09-19 | Z55: 5 | AA55: 1 | AB55: 1.794 | AC55: 0.01585505966
A56: 41 | B56: 2014-02-10 | C56: 179.7 | D56: 180.07 | E56: 179.21 | F56: 180.01 | G56: 92218800 | H56: 179.22 | I56: 0.9956113549 | J56: 1 | K56: 178.91 | L56: 179.28 | M56: 178.42 | N56: 179.22 | O56: 92218800 | U56: 2004-06-18 | V56: 0.414 | W56: 113.63 | X56: 2003-06-18 | Y56: 2003-06-20 | Z56: 5 | AA56: 1 | AB56: 1.725 | AC56: 0.01518085013
A57: 42 | B57: 2014-02-07 | C57: 178.31 | D57: 179.87 | E57: 177.73 | F57: 179.68 | G57: 170787200 | H57: 178.89 | I57: 0.9956032947 | J57: 1 | K57: 177.53 | L57: 179.08 | M57: 176.95 | N57: 178.89 | O57: 170787200 | U57: 2004-03-19 | V57: 0.395 | W57: 111.06 | X57: 2003-03-19 | Y57: 2003-03-21 | Z57: 5 | AA57: 1 | AB57: 1.671 | AC57: 0.01504592112
A58: 43 | B58: 2014-02-06 | C58: 175.58 | D58: 177.48 | E58: 175.22 | F58: 177.48 | G58: 132877600 | H58: 176.7 | I58: 0.9956051386 | J58: 1 | K58: 174.81 | L58: 176.7 | M58: 174.45 | N58: 176.7 | O58: 132877600 | U58: 2003-12-19 | V58: 0.516 | W58: 108.9 | X58: 2002-12-19 | Y58: 2002-12-20 | Z58: 5 | AA58: 1 | AB58: 1.63 | AC58: 0.01496786042
A59: 44 | B59: 2014-02-05 | C59: 174.78 | D59: 175.56 | E59: 173.71 | F59: 175.17 | G59: 164230500 | H59: 174.4 | I59: 0.9956042701 | J59: 1 | K59: 174.01 | L59: 174.79 | M59: 172.95 | N59: 174.4 | O59: 164230500 | U59: 2003-09-19 | V59: 0.4 | W59: 103.67 | X59: 2002-09-19 | Y59: 2002-09-20 | Z59: 5 | AA59: 1 | AB59: 1.55 | AC59: 0.01495128774
A60: 45 | B60: 2014-02-04 | C60: 174.95 | D60: 175.84 | E60: 174.11 | F60: 175.39 | G60: 165012400 | H60: 174.62 | I60: 0.9956097839 | J60: 1 | K60: 174.18 | L60: 175.07 | M60: 173.35 | N60: 174.62 | O60: 165012400 | U60: 2003-06-20 | V60: 0.36 | W60: 99.44 | X60: 2002-06-20 | Y60: 2002-06-21 | Z60: 5 | AA60: 1 | AB60: 1.528 | AC60: 0.01536604988
A61: 46 | B61: 2014-02-03 | C61: 177.97 | D61: 178.37 | E61: 173.83 | F61: 174.17 | G61: 254837100 | H61: 173.4 | I61: 0.995579032 | J61: 1 | K61: 177.18 | L61: 177.58 | M61: 173.06 | N61: 173.4 | O61: 254837100 | U61: 2003-03-21 | V61: 0.354 | W61: 89.67 | X61: 2002-03-21 | Y61: 2002-06-21 | Z61: 4 | AA61: 0 | AB61: 1.521 | AC61: 0.01696219471
A62: 47 | B62: 2014-01-31 | C62: 177.01 | D62: 179.29 | E62: 176.92 | F62: 178.18 | G62: 194677900 | H62: 177.4 | I62: 0.9956224043 | J62: 1 | K62: 176.24 | L62: 178.51 | M62: 176.15 | N62: 177.4 | O62: 194677900 | U62: 2002-12-20 | V62: 0.436 | W62: 89.99 | X62: 2001-12-20 | Y62: 2001-12-21 | Z62: 5 | AA62: 1 | AB62: 1.498 | AC62: 0.01664629403
A63: 48 | B63: 2014-01-30 | C63: 178.83 | D63: 179.81 | E63: 178.26 | F63: 179.23 | G63: 118938100 | H63: 178.44 | I63: 0.9955922558 | J63: 1 | K63: 178.04 | L63: 179.02 | M63: 177.47 | N63: 178.44 | O63: 118938100 | U63: 2002-09-20 | V63: 0.378 | W63: 84.35 | X63: 2001-09-20 | Y63: 2001-09-21 | Z63: 5 | AA63: 1 | AB63: 1.455 | AC63: 0.01724955542
A64: 49 | B64: 2014-01-29 | C64: 177.58 | D64: 178.55 | E64: 176.88 | F64: 177.35 | G64: 216597300 | H64: 176.57 | I64: 0.9956019171 | J64: 1 | K64: 176.8 | L64: 177.76 | M64: 176.1 | N64: 176.57 | O64: 216597300 | U64: 2002-06-21 | V64: 0.353 | W64: 99.28 | X64: 2001-06-21 | Y64: 2001-09-21 | Z64: 4 | AA64: 0 | AB64: 1.446 | AC64: 0.01456486704
A65: 50 | B65: 2014-01-28 | C65: 178.14 | D65: 179.3 | E65: 178.12 | F65: 179.07 | G65: 110463200 | H65: 178.28 | I65: 0.9955883174 | J65: 1 | K65: 177.35 | L65: 178.51 | M65: 177.33 | N65: 178.28 | O65: 110463200 | U65: 2002-03-15 | V65: 0.331 | W65: 114.57 | X65: 2001-03-15 | Y65: 2001-03-16 | Z65: 5 | AA65: 1 | AB65: 1.439 | AC65: 0.01256000698
A66: 51 | B66: 2014-01-27 | C66: 179.06 | D66: 179.52 | E66: 177.12 | F66: 178.01 | G66: 180843100 | H66: 177.23 | I66: 0.9956182237 | J66: 1 | K66: 178.28 | L66: 178.73 | M66: 176.34 | N66: 177.23 | O66: 180843100 | U66: 2001-12-21 | V66: 0.393 | W66: 114.57 | X66: 2000-12-21 | Y66: 2000-12-27 | Z66: 5 | AA66: 1 | AB66: 1.424 | AC66: 0.01242908266
A67: 52 | B67: 2014-01-24 | C67: 181.6 | D67: 181.66 | E67: 178.83 | F67: 178.89 | G67: 208677100 | H67: 178.1 | I67: 0.9955838784 | J67: 1 | K67: 180.8 | L67: 180.86 | M67: 178.04 | N67: 178.1 | O67: 208677100 | U67: 2001-09-21 | V67: 0.369 | W67: 114.57 | X67: 2000-09-21 | Y67: 2000-12-15 | Z67: 5 | AA67: 0 | AB67: 1.853 | AC67: 0.01617351837
A68: 53 | B68: 2014-01-23 | C68: 183.37 | D68: 183.4 | E68: 181.82 | F68: 182.79 | G68: 132496900 | H68: 181.99 | I68: 0.995623393 | J68: 1 | K68: 182.57 | L68: 182.6 | M68: 181.02 | N68: 181.99 | O68: 132496900 | U68: 2001-06-15 | V68: 0.346 | W68: 114.57 | X68: 2000-06-15 | Y68: 2000-06-16 | Z68: 7 | AA68: 1 | AB68: 2.234 | AC68: 0.01949899625
A69: 54 | B69: 2014-01-22 | C69: 184.49 | D69: 184.57 | E69: 183.91 | F69: 184.3 | G69: 61270900 | H69: 183.49 | I69: 0.9956049919 | J69: 1 | K69: 183.68 | L69: 183.76 | M69: 183.1 | N69: 183.49 | O69: 61270900 | U69: 2001-03-16 | V69: 0.316 | W69: 114.57 | X69: 2000-03-16 | Y69: 2000-03-17 | Z69: 7 | AA69: 1 | AB69: 2.236 | AC69: 0.01951645282
A70: 55 | B70: 2014-01-21 | C70: 184.7 | D70: 184.77 | E70: 183.05 | F70: 184.18 | G70: 88621200 | H70: 183.37 | I70: 0.9956021284 | J70: 1 | K70: 183.89 | L70: 183.96 | M70: 182.24 | N70: 183.37 | O70: 88621200 | U70: 2000-12-27 | V70: 0.411 | W70: 114.57 | X70: 1999-12-27 | Y70: 2000-03-17 | Z70: 6 | AA70: 0 | AB70: 2.291 | AC70: 0.01999650868
A71: 56 | B71: 2014-01-17 | C71: 184.1 | D71: 184.45 | E71: 183.32 | F71: 183.64 | G71: 107848700 | H71: 182.83 | I71: 0.9955891963 | J71: 1 | K71: 183.29 | L71: 183.64 | M71: 182.51 | N71: 182.83 | O71: 107848700 | U71: 2000-12-15 | V71: 0.411 | W71: 114.57 | X71: 1999-12-15 | Y71: 1999-12-17 | Z71: 6 | AA71: 1 | AB71: 1.88 | AC71: 0.01640918216
A72: 57 | B72: 2014-01-16 | C72: 184.28 | D72: 184.66 | E72: 183.83 | F72: 184.42 | G72: 72290600 | H72: 183.61 | I72: 0.9956078516 | J72: 1 | K72: 183.47 | L72: 183.85 | M72: 183.02 | N72: 183.61 | O72: 72290600 | U72: 2000-09-15 | V72: 0.375 | W72: 114.57 | X72: 1999-09-15 | Y72: 1999-09-17 | Z72: 6 | AA72: 1 | AB72: 1.817 | AC72: 0.01585929999
A73: 58 | B73: 2014-01-15 | C73: 184.1 | D73: 184.94 | E73: 183.71 | F73: 184.66 | G73: 98525800 | H73: 183.85 | I73: 0.9956135601 | J73: 1 | K73: 183.29 | L73: 184.13 | M73: 182.9 | N73: 183.85 | O73: 98525800 | U73: 2000-09-14 | V73: 0.375 | W73: 114.57 | X73: 1999-09-14 | Y73: 1999-09-17 | Z73: 5 | AA73: 1 | AB73: 1.442 | AC73: 0.01258619185
A74: 59 | B74: 2014-01-14 | C74: 182.29 | D74: 183.77 | E74: 181.95 | F74: 183.67 | G74: 105016100 | H74: 182.86 | I74: 0.9955899167 | J74: 1 | K74: 181.49 | L74: 182.96 | M74: 181.15 | N74: 182.86 | O74: 105016100 | U74: 2000-06-16 | V74: 0.348 | W74: 114.57 | X74: 1999-06-16 | Y74: 1999-06-18 | Z74: 5 | AA74: 1 | AB74: 1.439 | AC74: 0.01256000698
A75: 60 | B75: 2014-01-13 | C75: 183.67 | D75: 184.18 | E75: 181.34 | F75: 181.69 | G75: 149892000 | H75: 180.89 | I75: 0.9955968958 | J75: 1 | K75: 182.86 | L75: 183.37 | M75: 180.54 | N75: 180.89 | O75: 149892000 | U75: 2000-03-17 | V75: 0.371 | W75: 114.57 | X75: 1999-03-17 | Y75: 1999-03-19 | Z75: 5 | AA75: 1 | AB75: 1.496 | AC75: 0.01305751942
A76: 61 | B76: 2014-01-10 | C76: 183.95 | D76: 184.22 | E76: 183.01 | F76: 184.14 | G76: 102026400 | H76: 183.33 | I76: 0.995601173 | J76: 1 | K76: 183.14 | L76: 183.41 | M76: 182.2 | N76: 183.33 | O76: 102026400 | U76: 1999-12-17 | V76: 0.348 | W76: 114.57 | X76: 1998-12-17 | Y76: 1998-12-18 | Z76: 5 | AA76: 1 | AB76: 1.445 | AC76: 0.01261237671
A77: 62 | B77: 2014-01-09 | C77: 184.11 | D77: 184.13 | E77: 182.8 | F77: 183.64 | G77: 90683400 | H77: 182.83 | I77: 0.9955891963 | J77: 1 | K77: 183.3 | L77: 183.32 | M77: 181.99 | N77: 182.83 | O77: 90683400 | U77: 1999-09-17 | V77: 0.372 | W77: 114.57 | X77: 1998-09-17 | Y77: 1998-09-18 | Z77: 5 | AA77: 1 | AB77: 1.489 | AC77: 0.0129964214
A78: 63 | B78: 2014-01-08 | C78: 183.45 | D78: 183.83 | E78: 182.89 | F78: 183.52 | G78: 96582300 | H78: 182.71 | I78: 0.9955863121 | J78: 1 | K78: 182.64 | L78: 183.02 | M78: 182.08 | N78: 182.71 | O78: 96582300 | U78: 1999-06-18 | V78: 0.405 | W78: 114.57 | X78: 1998-06-18 | Y78: 1998-06-19 | Z78: 5 | AA78: 1 | AB78: 1.476 | AC78: 0.01288295365
A79: 64 | B79: 2014-01-07 | C79: 183.09 | D79: 183.79 | E79: 182.95 | F79: 183.48 | G79: 86144200 | H79: 182.67 | I79: 0.9955853499 | J79: 1 | K79: 182.28 | L79: 182.98 | M79: 182.14 | N79: 182.67 | O79: 86144200 | U79: 1999-03-19 | V79: 0.32 | W79: 114.57 | X79: 1998-03-19 | Y79: 1998-03-20 | Z79: 5 | AA79: 1 | AB79: 1.423 | AC79: 0.01242035437
A80: 65 | B80: 2014-01-06 | C80: 183.49 | D80: 183.56 | E80: 182.08 | F80: 182.36 | G80: 108028200 | H80: 181.56 | I80: 0.995613073 | J80: 1 | K80: 182.69 | L80: 182.75 | M80: 181.28 | N80: 181.56 | O80: 108028200 | U80: 1998-12-18 | V80: 0.392 | W80: 114.57 | X80: 1997-12-18 | Y80: 1997-12-19 | Z80: 5 | AA80: 1 | AB80: 1.416 | AC80: 0.01235925635
A81: 66 | B81: 2014-01-03 | C81: 183.23 | D81: 183.6 | E81: 182.63 | F81: 182.89 | G81: 81390600 | H81: 182.09 | I81: =H81/F81 -> 0.995625786 | J81: =INDEX(OFFSET($T$15,0,0,$S$13+1,1),MATCH(B81,OFFSET($Q$15,0,0,$S$13+1,1),-1)) -> 1 | K81: =ROUND($I81*C81,2) -> 182.43 | L81: =ROUND($I81*D81,2) -> 182.8 | M81: =ROUND($I81*E81,2) -> 181.83 | N81: =ROUND($I81*F81,2) -> 182.09 | O81: =G81*J81 -> 81390600 | U81: 1998-09-18 | V81: 0.359 | W81: =(INDEX(OFFSET($F$15,1,0,$B$10,1),MATCH(U81,OFFSET($B$15,1,0,$B$10,1),-1))) -> 114.57 | X81: =IF(MONTH(DATE(YEAR(U81)-1,MONTH(U81),DAY(U81)))<>MONTH(U81),DATE(YEAR(U81)-1,MONTH(U81),DAY(U81-1)),DATE(YEAR(U81)-1,MONTH(U81),DAY(U81))) -> 1997-09-18 | Y81: =OFFSET(U80,Z81,0,1,1) -> 1997-09-19 | Z81: =MATCH(X81,OFFSET($U$15,A81,0,$V$14+1-A81,1),-1) -> 5 | AA81: =IF(MONTH(U81)=MONTH(Y81),1,0) -> 1 | AB81: =(V81+IFERROR(SUM(OFFSET(V81,1,0,Z81-AA81-1,1)),0)) -> 1.404 | AC81: =(V81+IFERROR(SUM(OFFSET(V81,1,0,Z81-AA81-1,1)),0))/(INDEX(OFFSET($F$15,1,0,$B$10,1),MATCH(U81,OFFSET($B$15,1,0,$B$10,1),-1))) -> 0.01225451689
A82: 67 | B82: 2014-01-02 | C82: 183.98 | D82: 184.07 | E82: 182.48 | F82: 182.92 | G82: 119636900 | H82: 182.12 | I82: 0.9956265034 | J82: 1 | K82: 183.18 | L82: 183.26 | M82: 181.68 | N82: 182.12 | O82: 119636900 | U82: 1998-06-19 | V82: 0.352 | W82: 114.57 | X82: 1997-06-19 | Y82: 1997-06-20 | Z82: 5 | AA82: 1 | AB82: 1.393 | AC82: 0.01215850572
A83: 68 | B83: 2013-12-31 | C83: 184.07 | D83: 184.69 | E83: 183.93 | F83: 184.69 | G83: 86119900 | H83: 183.88 | I83: 0.9956142726 | J83: 1 | K83: 183.26 | L83: 183.88 | M83: 183.12 | N83: 183.88 | O83: 86119900 | U83: 1998-03-20 | V83: 0.313 | W83: 114.57 | X83: 1997-03-20 | Y83: 1997-03-21 | Z83: 5 | AA83: 1 | AB83: 1.391 | AC83: 0.01214104914
A84: 69 | B84: 2013-12-30 | C84: 183.87 | D84: 184.02 | E84: 183.58 | F84: 183.82 | G84: 56857000 | H84: 183.01 | I84: 0.9955935154 | J84: 1 | K84: 183.06 | L84: 183.21 | M84: 182.77 | N84: 183.01 | O84: 56857000 | U84: 1997-12-19 | V84: 0.38 | W84: 114.57 | X84: 1996-12-19 | Y84: 1996-12-20 | Z84: 5 | AA84: 1 | AB84: 1.377 | AC84: 0.0120188531
A85: 70 | B85: 2013-12-27 | C85: 184.1 | D85: 184.18 | E85: 183.66 | F85: 183.85 | G85: 61814000 | H85: 183.04 | I85: 0.9955942344 | J85: 1 | K85: 183.29 | L85: 183.37 | M85: 182.85 | N85: 183.04 | O85: 61814000 | U85: 1997-09-19 | V85: 0.348 | W85: 114.57 | X85: 1996-09-19 | Y85: 1996-09-20 | Z85: 5 | AA85: 1 | AB85: 1.364 | AC85: 0.01190538535
A86: 71 | B86: 2013-12-26 | C86: 183.34 | D86: 183.96 | E86: 183.32 | F86: 183.86 | G86: 63365000 | H86: 183.05 | I86: 0.9955944741 | J86: 1 | K86: 182.53 | L86: 183.15 | M86: 182.51 | N86: 183.05 | O86: 63365000 | U86: 1997-06-20 | V86: 0.35 | W86: 114.57 | X86: 1996-06-20 | Y86: 1996-06-21 | Z86: 5 | AA86: 1 | AB86: 1.368 | AC86: 0.01194029851
A87: 72 | B87: 2013-12-24 | C87: 182.54 | D87: 183.01 | E87: 182.53 | F87: 182.93 | G87: 45368800 | H87: 182.13 | I87: 0.9956267425 | J87: 1 | K87: 181.74 | L87: 182.21 | M87: 181.73 | N87: 182.13 | O87: 45368800 | U87: 1997-03-21 | V87: 0.299 | W87: 114.57 | X87: 1996-03-21 | Y87: 1996-06-21 | Z87: 4 | AA87: 0 | AB87: 1.369 | AC87: 0.0119490268
A88: 73 | B88: 2013-12-23 | C88: 182.45 | D88: 182.64 | E88: 182.07 | F88: 182.53 | G88: 85598000 | H88: 181.73 | I88: 0.9956171588 | J88: 1 | K88: 181.65 | L88: 181.84 | M88: 181.27 | N88: 181.73 | O88: 85598000 | U88: 1996-12-20 | V88: 0.367 | W88: 114.57 | X88: 1995-12-20 | Y88: 1996-03-15 | Z88: 4 | AA88: 0 | AB88: 1.355 | AC88: 0.01182683076
A89: 74 | B89: 2013-12-20 | C89: 180.69 | D89: 181.99 | E89: 180.57 | F89: 181.56 | G89: 197087000 | H89: 180.76 | I89: 0.9955937431 | J89: 1 | K89: 179.89 | L89: 181.19 | M89: 179.77 | N89: 180.76 | O89: 197087000 | U89: 1996-09-20 | V89: 0.352 | W89: 114.57 | X89: 1995-09-20 | Y89: 1995-12-15 | Z89: 4 | AA89: 0 | AB89: 1.37 | AC89: 0.01195775508
A90: 75 | B90: 2013-12-19 | C90: 181.18 | D90: 181.7 | E90: 180.71 | F90: 181.49 | G90: 136531200 | H90: 179.72 | I90: 0.9902473966 | J90: 1 | K90: 179.41 | L90: 179.93 | M90: 178.95 | N90: 179.72 | O90: 136531200 | U90: 1996-06-21 | V90: 0.351 | W90: 114.57 | X90: 1995-06-21 | Y90: 1995-09-15 | Z90: 4 | AA90: 0 | AB90: 1.33 | AC90: 0.01160862355
A91: 76 | B91: 2013-12-18 | C91: 178.92 | D91: 181.73 | E91: 177.32 | F91: 181.7 | G91: 234906000 | H91: 179.92 | I91: 0.9902036324 | J91: 1 | K91: 177.17 | L91: 179.95 | M91: 175.58 | N91: 179.92 | O91: 234906000 | U91: 1996-03-15 | V91: 0.285 | W91: 114.57 | X91: 1995-03-15 | Y91: 1995-03-17 | Z91: 5 | AA91: 1 | AB91: 1.295 | AC91: 0.01130313346
A92: 77 | B92: 2013-12-17 | C92: 179.38 | D92: 179.41 | E92: 178.25 | F92: 178.65 | G92: 89886000 | H92: 176.9 | I92: 0.9902043101 | J92: 1 | K92: 177.62 | L92: 177.65 | M92: 176.5 | N92: 176.9 | O92: 89886000 | U92: 1995-12-15 | V92: 0.382 | W92: 114.57 | X92: 1994-12-15 | Y92: 1994-12-16 | Z92: 5 | AA92: 1 | AB92: 1.278 | AC92: 0.01115475255
A93: 78 | B93: 2013-12-16 | C93: 178.95 | D93: 179.81 | E93: 178.9 | F93: 179.22 | G93: 96195000 | H93: 177.47 | I93: 0.9902354648 | J93: 1 | K93: 177.2 | L93: 178.05 | M93: 177.15 | N93: 177.47 | O93: 96195000 | U93: 1995-09-15 | V93: 0.312 | W93: 114.57 | X93: 1994-09-15 | Y93: 1994-09-16 | Z93: 6 | AA93: 1 | AB93: 1.554 | AC93: 0.01356376015
A94: 79 | B94: 2013-12-13 | C94: 178.5 | D94: 178.66 | E94: 177.77 | F94: 178.11 | G94: 107808000 | H94: 176.37 | I94: 0.9902307563 | J94: 1 | K94: 176.76 | L94: 176.91 | M94: 176.03 | N94: 176.37 | O94: 107808000 | U94: 1995-06-16 | V94: 0.316 | W94: 114.57 | X94: 1994-06-16 | Y94: 1994-06-17 | Z94: 6 | AA94: 1 | AB94: 1.53 | AC94: 0.01335428123
A95: 80 | B95: 2013-12-12 | C95: 178.64 | D95: 178.86 | E95: 177.76 | F95: 178.13 | G95: 115565000 | H95: 176.39 | I95: 0.9902318531 | J95: 1 | K95: 176.9 | L95: 177.11 | M95: 176.02 | N95: 176.39 | O95: 115565000 | U95: 1995-03-17 | V95: 0.268 | W95: 114.57 | X95: 1994-03-17 | Y95: 1994-03-18 | Z95: 6 | AA95: 1 | AB95: 1.519 | AC95: 0.01325827005
A96: 81 | B96: 2013-12-11 | C96: 180.82 | D96: 180.85 | E96: 178.5 | F96: 178.72 | G96: 130591000 | H96: 176.97 | I96: 0.9902081468 | J96: 1 | K96: 179.05 | L96: 179.08 | M96: 176.75 | N96: 176.97 | O96: 130591000 | U96: 1994-12-16 | V96: 0.363 | W96: 114.57 | X96: 1993-12-16 | Y96: 1993-12-17 | Z96: 6 | AA96: 1 | AB96: 1.522 | AC96: 0.01328445492
A97: 82 | B97: 2013-12-10 | C97: 180.98 | D97: 181.36 | E97: 180.64 | F97: 180.75 | G97: 80976000 | H97: 178.98 | I97: 0.9902074689 | J97: 1 | K97: 179.21 | L97: 179.58 | M97: 178.87 | N97: 178.98 | O97: 80976000 | U97: 1994-09-19 | V97: 0.295 | W97: 114.57 | X97: 1993-09-19 | Y97: 1993-12-17 | Z97: 5 | AA97: 0 | AB97: 1.476 | AC97: 0.01288295365
A98: 83 | B98: 2013-12-09 | C98: 181.47 | D98: 181.67 | E98: 181.16 | F98: 181.4 | G98: 70124000 | H98: 179.63 | I98: 0.9902425579 | J98: 1 | K98: 179.7 | L98: 179.9 | M98: 179.39 | N98: 179.63 | O98: 70124000 | U98: 1994-09-16 | V98: 0.288 | W98: 114.57 | X98: 1993-09-16 | Y98: 1993-09-17 | Z98: 5 | AA98: 1 | AB98: 1.181 | AC98: 0.01030810858
A99: 84 | B99: 2013-12-06 | C99: 180.67 | D99: 181.11 | E99: 180.15 | F99: 180.94 | G99: 127728000 | H99: 179.17 | I99: 0.9902177517 | J99: 1 | K99: 178.9 | L99: 179.34 | M99: 178.39 | N99: 179.17 | O99: 127728000 | U99: 1994-06-17 | V99: 0.305 | W99: 114.57 | X99: 1993-06-17 | Y99: 1993-06-18 | Z99: 5 | AA99: 1 | AB99: 1.179 | AC99: 0.010290652
A100: 85 | B100: 2013-12-05 | C100: 179.41 | D100: 179.74 | E100: 178.77 | F100: 178.94 | G100: 106934000 | H100: 177.19 | I100: 0.9902201855 | J100: 1 | K100: 177.66 | L100: 177.98 | M100: 177.02 | N100: 177.19 | O100: 106934000 | U100: 1994-03-18 | V100: 0.271 | W100: 114.57 | X100: 1993-03-18 | Y100: 1993-03-19 | Z100: 5 | AA100: 1 | AB100: 1.192 | AC100: 0.01040411975
A101: 86 | B101: 2013-12-04 | C101: 179.1 | D101: 180.48 | E101: 178.35 | F101: 179.73 | G101: 123033000 | H101: 177.97 | I101: 0.9902075335 | J101: 1 | K101: 177.35 | L101: 178.71 | M101: 176.6 | N101: 177.97 | O101: 123033000 | U101: 1993-12-17 | V101: 0.317 | W101: 114.57 | X101: 1992-12-17 | Y101: 1993-03-19 | Z101: 4 | AA101: 0 | AB101: 1.134 | AC101: 0.009897879026
A102: 87 | B102: 2013-12-03 | C102: 179.94 | D102: 180.39 | E102: 179.17 | F102: 179.75 | G102: 116563000 | H102: 177.99 | I102: 0.9902086231 | J102: 1 | K102: 178.18 | L102: 178.62 | M102: 177.42 | N102: 177.99 | O102: 116563000 | U102: 1993-09-17 | V102: 0.286 | W102: 114.57 | X102: 1992-09-17 | Y102: 1993-03-19 | Z102: 3 | AA102: 0 | AB102: 0.817 | AC102: 0.007131011609
A103: 88 | B103: 2013-12-02 | C103: 181.09 | D103: 181.43 | E103: 180.25 | F103: 180.53 | G103: 99726000 | H103: 178.77 | I103: 0.9902509278 | J103: 1 | K103: 179.32 | L103: 179.66 | M103: 178.49 | N103: 178.77 | O103: 99726000 | U103: 1993-06-18 | V103: 0.318 | W103: 114.57 | X103: 1992-06-18 | Y103: 1993-03-19 | Z103: 2 | AA103: 0 | AB103: 0.531 | AC103: 0.004634721131
A104: 89 | B104: 2013-11-29 | C104: 181.32 | D104: 181.75 | E104: 180.8 | F104: 181 | G104: 55870900 | H104: 179.23 | I104: 0.9902209945 | J104: 1 | K104: 179.55 | L104: 179.97 | M104: 179.03 | N104: 179.23 | O104: 55870900 | U104: 1993-03-19 | V104: 0.213 | W104: 114.57 | X104: 1992-03-19 | Y104: 1993-03-19 | Z104: 1 | AA104: 1 | AB104: 0.213 | AC104: 0.001859125426
A105: 90 | B105: 2013-11-27 | C105: 180.87 | D105: 181.24 | E105: 180.65 | F105: 181.12 | G105: 58800000 | H105: 179.35 | I105: 0.9902274735 | J105: 1 | K105: 179.1 | L105: 179.47 | M105: 178.88 | N105: 179.35 | O105: 58800000
A106: 91 | B106: 2013-11-26 | C106: 180.72 | D106: 181.22 | E106: 180.41 | F106: 180.68 | G106: 86994000 | H106: 178.91 | I106: 0.990203675 | J106: 1 | K106: 178.95 | L106: 179.44 | M106: 178.64 | N106: 178.91 | O106: 86994000
A107: 92 | B107: 2013-11-25 | C107: 181.13 | D107: 181.17 | E107: 180.37 | F107: 180.63 | G107: 79486000 | H107: 178.87 | I107: 0.9902563251 | J107: 1 | K107: 179.37 | L107: 179.4 | M107: 178.61 | N107: 178.87 | O107: 79486000
A108: 93 | B108: 2013-11-22 | C108: 179.98 | D108: 180.83 | E108: 179.77 | F108: 180.81 | G108: 81296000 | H108: 179.04 | I108: 0.9902107184 | J108: 1 | K108: 178.22 | L108: 179.06 | M108: 178.01 | N108: 179.04 | O108: 81296000
A109: 94 | B109: 2013-11-21 | C109: 178.97 | D109: 180.05 | E109: 178.86 | F109: 179.91 | G109: 92841000 | H109: 178.15 | I109: 0.9902173309 | J109: 1 | K109: 177.22 | L109: 178.29 | M109: 177.11 | N109: 178.15 | O109: 92841000
A110: 95 | B110: 2013-11-20 | C110: 179.39 | D110: 179.93 | E110: 177.98 | F110: 178.47 | G110: 124909000 | H110: 176.73 | I110: 0.9902504623 | J110: 1 | K110: 177.64 | L110: 178.18 | M110: 176.24 | N110: 176.73 | O110: 124909000
A111: 96 | B111: 2013-11-19 | C111: 179.33 | D111: 179.87 | E111: 178.72 | F111: 179.03 | G111: 93891000 | H111: 177.28 | I111: 0.9902251019 | J111: 1 | K111: 177.58 | L111: 178.11 | M111: 176.97 | N111: 177.28 | O111: 93891000
A112: 97 | B112: 2013-11-18 | C112: 180.35 | D112: 180.5 | E112: 179.02 | F112: 179.42 | G112: 104796000 | H112: 177.67 | I112: 0.9902463493 | J112: 1 | K112: 178.59 | L112: 178.74 | M112: 177.27 | N112: 177.67 | O112: 104796000
A113: 98 | B113: 2013-11-15 | C113: 179.56 | D113: 180.12 | E113: 179.33 | F113: 180.05 | G113: 102818000 | H113: 178.29 | I113: 0.9902249375 | J113: 1 | K113: 177.8 | L113: 178.36 | M113: 177.58 | N113: 178.29 | O113: 102818000
A114: 99 | B114: 2013-11-14 | C114: 178.54 | D114: 179.42 | E114: 178.25 | F114: 179.27 | G114: 103435000 | H114: 177.52 | I114: 0.9902381882 | J114: 1 | K114: 176.8 | L114: 177.67 | M114: 176.51 | N114: 177.52 | O114: 103435000
A115: 100 | B115: 2013-11-13 | C115: 176.09 | D115: 178.43 | E115: 176.09 | F115: 178.38 | G115: 103844000 | H115: 176.64 | I115: 0.9902455432 | J115: 1 | K115: 174.37 | L115: 176.69 | M115: 174.37 | N115: 176.64 | O115: 103844000
A116: 101 | B116: 2013-11-12 | C116: 176.94 | D116: 177.36 | E116: 176.37 | F116: 176.96 | G116: 83990000 | H116: 175.23 | I116: 0.9902237794 | J116: 1 | K116: 175.21 | L116: 175.63 | M116: 174.65 | N116: 175.23 | O116: 83990000
A117: 102 | B117: 2013-11-11 | C117: 177.12 | D117: 177.53 | E117: 176.91 | F117: 177.32 | G117: 62614000 | H117: 175.59 | I117: 0.9902436273 | J117: 1 | K117: 175.39 | L117: 175.8 | M117: 175.18 | N117: 175.59 | O117: 62614000
A118: 103 | B118: 2013-11-08 | C118: 174.87 | D118: 177.31 | E118: 174.85 | F118: 177.29 | G118: 136713000 | H118: 175.56 | I118: 0.9902419764 | J118: 1 | K118: 173.16 | L118: 175.58 | M118: 173.14 | N118: 175.56 | O118: 136713000
A119: 104 | B119: 2013-11-07 | C119: 177.5 | D119: 177.64 | E119: 174.76 | F119: 174.93 | G119: 157000000 | H119: 173.22 | I119: 0.9902246613 | J119: 1 | K119: 175.76 | L119: 175.9 | M119: 173.05 | N119: 173.22 | O119: 157000000
A120: 105 | B120: 2013-11-06 | C120: 177.03 | D120: 177.5 | E120: 176.54 | F120: 177.17 | G120: 87348000 | H120: 175.44 | I120: 0.9902353672 | J120: 1 | K120: 175.3 | L120: 175.77 | M120: 174.82 | N120: 175.44 | O120: 87348000
A121: 106 | B121: 2013-11-05 | C121: 176.14 | D121: 176.75 | E121: 175.57 | F121: 176.27 | G121: 85825000 | H121: 174.55 | I121: 0.990242242 | J121: 1 | K121: 174.42 | L121: 175.03 | M121: 173.86 | N121: 174.55 | O121: 85825000
A122: 107 | B122: 2013-11-04 | C122: 176.69 | D122: 176.9 | E122: 175.98 | F122: 176.83 | G122: 85677000 | H122: 175.1 | I122: 0.9902165922 | J122: 1 | K122: 174.96 | L122: 175.17 | M122: 174.26 | N122: 175.1 | O122: 85677000
A123: 108 | B123: 2013-11-01 | C123: 176.02 | D123: 176.61 | E123: 175.22 | F123: 176.21 | G123: 142805000 | H123: 174.49 | I123: 0.9902389195 | J123: 1 | K123: 174.3 | L123: 174.89 | M123: 173.51 | N123: 174.49 | O123: 142805000
A124: 109 | B124: 2013-10-31 | C124: 176.15 | D124: 176.89 | E124: 175.53 | F124: 175.79 | G124: 133795000 | H124: 174.07 | I124: 0.9902155982 | J124: 1 | K124: 174.43 | L124: 175.16 | M124: 173.81 | N124: 174.07 | O124: 133795000
A125: 110 | B125: 2013-10-30 | C125: 177.38 | D125: 177.51 | E125: 175.66 | F125: 176.29 | G125: 140002000 | H125: 174.57 | I125: 0.990243349 | J125: 1 | K125: 175.65 | L125: 175.78 | M125: 173.95 | N125: 174.57 | O125: 140002000
A126: 111 | B126: 2013-10-29 | C126: 176.63 | D126: 177.24 | E126: 176.38 | F126: 177.17 | G126: 87401000 | H126: 175.44 | I126: 0.9902353672 | J126: 1 | K126: 174.91 | L126: 175.51 | M126: 174.66 | N126: 175.44 | O126: 87401000
A127: 112 | B127: 2013-10-28 | C127: 175.89 | D127: 176.47 | E127: 175.7 | F127: 176.23 | G127: 84979000 | H127: 174.51 | I127: 0.9902400272 | J127: 1 | K127: 174.17 | L127: 174.75 | M127: 173.99 | N127: 174.51 | O127: 84979000
A128: 113 | B128: 2013-10-25 | C128: 175.51 | D128: 176 | E128: 175.17 | F128: 175.95 | G128: 93625000 | H128: 174.23 | I128: 0.9902244956 | J128: 1 | K128: 173.79 | L128: 174.28 | M128: 173.46 | N128: 174.23 | O128: 93625000
A129: 114 | B129: 2013-10-24 | C129: 174.92 | D129: 175.37 | E129: 174.51 | F129: 175.15 | G129: 70350000 | H129: 173.44 | I129: 0.9902369398 | J129: 1 | K129: 173.21 | L129: 173.66 | M129: 172.81 | N129: 173.44 | O129: 70350000
A130: 115 | B130: 2013-10-23 | C130: 174.81 | D130: 174.89 | E130: 173.96 | F130: 174.57 | G130: 105484000 | H130: 172.86 | I130: 0.9902045025 | J130: 1 | K130: 173.1 | L130: 173.18 | M130: 172.26 | N130: 172.86 | O130: 105484000
A131: 116 | B131: 2013-10-22 | C131: 174.91 | D131: 175.93 | E131: 174.43 | F131: 175.41 | G131: 126663000 | H131: 173.7 | I131: 0.990251411 | J131: 1 | K131: 173.2 | L131: 174.21 | M131: 172.73 | N131: 173.7 | O131: 126663000
A132: 117 | B132: 2013-10-21 | C132: 174.45 | D132: 174.75 | E132: 174.01 | F132: 174.4 | G132: 104104000 | H132: 172.7 | I132: 0.9902522936 | J132: 1 | K132: 172.75 | L132: 173.05 | M132: 172.31 | N132: 172.7 | O132: 104104000
A133: 118 | B133: 2013-10-18 | C133: 173.86 | D133: 174.51 | E133: 173.51 | F133: 174.39 | G133: 138316000 | H133: 172.69 | I133: 0.9902517346 | J133: 1 | K133: 172.17 | L133: 172.81 | M133: 171.82 | N133: 172.69 | O133: 138316000
A134: 119 | B134: 2013-10-17 | C134: 171.37 | D134: 173.32 | E134: 171.34 | F134: 173.22 | G134: 129389000 | H134: 171.53 | I134: 0.9902436208 | J134: 1 | K134: 169.7 | L134: 171.63 | M134: 169.67 | N134: 171.53 | O134: 129389000
A135: 120 | B135: 2013-10-16 | C135: 170.72 | D135: 172.16 | E135: 170.64 | F135: 172.07 | G135: 161676000 | H135: 170.39 | I135: 0.9902365316 | J135: 1 | K135: 169.05 | L135: 170.48 | M135: 168.97 | N135: 170.39 | O135: 161676000
A136: 121 | B136: 2013-10-15 | C136: 170.51 | D136: 171.15 | E136: 169.47 | F136: 169.7 | G136: 155485000 | H136: 168.04 | I136: 0.9902180318 | J136: 1 | K136: 168.84 | L136: 169.48 | M136: 167.81 | N136: 168.04 | O136: 155485000
A137: 122 | B137: 2013-10-14 | C137: 169.21 | D137: 171.08 | E137: 169.08 | F137: 170.94 | G137: 112106000 | H137: 169.27 | I137: 0.9902304902 | J137: 1 | K137: 167.56 | L137: 169.41 | M137: 167.43 | N137: 169.27 | O137: 112106000
A138: 123 | B138: 2013-10-11 | C138: 168.91 | D138: 170.32 | E138: 168.77 | F138: 170.26 | G138: 105040000 | H138: 168.6 | I138: 0.9902502056 | J138: 1 | K138: 167.26 | L138: 168.66 | M138: 167.12 | N138: 168.6 | O138: 105040000
A139: 124 | B139: 2013-10-10 | C139: 167.29 | D139: 169.26 | E139: 167.23 | F139: 169.17 | G139: 195955000 | H139: 167.52 | I139: 0.9902464976 | J139: 1 | K139: 165.66 | L139: 167.61 | M139: 165.6 | N139: 167.52 | O139: 195955000
A140: 125 | B140: 2013-10-09 | C140: 165.8 | D140: 166.2 | E140: 164.53 | F140: 165.6 | G140: 168973000 | H140: 163.98 | I140: 0.9902173913 | J140: 1 | K140: 164.18 | L140: 164.57 | M140: 162.92 | N140: 163.98 | O140: 168973000
A141: 126 | B141: 2013-10-08 | C141: 167.4 | D141: 167.62 | E141: 165.36 | F141: 165.48 | G141: 178015000 | H141: 163.86 | I141: 0.9902102973 | J141: 1 | K141: 165.76 | L141: 165.98 | M141: 163.74 | N141: 163.86 | O141: 178015000
A142: 127 | B142: 2013-10-07 | C142: 167.42 | D142: 168.45 | E142: 167.25 | F142: 167.43 | G142: 96295000 | H142: 165.79 | I142: 0.9902048617 | J142: 1 | K142: 165.78 | L142: 166.8 | M142: 165.61 | N142: 165.79 | O142: 96295000
A143: 128 | B143: 2013-10-04 | C143: 167.75 | D143: 169.06 | E143: 167.53 | F143: 168.89 | G143: 96878000 | H143: 167.24 | I143: 0.9902303274 | J143: 1 | K143: 166.11 | L143: 167.41 | M143: 165.89 | N143: 167.24 | O143: 96878000
A144: 129 | B144: 2013-10-03 | C144: 168.79 | D144: 168.94 | E144: 166.84 | F144: 167.62 | G144: 176698000 | H144: 165.98 | I144: 0.9902159647 | J144: 1 | K144: 167.14 | L144: 167.29 | M144: 165.21 | N144: 165.98 | O144: 176698000
A145: 130 | B145: 2013-10-02 | C145: 168.35 | D145: 169.34 | E145: 167.83 | F145: 169.18 | G145: 113350000 | H145: 167.53 | I145: =H145/F145 -> 0.9902470741 | J145: =INDEX(OFFSET($T$15,0,0,$S$13+1,1),MATCH(B145,OFFSET($Q$15,0,0,$S$13+1,1),-1)) -> 1 | K145: =ROUND($I145*C145,2) -> 166.71 | L145: =ROUND($I145*D145,2) -> 167.69 | M145: =ROUND($I145*E145,2) -> 166.19 | N145: =ROUND($I145*F145,2) -> 167.53 | O145: =G145*J145 -> 113350000
A146: 131 | B146: 2013-10-01 | C146: 168.14 | D146: 169.5 | E146: 167.97 | F146: 169.34 | G146: 127160000 | H146: 167.69 | I146: 0.9902562891 | J146: 1 | K146: 166.5 | L146: 167.85 | M146: 166.33 | N146: 167.69 | O146: 127160000
A147: 132 | B147: 2013-09-30 | C147: 167.48 | D147: 168.54 | E147: 167.15 | F147: 168.01 | G147: 143937000 | H147: 166.37 | I147: 0.9902386763 | J147: 1 | K147: 165.85 | L147: 166.89 | M147: 165.52 | N147: 166.37 | O147: 143937000
A148: 133 | B148: 2013-09-27 | C148: 168.84 | D148: 169.14 | E148: 168.47 | F148: 168.91 | G148: 99141800 | H148: 167.26 | I148: 0.9902314842 | J148: 1 | K148: 167.19 | L148: 167.49 | M148: 166.82 | N148: 167.26 | O148: 99141800
A149: 134 | B149: 2013-09-26 | C149: 169.32 | D149: 170.17 | E149: 169.05 | F149: 169.69 | G149: 77146900 | H149: 168.03 | I149: 0.9902174554 | J149: 1 | K149: 167.66 | L149: 168.51 | M149: 167.4 | N149: 168.03 | O149: 77146900
A150: 135 | B150: 2013-09-25 | C150: 169.64 | D150: 169.98 | E150: 168.89 | F150: 169.04 | G150: 117306500 | H150: 167.39 | I150: 0.9902389967 | J150: 1 | K150: 167.98 | L150: 168.32 | M150: 167.24 | N150: 167.39 | O150: 117306500
A151: 136 | B151: 2013-09-24 | C151: 169.9 | D151: 170.53 | E151: 169.21 | F151: 169.53 | G151: 106333100 | H151: 167.87 | I151: 0.9902082227 | J151: 1 | K151: 168.24 | L151: 168.86 | M151: 167.55 | N151: 167.87 | O151: 106333100
A152: 137 | B152: 2013-09-23 | C152: 170.49 | D152: 170.65 | E152: 169.39 | F152: 169.93 | G152: 104616500 | H152: 168.27 | I152: 0.9902312717 | J152: 1 | K152: 168.82 | L152: 168.98 | M152: 167.74 | N152: 168.27 | O152: 104616500
A153: 138 | B153: 2013-09-20 | C153: 172.33 | D153: 172.33 | E153: 170.58 | F153: 170.72 | G153: 132867100 | H153: 169.05 | I153: 0.9902179007 | J153: 1 | K153: 170.64 | L153: 170.64 | M153: 168.91 | N153: 169.05 | O153: 132867100
A154: 139 | B154: 2013-09-19 | C154: 173.52 | D154: 173.6 | E154: 172.59 | F154: 172.76 | G154: 146616900 | H154: 170.24 | I154: 0.9854132901 | J154: 1 | K154: 170.99 | L154: 171.07 | M154: 170.07 | N154: 170.24 | O154: 146616900
A155: 140 | B155: 2013-09-18 | C155: 171.01 | D155: 173.52 | E155: 170.58 | F155: 173.05 | G155: 203460600 | H155: 170.53 | I155: 0.9854377348 | J155: 1 | K155: 168.52 | L155: 170.99 | M155: 168.1 | N155: 170.53 | O155: 203460600
A156: 141 | B156: 2013-09-17 | C156: 170.46 | D156: 171.11 | E156: 170.46 | F156: 171.07 | G156: 82523300 | H156: 168.58 | I156: 0.9854445549 | J156: 1 | K156: 167.98 | L156: 168.62 | M156: 167.98 | N156: 168.58 | O156: 82523300
A157: 142 | B157: 2013-09-16 | C157: 171.16 | D157: 171.24 | E157: 170.04 | F157: 170.31 | G157: 106299200 | H157: 167.83 | I157: 0.9854383184 | J157: 1 | K157: 168.67 | L157: 168.75 | M157: 167.56 | N157: 167.83 | O157: 106299200
A158: 143 | B158: 2013-09-13 | C158: 169.13 | D158: 169.46 | E158: 168.74 | F158: 169.33 | G158: 72727800 | H158: 166.86 | I158: 0.9854130987 | J158: 1 | K158: 166.66 | L158: 166.99 | M158: 166.28 | N158: 166.86 | O158: 72727800
A159: 144 | B159: 2013-09-12 | C159: 169.34 | D159: 169.56 | E159: 168.72 | F159: 168.95 | G159: 83209000 | H159: 166.49 | I159: 0.9854394791 | J159: 1 | K159: 166.87 | L159: 167.09 | M159: 166.26 | N159: 166.49 | O159: 83209000
A160: 145 | B160: 2013-09-11 | C160: 168.64 | D160: 169.4 | E160: 168.35 | F160: 169.4 | G160: 94545900 | H160: 166.93 | I160: 0.9854191263 | J160: 1 | K160: 166.18 | L160: 166.93 | M160: 165.9 | N160: 166.93 | O160: 94545900
A161: 146 | B161: 2013-09-10 | C161: 168.64 | D161: 168.9 | E161: 168.26 | F161: 168.87 | G161: 105847200 | H161: 166.41 | I161: 0.9854325813 | J161: 1 | K161: 166.18 | L161: 166.44 | M161: 165.81 | N161: 166.41 | O161: 105847200
A162: 147 | B162: 2013-09-09 | C162: 166.45 | D162: 167.73 | E162: 166.45 | F162: 167.63 | G162: 87559300 | H162: 165.19 | I162: 0.9854441329 | J162: 1 | K162: 164.03 | L162: 165.29 | M162: 164.03 | N162: 165.19 | O162: 87559300
A163: 148 | B163: 2013-09-06 | C163: 166.51 | D163: 166.98 | E163: 164.48 | F163: 166.04 | G163: 159756500 | H163: 163.62 | I163: 0.9854251987 | J163: 1 | K163: 164.08 | L163: 164.55 | M163: 162.08 | N163: 163.62 | O163: 159756500
A164: 149 | B164: 2013-09-05 | C164: 165.85 | D164: 166.4 | E164: 165.73 | F164: 165.96 | G164: 63090500 | H164: 163.54 | I164: 0.9854181731 | J164: 1 | K164: 163.43 | L164: 163.97 | M164: 163.31 | N164: 163.54 | O164: 63090500
A165: 150 | B165: 2013-09-04 | C165: 164.43 | D165: 166.03 | E165: 164.13 | F165: 165.75 | G165: 97389400 | H165: 163.33 | I165: 0.9853996983 | J165: 1 | K165: 162.03 | L165: 163.61 | M165: 161.73 | N165: 163.33 | O165: 97389400
A166: 151 | B166: 2013-09-03 | C166: 165.23 | D166: 165.58 | E166: 163.7 | F166: 164.39 | G166: 142375100 | H166: 161.99 | I166: 0.9854005718 | J166: 1 | K166: 162.82 | L166: 163.16 | M166: 161.31 | N166: 161.99 | O166: 142375100
A167: 152 | B167: 2013-08-30 | C167: 164.51 | D167: 164.53 | E167: 163.17 | F167: 163.65 | G167: 134928900 | H167: 161.27 | I167: 0.9854567675 | J167: 1 | K167: 162.12 | L167: 162.14 | M167: 160.8 | N167: 161.27 | O167: 134928900
A168: 153 | B168: 2013-08-29 | C168: 163.55 | D168: 165.04 | E168: 163.4 | F168: 164.17 | G168: 119200500 | H168: 161.78 | I168: 0.98544192 | J168: 1 | K168: 161.17 | L168: 162.64 | M168: 161.02 | N168: 161.78 | O168: 119200500
A169: 154 | B169: 2013-08-28 | C169: 163.26 | D169: 164.49 | E169: 163.05 | F169: 163.91 | G169: 108113000 | H169: 161.52 | I169: 0.9854188274 | J169: 1 | K169: 160.88 | L169: 162.09 | M169: 160.67 | N169: 161.52 | O169: 108113000
A170: 155 | B170: 2013-08-27 | C170: 164.36 | D170: 166 | E170: 163.21 | F170: 163.33 | G170: 158619400 | H170: 160.95 | I170: 0.985428274 | J170: 1 | K170: 161.96 | L170: 163.58 | M170: 160.83 | N170: 160.95 | O170: 158619400
A171: 156 | B171: 2013-08-26 | C171: 166.79 | D171: 167.3 | E171: 165.89 | F171: 166 | G171: 89702100 | H171: 163.58 | I171: 0.9854216867 | J171: 1 | K171: 164.36 | L171: 164.86 | M171: 163.47 | N171: 163.58 | O171: 89702100
A172: 157 | B172: 2013-08-23 | C172: 166.55 | D172: 166.83 | E172: 165.77 | F172: 166.62 | G172: 90888900 | H172: 164.19 | I172: 0.9854159165 | J172: 1 | K172: 164.12 | L172: 164.4 | M172: 163.35 | N172: 164.19 | O172: 90888900
A173: 158 | B173: 2013-08-22 | C173: 164.9 | D173: 166.3 | E173: 164.89 | F173: 166.06 | G173: 101471400 | H173: 163.64 | I173: 0.9854269541 | J173: 1 | K173: 162.5 | L173: 163.88 | M173: 162.49 | N173: 163.64 | O173: 101471400
A174: 159 | B174: 2013-08-21 | C174: 165.12 | D174: 166.03 | E174: 164.19 | F174: 164.56 | G174: 159530500 | H174: 162.16 | I174: 0.9854156539 | J174: 1 | K174: 162.71 | L174: 163.61 | M174: 161.8 | N174: 162.16 | O174: 159530500
A175: 160 | B175: 2013-08-20 | C175: 165.04 | D175: 166.2 | E175: 164.86 | F175: 165.58 | G175: 89294400 | H175: 163.17 | I175: 0.9854451021 | J175: 1 | K175: 162.64 | L175: 163.78 | M175: 162.46 | N175: 163.17 | O175: 89294400
A176: 161 | B176: 2013-08-19 | C176: 165.64 | D176: 166.21 | E176: 164.76 | F176: 164.77 | G176: 96437600 | H176: 162.37 | I176: 0.9854342417 | J176: 1 | K176: 163.23 | L176: 163.79 | M176: 162.36 | N176: 162.37 | O176: 96437600
A177: 162 | B177: 2013-08-16 | C177: 166.06 | D177: 166.63 | E177: 165.5 | F177: 165.83 | G177: 130868200 | H177: 163.41 | I177: 0.9854067418 | J177: 1 | K177: 163.64 | L177: 164.2 | M177: 163.08 | N177: 163.41 | O177: 130868200
A178: 163 | B178: 2013-08-15 | C178: 167.41 | D178: 167.43 | E178: 166.09 | F178: 166.38 | G178: 152931800 | H178: 163.96 | I178: 0.9854549826 | J178: 1 | K178: 164.98 | L178: 164.99 | M178: 163.67 | N178: 163.96 | O178: 152931800
A179: 164 | B179: 2013-08-14 | C179: 169.53 | D179: 169.8 | E179: 168.7 | F179: 168.74 | G179: 79829200 | H179: 166.28 | I179: 0.9854213583 | J179: 1 | K179: 167.06 | L179: 167.32 | M179: 166.24 | N179: 166.28 | O179: 79829200
A180: 165 | B180: 2013-08-13 | C180: 169.41 | D180: 169.9 | E180: 168.41 | F180: 169.61 | G180: 80806000 | H180: 167.14 | I180: 0.9854371794 | J180: 1 | K180: 166.94 | L180: 167.43 | M180: 165.96 | N180: 167.14 | O180: 80806000
A181: 166 | B181: 2013-08-12 | C181: 168.46 | D181: 169.31 | E181: 168.38 | F181: 169.11 | G181: 68593300 | H181: 166.65 | I181: 0.9854532553 | J181: 1 | K181: 166.01 | L181: 166.85 | M181: 165.93 | N181: 166.65 | O181: 68593300
A182: 167 | B182: 2013-08-09 | C182: 169.58 | D182: 170.1 | E182: 168.72 | F182: 169.31 | G182: 91757700 | H182: 166.84 | I182: 0.9854113756 | J182: 1 | K182: 167.11 | L182: 167.62 | M182: 166.26 | N182: 166.84 | O182: 91757700
A183: 168 | B183: 2013-08-08 | C183: 169.98 | D183: 170.18 | E183: 168.93 | F183: 169.8 | G183: 102181300 | H183: 167.33 | I183: 0.9854534747 | J183: 1 | K183: 167.51 | L183: 167.7 | M183: 166.47 | N183: 167.33 | O183: 102181300
A184: 169 | B184: 2013-08-07 | C184: 169.19 | D184: 169.43 | E184: 168.55 | F184: 169.18 | G184: 84854700 | H184: 166.71 | I184: 0.9854001655 | J184: 1 | K184: 166.72 | L184: 166.96 | M184: 166.09 | N184: 166.71 | O184: 84854700
A185: 170 | B185: 2013-08-06 | C185: 170.37 | D185: 170.74 | E185: 169.35 | F185: 169.73 | G185: 87495000 | H185: 167.26 | I185: 0.9854474754 | J185: 1 | K185: 167.89 | L185: 168.26 | M185: 166.89 | N185: 167.26 | O185: 87495000
A186: 171 | B186: 2013-08-05 | C186: 170.57 | D186: 170.96 | E186: 170.35 | F186: 170.7 | G186: 54072700 | H186: 168.21 | I186: 0.9854130053 | J186: 1 | K186: 168.08 | L186: 168.47 | M186: 167.87 | N186: 168.21 | O186: 54072700
A187: 172 | B187: 2013-08-02 | C187: 170.28 | D187: 170.97 | E187: 170.05 | F187: 170.95 | G187: 91116700 | H187: 168.46 | I187: 0.9854343375 | J187: 1 | K187: 167.8 | L187: 168.48 | M187: 167.57 | N187: 168.46 | O187: 91116700
A188: 173 | B188: 2013-08-01 | C188: 169.99 | D188: 170.81 | E188: 169.9 | F188: 170.66 | G188: 110438400 | H188: 168.17 | I188: 0.9854095863 | J188: 1 | K188: 167.51 | L188: 168.32 | M188: 167.42 | N188: 168.17 | O188: 110438400
A189: 174 | B189: 2013-07-31 | C189: 168.94 | D189: 169.85 | E189: 168.49 | F189: 168.71 | G189: 142388700 | H189: 166.25 | I189: 0.9854187659 | J189: 1 | K189: 166.48 | L189: 167.37 | M189: 166.03 | N189: 166.25 | O189: 142388700
A190: 175 | B190: 2013-07-30 | C190: 169.1 | D190: 169.28 | E190: 168.19 | F190: 168.59 | G190: 85209600 | H190: 166.13 | I190: 0.9854083872 | J190: 1 | K190: 166.63 | L190: 166.81 | M190: 165.74 | N190: 166.13 | O190: 85209600
A191: 176 | B191: 2013-07-29 | C191: 168.68 | D191: 169.06 | E191: 168.11 | F191: 168.59 | G191: 79695000 | H191: 166.13 | I191: 0.9854083872 | J191: 1 | K191: 166.22 | L191: 166.59 | M191: 165.66 | N191: 166.13 | O191: 79695000
A192: 177 | B192: 2013-07-26 | C192: 168.22 | D192: 169.16 | E192: 167.52 | F192: 169.11 | G192: 107814600 | H192: 166.65 | I192: 0.9854532553 | J192: 1 | K192: 165.77 | L192: 166.7 | M192: 165.08 | N192: 166.65 | O192: 107814600
A193: 178 | B193: 2013-07-25 | C193: 168.22 | D193: 169.08 | E193: 167.94 | F193: 168.93 | G193: 111088600 | H193: 166.47 | I193: 0.9854377553 | J193: 1 | K193: 165.77 | L193: 166.62 | M193: 165.49 | N193: 166.47 | O193: 111088600
A194: 179 | B194: 2013-07-24 | C194: 169.79 | D194: 169.86 | E194: 168.18 | F194: 168.52 | G194: 112914000 | H194: 166.06 | I194: 0.9854023261 | J194: 1 | K194: 167.31 | L194: 167.38 | M194: 165.72 | N194: 166.06 | O194: 112914000
A195: 180 | B195: 2013-07-23 | C195: 169.8 | D195: 169.83 | E195: 169.05 | F195: 169.14 | G195: 80829700 | H195: 166.68 | I195: 0.9854558354 | J195: 1 | K195: 167.33 | L195: 167.36 | M195: 166.59 | N195: 166.68 | O195: 80829700
A196: 181 | B196: 2013-07-22 | C196: 169.41 | D196: 169.74 | E196: 169.01 | F196: 169.5 | G196: 79428600 | H196: 167.03 | I196: 0.9854277286 | J196: 1 | K196: 166.94 | L196: 167.27 | M196: 166.55 | N196: 167.03 | O196: 79428600
A197: 182 | B197: 2013-07-19 | C197: 168.52 | D197: 169.23 | E197: 168.31 | F197: 169.17 | G197: 103831700 | H197: 166.7 | I197: 0.9853993025 | J197: 1 | K197: 166.06 | L197: 166.76 | M197: 165.85 | N197: 166.7 | O197: 103831700
A198: 183 | B198: 2013-07-18 | C198: 168.31 | D198: 169.27 | E198: 168.2 | F198: 168.87 | G198: 103620100 | H198: 166.41 | I198: 0.9854325813 | J198: 1 | K198: 165.86 | L198: 166.8 | M198: 165.75 | N198: 166.41 | O198: 103620100
A199: 184 | B199: 2013-07-17 | C199: 168.16 | D199: 168.48 | E199: 167.73 | F199: 167.95 | G199: 92873900 | H199: 165.5 | I199: 0.9854123251 | J199: 1 | K199: 165.71 | L199: 166.02 | M199: 165.28 | N199: 165.5 | O199: 92873900
A200: 185 | B200: 2013-07-16 | C200: 168.26 | D200: 168.36 | E200: 167.07 | F200: 167.52 | G200: 88702100 | H200: 165.08 | I200: 0.985434575 | J200: 1 | K200: 165.81 | L200: 165.91 | M200: 164.64 | N200: 165.08 | O200: 88702100
... 2843 more rows

Sheet Follow
A1: Stocks and Indexes I wish to follow
A3: To ease following a stock, enter a Yahoo Finance acceptable symbol in column "A" anywhere below cell "A9".
A4: Thereafter you may doubleclick the cell containing a symbol of interest to initiate data retrieval and charting for that symbol.
A7: Symbol
A8: To | B8: Description | C8: Last Trade as of most recent check
A9: Follow | C9: Date | D9: Time | E9: Open | F9: High | G9: Low | H9: Close | I9: Volume
A10: F | B10: Ford Motor Compan (F) -NYSE (Daily) | C10: 2014-02-03 | D10: 16:00:00 | E10: N/A | F10: N/A | G10: N/A | H10: 14.55 | I10: 76226
A11: MCD | B11: McDonald's Corpor (MCD) -NYSE | C11: 2014-02-03 | D11: 16:00:00 | E11: 94.53 | F11: 94.74 | G11: 92.91 | H11: 93.02 | I11: 6909174
A12: JNJ | B12: Johnson & Johnson (JNJ) -NYSE | C12: 2014-02-03 | D12: 16:01:00 | E12: 88.75 | F12: 88.78 | G12: 86.61 | H12: 86.78 | I12: 13953268
A13: AAL | B13: American Airlines (AAL) -NasdaqNM | C13: 2014-02-03 | D13: 16:00:00 | E13: 34.04 | F13: 34.48 | G13: 33.05 | H13: 33.96 | I13: 21748284
A14: CIEN | B14: Ciena Corporation (CIEN) -NYSE | C14: 2014-02-03 | D14: 16:02:00 | E14: 23.31 | F14: 23.38 | G14: 21.9 | H14: 22.09 | I14: 4433923
A15: SONC | B15: Sonic Corp. (SONC) -NasdaqNM | C15: 2014-02-03 | D15: 16:00:00 | E15: 17.7 | F15: 18 | G15: 16.92 | H15: 17.28 | I15: 918579
A16: HTLD | B16: Heartland Express (HTLD) -NasdaqNM | C16: 2014-02-03 | D16: 16:00:00 | E16: 21.05 | F16: 21.23 | G16: 20.17 | H16: 20.21 | I16: 589750
A17: ADM | B17: Archer-Daniels-Mi (ADM) -NYSE (Daily) | C17: 2014-04-04 | D17: 16:01:00 | E17: 43.59 | F17: 43.66 | G17: 43.03 | H17: 43.05 | I17: 4416020
A18: A | B18: Agilent Technolog (A) -NYSE | C18: 2014-02-03 | D18: 16:02:00 | E18: 58.15 | F18: 58.48 | G18: 56.075 | H18: 56.15 | I18: 2929252
A22: SPY | B22: SPDR S&P 500 (SPY) -PCX (Daily) | C22: 2014-04-08 | D22: 16:00:00 | E22: 184.21 | F22: 185.4 | G22: 183.59 | H22: 185.1 | I22: 112659752
A23: ^GSPC | B23: S&P 500 (^GSPC) -SNP (Daily) | C23: 2014-04-08 | D23: 16:33:00 | E23: 1845.48 | F23: 1854.95 | G23: 1837.49 | H23: 1851.96 | I23: 552300992
A24: QQQ | B24: PowerShares QQQ T (QQQ) -NGM (Daily) | C24: 2014-04-07 | D24: 11:33:00 | E24: 85.83 | F24: 86.63 | G24: 85.55 | H24: 86.07 | I24: 40146792

Sheet CalculationsAndCharts
A1: Three-Period Divergence
B2: =InputPriceData!A1 -> SPDR S&P 500 (SPY) -PCX (Daily)
A4: User Charting Controls
A5: Data Control
A6: =InputPriceData!$B$10 -> 3028 | B6: Available Input Data Rows | E6: Earliest: | F6: =OFFSET(InputPriceData!B15,CalculationsAndCharts!A6,0,1,1) -> 2002-04-01
B7: Use Close Adjusted: | C7: FALSE | E7: Latest: | F7: =OFFSET(InputPriceData!B15,1,0,1,1) -> 2014-04-08
A8: =MIN(A6-A11,COUNTA(B33:B9983)) -> 2800 | B8: Logically Available for Calc / Plot
A10: Price Chart Windowing Controls | F10: Y-axis Range
A11: 225 | B11: Input Data Offset (Pan) | E11: Max High+ | F11: =CEILING(MAX(OFFSET($E$33,0,0,$A$12,1))+2*F14,0.1) -> 167.9
A12: 44 | B12: Data Points to Plot (Zoom) | E12: Min Low- | F12: =FLOOR(MIN(OFFSET($F$33,0,0,$A$12,1))-2*F14,0.1) -> 152.1
B13: First: | C13: =OFFSET(B32,A12,0,1,1) -> 2013-03-15 | E13: White space %: | F13: 0.05
B14: ="Last: "&OFFSET(InputPriceData!P15,1+A11,0,1,1) -> Last: | C14: =B33 -> 2013-05-16 | E14: Allowance: | F14: =FLOOR((CEILING(MAX(OFFSET($E$33,0,0,$A$12,1)),1)-FLOOR(MIN(OFFSET($F$33,0,0,$A$12,1)),1))*$F$13,0.01) -> 0.7
A15: Help! I would like to plot data
A16: From | B16: 2013-03-15 | C16: =OFFSET(InputPriceData!$A$15,MATCH(B16,OFFSET(InputPriceData!B15,1,0,InputPriceData!$B$10,1),0),0,1,1)-C17 -> 44 | E16: 23
A17: To | B17: 2013-05-16 | C17: =OFFSET(InputPriceData!$A$15,MATCH(B17,OFFSET(InputPriceData!$B$15,1,0,InputPriceData!$B$10,1),0),0,1,1)-1 -> 225 | E17: =$A$12-$E$16+1 -> 22
A19: User Controls for: Three PeriodDivergence
A20: FALSE | B20: <- fastmom | C20: variablesize -> | D20: TRUE
A21: 10 | B21: <- momperiod | C21: futures -> | D21: FALSE
A22: 5 | B22: <- dvgperiod1 | C22: ATRperiod -> | D22: 20
A23: 8 | B23: <- dvgperiod2 | C23: Bigpointvalue -> | D23: 1
A24: 13 | B24: <- dvgperiod3 | C24: size -> | D24: 1
A25: 1 | B25: <- entrynumber | C25: futuresinvest -> | D25: 10000
A26: FALSE | B26: <- longonly | C26: stockinvest -> | D26: 10000 | AX26: =COUNTIF(AX33:AX2832,TRUE) -> 852 | AY26: =COUNTIF(AY33:AY2832,TRUE) -> 172 | AZ26: 103 | BA26: 63 | BB26: 58 | BC26: 235 | BD26: 170
A27: 3 | B27: <- Max Divergences | AB27: Momentum range | AZ27: Exit Short All (next bar buy to cov @ Open) | BA27: Exit Short All (This bar buy to cov @ Close)
H28: @ Cursor => | I28: =OFFSET(A32,$E$17,0,1,1)&"(RR)" -> 22(RR) | J28: =OFFSET($B$32,E17,0,1,1) -> 2013-04-17 | K28: =TEXT(OFFSET(D32,$E$17,0,1,1),"#,##0.00")&"(o)" -> 156.29(o) | L28: =TEXT(OFFSET(E32,$E$17,0,1,1),"#,##0.00")&"(h)" -> 156.32(h) | M28: =TEXT(OFFSET(F32,$E$17,0,1,1),"#,##0.00")&"(l)" -> 154.28(l) | N28: =TEXT(OFFSET(G32,$E$17,0,1,1),"#,##0.00")&"(c)" -> 155.11(c) | AB28: Min and Max | AY28: Exit Long All (next bar sell @ Open) | BB28: Exit Long All (this bar sell @ Close)
AB29: =-AC29 -> -15 | AC29: =MAX(ABS(CEILING(MAX(OFFSET(AB33,0,0,A12,3)),0.1)),ABS(FLOOR(MIN(OFFSET(AB33,0,0,A12,3)),0.1))) -> 15 | BC29: Go Long next bar @ Open | BD29: Go Short next bar @ Open | BE29: Size: # of shares or contracts | BG29: Long Transactions | BN29: Short Transactions
AS30: Num Price Slope up | AT30: Num Price Slope Dn | AU30: Num Mom Slope up | AV30: Num Mom Slope Dn | AX30: All trends in same direction | BG30: Long Transaction Acounting | BK30: Long Plot Markers | BN30: Short Transaction Acounting | BR30: Short Plot Markers
A31: Rel Row | B31: Stock Prices | H31: P Cursor | I31: P Cursor Min | J31: S Cursor | K31: S Cursor Min | L31: Investment: Running Bal | M31: Running Long PL | N31: Running Short PL | O31: Running Total PL | P31: Today Long PL | Q31: Today Short PL | R31: Today Total PL | V31: True Range | W31: =A8-D22 -> 2780 | Y31: ="Price Slope("&$A$22&")" -> Price Slope(5) | Z31: ="Price Slope("&$A$23&")" -> Price Slope(8) | AA31: ="Price Slope("&$A$24&")" -> Price Slope(13) | AB31: ="MOM Slope("&$A$22&")" -> MOM Slope(5) | AC31: ="MOM Slope("&$A$23&")" -> MOM Slope(8) | AD31: ="MOM Slope("&$A$24&")" -> MOM Slope(13) | AE31: dvg buy 1 | AF31: dvg buy 2 | AG31: dvg buy 3 | AH31: Num Buys | AI31: dvg sell 1 | AJ31: dvg sell 2 | AK31: dvg sell 3 | AL31: Num Sells | AM31: Trend Up 1 | AN31: Trend Up 2 | AO31: Trend Up 3 | AP31: Trend Down 1 | AQ31: Trend Down 2 | AR31: Trend Down 3 | AW31: Market Position | BF31: entry size | BG31: Enter | BH31: Entry Price | BI31: Exit | BJ31: Exit Price | BN31: Enter | BO31: Entry Price | BP31: Exit | BQ31: Exit Price
B32: Date | C32: Volume | D32: Open | E32: High | F32: Low | G32: Close | H32: =$F$11 -> 167.9 | I32: =F12 -> 152.1 | J32: =MAX(ABS(CEILING(MAX(OFFSET(Y33,0,0,A12,3)),0.1)),ABS(FLOOR(MIN(OFFSET(Y33,0,0,A12,3)),0.1))) -> 1.1 | K32: =-J32 -> -1.1 | S32: ="fastk("&A21&")" -> fastk(10) | T32: ="fastd("&A21&")" -> fastd(10) | U32: mom | W32: ="ATR("&D22&")" -> ATR(20) | X32: size | AY32: Xlall | AZ32: Xsall | BA32: RevShort | BB32: RevLong | BC32: New Buy | BD32: New Sell | BK32: NewBuy | BL32: XLall | BM32: RevLong | BR32: NewSell | BS32: XSall | BT32: Rev Short
A33: 1 | B33: =OFFSET(InputPriceData!$B$15,CalculationsAndCharts!$A33+$A$11,0,1,1) -> 2013-05-16 | C33: =OFFSET(InputPriceData!G$15,CalculationsAndCharts!$A33+$A$11,IF($C$7,8,0),1,1) -> 109913600 | D33: =OFFSET(InputPriceData!$C$15,CalculationsAndCharts!$A33+$A$11,IF($C$7,8,0),1,1) -> 165.78 | E33: =OFFSET(InputPriceData!$D$15,CalculationsAndCharts!$A33+$A$11,IF($C$7,8,0),1,1) -> 166.36 | F33: =OFFSET(InputPriceData!$E$15,CalculationsAndCharts!$A33+$A$11,IF($C$7,8,0),1,1) -> 165.09 | G33: =OFFSET(InputPriceData!$F$15,CalculationsAndCharts!$A33+$A$11,IF($C$7,8,0),1,1) -> 165.34 | H33: =$E$17 -> 22 | I33: =H32 -> 167.9 | J33: =$E$17 -> 22 | K33: =J32 -> 1.1 | L33: =IF(A33=$A$8,IF($D$21,$D$25,$D$26),IF(A33<$A$8,L34,NA()))+R33 -> 14164.93 | M33: =IF(A33=$A$8,0,IF(A33<$A$8,M34,NA()))+P33 -> 3741.9 | N33: =IF(A33=$A$8,0,IF(A33<$A$8,N34,NA()))+Q33 -> 423.03 | O33: =O34+R33 -> 4164.93 | P33: =IF(AY33,AW34*BF34*(D33-G34)*$D$23,IF( AW33 <=0,0,IF(BC34,AW33*BF33*(G33-D33)*$D$23,AW33*BF33*(G33-G34)*$D$23))) -> -66.3 | Q33: =IF(AZ33,AW34*BF34*(D33-G34)*$D$23,IF( AW33 >=0,0,IF(BD34,AW33*BF33*(G33-D33)*$D$23, AW33*BF33*(G33-G34)*$D$23))) -> 0 | R33: =P33+Q33 -> -66.3 | S33: =(G33-MIN(OFFSET(F33,0,0,$A$21,1)))/(MAX(OFFSET(E33,0,0,$A$21,1))-MIN(OFFSET(F33,0,0,$A$21,1)))*100 -> 83.35832084 | T33: =AVERAGE(S33:S35) -> 92.51216059 | U33: =IF($A$20,S33,T33) -> 92.51216059 | V33: =MAX(E33-F33,IF(A33<$A$8,MAX(ABS(E33-G34),ABS(F33-G34)),0)) -> 1.27 | W33: =IF(A33<$W$31,(W34*($D$22-1)+V33)/$D$22,IF(A33=$W$31,AVERAGE(OFFSET(V33,0,0,$D$22,1)),NA())) -> 1.436013083 | X33: =INT(IF($D$20,IF($D$21,L33/(W33*$D$23),L33/G33),1)) -> 85 | Y33: =-SLOPE(OFFSET(G33,0,0,$A$22,1),OFFSET(A33,0,0,$A$22,1)) -> 0.644 | Z33: =-SLOPE(OFFSET(G33,0,0,$A$23,1),OFFSET(A33,0,0,$A$23,1)) -> 0.4792857143 | AA33: =-SLOPE(OFFSET(G33,0,0,$A$24,1),OFFSET(A33,0,0,$A$24,1)) -> 0.5776373626 | AB33: =-SLOPE(OFFSET(U33,0,0,$A$22,1),OFFSET(A33,0,0,$A$22,1)) -> 0.2586551109 | AC33: =-SLOPE(OFFSET(U33,0,0,$A$23,1),OFFSET(A33,0,0,$A$23,1)) -> -0.3501901119 | AD33: =-SLOPE(OFFSET(U33,0,0,$A$24,1),OFFSET(A33,0,0,$A$24,1)) -> 0.327092476 | AE33: =AND(Y33>0,AB33<0) -> FALSE | AF33: =AND(Z33>0,AC33<0) -> TRUE | AG33: =AND(AA33>0,AD33<0) -> FALSE | AH33: =COUNTIF(AE33:AG33,TRUE) -> 1 | AI33: =AND(Y33<0,AB33>0) -> FALSE | AJ33: =AND(Z33<0,AC33>0) -> FALSE | AK33: FALSE | AL33: =COUNTIF(AI33:AK33,TRUE) -> 0 | AM33: =AND(Y33>0,AB33>0) -> TRUE | AN33: =AND(Z33>0,AC33>0) -> FALSE | AO33: TRUE | AP33: =AND(Y33<0,AB33<0) -> FALSE | AQ33: =AND(Z33<0,AC33<0) -> FALSE | AR33: FALSE | AS33: =COUNTIF(Y33:AA33,">=0") -> 3 | AT33: =COUNTIF(Y33:AA33,"<0") -> 0 | AU33: =COUNTIF(AB33:AD33,">=0") -> 2 | AV33: =COUNTIF(AB33:AD33,"<0") -> 1 | AW33: =AW34+IF(BD34,-1,0)+IF(BC34,1,0)+IF(AY34,-1,0)+IF(AZ34,1,0)+IF(BA34,1,0)+IF(BB34,-1,0) -> 1 | AX33: =OR(AND(AS33=$A$27,AU33=$A$27),AND(AT33=$A$27,AV33=$A$27)) -> FALSE | AY33: =AND(AX33,AW33>0) -> FALSE | AZ33: =AND(AX33,AW33<0) -> FALSE | BA33: =AND(AW33<0,AH33>=$A$25) -> FALSE | BB33: =AND(NOT($A$26),AW33>0,AL33>=$A$25) -> FALSE | BC33: =AND(AW33<=0,AH33>=$A$25) -> FALSE | BD33: =AND(NOT($A$26),AW33>=0,AL33>=$A$25) -> FALSE | BE33: =INT(IF(NOT($D$20),$D$24,IF($D$21,L33/(W33*$D$23),L33/G33))) -> 85 | BF33: =IF(AND(AW34=0,AW33<>0,OR(BC34,BD34)),BE34,BF34) -> 85 | BG33: =BC34 -> FALSE | BH33: =IF(BC34,D33,NA()) ->  | BI33: =OR(AY34,BB33) -> FALSE | BJ33: =IF(AY34,D33,IF(BB33,G33,NA())) ->  | BK33: =IF(BC34,D33,NA()) ->  | BL33: =IF(AY34,D33,NA()) ->  | BM33: =IF(BB33,G33,NA()) ->  | BN33: =BD34 -> FALSE | BO33: =IF(BD34,D33,NA()) ->  | BP33: =OR(AZ34,BA33) -> FALSE | BQ33: =IF(AZ34,D33,IF(BA33,G33,NA())) ->  | BR33: =IF(BD34,D33,NA()) ->  | BS33: =IF(AZ34,D33,NA()) ->  | BT33: =IF(BA33,G33,NA()) -> 
A34: 2 | B34: =OFFSET(InputPriceData!B$15,CalculationsAndCharts!$A34+$A$11,0,1,1) -> 2013-05-15 | C34: =OFFSET(InputPriceData!G$15,CalculationsAndCharts!$A34+$A$11,IF($C$7,8,0),1,1) -> 120718500 | D34: =OFFSET(InputPriceData!C$15,CalculationsAndCharts!$A34+$A$11,IF($C$7,8,0),1,1) -> 164.96 | E34: =OFFSET(InputPriceData!D$15,CalculationsAndCharts!$A34+$A$11,IF($C$7,8,0),1,1) -> 166.45 | F34: =OFFSET(InputPriceData!E$15,CalculationsAndCharts!$A34+$A$11,IF($C$7,8,0),1,1) -> 164.91 | G34: =OFFSET(InputPriceData!F$15,CalculationsAndCharts!$A34+$A$11,IF($C$7,8,0),1,1) -> 166.12 | H34: =$E$17 -> 22 | I34: =I32 -> 152.1 | J34: =$E$17 -> 22 | K34: =K32 -> -1.1 | L34: 14231.23 | M34: 3808.2 | N34: 423.03 | O34: 4231.23 | P34: 75.65 | Q34: 0 | R34: 75.65 | S34: 95.83333333 | T34: =AVERAGE(S34:S36) -> 96.48320484 | U34: 96.48320484 | V34: 1.54 | W34: 1.444750613 | X34: 85 | Y34: 0.83 | Z34: 0.5316666667 | AA34: 0.5784065934 | AB34: 0.6109554729 | AC34: -0.1365849969 | AD34: 0.5650675761 | AE34: =AND(Y34>0,AB34<0) -> FALSE | AF34: =AND(Z34>0,AC34<0) -> TRUE | AG34: =AND(AA34>0,AD34<0) -> FALSE | AH34: =COUNTIF(AE34:AG34,TRUE) -> 1 | AI34: =AND(Y34<0,AB34>0) -> FALSE | AJ34: =AND(Z34<0,AC34>0) -> FALSE | AK34: =AND(AA34<0,AD34>0) -> FALSE | AL34: =COUNTIF(AI34:AK34,TRUE) -> 0 | AM34: =AND(Y34>0,AB34>0) -> TRUE | AN34: =AND(Z34>0,AC34>0) -> FALSE | AO34: =AND(AA34>0,AD34>0) -> TRUE | AP34: =AND(Y34<0,AB34<0) -> FALSE | AQ34: =AND(Z34<0,AC34<0) -> FALSE | AR34: =AND(AA34<0,AD34<0) -> FALSE | AS34: =COUNTIF(Y34:AA34,">=0") -> 3 | AT34: =COUNTIF(Y34:AA34,"<0") -> 0 | AU34: =COUNTIF(AB34:AD34,">=0") -> 2 | AV34: =COUNTIF(AB34:AD34,"<0") -> 1 | AW34: =AW35+IF(BD35,-1,0)+IF(BC35,1,0)+IF(AY35,-1,0)+IF(AZ35,1,0)+IF(BA35,1,0)+IF(BB35,-1,0) -> 1 | AX34: FALSE | AY34: FALSE | AZ34: FALSE | BA34: FALSE | BB34: FALSE | BC34: FALSE | BD34: FALSE | BE34: 85 | BF34: =IF(AND(AW35=0,AW34<>0,OR(BC35,BD35)),BE35,BF35) -> 85 | BG34: =BC35 -> FALSE | BI34: =OR(AY35,BB34) -> FALSE | BN34: =BD35 -> FALSE | BP34: =OR(AZ35,BA34) -> FALSE
A35: 3 | B35: =OFFSET(InputPriceData!B$15,CalculationsAndCharts!$A35+$A$11,0,1,1) -> 2013-05-14 | C35: =OFFSET(InputPriceData!G$15,CalculationsAndCharts!$A35+$A$11,IF($C$7,8,0),1,1) -> 119000900 | D35: =OFFSET(InputPriceData!C$15,CalculationsAndCharts!$A35+$A$11,IF($C$7,8,0),1,1) -> 163.67 | E35: =OFFSET(InputPriceData!D$15,CalculationsAndCharts!$A35+$A$11,IF($C$7,8,0),1,1) -> 165.35 | F35: =OFFSET(InputPriceData!E$15,CalculationsAndCharts!$A35+$A$11,IF($C$7,8,0),1,1) -> 163.67 | G35: =OFFSET(InputPriceData!F$15,CalculationsAndCharts!$A35+$A$11,IF($C$7,8,0),1,1) -> 165.23 | L35: 14155.58 | M35: 3732.55 | N35: 423.03 | O35: 4155.58 | P35: 143.65 | Q35: 0 | R35: 143.65 | S35: 98.34482759 | T35: =AVERAGE(S35:S37) -> 96.14590325 | U35: 96.14590325 | V35: 1.81 | W35: 1.439737488 | X35: 85 | Y35: 0.444 | Z35: 0.4498809524 | AA35: 0.5509340659 | AB35: -0.6523129531 | AC35: 0.2614500796 | AD35: 0.8873568276 | AE35: TRUE | AF35: FALSE | AG35: FALSE | AH35: 1 | AI35: FALSE | AJ35: FALSE | AK35: FALSE | AL35: 0 | AM35: FALSE | AN35: TRUE | AO35: TRUE | AP35: FALSE | AQ35: FALSE | AR35: FALSE | AS35: 3 | AT35: 0 | AU35: 2 | AV35: 1 | AW35: 1 | AX35: FALSE | AY35: FALSE | AZ35: FALSE | BA35: FALSE | BB35: FALSE | BC35: FALSE | BD35: FALSE | BE35: 85 | BF35: 85 | BG35: =BC36 -> FALSE | BI35: FALSE | BN35: =BD36 -> FALSE | BP35: FALSE
A36: 4 | B36: =OFFSET(InputPriceData!B$15,CalculationsAndCharts!$A36+$A$11,0,1,1) -> 2013-05-13 | C36: =OFFSET(InputPriceData!G$15,CalculationsAndCharts!$A36+$A$11,IF($C$7,8,0),1,1) -> 81843200 | D36: =OFFSET(InputPriceData!C$15,CalculationsAndCharts!$A36+$A$11,IF($C$7,8,0),1,1) -> 163.2 | E36: =OFFSET(InputPriceData!D$15,CalculationsAndCharts!$A36+$A$11,IF($C$7,8,0),1,1) -> 163.81 | F36: =OFFSET(InputPriceData!E$15,CalculationsAndCharts!$A36+$A$11,IF($C$7,8,0),1,1) -> 162.82 | G36: =OFFSET(InputPriceData!F$15,CalculationsAndCharts!$A36+$A$11,IF($C$7,8,0),1,1) -> 163.54 | L36: 14011.93 | M36: 3588.9 | N36: 423.03 | O36: 4011.93 | P36: 28.9 | Q36: 0 | R36: 28.9 | S36: 95.27145359 | T36: 92.11917959 | U36: 92.11917959 | V36: 0.99 | W36: 1.420249987 | X36: 85 | Y36: 0.195 | Z36: 0.4853571429 | AA36: 0.5051648352 | AB36: -1.238086589 | AC36: 0.3374215325 | AD36: 1.276957618 | AE36: TRUE | AF36: FALSE | AG36: FALSE | AH36: 1 | AI36: FALSE | AJ36: FALSE | AK36: FALSE | AL36: 0 | AM36: FALSE | AN36: TRUE | AO36: TRUE | AP36: FALSE | AQ36: FALSE | AR36: FALSE | AS36: 3 | AT36: 0 | AU36: 2 | AV36: 1 | AW36: 1 | AX36: FALSE | AY36: FALSE | AZ36: FALSE | BA36: FALSE | BB36: FALSE | BC36: FALSE | BD36: FALSE | BE36: 85 | BF36: 85 | BG36: TRUE | BH36: 163.2 | BI36: FALSE | BK36: 163.2 | BN36: FALSE | BP36: FALSE
A37: 5 | B37: =OFFSET(InputPriceData!B$15,CalculationsAndCharts!$A37+$A$11,0,1,1) -> 2013-05-10 | C37: =OFFSET(InputPriceData!G$15,CalculationsAndCharts!$A37+$A$11,IF($C$7,8,0),1,1) -> 103203000 | D37: =OFFSET(InputPriceData!C$15,CalculationsAndCharts!$A37+$A$11,IF($C$7,8,0),1,1) -> 162.99 | E37: =OFFSET(InputPriceData!D$15,CalculationsAndCharts!$A37+$A$11,IF($C$7,8,0),1,1) -> 163.55 | F37: =OFFSET(InputPriceData!E$15,CalculationsAndCharts!$A37+$A$11,IF($C$7,8,0),1,1) -> 162.51 | G37: =OFFSET(InputPriceData!F$15,CalculationsAndCharts!$A37+$A$11,IF($C$7,8,0),1,1) -> 163.41 | L37: 13983.03 | M37: 3560 | N37: 423.03 | O37: 3983.03 | P37: 0 | Q37: 0 | R37: 0 | S37: 94.82142857 | T37: 93.40089765 | U37: 93.40089765 | V37: 1.04 | W37: 1.442894723 | X37: 85 | Y37: 0.354 | Z37: 0.6939285714 | AA37: 0.5086263736 | AB37: -0.536232312 | AC37: 0.8189441647 | AD37: 2.194225999 | AE37: TRUE | AF37: FALSE | AG37: FALSE | AH37: 1 | AI37: FALSE | AJ37: FALSE | AK37: FALSE | AL37: 0 | AM37: FALSE | AN37: TRUE | AO37: TRUE | AP37: FALSE | AQ37: FALSE | AR37: FALSE | AS37: 3 | AT37: 0 | AU37: 2 | AV37: 1 | AW37: 0 | AX37: FALSE | AY37: FALSE | AZ37: FALSE | BA37: FALSE | BB37: FALSE | BC37: TRUE | BD37: FALSE | BE37: 85 | BF37: 88 | BG37: FALSE | BI37: FALSE | BN37: FALSE | BP37: FALSE
A38: 6 | B38: =OFFSET(InputPriceData!B$15,CalculationsAndCharts!$A38+$A$11,0,1,1) -> 2013-05-09 | C38: =OFFSET(InputPriceData!G$15,CalculationsAndCharts!$A38+$A$11,IF($C$7,8,0),1,1) -> 106738600 | D38: =OFFSET(InputPriceData!C$15,CalculationsAndCharts!$A38+$A$11,IF($C$7,8,0),1,1) -> 163.27 | E38: =OFFSET(InputPriceData!D$15,CalculationsAndCharts!$A38+$A$11,IF($C$7,8,0),1,1) -> 163.7 | F38: =OFFSET(InputPriceData!E$15,CalculationsAndCharts!$A38+$A$11,IF($C$7,8,0),1,1) -> 162.47 | G38: =OFFSET(InputPriceData!F$15,CalculationsAndCharts!$A38+$A$11,IF($C$7,8,0),1,1) -> 162.88 | L38: 13983.03 | M38: 3560 | N38: 423.03 | O38: 3983.03 | P38: 0 | Q38: 0 | R38: 0 | S38: 86.26465662 | T38: 94.80093027 | U38: 94.80093027 | V38: 1.23 | W38: 1.464099709 | X38: 85 | Y38: 0.458 | Z38: 0.6745238095 | AA38: 0.4892857143 | AB38: 1.411961415 | AC38: 0.9667638493 | AD38: 3.316597168 | AE38: FALSE | AF38: FALSE | AG38: FALSE | AH38: 0 | AI38: FALSE | AJ38: FALSE | AK38: FALSE | AL38: 0 | AM38: TRUE | AN38: TRUE | AO38: TRUE | AP38: FALSE | AQ38: FALSE | AR38: FALSE | AS38: 3 | AT38: 0 | AU38: 3 | AV38: 0 | AW38: 0 | AX38: TRUE | AY38: FALSE | AZ38: FALSE | BA38: FALSE | BB38: FALSE | BC38: FALSE | BD38: FALSE | BE38: 85 | BF38: 88 | BG38: FALSE | BI38: FALSE | BN38: FALSE | BP38: FALSE
A39: 7 | B39: =OFFSET(InputPriceData!B$15,CalculationsAndCharts!$A39+$A$11,0,1,1) -> 2013-05-08 | C39: =OFFSET(InputPriceData!G$15,CalculationsAndCharts!$A39+$A$11,IF($C$7,8,0),1,1) -> 97419200 | D39: =OFFSET(InputPriceData!C$15,CalculationsAndCharts!$A39+$A$11,IF($C$7,8,0),1,1) -> 162.42 | E39: =OFFSET(InputPriceData!D$15,CalculationsAndCharts!$A39+$A$11,IF($C$7,8,0),1,1) -> 163.39 | F39: =OFFSET(InputPriceData!E$15,CalculationsAndCharts!$A39+$A$11,IF($C$7,8,0),1,1) -> 162.33 | G39: =OFFSET(InputPriceData!F$15,CalculationsAndCharts!$A39+$A$11,IF($C$7,8,0),1,1) -> 163.34 | L39: 13983.03 | M39: 3560 | N39: 423.03 | O39: 3983.03 | P39: 0 | Q39: 0 | R39: 0 | S39: 99.11660777 | T39: 98.06659268 | U39: 98.06659268 | V39: 1.06 | W39: 1.476420746 | X39: 85 | Y39: 0.841 | Z39: 0.6547619048 | AA39: 0.5124725275 | AB39: 2.069151989 | AC39: 1.274317147 | AD39: 4.782328307 | AE39: FALSE | AF39: FALSE | AG39: FALSE | AH39: 0 | AI39: FALSE | AJ39: FALSE | AK39: FALSE | AL39: 0 | AM39: TRUE | AN39: TRUE | AO39: TRUE | AP39: FALSE | AQ39: FALSE | AR39: FALSE | AS39: 3 | AT39: 0 | AU39: 3 | AV39: 0 | AW39: 0 | AX39: TRUE | AY39: FALSE | AZ39: FALSE | BA39: FALSE | BB39: FALSE | BC39: FALSE | BD39: FALSE | BE39: 85 | BF39: 88 | BG39: FALSE | BI39: FALSE | BN39: FALSE | BP39: FALSE
A40: 8 | B40: =OFFSET(InputPriceData!B$15,CalculationsAndCharts!$A40+$A$11,0,1,1) -> 2013-05-07 | C40: =OFFSET(InputPriceData!G$15,CalculationsAndCharts!$A40+$A$11,IF($C$7,8,0),1,1) -> 90359200 | D40: =OFFSET(InputPriceData!C$15,CalculationsAndCharts!$A40+$A$11,IF($C$7,8,0),1,1) -> 162.13 | E40: =OFFSET(InputPriceData!D$15,CalculationsAndCharts!$A40+$A$11,IF($C$7,8,0),1,1) -> 162.65 | F40: =OFFSET(InputPriceData!E$15,CalculationsAndCharts!$A40+$A$11,IF($C$7,8,0),1,1) -> 161.67 | G40: =OFFSET(InputPriceData!F$15,CalculationsAndCharts!$A40+$A$11,IF($C$7,8,0),1,1) -> 162.6 | L40: 13983.03 | M40: 3560 | N40: 423.03 | O40: 3983.03 | P40: 0 | Q40: 0 | R40: 0 | S40: 99.02152642 | T40: 95.97676503 | U40: 95.97676503 | V40: 0.98 | W40: 1.498337627 | X40: 85 | Y40: 1.067 | Z40: 0.5888095238 | AA40: 0.5038461538 | AB40: 1.606862359 | AC40: 1.729088588 | AD40: 5.973885686 | AE40: FALSE | AF40: FALSE | AG40: FALSE | AH40: 0 | AI40: FALSE | AJ40: FALSE | AK40: FALSE | AL40: 0 | AM40: TRUE | AN40: TRUE | AO40: TRUE | AP40: FALSE | AQ40: FALSE | AR40: FALSE | AS40: 3 | AT40: 0 | AU40: 3 | AV40: 0 | AW40: 0 | AX40: TRUE | AY40: FALSE | AZ40: FALSE | BA40: FALSE | BB40: FALSE | BC40: FALSE | BD40: FALSE | BE40: 85 | BF40: 88 | BG40: FALSE | BI40: FALSE | BN40: FALSE | BP40: FALSE
A41: 9 | B41: =OFFSET(InputPriceData!B$15,CalculationsAndCharts!$A41+$A$11,0,1,1) -> 2013-05-06 | C41: =OFFSET(InputPriceData!G$15,CalculationsAndCharts!$A41+$A$11,IF($C$7,8,0),1,1) -> 66882100 | D41: =OFFSET(InputPriceData!C$15,CalculationsAndCharts!$A41+$A$11,IF($C$7,8,0),1,1) -> 161.49 | E41: =OFFSET(InputPriceData!D$15,CalculationsAndCharts!$A41+$A$11,IF($C$7,8,0),1,1) -> 162.01 | F41: =OFFSET(InputPriceData!E$15,CalculationsAndCharts!$A41+$A$11,IF($C$7,8,0),1,1) -> 161.42 | G41: =OFFSET(InputPriceData!F$15,CalculationsAndCharts!$A41+$A$11,IF($C$7,8,0),1,1) -> 161.78 | L41: 13983.03 | M41: 3560 | N41: 423.03 | O41: 3983.03 | P41: 0 | Q41: 0 | R41: 0 | S41: 96.06164384 | T41: 95.49414184 | U41: 95.49414184 | V41: 0.64 | W41: 1.525618555 | X41: 86 | Y41: 0.729 | Z41: 0.4573809524 | AA41: 0.5246703297 | AB41: 0.6185876034 | AC41: 2.341168263 | AD41: 6.494133288 | AE41: FALSE | AF41: FALSE | AG41: FALSE | AH41: 0 | AI41: FALSE | AJ41: FALSE | AK41: FALSE | AL41: 0 | AM41: TRUE | AN41: TRUE | AO41: TRUE | AP41: FALSE | AQ41: FALSE | AR41: FALSE | AS41: 3 | AT41: 0 | AU41: 3 | AV41: 0 | AW41: 0 | AX41: TRUE | AY41: FALSE | AZ41: FALSE | BA41: FALSE | BB41: FALSE | BC41: FALSE | BD41: FALSE | BE41: 86 | BF41: 88 | BG41: FALSE | BI41: FALSE | BN41: FALSE | BP41: FALSE
A42: 10 | B42: =OFFSET(InputPriceData!B$15,CalculationsAndCharts!$A42+$A$11,0,1,1) -> 2013-05-03 | C42: =OFFSET(InputPriceData!G$15,CalculationsAndCharts!$A42+$A$11,IF($C$7,8,0),1,1) -> 144202300 | D42: =OFFSET(InputPriceData!C$15,CalculationsAndCharts!$A42+$A$11,IF($C$7,8,0),1,1) -> 161.14 | E42: =OFFSET(InputPriceData!D$15,CalculationsAndCharts!$A42+$A$11,IF($C$7,8,0),1,1) -> 161.88 | F42: =OFFSET(InputPriceData!E$15,CalculationsAndCharts!$A42+$A$11,IF($C$7,8,0),1,1) -> 159.78 | G42: =OFFSET(InputPriceData!F$15,CalculationsAndCharts!$A42+$A$11,IF($C$7,8,0),1,1) -> 161.37 | L42: 13983.03 | M42: 3560 | N42: 423.03 | O42: 3983.03 | P42: 0 | Q42: 0 | R42: 0 | S42: 92.84712482 | T42: 89.02734862 | U42: 89.02734862 | V42: 2.13 | W42: 1.572230058 | X42: 86 | Y42: 0.421 | Z42: 0.37 | AA42: 0.4985714286 | AB42: 0.1952294243 | AC42: 3.744351303 | AD42: 6.532192234 | AE42: FALSE | AF42: FALSE | AG42: FALSE | AH42: 0 | AI42: FALSE | AJ42: FALSE | AK42: FALSE | AL42: 0 | AM42: TRUE | AN42: TRUE | AO42: TRUE | AP42: FALSE | AQ42: FALSE | AR42: FALSE | AS42: 3 | AT42: 0 | AU42: 3 | AV42: 0 | AW42: 0 | AX42: TRUE | AY42: FALSE | AZ42: FALSE | BA42: FALSE | BB42: FALSE | BC42: FALSE | BD42: FALSE | BE42: 86 | BF42: 88 | BG42: FALSE | BI42: FALSE | BN42: FALSE | BP42: FALSE
A43: 11 | B43: =OFFSET(InputPriceData!B$15,CalculationsAndCharts!$A43+$A$11,0,1,1) -> 2013-05-02 | C43: =OFFSET(InputPriceData!G$15,CalculationsAndCharts!$A43+$A$11,IF($C$7,8,0),1,1) -> 96407600 | D43: =OFFSET(InputPriceData!C$15,CalculationsAndCharts!$A43+$A$11,IF($C$7,8,0),1,1) -> 158.68 | E43: =OFFSET(InputPriceData!D$15,CalculationsAndCharts!$A43+$A$11,IF($C$7,8,0),1,1) -> 159.89 | F43: =OFFSET(InputPriceData!E$15,CalculationsAndCharts!$A43+$A$11,IF($C$7,8,0),1,1) -> 158.53 | G43: =OFFSET(InputPriceData!F$15,CalculationsAndCharts!$A43+$A$11,IF($C$7,8,0),1,1) -> 159.75 | L43: 13983.03 | M43: 3560 | N43: 423.03 | O43: 3983.03 | P43: 0 | Q43: 0 | R43: 0 | S43: 97.57365685 | T43: 91.19554094 | U43: 91.19554094 | V43: 1.61 | W43: 1.542873745 | X43: 87 | Y43: 0.2 | Z43: 0.2420238095 | AA43: 0.3757692308 | AB43: 2.531947979 | AC43: 6.089410738 | AD43: 5.806805422 | AE43: FALSE | AF43: FALSE | AG43: FALSE | AH43: 0 | AI43: FALSE | AJ43: FALSE | AK43: FALSE | AL43: 0 | AM43: TRUE | AN43: TRUE | AO43: TRUE | AP43: FALSE | AQ43: FALSE | AR43: FALSE | AS43: 3 | AT43: 0 | AU43: 3 | AV43: 0 | AW43: 0 | AX43: TRUE | AY43: FALSE | AZ43: FALSE | BA43: FALSE | BB43: FALSE | BC43: FALSE | BD43: FALSE | BE43: 87 | BF43: 88 | BG43: FALSE | BI43: FALSE | BN43: FALSE | BP43: FALSE
A44: 12 | B44: =OFFSET(InputPriceData!B$15,CalculationsAndCharts!$A44+$A$11,0,1,1) -> 2013-05-01 | C44: =OFFSET(InputPriceData!G$15,CalculationsAndCharts!$A44+$A$11,IF($C$7,8,0),1,1) -> 138874200 | D44: =OFFSET(InputPriceData!C$15,CalculationsAndCharts!$A44+$A$11,IF($C$7,8,0),1,1) -> 159.33 | E44: =OFFSET(InputPriceData!D$15,CalculationsAndCharts!$A44+$A$11,IF($C$7,8,0),1,1) -> 159.41 | F44: =OFFSET(InputPriceData!E$15,CalculationsAndCharts!$A44+$A$11,IF($C$7,8,0),1,1) -> 158.1 | G44: =OFFSET(InputPriceData!F$15,CalculationsAndCharts!$A44+$A$11,IF($C$7,8,0),1,1) -> 158.28 | L44: 13983.03 | M44: 3560 | N44: 423.03 | O44: 3983.03 | P44: 0 | Q44: 0 | R44: 0 | S44: 76.66126418 | T44: 90.09175368 | U44: 90.09175368 | V44: 1.58 | W44: 1.539340785 | X44: 88 | Y44: 0.096 | Z44: 0.3363095238 | AA44: 0.369010989 | AB44: 4.176196586 | AC44: 8.855089278 | AD44: 4.48851532 | AE44: FALSE | AF44: FALSE | AG44: FALSE | AH44: 0 | AI44: FALSE | AJ44: FALSE | AK44: FALSE | AL44: 0 | AM44: TRUE | AN44: TRUE | AO44: TRUE | AP44: FALSE | AQ44: FALSE | AR44: FALSE | AS44: 3 | AT44: 0 | AU44: 3 | AV44: 0 | AW44: 0 | AX44: TRUE | AY44: FALSE | AZ44: FALSE | BA44: FALSE | BB44: FALSE | BC44: FALSE | BD44: FALSE | BE44: 88 | BF44: 88 | BG44: FALSE | BI44: TRUE | BJ44: 159.33 | BL44: 159.33 | BN44: FALSE | BP44: FALSE
A45: 13 | B45: =OFFSET(InputPriceData!B$15,CalculationsAndCharts!$A45+$A$11,0,1,1) -> 2013-04-30 | C45: =OFFSET(InputPriceData!G$15,CalculationsAndCharts!$A45+$A$11,IF($C$7,8,0),1,1) -> 116010700 | D45: =OFFSET(InputPriceData!C$15,CalculationsAndCharts!$A45+$A$11,IF($C$7,8,0),1,1) -> 159.27 | E45: =OFFSET(InputPriceData!D$15,CalculationsAndCharts!$A45+$A$11,IF($C$7,8,0),1,1) -> 159.72 | F45: =OFFSET(InputPriceData!E$15,CalculationsAndCharts!$A45+$A$11,IF($C$7,8,0),1,1) -> 158.61 | G45: =OFFSET(InputPriceData!F$15,CalculationsAndCharts!$A45+$A$11,IF($C$7,8,0),1,1) -> 159.68 | L45: 13983.03 | M45: 3560 | N45: 423.03 | O45: 3983.03 | P45: -2.64 | Q45: 0 | R45: -2.64 | S45: 99.35170178 | T45: 91.86900129 | U45: 91.86900129 | V45: 1.11 | W45: 1.537200826 | X45: 87 | Y45: 0.438 | Z45: 0.5603571429 | AA45: 0.272032967 | AB45: 7.517375261 | AC45: 10.78476362 | AD45: 2.269381183 | AE45: FALSE | AF45: FALSE | AG45: FALSE | AH45: 0 | AI45: FALSE | AJ45: FALSE | AK45: FALSE | AL45: 0 | AM45: TRUE | AN45: TRUE | AO45: TRUE | AP45: FALSE | AQ45: FALSE | AR45: FALSE | AS45: 3 | AT45: 0 | AU45: 3 | AV45: 0 | AW45: 1 | AX45: TRUE | AY45: TRUE | AZ45: FALSE | BA45: FALSE | BB45: FALSE | BC45: FALSE | BD45: FALSE | BE45: 87 | BF45: 88 | BG45: FALSE | BI45: FALSE | BN45: FALSE | BP45: FALSE
A46: 14 | B46: =OFFSET(InputPriceData!B$15,CalculationsAndCharts!$A46+$A$11,0,1,1) -> 2013-04-29 | C46: =OFFSET(InputPriceData!G$15,CalculationsAndCharts!$A46+$A$11,IF($C$7,8,0),1,1) -> 88572800 | D46: =OFFSET(InputPriceData!C$15,CalculationsAndCharts!$A46+$A$11,IF($C$7,8,0),1,1) -> 158.67 | E46: =OFFSET(InputPriceData!D$15,CalculationsAndCharts!$A46+$A$11,IF($C$7,8,0),1,1) -> 159.65 | F46: =OFFSET(InputPriceData!E$15,CalculationsAndCharts!$A46+$A$11,IF($C$7,8,0),1,1) -> 158.42 | G46: =OFFSET(InputPriceData!F$15,CalculationsAndCharts!$A46+$A$11,IF($C$7,8,0),1,1) -> 159.3 | L46: 13985.67 | M46: 3562.64 | N46: 423.03 | O46: 3985.67 | P46: 93.28 | Q46: 0 | R46: 93.28 | S46: 94.26229508 | T46: 87.71447132 | U46: 87.71447132 | V46: 1.41 | W46: 1.55968508 | X46: 87 | Y46: 0.34 | Z46: 0.6794047619 | AA46: 0.1112087912 | AB46: 9.963390435 | AC46: 10.0507942 | AD46: -0.006848681732 | AE46: FALSE | AF46: FALSE | AG46: TRUE | AH46: 1 | AI46: FALSE | AJ46: FALSE | AK46: FALSE | AL46: 0 | AM46: TRUE | AN46: TRUE | AO46: FALSE | AP46: FALSE | AQ46: FALSE | AR46: FALSE | AS46: 3 | AT46: 0 | AU46: 2 | AV46: 1 | AW46: 1 | AX46: FALSE | AY46: FALSE | AZ46: FALSE | BA46: FALSE | BB46: FALSE | BC46: FALSE | BD46: FALSE | BE46: 87 | BF46: 88 | BG46: FALSE | BI46: FALSE | BN46: FALSE | BP46: FALSE
A47: 15 | B47: =OFFSET(InputPriceData!B$15,CalculationsAndCharts!$A47+$A$11,0,1,1) -> 2013-04-26 | C47: =OFFSET(InputPriceData!G$15,CalculationsAndCharts!$A47+$A$11,IF($C$7,8,0),1,1) -> 95918800 | D47: =OFFSET(InputPriceData!C$15,CalculationsAndCharts!$A47+$A$11,IF($C$7,8,0),1,1) -> 158.33 | E47: =OFFSET(InputPriceData!D$15,CalculationsAndCharts!$A47+$A$11,IF($C$7,8,0),1,1) -> 158.6 | F47: =OFFSET(InputPriceData!E$15,CalculationsAndCharts!$A47+$A$11,IF($C$7,8,0),1,1) -> 157.73 | G47: =OFFSET(InputPriceData!F$15,CalculationsAndCharts!$A47+$A$11,IF($C$7,8,0),1,1) -> 158.24 | L47: 13892.39 | M47: 3469.36 | N47: 423.03 | O47: 3892.39 | P47: -24.64 | Q47: 0 | R47: -24.64 | S47: 81.99300699 | T47: 79.72444222 | U47: 79.72444222 | V47: 0.87 | W47: 1.567563242 | X47: 87 | Y47: 0.488 | Z47: 0.6264285714 | AA47: -0.02054945055 | AB47: 13.15934066 | AC47: 7.950735332 | AD47: -1.90798814 | AE47: FALSE | AF47: FALSE | AG47: FALSE | AH47: 0 | AI47: FALSE | AJ47: FALSE | AK47: FALSE | AL47: 0 | AM47: TRUE | AN47: TRUE | AO47: FALSE | AP47: FALSE | AQ47: FALSE | AR47: TRUE | AS47: 2 | AT47: 1 | AU47: 2 | AV47: 1 | AW47: 1 | AX47: FALSE | AY47: FALSE | AZ47: FALSE | BA47: FALSE | BB47: FALSE | BC47: FALSE | BD47: FALSE | BE47: 87 | BF47: 88 | BG47: FALSE | BI47: FALSE | BN47: FALSE | BP47: FALSE
A48: 16 | B48: =OFFSET(InputPriceData!B$15,CalculationsAndCharts!$A48+$A$11,0,1,1) -> 2013-04-25 | C48: =OFFSET(InputPriceData!G$15,CalculationsAndCharts!$A48+$A$11,IF($C$7,8,0),1,1) -> 131060600 | D48: =OFFSET(InputPriceData!C$15,CalculationsAndCharts!$A48+$A$11,IF($C$7,8,0),1,1) -> 158.34 | E48: =OFFSET(InputPriceData!D$15,CalculationsAndCharts!$A48+$A$11,IF($C$7,8,0),1,1) -> 159.27 | F48: =OFFSET(InputPriceData!E$15,CalculationsAndCharts!$A48+$A$11,IF($C$7,8,0),1,1) -> 158.1 | G48: =OFFSET(InputPriceData!F$15,CalculationsAndCharts!$A48+$A$11,IF($C$7,8,0),1,1) -> 158.52 | L48: 13917.03 | M48: 3494 | N48: 423.03 | O48: 3917.03 | P48: 15.84 | Q48: 0 | R48: 15.84 | S48: 86.88811189 | T48: 75.28305028 | U48: 75.28305028 | V48: 1.39 | W48: 1.604277097 | X48: 87 | Y48: 0.779 | Z48: 0.3955952381 | AA48: -0.0517032967 | AB48: 14.09380743 | AC48: 3.738481169 | AD48: -2.91237256 | AE48: FALSE | AF48: FALSE | AG48: FALSE | AH48: 0 | AI48: FALSE | AJ48: FALSE | AK48: FALSE | AL48: 0 | AM48: TRUE | AN48: TRUE | AO48: FALSE | AP48: FALSE | AQ48: FALSE | AR48: TRUE | AS48: 2 | AT48: 1 | AU48: 2 | AV48: 1 | AW48: 1 | AX48: FALSE | AY48: FALSE | AZ48: FALSE | BA48: FALSE | BB48: FALSE | BC48: FALSE | BD48: FALSE | BE48: 87 | BF48: 88 | BG48: TRUE | BH48: 158.34 | BI48: FALSE | BK48: 158.34 | BN48: FALSE | BP48: FALSE
A49: 17 | B49: =OFFSET(InputPriceData!B$15,CalculationsAndCharts!$A49+$A$11,0,1,1) -> 2013-04-24 | C49: =OFFSET(InputPriceData!G$15,CalculationsAndCharts!$A49+$A$11,IF($C$7,8,0),1,1) -> 96781200 | D49: =OFFSET(InputPriceData!C$15,CalculationsAndCharts!$A49+$A$11,IF($C$7,8,0),1,1) -> 157.83 | E49: =OFFSET(InputPriceData!D$15,CalculationsAndCharts!$A49+$A$11,IF($C$7,8,0),1,1) -> 158.3 | F49: =OFFSET(InputPriceData!E$15,CalculationsAndCharts!$A49+$A$11,IF($C$7,8,0),1,1) -> 157.54 | G49: =OFFSET(InputPriceData!F$15,CalculationsAndCharts!$A49+$A$11,IF($C$7,8,0),1,1) -> 157.88 | L49: 13901.19 | M49: 3478.16 | N49: 423.03 | O49: 3901.19 | P49: 0 | Q49: 0 | R49: 0 | S49: 70.29220779 | T49: 60.4978355 | U49: 60.4978355 | V49: 0.76 | W49: 1.615554839 | X49: 88 | Y49: 0.978 | Z49: 0.3058333333 | AA49: -0.08401098901 | AB49: 8.507295174 | AC49: -1.389723959 | AD49: -3.525751654 | AE49: FALSE | AF49: TRUE | AG49: FALSE | AH49: 1 | AI49: FALSE | AJ49: FALSE | AK49: FALSE | AL49: 0 | AM49: TRUE | AN49: FALSE | AO49: FALSE | AP49: FALSE | AQ49: FALSE | AR49: TRUE | AS49: 2 | AT49: 1 | AU49: 1 | AV49: 2 | AW49: 0 | AX49: FALSE | AY49: FALSE | AZ49: FALSE | BA49: FALSE | BB49: FALSE | BC49: TRUE | BD49: FALSE | BE49: 88 | BF49: 90 | BG49: FALSE | BI49: FALSE | BN49: FALSE | BP49: FALSE
A50: 18 | B50: =OFFSET(InputPriceData!B$15,CalculationsAndCharts!$A50+$A$11,0,1,1) -> 2013-04-23 | C50: =OFFSET(InputPriceData!G$15,CalculationsAndCharts!$A50+$A$11,IF($C$7,8,0),1,1) -> 166141300 | D50: =OFFSET(InputPriceData!C$15,CalculationsAndCharts!$A50+$A$11,IF($C$7,8,0),1,1) -> 156.95 | E50: =OFFSET(InputPriceData!D$15,CalculationsAndCharts!$A50+$A$11,IF($C$7,8,0),1,1) -> 157.93 | F50: =OFFSET(InputPriceData!E$15,CalculationsAndCharts!$A50+$A$11,IF($C$7,8,0),1,1) -> 156.17 | G50: =OFFSET(InputPriceData!F$15,CalculationsAndCharts!$A50+$A$11,IF($C$7,8,0),1,1) -> 157.78 | L50: 13901.19 | M50: 3478.16 | N50: 423.03 | O50: 3901.19 | P50: 0 | Q50: 0 | R50: 0 | S50: 68.66883117 | T50: 47.51082251 | U50: 47.51082251 | V50: 1.76 | W50: 1.660584041 | X50: 88 | Y50: 0.737 | Z50: -0.1029761905 | AA50: -0.06978021978 | AB50: 2.065295815 | AC50: -7.187172007 | AD50: -3.296375851 | AE50: FALSE | AF50: FALSE | AG50: FALSE | AH50: 0 | AI50: FALSE | AJ50: FALSE | AK50: FALSE | AL50: 0 | AM50: TRUE | AN50: FALSE | AO50: FALSE | AP50: FALSE | AQ50: TRUE | AR50: TRUE | AS50: 1 | AT50: 2 | AU50: 1 | AV50: 2 | AW50: 0 | AX50: FALSE | AY50: FALSE | AZ50: FALSE | BA50: FALSE | BB50: FALSE | BC50: FALSE | BD50: FALSE | BE50: 88 | BF50: 90 | BG50: FALSE | BI50: FALSE | BN50: FALSE | BP50: FALSE
A51: 19 | B51: =OFFSET(InputPriceData!B$15,CalculationsAndCharts!$A51+$A$11,0,1,1) -> 2013-04-22 | C51: =OFFSET(InputPriceData!G$15,CalculationsAndCharts!$A51+$A$11,IF($C$7,8,0),1,1) -> 106553500 | D51: =OFFSET(InputPriceData!C$15,CalculationsAndCharts!$A51+$A$11,IF($C$7,8,0),1,1) -> 155.78 | E51: =OFFSET(InputPriceData!D$15,CalculationsAndCharts!$A51+$A$11,IF($C$7,8,0),1,1) -> 156.54 | F51: =OFFSET(InputPriceData!E$15,CalculationsAndCharts!$A51+$A$11,IF($C$7,8,0),1,1) -> 154.75 | G51: =OFFSET(InputPriceData!F$15,CalculationsAndCharts!$A51+$A$11,IF($C$7,8,0),1,1) -> 156.17 | L51: 13901.19 | M51: 3478.16 | N51: 423.03 | O51: 3901.19 | P51: 0 | Q51: 0 | R51: 0 | S51: 42.53246753 | T51: 27.81385281 | U51: 27.81385281 | V51: 1.79 | W51: 1.655351622 | X51: 89 | Y51: -0.211 | Z51: -0.5116666667 | AA51: -0.08972527473 | AB51: -7.119608786 | AC51: -10.85435672 | AD51: -3.192184056 | AE51: FALSE | AF51: FALSE | AG51: FALSE | AH51: 0 | AI51: FALSE | AJ51: FALSE | AK51: FALSE | AL51: 0 | AM51: FALSE | AN51: FALSE | AO51: FALSE | AP51: TRUE | AQ51: TRUE | AR51: TRUE | AS51: 0 | AT51: 3 | AU51: 0 | AV51: 3 | AW51: 0 | AX51: TRUE | AY51: FALSE | AZ51: FALSE | BA51: FALSE | BB51: FALSE | BC51: FALSE | BD51: FALSE | BE51: 89 | BF51: 90 | BG51: FALSE | BI51: FALSE | BN51: FALSE | BP51: FALSE
A52: 20 | B52: =OFFSET(InputPriceData!B$15,CalculationsAndCharts!$A52+$A$11,0,1,1) -> 2013-04-19 | C52: =OFFSET(InputPriceData!G$15,CalculationsAndCharts!$A52+$A$11,IF($C$7,8,0),1,1) -> 149687600 | D52: =OFFSET(InputPriceData!C$15,CalculationsAndCharts!$A52+$A$11,IF($C$7,8,0),1,1) -> 154.5 | E52: =OFFSET(InputPriceData!D$15,CalculationsAndCharts!$A52+$A$11,IF($C$7,8,0),1,1) -> 155.55 | F52: =OFFSET(InputPriceData!E$15,CalculationsAndCharts!$A52+$A$11,IF($C$7,8,0),1,1) -> 154.12 | G52: =OFFSET(InputPriceData!F$15,CalculationsAndCharts!$A52+$A$11,IF($C$7,8,0),1,1) -> 155.48 | L52: 13901.19 | M52: 3478.16 | N52: 423.03 | O52: 3901.19 | P52: 0 | Q52: 0 | R52: 0 | S52: 31.33116883 | T52: 21.15600449 | U52: 21.15600449 | V52: 1.43 | W52: 1.648264865 | X52: 89 | Y52: -0.255 | Z52: -0.670952381 | AA52: -0.03752747253 | AB52: -11.52136444 | AC52: -10.82512108 | AD52: -2.450212065 | AE52: FALSE | AF52: FALSE | AG52: FALSE | AH52: 0 | AI52: FALSE | AJ52: FALSE | AK52: FALSE | AL52: 0 | AM52: FALSE | AN52: FALSE | AO52: FALSE | AP52: TRUE | AQ52: TRUE | AR52: TRUE | AS52: 0 | AT52: 3 | AU52: 0 | AV52: 3 | AW52: 0 | AX52: TRUE | AY52: FALSE | AZ52: FALSE | BA52: FALSE | BB52: FALSE | BC52: FALSE | BD52: FALSE | BE52: 89 | BF52: 90 | BG52: FALSE | BI52: TRUE | BJ52: 154.5 | BL52: 154.5 | BN52: FALSE | BP52: FALSE
A53: 21 | B53: =OFFSET(InputPriceData!B$15,CalculationsAndCharts!$A53+$A$11,0,1,1) -> 2013-04-18 | C53: =OFFSET(InputPriceData!G$15,CalculationsAndCharts!$A53+$A$11,IF($C$7,8,0),1,1) -> 167583200 | D53: =OFFSET(InputPriceData!C$15,CalculationsAndCharts!$A53+$A$11,IF($C$7,8,0),1,1) -> 155.37 | E53: =OFFSET(InputPriceData!D$15,CalculationsAndCharts!$A53+$A$11,IF($C$7,8,0),1,1) -> 155.41 | F53: =OFFSET(InputPriceData!E$15,CalculationsAndCharts!$A53+$A$11,IF($C$7,8,0),1,1) -> 153.55 | G53: =OFFSET(InputPriceData!F$15,CalculationsAndCharts!$A53+$A$11,IF($C$7,8,0),1,1) -> 154.14 | L53: 13901.19 | M53: 3478.16 | N53: 423.03 | O53: 3901.19 | P53: 23.4 | Q53: 0 | R53: 23.4 | S53: 9.577922078 | T53: 31.13876864 | U53: 31.13876864 | V53: 1.86 | W53: 1.65975249 | X53: 90 | Y53: -0.933 | Z53: -0.5367857143 | AA53: -0.01637362637 | AB53: -14.97545483 | AC53: -7.206664724 | AD53: -1.878266024 | AE53: FALSE | AF53: FALSE | AG53: FALSE | AH53: 0 | AI53: FALSE | AJ53: FALSE | AK53: FALSE | AL53: 0 | AM53: FALSE | AN53: FALSE | AO53: FALSE | AP53: TRUE | AQ53: TRUE | AR53: TRUE | AS53: 0 | AT53: 3 | AU53: 0 | AV53: 3 | AW53: 1 | AX53: TRUE | AY53: TRUE | AZ53: FALSE | BA53: FALSE | BB53: FALSE | BC53: FALSE | BD53: FALSE | BE53: 90 | BF53: 90 | BG53: FALSE | BI53: FALSE | BN53: FALSE | BP53: FALSE
A54: 22 | B54: =OFFSET(InputPriceData!B$15,CalculationsAndCharts!$A54+$A$11,0,1,1) -> 2013-04-17 | C54: =OFFSET(InputPriceData!G$15,CalculationsAndCharts!$A54+$A$11,IF($C$7,8,0),1,1) -> 226834800 | D54: =OFFSET(InputPriceData!C$15,CalculationsAndCharts!$A54+$A$11,IF($C$7,8,0),1,1) -> 156.29 | E54: =OFFSET(InputPriceData!D$15,CalculationsAndCharts!$A54+$A$11,IF($C$7,8,0),1,1) -> 156.32 | F54: =OFFSET(InputPriceData!E$15,CalculationsAndCharts!$A54+$A$11,IF($C$7,8,0),1,1) -> 154.28 | G54: =OFFSET(InputPriceData!F$15,CalculationsAndCharts!$A54+$A$11,IF($C$7,8,0),1,1) -> 155.11 | L54: 13877.79 | M54: 3454.76 | N54: 423.03 | O54: 3877.79 | P54: -106.2 | Q54: 0 | R54: -106.2 | S54: 22.55892256 | T54: 35.52188552 | U54: 35.52188552 | V54: 3.13 | W54: 1.649213147 | X54: 89 | Y54: -0.955 | Z54: -0.1838095238 | AA54: 0.08906593407 | AB54: -14.42406482 | AC54: -2.851878056 | AD54: -1.243914892 | AE54: FALSE | AF54: FALSE | AG54: TRUE | AH54: 1 | AI54: FALSE | AJ54: FALSE | AK54: FALSE | AL54: 0 | AM54: FALSE | AN54: FALSE | AO54: FALSE | AP54: TRUE | AQ54: TRUE | AR54: FALSE | AS54: 1 | AT54: 2 | AU54: 0 | AV54: 3 | AW54: 1 | AX54: FALSE | AY54: FALSE | AZ54: FALSE | BA54: FALSE | BB54: FALSE | BC54: FALSE | BD54: FALSE | BE54: 89 | BF54: 90 | BG54: TRUE | BH54: 156.29 | BI54: FALSE | BK54: 156.29 | BN54: FALSE | BP54: FALSE
A55: 23 | B55: =OFFSET(InputPriceData!B$15,CalculationsAndCharts!$A55+$A$11,0,1,1) -> 2013-04-16 | C55: =OFFSET(InputPriceData!G$15,CalculationsAndCharts!$A55+$A$11,IF($C$7,8,0),1,1) -> 147507800 | D55: =OFFSET(InputPriceData!C$15,CalculationsAndCharts!$A55+$A$11,IF($C$7,8,0),1,1) -> 156.29 | E55: =OFFSET(InputPriceData!D$15,CalculationsAndCharts!$A55+$A$11,IF($C$7,8,0),1,1) -> 157.49 | F55: =OFFSET(InputPriceData!E$15,CalculationsAndCharts!$A55+$A$11,IF($C$7,8,0),1,1) -> 155.91 | G55: =OFFSET(InputPriceData!F$15,CalculationsAndCharts!$A55+$A$11,IF($C$7,8,0),1,1) -> 157.41 | L55: 13983.99 | M55: 3560.96 | N55: 423.03 | O55: 3983.99 | P55: 0 | Q55: -100.8 | R55: -100.8 | S55: 61.27946128 | T55: 56.22895623 | U55: 56.22895623 | V55: 2.37 | W55: 1.571276997 | X55: 88 | Y55: -0.659 | Z55: 0.2020238095 | AA55: 0.1472527473 | AB55: -7.904853346 | AC55: 2.585653542 | AD55: -0.567975771 | AE55: FALSE | AF55: FALSE | AG55: TRUE | AH55: 1 | AI55: FALSE | AJ55: FALSE | AK55: FALSE | AL55: 0 | AM55: FALSE | AN55: TRUE | AO55: FALSE | AP55: TRUE | AQ55: FALSE | AR55: FALSE | AS55: 2 | AT55: 1 | AU55: 1 | AV55: 2 | AW55: -1 | AX55: FALSE | AY55: FALSE | AZ55: FALSE | BA55: TRUE | BB55: FALSE | BC55: TRUE | BD55: FALSE | BE55: 88 | BF55: 90 | BG55: FALSE | BI55: FALSE | BN55: TRUE | BO55: 156.29 | BP55: TRUE | BQ55: 157.41 | BR55: 156.29 | BT55: 157.41
A56: 24 | B56: =OFFSET(InputPriceData!B$15,CalculationsAndCharts!$A56+$A$11,0,1,1) -> 2013-04-15 | C56: =OFFSET(InputPriceData!G$15,CalculationsAndCharts!$A56+$A$11,IF($C$7,8,0),1,1) -> 217259000 | D56: =OFFSET(InputPriceData!C$15,CalculationsAndCharts!$A56+$A$11,IF($C$7,8,0),1,1) -> 158 | E56: =OFFSET(InputPriceData!D$15,CalculationsAndCharts!$A56+$A$11,IF($C$7,8,0),1,1) -> 158.13 | F56: =OFFSET(InputPriceData!E$15,CalculationsAndCharts!$A56+$A$11,IF($C$7,8,0),1,1) -> 155.1 | G56: =OFFSET(InputPriceData!F$15,CalculationsAndCharts!$A56+$A$11,IF($C$7,8,0),1,1) -> 155.12 | L56: 14084.79 | M56: 3560.96 | N56: 523.83 | O56: 4084.79 | P56: 0 | Q56: 0 | R56: 0 | S56: 22.72727273 | T56: 66.21773288 | U56: 66.21773288 | V56: 3.7 | W56: 1.529238944 | X56: 90 | Y56: -0.313 | Z56: 0.2842857143 | AA56: 0.1413736264 | AB56: 0.9265562051 | AC56: 4.660911423 | AD56: 0.158739383 | AE56: FALSE | AF56: FALSE | AG56: FALSE | AH56: 0 | AI56: TRUE | AJ56: FALSE | AK56: FALSE | AL56: 1 | AM56: FALSE | AN56: TRUE | AO56: TRUE | AP56: FALSE | AQ56: FALSE | AR56: FALSE | AS56: 2 | AT56: 1 | AU56: 3 | AV56: 0 | AW56: 0 | AX56: FALSE | AY56: FALSE | AZ56: FALSE | BA56: FALSE | BB56: FALSE | BC56: FALSE | BD56: TRUE | BE56: 90 | BF56: 88 | BG56: FALSE | BI56: FALSE | BN56: FALSE | BP56: FALSE
A57: 25 | B57: =OFFSET(InputPriceData!B$15,CalculationsAndCharts!$A57+$A$11,0,1,1) -> 2013-04-12 | C57: =OFFSET(InputPriceData!G$15,CalculationsAndCharts!$A57+$A$11,IF($C$7,8,0),1,1) -> 116359900 | D57: =OFFSET(InputPriceData!C$15,CalculationsAndCharts!$A57+$A$11,IF($C$7,8,0),1,1) -> 158.68 | E57: =OFFSET(InputPriceData!D$15,CalculationsAndCharts!$A57+$A$11,IF($C$7,8,0),1,1) -> 159.04 | F57: =OFFSET(InputPriceData!E$15,CalculationsAndCharts!$A57+$A$11,IF($C$7,8,0),1,1) -> 157.92 | G57: =OFFSET(InputPriceData!F$15,CalculationsAndCharts!$A57+$A$11,IF($C$7,8,0),1,1) -> 158.8 | L57: 14084.79 | M57: 3560.96 | N57: 523.83 | O57: 4084.79 | P57: 0 | Q57: 0 | R57: 0 | S57: 84.68013468 | T57: 90.6681191 | U57: 90.6681191 | V57: 1.27 | W57: 1.414988362 | X57: 88 | Y57: 0.762 | Z57: 0.6275 | AA57: 0.2168681319 | AB57: 9.471267652 | AC57: 5.286570899 | AD57: 0.7685874419 | AE57: FALSE | AF57: FALSE | AG57: FALSE | AH57: 0 | AI57: FALSE | AJ57: FALSE | AK57: FALSE | AL57: 0 | AM57: TRUE | AN57: TRUE | AO57: TRUE | AP57: FALSE | AQ57: FALSE | AR57: FALSE | AS57: 3 | AT57: 0 | AU57: 3 | AV57: 0 | AW57: 0 | AX57: TRUE | AY57: FALSE | AZ57: FALSE | BA57: FALSE | BB57: FALSE | BC57: FALSE | BD57: FALSE | BE57: 88 | BF57: 88 | BG57: FALSE | BI57: TRUE | BJ57: 158.68 | BL57: 158.68 | BN57: FALSE | BP57: FALSE
A58: 26 | B58: =OFFSET(InputPriceData!B$15,CalculationsAndCharts!$A58+$A$11,0,1,1) -> 2013-04-11 | C58: =OFFSET(InputPriceData!G$15,CalculationsAndCharts!$A58+$A$11,IF($C$7,8,0),1,1) -> 110142500 | D58: =OFFSET(InputPriceData!C$15,CalculationsAndCharts!$A58+$A$11,IF($C$7,8,0),1,1) -> 158.7 | E58: =OFFSET(InputPriceData!D$15,CalculationsAndCharts!$A58+$A$11,IF($C$7,8,0),1,1) -> 159.71 | F58: =OFFSET(InputPriceData!E$15,CalculationsAndCharts!$A58+$A$11,IF($C$7,8,0),1,1) -> 158.54 | G58: =OFFSET(InputPriceData!F$15,CalculationsAndCharts!$A58+$A$11,IF($C$7,8,0),1,1) -> 159.19 | L58: 14084.79 | M58: 3560.96 | N58: 523.83 | O58: 4084.79 | P58: 2.64 | Q58: 0 | R58: 2.64 | S58: 91.24579125 | T58: 90.4226282 | U58: 90.4226282 | V58: 1.17 | W58: 1.422619328 | X58: 88 | Y58: 1.052 | Z58: 0.446547619 | AA58: 0.1975824176 | AB58: 11.96310675 | AC58: 1.685400763 | AD58: 1.041303768 | AE58: FALSE | AF58: FALSE | AG58: FALSE | AH58: 0 | AI58: FALSE | AJ58: FALSE | AK58: FALSE | AL58: 0 | AM58: TRUE | AN58: TRUE | AO58: TRUE | AP58: FALSE | AQ58: FALSE | AR58: FALSE | AS58: 3 | AT58: 0 | AU58: 3 | AV58: 0 | AW58: 1 | AX58: TRUE | AY58: TRUE | AZ58: FALSE | BA58: FALSE | BB58: FALSE | BC58: FALSE | BD58: FALSE | BE58: 88 | BF58: 88 | BG58: FALSE | BI58: FALSE | BN58: FALSE | BP58: FALSE
A59: 27 | B59: =OFFSET(InputPriceData!B$15,CalculationsAndCharts!$A59+$A$11,0,1,1) -> 2013-04-10 | C59: =OFFSET(InputPriceData!G$15,CalculationsAndCharts!$A59+$A$11,IF($C$7,8,0),1,1) -> 135711100 | D59: =OFFSET(InputPriceData!C$15,CalculationsAndCharts!$A59+$A$11,IF($C$7,8,0),1,1) -> 157.17 | E59: =OFFSET(InputPriceData!D$15,CalculationsAndCharts!$A59+$A$11,IF($C$7,8,0),1,1) -> 158.87 | F59: =OFFSET(InputPriceData!E$15,CalculationsAndCharts!$A59+$A$11,IF($C$7,8,0),1,1) -> 157.13 | G59: =OFFSET(InputPriceData!F$15,CalculationsAndCharts!$A59+$A$11,IF($C$7,8,0),1,1) -> 158.67 | L59: 14082.15 | M59: 3558.32 | N59: 523.83 | O59: 4082.15 | P59: 132 | Q59: 0 | R59: 132 | S59: 96.07843137 | T59: 83.6507753 | U59: 83.6507753 | V59: 2.12 | W59: 1.435915083 | X59: 88 | Y59: 0.721 | Z59: 0.2408333333 | AA59: 0.1207142857 | AB59: 6.651579087 | AC59: -1.773587441 | AD59: 0.8081687342 | AE59: FALSE | AF59: TRUE | AG59: FALSE | AH59: 1 | AI59: FALSE | AJ59: FALSE | AK59: FALSE | AL59: 0 | AM59: TRUE | AN59: FALSE | AO59: TRUE | AP59: FALSE | AQ59: FALSE | AR59: FALSE | AS59: 3 | AT59: 0 | AU59: 2 | AV59: 1 | AW59: 1 | AX59: FALSE | AY59: FALSE | AZ59: FALSE | BA59: FALSE | BB59: FALSE | BC59: FALSE | BD59: FALSE | BE59: 88 | BF59: 88 | BG59: TRUE | BH59: 157.17 | BI59: FALSE | BK59: 157.17 | BN59: FALSE | BP59: FALSE
A60: 28 | B60: =OFFSET(InputPriceData!B$15,CalculationsAndCharts!$A60+$A$11,0,1,1) -> 2013-04-09 | C60: =OFFSET(InputPriceData!G$15,CalculationsAndCharts!$A60+$A$11,IF($C$7,8,0),1,1) -> 101922200 | D60: =OFFSET(InputPriceData!C$15,CalculationsAndCharts!$A60+$A$11,IF($C$7,8,0),1,1) -> 156.5 | E60: =OFFSET(InputPriceData!D$15,CalculationsAndCharts!$A60+$A$11,IF($C$7,8,0),1,1) -> 157.32 | F60: =OFFSET(InputPriceData!E$15,CalculationsAndCharts!$A60+$A$11,IF($C$7,8,0),1,1) -> 155.98 | G60: =OFFSET(InputPriceData!F$15,CalculationsAndCharts!$A60+$A$11,IF($C$7,8,0),1,1) -> 156.75 | L60: 13950.15 | M60: 3426.32 | N60: 523.83 | O60: 3950.15 | P60: 0 | Q60: 0 | R60: 0 | S60: 83.94366197 | T60: 65.09362376 | U60: 65.09362376 | V60: 1.34 | W60: 1.399910613 | X60: 88 | Y60: 0.339 | Z60: -0.0355952381 | AA60: 0.085 | AB60: -0.7658864226 | AC60: -4.870891675 | AD60: 0.9560092996 | AE60: TRUE | AF60: FALSE | AG60: FALSE | AH60: 1 | AI60: FALSE | AJ60: FALSE | AK60: FALSE | AL60: 0 | AM60: FALSE | AN60: FALSE | AO60: TRUE | AP60: FALSE | AQ60: TRUE | AR60: FALSE | AS60: 2 | AT60: 1 | AU60: 1 | AV60: 2 | AW60: 0 | AX60: FALSE | AY60: FALSE | AZ60: FALSE | BA60: FALSE | BB60: FALSE | BC60: TRUE | BD60: FALSE | BE60: 88 | BF60: 88 | BG60: FALSE | BI60: FALSE | BN60: FALSE | BP60: FALSE
A61: 29 | B61: =OFFSET(InputPriceData!B$15,CalculationsAndCharts!$A61+$A$11,0,1,1) -> 2013-04-08 | C61: =OFFSET(InputPriceData!G$15,CalculationsAndCharts!$A61+$A$11,IF($C$7,8,0),1,1) -> 86571200 | D61: =OFFSET(InputPriceData!C$15,CalculationsAndCharts!$A61+$A$11,IF($C$7,8,0),1,1) -> 155.27 | E61: =OFFSET(InputPriceData!D$15,CalculationsAndCharts!$A61+$A$11,IF($C$7,8,0),1,1) -> 156.22 | F61: =OFFSET(InputPriceData!E$15,CalculationsAndCharts!$A61+$A$11,IF($C$7,8,0),1,1) -> 154.75 | G61: =OFFSET(InputPriceData!F$15,CalculationsAndCharts!$A61+$A$11,IF($C$7,8,0),1,1) -> 156.21 | L61: 13950.15 | M61: 3426.32 | N61: 523.83 | O61: 3950.15 | P61: 0 | Q61: 0 | R61: 0 | S61: 70.93023256 | T61: 55.97628306 | U61: 55.97628306 | V61: 1.47 | W61: 1.403063803 | X61: 89 | Y61: -0.129 | Z61: -0.1139285714 | AA61: 0.0556043956 | AB61: -8.202315163 | AC61: -4.488594645 | AD61: 1.381002329 | AE61: FALSE | AF61: FALSE | AG61: FALSE | AH61: 0 | AI61: FALSE | AJ61: FALSE | AK61: FALSE | AL61: 0 | AM61: FALSE | AN61: FALSE | AO61: TRUE | AP61: TRUE | AQ61: TRUE | AR61: FALSE | AS61: 1 | AT61: 2 | AU61: 1 | AV61: 2 | AW61: 0 | AX61: FALSE | AY61: FALSE | AZ61: FALSE | BA61: FALSE | BB61: FALSE | BC61: FALSE | BD61: FALSE | BE61: 89 | BF61: 88 | BG61: FALSE | BI61: FALSE | BN61: FALSE | BP61: FALSE
A62: 30 | B62: =OFFSET(InputPriceData!B$15,CalculationsAndCharts!$A62+$A$11,0,1,1) -> 2013-04-05 | C62: =OFFSET(InputPriceData!G$15,CalculationsAndCharts!$A62+$A$11,IF($C$7,8,0),1,1) -> 159666000 | D62: =OFFSET(InputPriceData!C$15,CalculationsAndCharts!$A62+$A$11,IF($C$7,8,0),1,1) -> 153.95 | E62: =OFFSET(InputPriceData!D$15,CalculationsAndCharts!$A62+$A$11,IF($C$7,8,0),1,1) -> 155.35 | F62: =OFFSET(InputPriceData!E$15,CalculationsAndCharts!$A62+$A$11,IF($C$7,8,0),1,1) -> 153.77 | G62: =OFFSET(InputPriceData!F$15,CalculationsAndCharts!$A62+$A$11,IF($C$7,8,0),1,1) -> 155.16 | L62: 13950.15 | M62: 3426.32 | N62: 523.83 | O62: 3950.15 | P62: 0 | Q62: 0 | R62: 0 | S62: 40.40697674 | T62: 44.44434059 | U62: 44.44434059 | V62: 2.09 | W62: 1.399540846 | X62: 89 | Y62: -0.274 | Z62: -0.1477380952 | AA62: 0.07675824176 | AB62: -10.27088068 | AC62: -2.54681494 | AD62: 1.875993142 | AE62: FALSE | AF62: FALSE | AG62: FALSE | AH62: 0 | AI62: FALSE | AJ62: FALSE | AK62: FALSE | AL62: 0 | AM62: FALSE | AN62: FALSE | AO62: TRUE | AP62: TRUE | AQ62: TRUE | AR62: FALSE | AS62: 1 | AT62: 2 | AU62: 1 | AV62: 2 | AW62: 0 | AX62: FALSE | AY62: FALSE | AZ62: FALSE | BA62: FALSE | BB62: FALSE | BC62: FALSE | BD62: FALSE | BE62: 89 | BF62: 88 | BG62: FALSE | BI62: FALSE | BN62: FALSE | BP62: FALSE
A63: 31 | B63: =OFFSET(InputPriceData!B$15,CalculationsAndCharts!$A63+$A$11,0,1,1) -> 2013-04-04 | C63: =OFFSET(InputPriceData!G$15,CalculationsAndCharts!$A63+$A$11,IF($C$7,8,0),1,1) -> 131885000 | D63: =OFFSET(InputPriceData!C$15,CalculationsAndCharts!$A63+$A$11,IF($C$7,8,0),1,1) -> 155.43 | E63: =OFFSET(InputPriceData!D$15,CalculationsAndCharts!$A63+$A$11,IF($C$7,8,0),1,1) -> 156.17 | F63: =OFFSET(InputPriceData!E$15,CalculationsAndCharts!$A63+$A$11,IF($C$7,8,0),1,1) -> 155.09 | G63: =OFFSET(InputPriceData!F$15,CalculationsAndCharts!$A63+$A$11,IF($C$7,8,0),1,1) -> 155.86 | L63: 13950.15 | M63: 3426.32 | N63: 523.83 | O63: 3950.15 | P63: 0 | Q63: 0 | R63: 0 | S63: 56.59163987 | T63: 60.71752145 | U63: 60.71752145 | V63: 1.08 | W63: 1.36320089 | X63: 89 | Y63: -0.244 | Z63: 0.03380952381 | AA63: 0.1176373626 | AB63: -6.61846511 | AC63: 2.357396454 | AD63: 2.054064568 | AE63: FALSE | AF63: FALSE | AG63: FALSE | AH63: 0 | AI63: FALSE | AJ63: FALSE | AK63: FALSE | AL63: 0 | AM63: FALSE | AN63: TRUE | AO63: TRUE | AP63: TRUE | AQ63: FALSE | AR63: FALSE | AS63: 2 | AT63: 1 | AU63: 2 | AV63: 1 | AW63: 0 | AX63: FALSE | AY63: FALSE | AZ63: FALSE | BA63: FALSE | BB63: FALSE | BC63: FALSE | BD63: FALSE | BE63: 89 | BF63: 88 | BG63: FALSE | BI63: FALSE | BN63: FALSE | BP63: FALSE
A64: 32 | B64: =OFFSET(InputPriceData!B$15,CalculationsAndCharts!$A64+$A$11,0,1,1) -> 2013-04-03 | C64: =OFFSET(InputPriceData!G$15,CalculationsAndCharts!$A64+$A$11,IF($C$7,8,0),1,1) -> 154167400 | D64: =OFFSET(InputPriceData!C$15,CalculationsAndCharts!$A64+$A$11,IF($C$7,8,0),1,1) -> 156.91 | E64: =OFFSET(InputPriceData!D$15,CalculationsAndCharts!$A64+$A$11,IF($C$7,8,0),1,1) -> 157.03 | F64: =OFFSET(InputPriceData!E$15,CalculationsAndCharts!$A64+$A$11,IF($C$7,8,0),1,1) -> 154.82 | G64: =OFFSET(InputPriceData!F$15,CalculationsAndCharts!$A64+$A$11,IF($C$7,8,0),1,1) -> 155.23 | L64: 13950.15 | M64: 3426.32 | N64: 523.83 | O64: 3950.15 | P64: 0 | Q64: 0 | R64: 0 | S64: 36.33440514 | T64: 66.55243667 | U64: 66.55243667 | V64: 2.21 | W64: 1.3781062 | X64: 89 | Y64: -0.177 | Z64: 0.08119047619 | AA64: 0.1021978022 | AB64: -0.2692995325 | AC64: 4.843081188 | AD64: 1.175727747 | AE64: FALSE | AF64: FALSE | AG64: FALSE | AH64: 0 | AI64: FALSE | AJ64: FALSE | AK64: FALSE | AL64: 0 | AM64: FALSE | AN64: TRUE | AO64: TRUE | AP64: TRUE | AQ64: FALSE | AR64: FALSE | AS64: 2 | AT64: 1 | AU64: 2 | AV64: 1 | AW64: 0 | AX64: FALSE | AY64: FALSE | AZ64: FALSE | BA64: FALSE | BB64: FALSE | BC64: FALSE | BD64: FALSE | BE64: 89 | BF64: 88 | BG64: FALSE | BI64: TRUE | BJ64: 156.91 | BL64: 156.91 | BN64: FALSE | BP64: FALSE
A65: 33 | B65: =OFFSET(InputPriceData!B$15,CalculationsAndCharts!$A65+$A$11,0,1,1) -> 2013-04-02 | C65: =OFFSET(InputPriceData!G$15,CalculationsAndCharts!$A65+$A$11,IF($C$7,8,0),1,1) -> 101504300 | D65: =OFFSET(InputPriceData!C$15,CalculationsAndCharts!$A65+$A$11,IF($C$7,8,0),1,1) -> 156.61 | E65: =OFFSET(InputPriceData!D$15,CalculationsAndCharts!$A65+$A$11,IF($C$7,8,0),1,1) -> 157.21 | F65: =OFFSET(InputPriceData!E$15,CalculationsAndCharts!$A65+$A$11,IF($C$7,8,0),1,1) -> 156.37 | G65: =OFFSET(InputPriceData!F$15,CalculationsAndCharts!$A65+$A$11,IF($C$7,8,0),1,1) -> 156.82 | L65: 13950.15 | M65: 3426.32 | N65: 523.83 | O65: 3950.15 | P65: 49.28 | Q65: 0 | R65: 49.28 | S65: 89.22651934 | T65: 85.93381083 | U65: 85.93381083 | V65: 1.16 | W65: 1.334322316 | X65: 88 | Y65: 0.112 | Z65: 0.2932142857 | AA65: 0.08115384615 | AB65: 6.295022511 | AC65: 7.321185982 | AD65: 0.1170154942 | AE65: FALSE | AF65: FALSE | AG65: FALSE | AH65: 0 | AI65: FALSE | AJ65: FALSE | AK65: FALSE | AL65: 0 | AM65: TRUE | AN65: TRUE | AO65: TRUE | AP65: FALSE | AQ65: FALSE | AR65: FALSE | AS65: 3 | AT65: 0 | AU65: 3 | AV65: 0 | AW65: 1 | AX65: TRUE | AY65: TRUE | AZ65: FALSE | BA65: FALSE | BB65: FALSE | BC65: FALSE | BD65: FALSE | BE65: 88 | BF65: 88 | BG65: FALSE | BI65: FALSE | BN65: FALSE | BP65: FALSE
A66: 34 | B66: =OFFSET(InputPriceData!B$15,CalculationsAndCharts!$A66+$A$11,0,1,1) -> 2013-04-01 | C66: =OFFSET(InputPriceData!G$15,CalculationsAndCharts!$A66+$A$11,IF($C$7,8,0),1,1) -> 99194100 | D66: =OFFSET(InputPriceData!C$15,CalculationsAndCharts!$A66+$A$11,IF($C$7,8,0),1,1) -> 156.59 | E66: =OFFSET(InputPriceData!D$15,CalculationsAndCharts!$A66+$A$11,IF($C$7,8,0),1,1) -> 156.91 | F66: =OFFSET(InputPriceData!E$15,CalculationsAndCharts!$A66+$A$11,IF($C$7,8,0),1,1) -> 155.67 | G66: =OFFSET(InputPriceData!F$15,CalculationsAndCharts!$A66+$A$11,IF($C$7,8,0),1,1) -> 156.05 | L66: 13900.87 | M66: 3377.04 | N66: 523.83 | O66: 3900.87 | P66: -54.56 | Q66: 0 | R66: -54.56 | S66: 74.09638554 | T66: 83.19059929 | U66: 83.19059929 | V66: 1.24 | W66: 1.343497175 | X66: 89 | Y66: 0.268 | Z66: 0.2033333333 | AA66: 0.03456043956 | AB66: 10.38968864 | AC66: 6.597101881 | AD66: -1.535087053 | AE66: FALSE | AF66: FALSE | AG66: TRUE | AH66: 1 | AI66: FALSE | AJ66: FALSE | AK66: FALSE | AL66: 0 | AM66: TRUE | AN66: TRUE | AO66: FALSE | AP66: FALSE | AQ66: FALSE | AR66: FALSE | AS66: 3 | AT66: 0 | AU66: 2 | AV66: 1 | AW66: 1 | AX66: FALSE | AY66: FALSE | AZ66: FALSE | BA66: FALSE | BB66: FALSE | BC66: FALSE | BD66: FALSE | BE66: 89 | BF66: 88 | BG66: FALSE | BI66: FALSE | BN66: FALSE | BP66: FALSE
A67: 35 | B67: =OFFSET(InputPriceData!B$15,CalculationsAndCharts!$A67+$A$11,0,1,1) -> 2013-03-28 | C67: =OFFSET(InputPriceData!G$15,CalculationsAndCharts!$A67+$A$11,IF($C$7,8,0),1,1) -> 102932800 | D67: =OFFSET(InputPriceData!C$15,CalculationsAndCharts!$A67+$A$11,IF($C$7,8,0),1,1) -> 156.09 | E67: =OFFSET(InputPriceData!D$15,CalculationsAndCharts!$A67+$A$11,IF($C$7,8,0),1,1) -> 156.85 | F67: =OFFSET(InputPriceData!E$15,CalculationsAndCharts!$A67+$A$11,IF($C$7,8,0),1,1) -> 155.75 | G67: =OFFSET(InputPriceData!F$15,CalculationsAndCharts!$A67+$A$11,IF($C$7,8,0),1,1) -> 156.67 | L67: 13955.43 | M67: 3431.6 | N67: 523.83 | O67: 3955.43 | P67: 42.24 | Q67: 0 | R67: 42.24 | S67: 94.47852761 | T67: 85.49076569 | U67: 85.49076569 | V67: 1.1 | W67: 1.348944394 | X67: 89 | Y67: 0.338 | Z67: 0.259047619 | AA67: 0.01978021978 | AB67: 9.476138601 | AC67: 4.776097126 | AD67: -3.032826103 | AE67: FALSE | AF67: FALSE | AG67: TRUE | AH67: 1 | AI67: FALSE | AJ67: FALSE | AK67: FALSE | AL67: 0 | AM67: TRUE | AN67: TRUE | AO67: FALSE | AP67: FALSE | AQ67: FALSE | AR67: FALSE | AS67: 3 | AT67: 0 | AU67: 2 | AV67: 1 | AW67: 1 | AX67: FALSE | AY67: FALSE | AZ67: FALSE | BA67: FALSE | BB67: FALSE | BC67: FALSE | BD67: FALSE | BE67: 89 | BF67: 88 | BG67: FALSE | BI67: FALSE | BN67: FALSE | BP67: FALSE
A68: 36 | B68: =OFFSET(InputPriceData!B$15,CalculationsAndCharts!$A68+$A$11,0,1,1) -> 2013-03-27 | C68: =OFFSET(InputPriceData!G$15,CalculationsAndCharts!$A68+$A$11,IF($C$7,8,0),1,1) -> 99950600 | D68: =OFFSET(InputPriceData!C$15,CalculationsAndCharts!$A68+$A$11,IF($C$7,8,0),1,1) -> 155.26 | E68: =OFFSET(InputPriceData!D$15,CalculationsAndCharts!$A68+$A$11,IF($C$7,8,0),1,1) -> 156.24 | F68: =OFFSET(InputPriceData!E$15,CalculationsAndCharts!$A68+$A$11,IF($C$7,8,0),1,1) -> 155 | G68: =OFFSET(InputPriceData!F$15,CalculationsAndCharts!$A68+$A$11,IF($C$7,8,0),1,1) -> 156.19 | L68: 13913.19 | M68: 3389.36 | N68: 523.83 | O68: 3913.19 | P68: 0 | Q68: 0 | R68: 0 | S68: 80.99688474 | T68: 68.12045691 | U68: 68.12045691 | V68: 1.24 | W68: 1.362046731 | X68: 89 | Y68: 0.425 | Z68: 0.184047619 | AA68: -0.03241758242 | AB68: 6.677050883 | AC68: 0.09729968191 | AD68: -4.582248326 | AE68: FALSE | AF68: FALSE | AG68: FALSE | AH68: 0 | AI68: FALSE | AJ68: FALSE | AK68: FALSE | AL68: 0 | AM68: TRUE | AN68: TRUE | AO68: FALSE | AP68: FALSE | AQ68: FALSE | AR68: TRUE | AS68: 2 | AT68: 1 | AU68: 2 | AV68: 1 | AW68: 1 | AX68: FALSE | AY68: FALSE | AZ68: FALSE | BA68: FALSE | BB68: FALSE | BC68: FALSE | BD68: FALSE | BE68: 89 | BF68: 88 | BG68: FALSE | BI68: FALSE | BN68: FALSE | BP68: FALSE
A69: 37 | B69: =OFFSET(InputPriceData!B$15,CalculationsAndCharts!$A69+$A$11,0,1,1) -> 2013-03-26 | C69: =OFFSET(InputPriceData!G$15,CalculationsAndCharts!$A69+$A$11,IF($C$7,8,0),1,1) -> 86856600 | D69: =OFFSET(InputPriceData!C$15,CalculationsAndCharts!$A69+$A$11,IF($C$7,8,0),1,1) -> 155.59 | E69: =OFFSET(InputPriceData!D$15,CalculationsAndCharts!$A69+$A$11,IF($C$7,8,0),1,1) -> 156.23 | F69: =OFFSET(InputPriceData!E$15,CalculationsAndCharts!$A69+$A$11,IF($C$7,8,0),1,1) -> 155.42 | G69: =OFFSET(InputPriceData!F$15,CalculationsAndCharts!$A69+$A$11,IF($C$7,8,0),1,1) -> 156.19 | L69: 13913.19 | M69: 3389.36 | N69: 523.83 | O69: 3913.19 | P69: 109.12 | Q69: 0 | R69: 109.12 | S69: 80.99688474 | T69: 61.99376947 | U69: 61.99376947 | V69: 1.28 | W69: 1.368470243 | X69: 89 | Y69: 0.159 | Z69: 0.04833333333 | AA69: -0.05021978022 | AB69: 3.372701342 | AC69: -4.490672002 | AD69: -5.322471397 | AE69: FALSE | AF69: TRUE | AG69: FALSE | AH69: 1 | AI69: FALSE | AJ69: FALSE | AK69: FALSE | AL69: 0 | AM69: TRUE | AN69: FALSE | AO69: FALSE | AP69: FALSE | AQ69: FALSE | AR69: TRUE | AS69: 2 | AT69: 1 | AU69: 1 | AV69: 2 | AW69: 1 | AX69: FALSE | AY69: FALSE | AZ69: FALSE | BA69: FALSE | BB69: FALSE | BC69: FALSE | BD69: FALSE | BE69: 89 | BF69: 88 | BG69: FALSE | BI69: FALSE | BN69: FALSE | BP69: FALSE
A70: 38 | B70: =OFFSET(InputPriceData!B$15,CalculationsAndCharts!$A70+$A$11,0,1,1) -> 2013-03-25 | C70: =OFFSET(InputPriceData!G$15,CalculationsAndCharts!$A70+$A$11,IF($C$7,8,0),1,1) -> 151322300 | D70: =OFFSET(InputPriceData!C$15,CalculationsAndCharts!$A70+$A$11,IF($C$7,8,0),1,1) -> 156.01 | E70: =OFFSET(InputPriceData!D$15,CalculationsAndCharts!$A70+$A$11,IF($C$7,8,0),1,1) -> 156.27 | F70: =OFFSET(InputPriceData!E$15,CalculationsAndCharts!$A70+$A$11,IF($C$7,8,0),1,1) -> 154.35 | G70: =OFFSET(InputPriceData!F$15,CalculationsAndCharts!$A70+$A$11,IF($C$7,8,0),1,1) -> 154.95 | L70: 13804.07 | M70: 3280.24 | N70: 523.83 | O70: 3804.07 | P70: -57.2 | Q70: 0 | R70: -57.2 | S70: 42.36760125 | T70: 42.99065421 | U70: 42.99065421 | V70: 1.92 | W70: 1.373126572 | X70: 89 | Y70: 0.059 | Z70: -0.170952381 | AA70: -0.05038461538 | AB70: -1.343407158 | AC70: -8.174546673 | AD70: -5.633615378 | AE70: TRUE | AF70: FALSE | AG70: FALSE | AH70: 1 | AI70: FALSE | AJ70: FALSE | AK70: FALSE | AL70: 0 | AM70: FALSE | AN70: FALSE | AO70: FALSE | AP70: FALSE | AQ70: TRUE | AR70: TRUE | AS70: 1 | AT70: 2 | AU70: 0 | AV70: 3 | AW70: 1 | AX70: FALSE | AY70: FALSE | AZ70: FALSE | BA70: FALSE | BB70: FALSE | BC70: FALSE | BD70: FALSE | BE70: 89 | BF70: 88 | BG70: FALSE | BI70: FALSE | BN70: FALSE | BP70: FALSE
A71: 39 | B71: =OFFSET(InputPriceData!B$15,CalculationsAndCharts!$A71+$A$11,0,1,1) -> 2013-03-22 | C71: =OFFSET(InputPriceData!G$15,CalculationsAndCharts!$A71+$A$11,IF($C$7,8,0),1,1) -> 111163600 | D71: =OFFSET(InputPriceData!C$15,CalculationsAndCharts!$A71+$A$11,IF($C$7,8,0),1,1) -> 154.85 | E71: =OFFSET(InputPriceData!D$15,CalculationsAndCharts!$A71+$A$11,IF($C$7,8,0),1,1) -> 155.6 | F71: =OFFSET(InputPriceData!E$15,CalculationsAndCharts!$A71+$A$11,IF($C$7,8,0),1,1) -> 154.73 | G71: =OFFSET(InputPriceData!F$15,CalculationsAndCharts!$A71+$A$11,IF($C$7,8,0),1,1) -> 155.6 | L71: 13861.27 | M71: 3337.44 | N71: 523.83 | O71: 3861.27 | P71: 109.12 | Q71: 0 | R71: 109.12 | S71: 62.61682243 | T71: 50.67497404 | U71: 50.67497404 | V71: 1.24 | W71: 1.34434376 | X71: 89 | Y71: 0.101 | Z71: -0.1753571429 | AA71: -0.001373626374 | AB71: -5.850110639 | AC71: -9.035941415 | AD71: -4.984129632 | AE71: TRUE | AF71: FALSE | AG71: FALSE | AH71: 1 | AI71: FALSE | AJ71: FALSE | AK71: FALSE | AL71: 0 | AM71: FALSE | AN71: FALSE | AO71: FALSE | AP71: FALSE | AQ71: TRUE | AR71: TRUE | AS71: 1 | AT71: 2 | AU71: 0 | AV71: 3 | AW71: 1 | AX71: FALSE | AY71: FALSE | AZ71: FALSE | BA71: FALSE | BB71: FALSE | BC71: FALSE | BD71: FALSE | BE71: 89 | BF71: 88 | BG71: FALSE | BI71: FALSE | BN71: FALSE | BP71: FALSE
A72: 40 | B72: =OFFSET(InputPriceData!B$15,CalculationsAndCharts!$A72+$A$11,0,1,1) -> 2013-03-21 | C72: =OFFSET(InputPriceData!G$15,CalculationsAndCharts!$A72+$A$11,IF($C$7,8,0),1,1) -> 128605000 | D72: =OFFSET(InputPriceData!C$15,CalculationsAndCharts!$A72+$A$11,IF($C$7,8,0),1,1) -> 154.76 | E72: =OFFSET(InputPriceData!D$15,CalculationsAndCharts!$A72+$A$11,IF($C$7,8,0),1,1) -> 155.64 | F72: =OFFSET(InputPriceData!E$15,CalculationsAndCharts!$A72+$A$11,IF($C$7,8,0),1,1) -> 154.1 | G72: =OFFSET(InputPriceData!F$15,CalculationsAndCharts!$A72+$A$11,IF($C$7,8,0),1,1) -> 154.36 | L72: 13752.15 | M72: 3228.32 | N72: 523.83 | O72: 3752.15 | P72: -117.04 | Q72: 0 | R72: -117.04 | S72: 23.98753894 | T72: 40.39460021 | U72: 40.39460021 | V72: 1.59 | W72: 1.349835537 | X72: 89 | Y72: -0.222 | Z72: -0.208452381 | AA72: 0.02708791209 | AB72: -13.14434455 | AC72: -9.470259182 | AD72: -4.148440013 | AE72: FALSE | AF72: FALSE | AG72: TRUE | AH72: 1 | AI72: FALSE | AJ72: FALSE | AK72: FALSE | AL72: 0 | AM72: FALSE | AN72: FALSE | AO72: FALSE | AP72: TRUE | AQ72: TRUE | AR72: FALSE | AS72: 1 | AT72: 2 | AU72: 0 | AV72: 3 | AW72: 1 | AX72: FALSE | AY72: FALSE | AZ72: FALSE | BA72: FALSE | BB72: FALSE | BC72: FALSE | BD72: FALSE | BE72: 89 | BF72: 88 | BG72: FALSE | BI72: FALSE | BN72: FALSE | BP72: FALSE
A73: 41 | B73: =OFFSET(InputPriceData!B$15,CalculationsAndCharts!$A73+$A$11,0,1,1) -> 2013-03-20 | C73: =OFFSET(InputPriceData!G$15,CalculationsAndCharts!$A73+$A$11,IF($C$7,8,0),1,1) -> 113759300 | D73: =OFFSET(InputPriceData!C$15,CalculationsAndCharts!$A73+$A$11,IF($C$7,8,0),1,1) -> 155.52 | E73: =OFFSET(InputPriceData!D$15,CalculationsAndCharts!$A73+$A$11,IF($C$7,8,0),1,1) -> 155.95 | F73: =OFFSET(InputPriceData!E$15,CalculationsAndCharts!$A73+$A$11,IF($C$7,8,0),1,1) -> 155.26 | G73: =OFFSET(InputPriceData!F$15,CalculationsAndCharts!$A73+$A$11,IF($C$7,8,0),1,1) -> 155.69 | L73: 13869.19 | M73: 3345.36 | N73: 523.83 | O73: 3869.19 | P73: 95.04 | Q73: 0 | R73: 95.04 | S73: 65.42056075 | T73: 46.42828976 | U73: 46.42828976 | V73: 1.34 | W73: 1.337195302 | X73: 89 | Y73: -0.33 | Z73: -0.135952381 | AA73: 0.1412087912 | AB73: -13.98238959 | AC73: -7.801577599 | AD73: -2.392635682 | AE73: FALSE | AF73: FALSE | AG73: TRUE | AH73: 1 | AI73: FALSE | AJ73: FALSE | AK73: FALSE | AL73: 0 | AM73: FALSE | AN73: FALSE | AO73: FALSE | AP73: TRUE | AQ73: TRUE | AR73: FALSE | AS73: 1 | AT73: 2 | AU73: 0 | AV73: 3 | AW73: 1 | AX73: FALSE | AY73: FALSE | AZ73: FALSE | BA73: FALSE | BB73: FALSE | BC73: FALSE | BD73: FALSE | BE73: 89 | BF73: 88 | BG73: FALSE | BI73: FALSE | BN73: FALSE | BP73: FALSE
A74: 42 | B74: =OFFSET(InputPriceData!B$15,CalculationsAndCharts!$A74+$A$11,0,1,1) -> 2013-03-19 | C74: =OFFSET(InputPriceData!G$15,CalculationsAndCharts!$A74+$A$11,IF($C$7,8,0),1,1) -> 167567300 | D74: =OFFSET(InputPriceData!C$15,CalculationsAndCharts!$A74+$A$11,IF($C$7,8,0),1,1) -> 155.3 | E74: =OFFSET(InputPriceData!D$15,CalculationsAndCharts!$A74+$A$11,IF($C$7,8,0),1,1) -> 155.51 | F74: =OFFSET(InputPriceData!E$15,CalculationsAndCharts!$A74+$A$11,IF($C$7,8,0),1,1) -> 153.59 | G74: =OFFSET(InputPriceData!F$15,CalculationsAndCharts!$A74+$A$11,IF($C$7,8,0),1,1) -> 154.61 | L74: 13774.15 | M74: 3250.32 | N74: 523.83 | O74: 3774.15 | P74: -31.68 | Q74: 0 | R74: -31.68 | S74: 31.77570093 | T74: 51.83103214 | U74: 51.83103214 | V74: 1.92 | W74: 1.337047686 | X74: 89 | Y74: -0.434 | Z74: -0.1170238095 | AA74: 0.222967033 | AB74: -11.1196776 | AC74: -5.226077811 | AD74: -0.4262711652 | AE74: FALSE | AF74: FALSE | AG74: TRUE | AH74: 1 | AI74: FALSE | AJ74: FALSE | AK74: FALSE | AL74: 0 | AM74: FALSE | AN74: FALSE | AO74: FALSE | AP74: TRUE | AQ74: TRUE | AR74: FALSE | AS74: 1 | AT74: 2 | AU74: 0 | AV74: 3 | AW74: 1 | AX74: FALSE | AY74: FALSE | AZ74: FALSE | BA74: FALSE | BB74: FALSE | BC74: FALSE | BD74: FALSE | BE74: 89 | BF74: 88 | BG74: FALSE | BI74: FALSE | BN74: FALSE | BP74: FALSE
A75: 43 | B75: =OFFSET(InputPriceData!B$15,CalculationsAndCharts!$A75+$A$11,0,1,1) -> 2013-03-18 | C75: =OFFSET(InputPriceData!G$15,CalculationsAndCharts!$A75+$A$11,IF($C$7,8,0),1,1) -> 126704300 | D75: =OFFSET(InputPriceData!C$15,CalculationsAndCharts!$A75+$A$11,IF($C$7,8,0),1,1) -> 154.34 | E75: =OFFSET(InputPriceData!D$15,CalculationsAndCharts!$A75+$A$11,IF($C$7,8,0),1,1) -> 155.64 | F75: =OFFSET(InputPriceData!E$15,CalculationsAndCharts!$A75+$A$11,IF($C$7,8,0),1,1) -> 154.2 | G75: =OFFSET(InputPriceData!F$15,CalculationsAndCharts!$A75+$A$11,IF($C$7,8,0),1,1) -> 154.97 | L75: 13805.83 | M75: 3282 | N75: 523.83 | O75: 3805.83 | P75: -75.68 | Q75: 0 | R75: -75.68 | S75: 42.08860759 | T75: 74.20731127 | U75: 74.20731127 | V75: 1.63 | W75: 1.306365985 | X75: 89 | Y75: -0.149 | Z75: 0.06666666667 | AA75: 0.3430769231 | AB75: -4.928974275 | AC75: -1.950786334 | AD75: 1.961951345 | AE75: FALSE | AF75: TRUE | AG75: FALSE | AH75: 1 | AI75: FALSE | AJ75: FALSE | AK75: FALSE | AL75: 0 | AM75: FALSE | AN75: FALSE | AO75: TRUE | AP75: TRUE | AQ75: FALSE | AR75: FALSE | AS75: 2 | AT75: 1 | AU75: 1 | AV75: 2 | AW75: 1 | AX75: FALSE | AY75: FALSE | AZ75: FALSE | BA75: FALSE | BB75: FALSE | BC75: FALSE | BD75: FALSE | BE75: 89 | BF75: 88 | BG75: FALSE | BI75: FALSE | BN75: FALSE | BP75: FALSE
A76: 44 | B76: =OFFSET(InputPriceData!B$15,CalculationsAndCharts!$A76+$A$11,0,1,1) -> 2013-03-15 | C76: =OFFSET(InputPriceData!G$15,CalculationsAndCharts!$A76+$A$11,IF($C$7,8,0),1,1) -> 138601100 | D76: =OFFSET(InputPriceData!C$15,CalculationsAndCharts!$A76+$A$11,IF($C$7,8,0),1,1) -> 155.85 | E76: =OFFSET(InputPriceData!D$15,CalculationsAndCharts!$A76+$A$11,IF($C$7,8,0),1,1) -> 156.04 | F76: =OFFSET(InputPriceData!E$15,CalculationsAndCharts!$A76+$A$11,IF($C$7,8,0),1,1) -> 155.31 | G76: =OFFSET(InputPriceData!F$15,CalculationsAndCharts!$A76+$A$11,IF($C$7,8,0),1,1) -> 155.83 | L76: 13881.51 | M76: 3357.68 | N76: 523.83 | O76: 3881.51 | P76: -1.76 | Q76: 0 | R76: -1.76 | S76: 81.62878788 | T76: 92.22681218 | U76: 92.22681218 | V76: 1.42 | W76: 1.289332616 | X76: 89 | Y76: 0.065 | Z76: 0.2391666667 | AA76: 0.422967033 | AB76: -1.189101175 | AC76: 0.07106573063 | AD76: 4.196187999 | AE76: TRUE | AF76: FALSE | AG76: FALSE | AH76: 1 | AI76: FALSE | AJ76: FALSE | AK76: FALSE | AL76: 0 | AM76: FALSE | AN76: TRUE | AO76: TRUE | AP76: FALSE | AQ76: FALSE | AR76: FALSE | AS76: 3 | AT76: 0 | AU76: 2 | AV76: 1 | AW76: 1 | AX76: FALSE | AY76: FALSE | AZ76: FALSE | BA76: FALSE | BB76: FALSE | BC76: FALSE | BD76: FALSE | BE76: 89 | BF76: 88 | BG76: TRUE | BH76: 155.85 | BI76: FALSE | BK76: 155.85 | BN76: FALSE | BP76: FALSE
A77: 45 | B77: =OFFSET(InputPriceData!B$15,CalculationsAndCharts!$A77+$A$11,0,1,1) -> 2013-03-14 | C77: =OFFSET(InputPriceData!G$15,CalculationsAndCharts!$A77+$A$11,IF($C$7,8,0),1,1) -> 126329900 | D77: =OFFSET(InputPriceData!C$15,CalculationsAndCharts!$A77+$A$11,IF($C$7,8,0),1,1) -> 156.31 | E77: =OFFSET(InputPriceData!D$15,CalculationsAndCharts!$A77+$A$11,IF($C$7,8,0),1,1) -> 156.8 | F77: =OFFSET(InputPriceData!E$15,CalculationsAndCharts!$A77+$A$11,IF($C$7,8,0),1,1) -> 155.91 | G77: =OFFSET(InputPriceData!F$15,CalculationsAndCharts!$A77+$A$11,IF($C$7,8,0),1,1) -> 156.73 | L77: 13883.27 | M77: 3359.44 | N77: 523.83 | O77: 3883.27 | P77: 0 | Q77: 0 | R77: 0 | S77: 98.90453834 | T77: 96.14234767 | U77: 96.14234767 | V77: 0.9 | W77: 1.282455385 | X77: 88 | Y77: 0.245 | Z77: 0.3258333333 | AA77: 0.5152747253 | AB77: -0.04496961583 | AC77: 1.131028321 | AD77: 5.636013597 | AE77: TRUE | AF77: FALSE | AG77: FALSE | AH77: 1 | AI77: FALSE | AJ77: FALSE | AK77: FALSE | AL77: 0 | AM77: FALSE | AN77: TRUE | AO77: TRUE | AP77: FALSE | AQ77: FALSE | AR77: FALSE | AS77: 3 | AT77: 0 | AU77: 2 | AV77: 1 | AW77: 0 | AX77: FALSE | AY77: FALSE | AZ77: FALSE | BA77: FALSE | BB77: FALSE | BC77: TRUE | BD77: FALSE | BE77: 88 | BF77: 89 | BG77: FALSE | BI77: FALSE | BN77: FALSE | BP77: FALSE
A78: 46 | B78: =OFFSET(InputPriceData!B$15,CalculationsAndCharts!$A78+$A$11,0,1,1) -> 2013-03-13 | C78: =OFFSET(InputPriceData!G$15,CalculationsAndCharts!$A78+$A$11,IF($C$7,8,0),1,1) -> 92550900 | D78: =OFFSET(InputPriceData!C$15,CalculationsAndCharts!$A78+$A$11,IF($C$7,8,0),1,1) -> 155.76 | E78: =OFFSET(InputPriceData!D$15,CalculationsAndCharts!$A78+$A$11,IF($C$7,8,0),1,1) -> 156.12 | F78: =OFFSET(InputPriceData!E$15,CalculationsAndCharts!$A78+$A$11,IF($C$7,8,0),1,1) -> 155.23 | G78: =OFFSET(InputPriceData!F$15,CalculationsAndCharts!$A78+$A$11,IF($C$7,8,0),1,1) -> 155.9 | L78: 13883.27 | M78: 3359.44 | N78: 523.83 | O78: 3883.27 | P78: 0 | Q78: 0 | R78: 0 | S78: 96.14711033 | T78: 96.46190192 | U78: 96.46190192 | V78: 0.89 | W78: 1.302584616 | X78: 89 | Y78: 0.248 | Z78: 0.3935714286 | AA78: 0.5746703297 | AB78: 0.5233587417 | AC78: 2.463931203 | AD78: 6.708975599 | AE78: FALSE | AF78: FALSE | AG78: FALSE | AH78: 0 | AI78: FALSE | AJ78: FALSE | AK78: FALSE | AL78: 0 | AM78: TRUE | AN78: TRUE | AO78: TRUE | AP78: FALSE | AQ78: FALSE | AR78: FALSE | AS78: 3 | AT78: 0 | AU78: 3 | AV78: 0 | AW78: 0 | AX78: TRUE | AY78: FALSE | AZ78: FALSE | BA78: FALSE | BB78: FALSE | BC78: FALSE | BD78: FALSE | BE78: 89 | BF78: 89 | BG78: FALSE | BI78: FALSE | BN78: FALSE | BP78: FALSE
A79: 47 | B79: =OFFSET(InputPriceData!B$15,CalculationsAndCharts!$A79+$A$11,0,1,1) -> 2013-03-12 | C79: =OFFSET(InputPriceData!G$15,CalculationsAndCharts!$A79+$A$11,IF($C$7,8,0),1,1) -> 105755800 | D79: =OFFSET(InputPriceData!C$15,CalculationsAndCharts!$A79+$A$11,IF($C$7,8,0),1,1) -> 155.92 | E79: =OFFSET(InputPriceData!D$15,CalculationsAndCharts!$A79+$A$11,IF($C$7,8,0),1,1) -> 156.1 | F79: =OFFSET(InputPriceData!E$15,CalculationsAndCharts!$A79+$A$11,IF($C$7,8,0),1,1) -> 155.21 | G79: =OFFSET(InputPriceData!F$15,CalculationsAndCharts!$A79+$A$11,IF($C$7,8,0),1,1) -> 155.68 | L79: 13883.27 | M79: 3359.44 | N79: 523.83 | O79: 3883.27 | P79: 0 | Q79: 0 | R79: 0 | S79: 93.37539432 | T79: 96.73463778 | U79: 96.73463778 | V79: 0.89 | W79: 1.324299596 | X79: 89 | Y79: 0.361 | Z79: 0.5270238095 | AA79: 0.5282417582 | AB79: 1.133964951 | AC79: 3.912878625 | AD79: 6.902763054 | AE79: FALSE | AF79: FALSE | AG79: FALSE | AH79: 0 | AI79: FALSE | AJ79: FALSE | AK79: FALSE | AL79: 0 | AM79: TRUE | AN79: TRUE | AO79: TRUE | AP79: FALSE | AQ79: FALSE | AR79: FALSE | AS79: 3 | AT79: 0 | AU79: 3 | AV79: 0 | AW79: 0 | AX79: TRUE | AY79: FALSE | AZ79: FALSE | BA79: FALSE | BB79: FALSE | BC79: FALSE | BD79: FALSE | BE79: 89 | BF79: 89 | BG79: FALSE | BI79: FALSE | BN79: FALSE | BP79: FALSE
A80: 48 | B80: =OFFSET(InputPriceData!B$15,CalculationsAndCharts!$A80+$A$11,0,1,1) -> 2013-03-11 | C80: =OFFSET(InputPriceData!G$15,CalculationsAndCharts!$A80+$A$11,IF($C$7,8,0),1,1) -> 83746800 | D80: =OFFSET(InputPriceData!C$15,CalculationsAndCharts!$A80+$A$11,IF($C$7,8,0),1,1) -> 155.32 | E80: =OFFSET(InputPriceData!D$15,CalculationsAndCharts!$A80+$A$11,IF($C$7,8,0),1,1) -> 156.04 | F80: =OFFSET(InputPriceData!E$15,CalculationsAndCharts!$A80+$A$11,IF($C$7,8,0),1,1) -> 155.13 | G80: =OFFSET(InputPriceData!F$15,CalculationsAndCharts!$A80+$A$11,IF($C$7,8,0),1,1) -> 156.03 | L80: 13883.27 | M80: 3359.44 | N80: 523.83 | O80: 3883.27 | P80: 0 | Q80: 0 | R80: 0 | S80: 99.86320109 | T80: 97.876173 | U80: 97.876173 | V80: 0.91 | W80: 1.347157469 | X80: 88 | Y80: 0.442 | Z80: 0.6354761905 | AA80: 0.5167032967 | AB80: 2.55967354 | AC80: 5.958446033 | AD80: 6.324539075 | AE80: FALSE | AF80: FALSE | AG80: FALSE | AH80: 0 | AI80: FALSE | AJ80: FALSE | AK80: FALSE | AL80: 0 | AM80: TRUE | AN80: TRUE | AO80: TRUE | AP80: FALSE | AQ80: FALSE | AR80: FALSE | AS80: 3 | AT80: 0 | AU80: 3 | AV80: 0 | AW80: 0 | AX80: TRUE | AY80: FALSE | AZ80: FALSE | BA80: FALSE | BB80: FALSE | BC80: FALSE | BD80: FALSE | BE80: 88 | BF80: 89 | BG80: FALSE | BI80: FALSE | BN80: FALSE | BP80: FALSE
A81: 49 | B81: =OFFSET(InputPriceData!B$15,CalculationsAndCharts!$A81+$A$11,0,1,1) -> 2013-03-08 | C81: =OFFSET(InputPriceData!G$15,CalculationsAndCharts!$A81+$A$11,IF($C$7,8,0),1,1) -> 123477800 | D81: =OFFSET(InputPriceData!C$15,CalculationsAndCharts!$A81+$A$11,IF($C$7,8,0),1,1) -> 155.46 | E81: =OFFSET(InputPriceData!D$15,CalculationsAndCharts!$A81+$A$11,IF($C$7,8,0),1,1) -> 155.65 | F81: =OFFSET(InputPriceData!E$15,CalculationsAndCharts!$A81+$A$11,IF($C$7,8,0),1,1) -> 154.66 | G81: =OFFSET(InputPriceData!F$15,CalculationsAndCharts!$A81+$A$11,IF($C$7,8,0),1,1) -> 155.44 | L81: 13883.27 | M81: 3359.44 | N81: 523.83 | O81: 3883.27 | P81: 0 | Q81: 0 | R81: 0 | S81: 96.96531792 | T81: 95.6600602 | U81: 95.6600602 | V81: 0.99 | W81: 1.370165757 | X81: 89 | Y81: 0.553 | Z81: 0.5845238095 | AA81: 0.4324725275 | AB81: 4.608697939 | AC81: 8.618793475 | AD81: 4.71551109 | AE81: FALSE | AF81: FALSE | AG81: FALSE | AH81: 0 | AI81: FALSE | AJ81: FALSE | AK81: FALSE | AL81: 0 | AM81: TRUE | AN81: TRUE | AO81: TRUE | AP81: FALSE | AQ81: FALSE | AR81: FALSE | AS81: 3 | AT81: 0 | AU81: 3 | AV81: 0 | AW81: 0 | AX81: TRUE | AY81: FALSE | AZ81: FALSE | BA81: FALSE | BB81: FALSE | BC81: FALSE | BD81: FALSE | BE81: 89 | BF81: 89 | BG81: FALSE | BI81: FALSE | BN81: FALSE | BP81: FALSE
A82: 50 | B82: =OFFSET(InputPriceData!B$15,CalculationsAndCharts!$A82+$A$11,0,1,1) -> 2013-03-07 | C82: =OFFSET(InputPriceData!G$15,CalculationsAndCharts!$A82+$A$11,IF($C$7,8,0),1,1) -> 86101400 | D82: =OFFSET(InputPriceData!C$15,CalculationsAndCharts!$A82+$A$11,IF($C$7,8,0),1,1) -> 154.7 | E82: =OFFSET(InputPriceData!D$15,CalculationsAndCharts!$A82+$A$11,IF($C$7,8,0),1,1) -> 154.98 | F82: =OFFSET(InputPriceData!E$15,CalculationsAndCharts!$A82+$A$11,IF($C$7,8,0),1,1) -> 154.52 | G82: =OFFSET(InputPriceData!F$15,CalculationsAndCharts!$A82+$A$11,IF($C$7,8,0),1,1) -> 154.78 | L82: 13883.27 | M82: 3359.44 | N82: 523.83 | O82: 3883.27 | P82: 0 | Q82: 0 | R82: 0 | S82: 96.8 | T82: 94.382397 | U82: 94.382397 | V82: 0.48 | W82: 1.390174481 | X82: 89 | Y82: 0.692 | Z82: 0.6561904762 | AA82: 0.2821978022 | AB82: 6.670470015 | AC82: 10.28552845 | AD82: 2.556319592 | AE82: FALSE | AF82: FALSE | AG82: FALSE | AH82: 0 | AI82: FALSE | AJ82: FALSE | AK82: FALSE | AL82: 0 | AM82: TRUE | AN82: TRUE | AO82: TRUE | AP82: FALSE | AQ82: FALSE | AR82: FALSE | AS82: 3 | AT82: 0 | AU82: 3 | AV82: 0 | AW82: 0 | AX82: TRUE | AY82: FALSE | AZ82: FALSE | BA82: FALSE | BB82: FALSE | BC82: FALSE | BD82: FALSE | BE82: 89 | BF82: 89 | BG82: FALSE | BI82: TRUE | BJ82: 154.7 | BL82: 154.7 | BN82: FALSE | BP82: FALSE
A83: 51 | B83: =OFFSET(InputPriceData!B$15,CalculationsAndCharts!$A83+$A$11,0,1,1) -> 2013-03-06 | C83: =OFFSET(InputPriceData!G$15,CalculationsAndCharts!$A83+$A$11,IF($C$7,8,0),1,1) -> 94469900 | D83: =OFFSET(InputPriceData!C$15,CalculationsAndCharts!$A83+$A$11,IF($C$7,8,0),1,1) -> 154.84 | E83: =OFFSET(InputPriceData!D$15,CalculationsAndCharts!$A83+$A$11,IF($C$7,8,0),1,1) -> 154.92 | F83: =OFFSET(InputPriceData!E$15,CalculationsAndCharts!$A83+$A$11,IF($C$7,8,0),1,1) -> 154.16 | G83: =OFFSET(InputPriceData!F$15,CalculationsAndCharts!$A83+$A$11,IF($C$7,8,0),1,1) -> 154.5 | L83: 13883.27 | M83: 3359.44 | N83: 523.83 | O83: 3883.27 | P83: 48.95 | Q83: 0 | R83: 48.95 | S83: 93.21486268 | T83: 92.81170103 | U83: 92.81170103 | V83: 0.76 | W83: 1.438078401 | X83: 89 | Y83: 0.796 | Z83: 0.7545238095 | AA83: 0.1828571429 | AB83: 9.52755701 | AC83: 10.83261249 | AD83: 0.5706018765 | AE83: FALSE | AF83: FALSE | AG83: FALSE | AH83: 0 | AI83: FALSE | AJ83: FALSE | AK83: FALSE | AL83: 0 | AM83: TRUE | AN83: TRUE | AO83: TRUE | AP83: FALSE | AQ83: FALSE | AR83: FALSE | AS83: 3 | AT83: 0 | AU83: 3 | AV83: 0 | AW83: 1 | AX83: TRUE | AY83: TRUE | AZ83: FALSE | BA83: FALSE | BB83: FALSE | BC83: FALSE | BD83: FALSE | BE83: 89 | BF83: 89 | BG83: FALSE | BI83: FALSE | BN83: FALSE | BP83: FALSE
A84: 52 | B84: =OFFSET(InputPriceData!B$15,CalculationsAndCharts!$A84+$A$11,0,1,1) -> 2013-03-05 | C84: =OFFSET(InputPriceData!G$15,CalculationsAndCharts!$A84+$A$11,IF($C$7,8,0),1,1) -> 121431900 | D84: =OFFSET(InputPriceData!C$15,CalculationsAndCharts!$A84+$A$11,IF($C$7,8,0),1,1) -> 153.66 | E84: =OFFSET(InputPriceData!D$15,CalculationsAndCharts!$A84+$A$11,IF($C$7,8,0),1,1) -> 154.7 | F84: =OFFSET(InputPriceData!E$15,CalculationsAndCharts!$A84+$A$11,IF($C$7,8,0),1,1) -> 153.64 | G84: =OFFSET(InputPriceData!F$15,CalculationsAndCharts!$A84+$A$11,IF($C$7,8,0),1,1) -> 154.29 | L84: 13834.32 | M84: 3310.49 | N84: 523.83 | O84: 3834.32 | P84: 121.93 | Q84: 0 | R84: 121.93 | S84: 93.13232831 | T84: 86.50198489 | U84: 86.50198489 | V84: 1.78 | W84: 1.473766738 | X84: 89 | Y84: 0.607 | Z84: 0.5044047619 | AA84: 0.07368131868 | AB84: 13.0220087 | AC84: 8.692019699 | AD84: -1.463132662 | AE84: FALSE | AF84: FALSE | AG84: TRUE | AH84: 1 | AI84: FALSE | AJ84: FALSE | AK84: FALSE | AL84: 0 | AM84: TRUE | AN84: TRUE | AO84: FALSE | AP84: FALSE | AQ84: FALSE | AR84: FALSE | AS84: 3 | AT84: 0 | AU84: 2 | AV84: 1 | AW84: 1 | AX84: FALSE | AY84: FALSE | AZ84: FALSE | BA84: FALSE | BB84: FALSE | BC84: FALSE | BD84: FALSE | BE84: 89 | BF84: 89 | BG84: FALSE | BI84: FALSE | BN84: FALSE | BP84: FALSE
A85: 53 | B85: =OFFSET(InputPriceData!B$15,CalculationsAndCharts!$A85+$A$11,0,1,1) -> 2013-03-04 | C85: =OFFSET(InputPriceData!G$15,CalculationsAndCharts!$A85+$A$11,IF($C$7,8,0),1,1) -> 99010200 | D85: =OFFSET(InputPriceData!C$15,CalculationsAndCharts!$A85+$A$11,IF($C$7,8,0),1,1) -> 151.76 | E85: =OFFSET(InputPriceData!D$15,CalculationsAndCharts!$A85+$A$11,IF($C$7,8,0),1,1) -> 152.92 | F85: =OFFSET(InputPriceData!E$15,CalculationsAndCharts!$A85+$A$11,IF($C$7,8,0),1,1) -> 151.52 | G85: =OFFSET(InputPriceData!F$15,CalculationsAndCharts!$A85+$A$11,IF($C$7,8,0),1,1) -> 152.92 | L85: 13712.39 | M85: 3188.56 | N85: 523.83 | O85: 3712.39 | P85: 72.09 | Q85: 0 | R85: 72.09 | S85: 92.08791209 | T85: 76.55677656 | U85: 76.55677656 | V85: 1.4 | W85: 1.457649198 | X85: 89 | Y85: 0.6 | Z85: 0.3371428571 | AA85: -0.03494505495 | AB85: 13.17005549 | AC85: 4.822775428 | AD85: -3.330225946 | AE85: FALSE | AF85: FALSE | AG85: FALSE | AH85: 0 | AI85: FALSE | AJ85: FALSE | AK85: FALSE | AL85: 0 | AM85: TRUE | AN85: TRUE | AO85: FALSE | AP85: FALSE | AQ85: FALSE | AR85: TRUE | AS85: 2 | AT85: 1 | AU85: 2 | AV85: 1 | AW85: 1 | AX85: FALSE | AY85: FALSE | AZ85: FALSE | BA85: FALSE | BB85: FALSE | BC85: FALSE | BD85: FALSE | BE85: 89 | BF85: 89 | BG85: FALSE | BI85: FALSE | BN85: FALSE | BP85: FALSE
A86: 54 | B86: =OFFSET(InputPriceData!B$15,CalculationsAndCharts!$A86+$A$11,0,1,1) -> 2013-03-01 | C86: =OFFSET(InputPriceData!G$15,CalculationsAndCharts!$A86+$A$11,IF($C$7,8,0),1,1) -> 170634800 | D86: =OFFSET(InputPriceData!C$15,CalculationsAndCharts!$A86+$A$11,IF($C$7,8,0),1,1) -> 151.09 | E86: =OFFSET(InputPriceData!D$15,CalculationsAndCharts!$A86+$A$11,IF($C$7,8,0),1,1) -> 152.34 | F86: =OFFSET(InputPriceData!E$15,CalculationsAndCharts!$A86+$A$11,IF($C$7,8,0),1,1) -> 150.41 | G86: =OFFSET(InputPriceData!F$15,CalculationsAndCharts!$A86+$A$11,IF($C$7,8,0),1,1) -> 152.11 | L86: 13640.3 | M86: 3116.47 | N86: 523.83 | O86: 3640.3 | P86: 44.5 | Q86: 0 | R86: 44.5 | S86: 74.28571429 | T86: 69.15750916 | U86: 69.15750916 | V86: 1.93 | W86: 1.460683366 | X86: 89 | Y86: 0.781 | Z86: 0.1478571429 | AA86: -0.09835164835 | AB86: 11.34112098 | AC86: -0.6665666537 | AD86: -4.913404353 | AE86: FALSE | AF86: TRUE | AG86: FALSE | AH86: 1 | AI86: FALSE | AJ86: FALSE | AK86: FALSE | AL86: 0 | AM86: TRUE | AN86: FALSE | AO86: FALSE | AP86: FALSE | AQ86: FALSE | AR86: TRUE | AS86: 2 | AT86: 1 | AU86: 1 | AV86: 2 | AW86: 1 | AX86: FALSE | AY86: FALSE | AZ86: FALSE | BA86: FALSE | BB86: FALSE | BC86: FALSE | BD86: FALSE | BE86: 89 | BF86: 89 | BG86: FALSE | BI86: FALSE | BN86: FALSE | BP86: FALSE
A87: 55 | B87: =OFFSET(InputPriceData!B$15,CalculationsAndCharts!$A87+$A$11,0,1,1) -> 2013-02-28 | C87: =OFFSET(InputPriceData!G$15,CalculationsAndCharts!$A87+$A$11,IF($C$7,8,0),1,1) -> 126866000 | D87: =OFFSET(InputPriceData!C$15,CalculationsAndCharts!$A87+$A$11,IF($C$7,8,0),1,1) -> 151.9 | E87: =OFFSET(InputPriceData!D$15,CalculationsAndCharts!$A87+$A$11,IF($C$7,8,0),1,1) -> 152.87 | F87: =OFFSET(InputPriceData!E$15,CalculationsAndCharts!$A87+$A$11,IF($C$7,8,0),1,1) -> 151.41 | G87: =OFFSET(InputPriceData!F$15,CalculationsAndCharts!$A87+$A$11,IF($C$7,8,0),1,1) -> 151.61 | L87: 13595.8 | M87: 3071.97 | N87: 523.83 | O87: 3595.8 | P87: -25.81 | Q87: 0 | R87: -25.81 | S87: 63.2967033 | T87: 53.84615385 | U87: 53.84615385 | V87: 1.46 | W87: 1.435982491 | X87: 89 | Y87: 0.235 | Z87: -0.1514285714 | AA87: -0.1273076923 | AB87: 3.683215537 | AC87: -6.683081079 | AD87: -5.953785677 | AE87: FALSE | AF87: FALSE | AG87: FALSE | AH87: 0 | AI87: FALSE | AJ87: FALSE | AK87: FALSE | AL87: 0 | AM87: TRUE | AN87: FALSE | AO87: FALSE | AP87: FALSE | AQ87: TRUE | AR87: TRUE | AS87: 1 | AT87: 2 | AU87: 1 | AV87: 2 | AW87: 1 | AX87: FALSE | AY87: FALSE | AZ87: FALSE | BA87: FALSE | BB87: FALSE | BC87: FALSE | BD87: FALSE | BE87: 89 | BF87: 89 | BG87: TRUE | BH87: 151.9 | BI87: FALSE | BK87: 151.9 | BN87: FALSE | BP87: FALSE
A88: 56 | B88: =OFFSET(InputPriceData!B$15,CalculationsAndCharts!$A88+$A$11,0,1,1) -> 2013-02-27 | C88: =OFFSET(InputPriceData!G$15,CalculationsAndCharts!$A88+$A$11,IF($C$7,8,0),1,1) -> 150781900 | D88: =OFFSET(InputPriceData!C$15,CalculationsAndCharts!$A88+$A$11,IF($C$7,8,0),1,1) -> 149.89 | E88: =OFFSET(InputPriceData!D$15,CalculationsAndCharts!$A88+$A$11,IF($C$7,8,0),1,1) -> 152.33 | F88: =OFFSET(InputPriceData!E$15,CalculationsAndCharts!$A88+$A$11,IF($C$7,8,0),1,1) -> 149.76 | G88: =OFFSET(InputPriceData!F$15,CalculationsAndCharts!$A88+$A$11,IF($C$7,8,0),1,1) -> 151.91 | L88: 13621.61 | M88: 3097.78 | N88: 523.83 | O88: 3621.61 | P88: 0 | Q88: 0 | R88: 0 | S88: 69.89010989 | T88: 32.74725275 | U88: 32.74725275 | V88: 2.57 | W88: 1.434718412 | X88: 89 | Y88: 0.111 | Z88: -0.275 | AA88: -0.1398901099 | AB88: -5.078593921 | AC88: -10.15891163 | AD88: -6.212750269 | AE88: TRUE | AF88: FALSE | AG88: FALSE | AH88: 1 | AI88: FALSE | AJ88: FALSE | AK88: FALSE | AL88: 0 | AM88: FALSE | AN88: FALSE | AO88: FALSE | AP88: FALSE | AQ88: TRUE | AR88: TRUE | AS88: 1 | AT88: 2 | AU88: 0 | AV88: 3 | AW88: 0 | AX88: FALSE | AY88: FALSE | AZ88: FALSE | BA88: FALSE | BB88: FALSE | BC88: TRUE | BD88: FALSE | BE88: 89 | BF88: 89 | BG88: FALSE | BI88: FALSE | BN88: FALSE | BP88: FALSE
A89: 57 | B89: =OFFSET(InputPriceData!B$15,CalculationsAndCharts!$A89+$A$11,0,1,1) -> 2013-02-26 | C89: =OFFSET(InputPriceData!G$15,CalculationsAndCharts!$A89+$A$11,IF($C$7,8,0),1,1) -> 186596200 | D89: =OFFSET(InputPriceData!C$15,CalculationsAndCharts!$A89+$A$11,IF($C$7,8,0),1,1) -> 149.72 | E89: =OFFSET(InputPriceData!D$15,CalculationsAndCharts!$A89+$A$11,IF($C$7,8,0),1,1) -> 150.2 | F89: =OFFSET(InputPriceData!E$15,CalculationsAndCharts!$A89+$A$11,IF($C$7,8,0),1,1) -> 148.73 | G89: =OFFSET(InputPriceData!F$15,CalculationsAndCharts!$A89+$A$11,IF($C$7,8,0),1,1) -> 150.02 | L89: 13621.61 | M89: 3097.78 | N89: 523.83 | O89: 3621.61 | P89: 0 | Q89: 0 | R89: 0 | S89: 28.35164835 | T89: 28.91162729 | U89: 28.91162729 | V89: 1.47 | W89: 1.374966749 | X89: 90 | Y89: -0.406 | Z89: -0.4338095238 | AA89: -0.1352747253 | AB89: -12.12978148 | AC89: -10.76045626 | AD89: -5.342040919 | AE89: FALSE | AF89: FALSE | AG89: FALSE | AH89: 0 | AI89: FALSE | AJ89: FALSE | AK89: FALSE | AL89: 0 | AM89: FALSE | AN89: FALSE | AO89: FALSE | AP89: TRUE | AQ89: TRUE | AR89: TRUE | AS89: 0 | AT89: 3 | AU89: 0 | AV89: 3 | AW89: 0 | AX89: TRUE | AY89: FALSE | AZ89: FALSE | BA89: FALSE | BB89: FALSE | BC89: FALSE | BD89: FALSE | BE89: 90 | BF89: 89 | BG89: FALSE | BI89: TRUE | BJ89: 149.72 | BL89: 149.72 | BN89: FALSE | BP89: FALSE
A90: 58 | B90: =OFFSET(InputPriceData!B$15,CalculationsAndCharts!$A90+$A$11,0,1,1) -> 2013-02-25 | C90: =OFFSET(InputPriceData!G$15,CalculationsAndCharts!$A90+$A$11,IF($C$7,8,0),1,1) -> 245824800 | D90: =OFFSET(InputPriceData!C$15,CalculationsAndCharts!$A90+$A$11,IF($C$7,8,0),1,1) -> 152.63 | E90: =OFFSET(InputPriceData!D$15,CalculationsAndCharts!$A90+$A$11,IF($C$7,8,0),1,1) -> 152.86 | F90: =OFFSET(InputPriceData!E$15,CalculationsAndCharts!$A90+$A$11,IF($C$7,8,0),1,1) -> 149 | G90: =OFFSET(InputPriceData!F$15,CalculationsAndCharts!$A90+$A$11,IF($C$7,8,0),1,1) -> 149 | L90: 13621.61 | M90: 3097.78 | N90: 523.83 | O90: 3621.61 | P90: 65.86 | Q90: 0 | R90: 65.86 | S90: 0 | T90: 24.91916751 | U90: 24.91916751 | V90: 3.86 | W90: 1.369964999 | X90: 91 | Y90: -0.795 | Z90: -0.3694047619 | AA90: -0.06978021978 | AB90: -16.86001053 | AC90: -9.755209524 | AD90: -3.723467419 | AE90: FALSE | AF90: FALSE | AG90: FALSE | AH90: 0 | AI90: FALSE | AJ90: FALSE | AK90: FALSE | AL90: 0 | AM90: FALSE | AN90: FALSE | AO90: FALSE | AP90: TRUE | AQ90: TRUE | AR90: TRUE | AS90: 0 | AT90: 3 | AU90: 0 | AV90: 3 | AW90: 1 | AX90: TRUE | AY90: TRUE | AZ90: FALSE | BA90: FALSE | BB90: FALSE | BC90: FALSE | BD90: FALSE | BE90: 91 | BF90: 89 | BG90: FALSE | BI90: FALSE | BN90: FALSE | BP90: FALSE
A91: 59 | B91: =OFFSET(InputPriceData!B$15,CalculationsAndCharts!$A91+$A$11,0,1,1) -> 2013-02-22 | C91: =OFFSET(InputPriceData!G$15,CalculationsAndCharts!$A91+$A$11,IF($C$7,8,0),1,1) -> 106356600 | D91: =OFFSET(InputPriceData!C$15,CalculationsAndCharts!$A91+$A$11,IF($C$7,8,0),1,1) -> 151.15 | E91: =OFFSET(InputPriceData!D$15,CalculationsAndCharts!$A91+$A$11,IF($C$7,8,0),1,1) -> 151.89 | F91: =OFFSET(InputPriceData!E$15,CalculationsAndCharts!$A91+$A$11,IF($C$7,8,0),1,1) -> 150.49 | G91: =OFFSET(InputPriceData!F$15,CalculationsAndCharts!$A91+$A$11,IF($C$7,8,0),1,1) -> 151.89 | L91: 13555.75 | M91: 3031.92 | N91: 523.83 | O91: 3555.75 | P91: 130.83 | Q91: 0 | R91: 130.83 | S91: 58.38323353 | T91: 39.34411878 | U91: 39.34411878 | V91: 1.47 | W91: 1.238910525 | X91: 89 | Y91: -0.327 | Z91: -0.1341666667 | AA91: 0.04483516484 | AB91: -13.26656188 | AC91: -7.163815102 | AD91: -1.807416251 | AE91: FALSE | AF91: FALSE | AG91: TRUE | AH91: 1 | AI91: FALSE | AJ91: FALSE | AK91: FALSE | AL91: 0 | AM91: FALSE | AN91: FALSE | AO91: FALSE | AP91: TRUE | AQ91: TRUE | AR91: FALSE | AS91: 1 | AT91: 2 | AU91: 0 | AV91: 3 | AW91: 1 | AX91: FALSE | AY91: FALSE | AZ91: FALSE | BA91: FALSE | BB91: FALSE | BC91: FALSE | BD91: FALSE | BE91: 89 | BF91: 89 | BG91: FALSE | BI91: FALSE | BN91: FALSE | BP91: FALSE
A92: 60 | B92: =OFFSET(InputPriceData!B$15,CalculationsAndCharts!$A92+$A$11,0,1,1) -> 2013-02-21 | C92: =OFFSET(InputPriceData!G$15,CalculationsAndCharts!$A92+$A$11,IF($C$7,8,0),1,1) -> 183257000 | D92: =OFFSET(InputPriceData!C$15,CalculationsAndCharts!$A92+$A$11,IF($C$7,8,0),1,1) -> 150.96 | E92: =OFFSET(InputPriceData!D$15,CalculationsAndCharts!$A92+$A$11,IF($C$7,8,0),1,1) -> 151.42 | F92: =OFFSET(InputPriceData!E$15,CalculationsAndCharts!$A92+$A$11,IF($C$7,8,0),1,1) -> 149.94 | G92: =OFFSET(InputPriceData!F$15,CalculationsAndCharts!$A92+$A$11,IF($C$7,8,0),1,1) -> 150.42 | L92: 13424.92 | M92: 2901.09 | N92: 523.83 | O92: 3424.92 | P92: -81.88 | Q92: 0 | R92: -81.88 | S92: 16.37426901 | T92: 52.92397661 | U92: 52.92397661 | V92: 1.48 | W92: 1.226747921 | X92: 89 | Y92: -0.451 | Z92: -0.1158333333 | AA92: 0.1093406593 | AB92: -8.232045958 | AC92: -4.064980631 | AD92: 0.007126953653 | AE92: FALSE | AF92: FALSE | AG92: FALSE | AH92: 0 | AI92: FALSE | AJ92: FALSE | AK92: FALSE | AL92: 0 | AM92: FALSE | AN92: FALSE | AO92: TRUE | AP92: TRUE | AQ92: TRUE | AR92: FALSE | AS92: 1 | AT92: 2 | AU92: 1 | AV92: 2 | AW92: 1 | AX92: FALSE | AY92: FALSE | AZ92: FALSE | BA92: FALSE | BB92: FALSE | BC92: FALSE | BD92: FALSE | BE92: 89 | BF92: 89 | BG92: FALSE | BI92: FALSE | BN92: FALSE | BP92: FALSE
A93: 61 | B93: =OFFSET(InputPriceData!B$15,CalculationsAndCharts!$A93+$A$11,0,1,1) -> 2013-02-20 | C93: =OFFSET(InputPriceData!G$15,CalculationsAndCharts!$A93+$A$11,IF($C$7,8,0),1,1) -> 160574800 | D93: =OFFSET(InputPriceData!C$15,CalculationsAndCharts!$A93+$A$11,IF($C$7,8,0),1,1) -> 153.14 | E93: =OFFSET(InputPriceData!D$15,CalculationsAndCharts!$A93+$A$11,IF($C$7,8,0),1,1) -> 153.19 | F93: =OFFSET(InputPriceData!E$15,CalculationsAndCharts!$A93+$A$11,IF($C$7,8,0),1,1) -> 151.26 | G93: =OFFSET(InputPriceData!F$15,CalculationsAndCharts!$A93+$A$11,IF($C$7,8,0),1,1) -> 151.34 | L93: 13506.8 | M93: 2982.97 | N93: 523.83 | O93: 3506.8 | P93: -169.99 | Q93: 0 | R93: -169.99 | S93: 43.2748538 | T93: 75.55813013 | U93: 75.55813013 | V93: 1.99 | W93: 1.213418864 | X93: 89 | Y93: -0.066 | Z93: 0.05464285714 | AA93: 0.1614285714 | AB93: -2.668694926 | AC93: -1.02966683 | AD93: 1.084596543 | AE93: FALSE | AF93: TRUE | AG93: FALSE | AH93: 1 | AI93: FALSE | AJ93: FALSE | AK93: FALSE | AL93: 0 | AM93: FALSE | AN93: FALSE | AO93: TRUE | AP93: TRUE | AQ93: FALSE | AR93: FALSE | AS93: 2 | AT93: 1 | AU93: 1 | AV93: 2 | AW93: 1 | AX93: FALSE | AY93: FALSE | AZ93: FALSE | BA93: FALSE | BB93: FALSE | BC93: FALSE | BD93: FALSE | BE93: 89 | BF93: 89 | BG93: FALSE | BI93: FALSE | BN93: FALSE | BP93: FALSE
A94: 62 | B94: =OFFSET(InputPriceData!B$15,CalculationsAndCharts!$A94+$A$11,0,1,1) -> 2013-02-19 | C94: =OFFSET(InputPriceData!G$15,CalculationsAndCharts!$A94+$A$11,IF($C$7,8,0),1,1) -> 95105400 | D94: =OFFSET(InputPriceData!C$15,CalculationsAndCharts!$A94+$A$11,IF($C$7,8,0),1,1) -> 152.37 | E94: =OFFSET(InputPriceData!D$15,CalculationsAndCharts!$A94+$A$11,IF($C$7,8,0),1,1) -> 153.28 | F94: =OFFSET(InputPriceData!E$15,CalculationsAndCharts!$A94+$A$11,IF($C$7,8,0),1,1) -> 152.16 | G94: =OFFSET(InputPriceData!F$15,CalculationsAndCharts!$A94+$A$11,IF($C$7,8,0),1,1) -> 153.25 | L94: 13676.79 | M94: 3152.96 | N94: 523.83 | O94: 3676.79 | P94: 78.32 | Q94: 0 | R94: 78.32 | S94: 99.12280702 | T94: 91.1122145 | U94: 91.1122145 | V94: 1.17 | W94: 1.172546173 | X94: 89 | Y94: 0.242 | Z94: 0.2294047619 | AA94: 0.2334065934 | AB94: -0.8912678998 | AC94: 0.728236779 | AD94: 1.440523955 | AE94: TRUE | AF94: FALSE | AG94: FALSE | AH94: 1 | AI94: FALSE | AJ94: FALSE | AK94: FALSE | AL94: 0 | AM94: FALSE | AN94: TRUE | AO94: TRUE | AP94: FALSE | AQ94: FALSE | AR94: FALSE | AS94: 3 | AT94: 0 | AU94: 2 | AV94: 1 | AW94: 1 | AX94: FALSE | AY94: FALSE | AZ94: FALSE | BA94: FALSE | BB94: FALSE | BC94: FALSE | BD94: FALSE | BE94: 89 | BF94: 89 | BG94: TRUE | BH94: 152.37 | BI94: FALSE | BK94: 152.37 | BN94: FALSE | BP94: FALSE
A95: 63 | B95: =OFFSET(InputPriceData!B$15,CalculationsAndCharts!$A95+$A$11,0,1,1) -> 2013-02-15 | C95: =OFFSET(InputPriceData!G$15,CalculationsAndCharts!$A95+$A$11,IF($C$7,8,0),1,1) -> 215226500 | D95: =OFFSET(InputPriceData!C$15,CalculationsAndCharts!$A95+$A$11,IF($C$7,8,0),1,1) -> 152.43 | E95: =OFFSET(InputPriceData!D$15,CalculationsAndCharts!$A95+$A$11,IF($C$7,8,0),1,1) -> 152.59 | F95: =OFFSET(InputPriceData!E$15,CalculationsAndCharts!$A95+$A$11,IF($C$7,8,0),1,1) -> 151.55 | G95: =OFFSET(InputPriceData!F$15,CalculationsAndCharts!$A95+$A$11,IF($C$7,8,0),1,1) -> 152.11 | L95: 13598.47 | M95: 3074.64 | N95: 523.83 | O95: 3598.47 | P95: 0 | Q95: 0 | R95: 0 | S95: 84.27672956 | T95: 86.58280922 | U95: 86.58280922 | V95: 1.04 | W95: 1.172680182 | X95: 89 | Y95: 0.095 | Z95: 0.1738095238 | AA95: 0.2107142857 | AB95: -0.9659087858 | AC95: 1.806429175 | AD95: 0.9379533602 | AE95: TRUE | AF95: FALSE | AG95: FALSE | AH95: 1 | AI95: FALSE | AJ95: FALSE | AK95: FALSE | AL95: 0 | AM95: FALSE | AN95: TRUE | AO95: TRUE | AP95: FALSE | AQ95: FALSE | AR95: FALSE | AS95: 3 | AT95: 0 | AU95: 2 | AV95: 1 | AW95: 0 | AX95: FALSE | AY95: FALSE | AZ95: FALSE | BA95: FALSE | BB95: FALSE | BC95: TRUE | BD95: FALSE | BE95: 89 | BF95: 90 | BG95: FALSE | BI95: TRUE | BJ95: 152.43 | BL95: 152.43 | BN95: FALSE | BP95: FALSE
A96: 64 | B96: =OFFSET(InputPriceData!B$15,CalculationsAndCharts!$A96+$A$11,0,1,1) -> 2013-02-14 | C96: =OFFSET(InputPriceData!G$15,CalculationsAndCharts!$A96+$A$11,IF($C$7,8,0),1,1) -> 80834300 | D96: =OFFSET(InputPriceData!C$15,CalculationsAndCharts!$A96+$A$11,IF($C$7,8,0),1,1) -> 151.69 | E96: =OFFSET(InputPriceData!D$15,CalculationsAndCharts!$A96+$A$11,IF($C$7,8,0),1,1) -> 152.47 | F96: =OFFSET(InputPriceData!E$15,CalculationsAndCharts!$A96+$A$11,IF($C$7,8,0),1,1) -> 151.52 | G96: =OFFSET(InputPriceData!F$15,CalculationsAndCharts!$A96+$A$11,IF($C$7,8,0),1,1) -> 152.29 | L96: 13598.47 | M96: 3074.64 | N96: 523.83 | O96: 3598.47 | P96: -41.4 | Q96: 0 | R96: -41.4 | S96: 89.93710692 | T96: 88.57186685 | U96: 88.57186685 | V96: 0.95 | W96: 1.17966335 | X96: 89 | Y96: 0.136 | Z96: 0.1997619048 | AA96: 0.1949450549 | AB96: 0.6009961653 | AC96: 2.680151965 | AD96: 0.3818164554 | AE96: FALSE | AF96: FALSE | AG96: FALSE | AH96: 0 | AI96: FALSE | AJ96: FALSE | AK96: FALSE | AL96: 0 | AM96: TRUE | AN96: TRUE | AO96: TRUE | AP96: FALSE | AQ96: FALSE | AR96: FALSE | AS96: 3 | AT96: 0 | AU96: 3 | AV96: 0 | AW96: 1 | AX96: TRUE | AY96: TRUE | AZ96: FALSE | BA96: FALSE | BB96: FALSE | BC96: FALSE | BD96: FALSE | BE96: 89 | BF96: 90 | BG96: FALSE | BI96: FALSE | BN96: FALSE | BP96: FALSE
A97: 65 | B97: =OFFSET(InputPriceData!B$15,CalculationsAndCharts!$A97+$A$11,0,1,1) -> 2013-02-13 | C97: =OFFSET(InputPriceData!G$15,CalculationsAndCharts!$A97+$A$11,IF($C$7,8,0),1,1) -> 82322600 | D97: =OFFSET(InputPriceData!C$15,CalculationsAndCharts!$A97+$A$11,IF($C$7,8,0),1,1) -> 152.33 | E97: =OFFSET(InputPriceData!D$15,CalculationsAndCharts!$A97+$A$11,IF($C$7,8,0),1,1) -> 152.61 | F97: =OFFSET(InputPriceData!E$15,CalculationsAndCharts!$A97+$A$11,IF($C$7,8,0),1,1) -> 151.72 | G97: =OFFSET(InputPriceData!F$15,CalculationsAndCharts!$A97+$A$11,IF($C$7,8,0),1,1) -> 152.15 | L97: =IF(A97=$A$8,IF($D$21,$D$25,$D$26),IF(A97<$A$8,L98,NA()))+R97 -> 13639.87 | M97: =IF(A97=$A$8,0,IF(A97<$A$8,M98,NA()))+P97 -> 3116.04 | N97: =IF(A97=$A$8,0,IF(A97<$A$8,N98,NA()))+Q97 -> 523.83 | O97: =O98+R97 -> 3639.87 | P97: =IF(AY97,AW98*BF98*(D97-G98)*$D$23,IF( AW97 <=0,0,IF(BC98,AW97*BF97*(G97-D97)*$D$23,AW97*BF97*(G97-G98)*$D$23))) -> 11.7 | Q97: =IF(AZ97,AW98*BF98*(D97-G98)*$D$23,IF( AW97 >=0,0,IF(BD98,AW97*BF97*(G97-D97)*$D$23, AW97*BF97*(G97-G98)*$D$23))) -> 0 | R97: =P97+Q97 -> 11.7 | S97: =(G97-MIN(OFFSET(F97,0,0,$A$21,1)))/(MAX(OFFSET(E97,0,0,$A$21,1))-MIN(OFFSET(F97,0,0,$A$21,1)))*100 -> 85.53459119 | T97: 90.17177858 | U97: =IF($A$20,S97,T97) -> 90.17177858 | V97: =MAX(E97-F97,IF(A97<$A$8,MAX(ABS(E97-G98),ABS(F97-G98)),0)) -> 0.89 | W97: =IF(A97<$W$31,(W98*($D$22-1)+V97)/$D$22,IF(A97=$W$31,AVERAGE(OFFSET(V97,0,0,$D$22,1)),NA())) -> 1.191750894 | X97: =INT(IF($D$20,IF($D$21,L97/(W97*$D$23),L97/G97),1)) -> 89 | Y97: =-SLOPE(OFFSET(G97,0,0,$A$22,1),OFFSET(A97,0,0,$A$22,1)) -> 0.26 | Z97: =-SLOPE(OFFSET(G97,0,0,$A$23,1),OFFSET(A97,0,0,$A$23,1)) -> 0.3070238095 | AA97: =-SLOPE(OFFSET(G97,0,0,$A$24,1),OFFSET(A97,0,0,$A$24,1)) -> 0.1837362637 | AB97: =-SLOPE(OFFSET(U97,0,0,$A$22,1),OFFSET(A97,0,0,$A$22,1)) -> 2.387862985 | AC97: =-SLOPE(OFFSET(U97,0,0,$A$23,1),OFFSET(A97,0,0,$A$23,1)) -> 3.513349079 | AD97: =-SLOPE(OFFSET(U97,0,0,$A$24,1),OFFSET(A97,0,0,$A$24,1)) -> -0.0486431906 | AE97: FALSE | AF97: FALSE | AG97: TRUE | AH97: 1 | AI97: FALSE | AJ97: FALSE | AK97: FALSE | AL97: 0 | AM97: TRUE | AN97: TRUE | AO97: FALSE | AP97: FALSE | AQ97: FALSE | AR97: FALSE | AS97: 3 | AT97: 0 | AU97: 2 | AV97: 1 | AW97: =AW98+IF(BD98,-1,0)+IF(BC98,1,0)+IF(AY98,-1,0)+IF(AZ98,1,0)+IF(BA98,1,0)+IF(BB98,-1,0) -> 1 | AX97: =OR(AND(AS97=$A$27,AU97=$A$27),AND(AT97=$A$27,AV97=$A$27)) -> FALSE | AY97: =AND(AX97,AW97>0) -> FALSE | AZ97: =AND(AX97,AW97<0) -> FALSE | BA97: =AND(AW97<0,AH97>=$A$25) -> FALSE | BB97: =AND(NOT($A$26),AW97>0,AL97>=$A$25) -> FALSE | BC97: =AND(AW97<=0,AH97>=$A$25) -> FALSE | BD97: =AND(NOT($A$26),AW97>=0,AL97>=$A$25) -> FALSE | BE97: =INT(IF(NOT($D$20),$D$24,IF($D$21,L97/(W97*$D$23),L97/G97))) -> 89 | BF97: =IF(AND(AW98=0,AW97<>0,OR(BC98,BD98)),BE98,BF98) -> 90 | BG97: FALSE | BH97: =IF(BC98,D97,NA()) ->  | BI97: =OR(AY98,BB97) -> FALSE | BJ97: =IF(AY98,D97,IF(BB97,G97,NA())) ->  | BK97: =IF(BC98,D97,NA()) ->  | BL97: =IF(AY98,D97,NA()) ->  | BM97: =IF(BB97,G97,NA()) ->  | BN97: FALSE | BO97: =IF(BD98,D97,NA()) ->  | BP97: =OR(AZ98,BA97) -> FALSE | BQ97: =IF(AZ98,D97,IF(BA97,G97,NA())) ->  | BR97: =IF(BD98,D97,NA()) ->  | BS97: =IF(AZ98,D97,NA()) ->  | BT97: =IF(BA97,G97,NA()) -> 
A98: 66 | B98: =OFFSET(InputPriceData!B$15,CalculationsAndCharts!$A98+$A$11,0,1,1) -> 2013-02-12 | C98: =OFFSET(InputPriceData!G$15,CalculationsAndCharts!$A98+$A$11,IF($C$7,8,0),1,1) -> 65392700 | D98: =OFFSET(InputPriceData!C$15,CalculationsAndCharts!$A98+$A$11,IF($C$7,8,0),1,1) -> 151.78 | E98: =OFFSET(InputPriceData!D$15,CalculationsAndCharts!$A98+$A$11,IF($C$7,8,0),1,1) -> 152.3 | F98: =OFFSET(InputPriceData!E$15,CalculationsAndCharts!$A98+$A$11,IF($C$7,8,0),1,1) -> 151.61 | G98: =OFFSET(InputPriceData!F$15,CalculationsAndCharts!$A98+$A$11,IF($C$7,8,0),1,1) -> 152.02 | L98: 13628.17 | M98: 3104.34 | N98: 523.83 | O98: 3628.17 | P98: 22.5 | Q98: 0 | R98: 22.5 | S98: 90.24390244 | T98: =AVERAGE(S98:S100) -> 93.77406932 | U98: 93.77406932 | V98: 0.69 | W98: 1.20763252 | X98: 89 | Y98: 0.253 | Z98: 0.2221428571 | AA98: 0.1597802198 | AB98: 5.037602833 | AC98: 2.758051971 | AD98: -0.5536088527 | AE98: =AND(Y98>0,AB98<0) -> FALSE | AF98: =AND(Z98>0,AC98<0) -> FALSE | AG98: =AND(AA98>0,AD98<0) -> TRUE | AH98: =COUNTIF(AE98:AG98,TRUE) -> 1 | AI98: =AND(Y98<0,AB98>0) -> FALSE | AJ98: =AND(Z98<0,AC98>0) -> FALSE | AK98: =AND(AA98<0,AD98>0) -> FALSE | AL98: =COUNTIF(AI98:AK98,TRUE) -> 0 | AM98: =AND(Y98>0,AB98>0) -> TRUE | AN98: =AND(Z98>0,AC98>0) -> TRUE | AO98: =AND(AA98>0,AD98>0) -> FALSE | AP98: =AND(Y98<0,AB98<0) -> FALSE | AQ98: =AND(Z98<0,AC98<0) -> FALSE | AR98: =AND(AA98<0,AD98<0) -> FALSE | AS98: =COUNTIF(Y98:AA98,">=0") -> 3 | AT98: =COUNTIF(Y98:AA98,"<0") -> 0 | AU98: =COUNTIF(AB98:AD98,">=0") -> 2 | AV98: =COUNTIF(AB98:AD98,"<0") -> 1 | AW98: 1 | AX98: FALSE | AY98: FALSE | AZ98: FALSE | BA98: FALSE | BB98: FALSE | BC98: FALSE | BD98: FALSE | BE98: 89 | BF98: 90 | BG98: =BC99 -> FALSE | BI98: FALSE | BN98: =BD99 -> FALSE | BP98: FALSE
A99: 67 | B99: =OFFSET(InputPriceData!B$15,CalculationsAndCharts!$A99+$A$11,0,1,1) -> 2013-02-11 | C99: =OFFSET(InputPriceData!G$15,CalculationsAndCharts!$A99+$A$11,IF($C$7,8,0),1,1) -> 73775000 | D99: =OFFSET(InputPriceData!C$15,CalculationsAndCharts!$A99+$A$11,IF($C$7,8,0),1,1) -> 151.74 | E99: =OFFSET(InputPriceData!D$15,CalculationsAndCharts!$A99+$A$11,IF($C$7,8,0),1,1) -> 151.9 | F99: =OFFSET(InputPriceData!E$15,CalculationsAndCharts!$A99+$A$11,IF($C$7,8,0),1,1) -> 151.39 | G99: =OFFSET(InputPriceData!F$15,CalculationsAndCharts!$A99+$A$11,IF($C$7,8,0),1,1) -> 151.77 | L99: 13605.67 | M99: 3081.84 | N99: 523.83 | O99: 3605.67 | P99: -2.7 | Q99: 0 | R99: -2.7 | S99: 94.73684211 | T99: 88.81125192 | U99: 88.81125192 | V99: 0.51 | W99: 1.234876337 | X99: 89 | Y99: 0.208 | Z99: 0.2578571429 | AA99: 0.1580769231 | AB99: 4.225903705 | AC99: 1.384056496 | AD99: -1.181353475 | AE99: FALSE | AF99: FALSE | AG99: TRUE | AH99: 1 | AI99: FALSE | AJ99: FALSE | AK99: FALSE | AL99: 0 | AM99: TRUE | AN99: TRUE | AO99: FALSE | AP99: FALSE | AQ99: FALSE | AR99: FALSE | AS99: 3 | AT99: 0 | AU99: 2 | AV99: 1 | AW99: 1 | AX99: FALSE | AY99: FALSE | AZ99: FALSE | BA99: FALSE | BB99: FALSE | BC99: FALSE | BD99: FALSE | BE99: 89 | BF99: 90 | BG99: FALSE | BI99: FALSE | BN99: FALSE | BP99: FALSE
A100: 68 | B100: =OFFSET(InputPriceData!B$15,CalculationsAndCharts!$A100+$A$11,0,1,1) -> 2013-02-08 | C100: =OFFSET(InputPriceData!G$15,CalculationsAndCharts!$A100+$A$11,IF($C$7,8,0),1,1) -> 103133700 | D100: =OFFSET(InputPriceData!C$15,CalculationsAndCharts!$A100+$A$11,IF($C$7,8,0),1,1) -> 151.22 | E100: =OFFSET(InputPriceData!D$15,CalculationsAndCharts!$A100+$A$11,IF($C$7,8,0),1,1) -> 151.89 | F100: =OFFSET(InputPriceData!E$15,CalculationsAndCharts!$A100+$A$11,IF($C$7,8,0),1,1) -> 151.22 | G100: =OFFSET(InputPriceData!F$15,CalculationsAndCharts!$A100+$A$11,IF($C$7,8,0),1,1) -> 151.8 | L100: 13608.37 | M100: 3084.54 | N100: 523.83 | O100: 3608.37 | P100: 75.6 | Q100: 0 | R100: 75.6 | S100: 96.34146341 | T100: 86.24714935 | U100: 86.24714935 | V100: 0.93 | W100: 1.273027723 | X100: 89 | Y100: 0.443 | Z100: 0.2342857143 | AA100: 0.152967033 | AB100: 4.093518665 | AC100: -0.4954804589 | AD100: -1.764523843 | AE100: FALSE | AF100: TRUE | AG100: TRUE | AH100: 2 | AI100: FALSE | AJ100: FALSE | AK100: FALSE | AL100: 0 | AM100: TRUE | AN100: FALSE | AO100: FALSE | AP100: FALSE | AQ100: FALSE | AR100: FALSE | AS100: 3 | AT100: 0 | AU100: 1 | AV100: 2 | AW100: 1 | AX100: FALSE | AY100: FALSE | AZ100: FALSE | BA100: FALSE | BB100: FALSE | BC100: FALSE | BD100: FALSE | BE100: 89 | BF100: 90 | BG100: FALSE | BI100: FALSE | BN100: FALSE | BP100: FALSE
A101: 69 | B101: =OFFSET(InputPriceData!B$15,CalculationsAndCharts!$A101+$A$11,0,1,1) -> 2013-02-07 | C101: =OFFSET(InputPriceData!G$15,CalculationsAndCharts!$A101+$A$11,IF($C$7,8,0),1,1) -> 162490000 | D101: =OFFSET(InputPriceData!C$15,CalculationsAndCharts!$A101+$A$11,IF($C$7,8,0),1,1) -> 151.21 | E101: =OFFSET(InputPriceData!D$15,CalculationsAndCharts!$A101+$A$11,IF($C$7,8,0),1,1) -> 151.35 | F101: =OFFSET(InputPriceData!E$15,CalculationsAndCharts!$A101+$A$11,IF($C$7,8,0),1,1) -> 149.86 | G101: =OFFSET(InputPriceData!F$15,CalculationsAndCharts!$A101+$A$11,IF($C$7,8,0),1,1) -> 150.96 | L101: 13532.77 | M101: 3008.94 | N101: 523.83 | O101: 3532.77 | P101: -18 | Q101: 0 | R101: -18 | S101: 75.35545024 | T101: 81.99592364 | U101: 81.99592364 | V101: 1.49 | W101: 1.291081814 | X101: 89 | Y101: 0.106 | Z101: 0.1178571429 | AA101: 0.1414285714 | AB101: 0.4826496295 | AC101: -2.633870561 | AD101: -2.104956705 | AE101: FALSE | AF101: TRUE | AG101: TRUE | AH101: 2 | AI101: FALSE | AJ101: FALSE | AK101: FALSE | AL101: 0 | AM101: TRUE | AN101: FALSE | AO101: FALSE | AP101: FALSE | AQ101: FALSE | AR101: FALSE | AS101: 3 | AT101: 0 | AU101: 1 | AV101: 2 | AW101: 1 | AX101: FALSE | AY101: FALSE | AZ101: FALSE | BA101: FALSE | BB101: FALSE | BC101: FALSE | BD101: FALSE | BE101: 89 | BF101: 90 | BG101: FALSE | BI101: FALSE | BN101: FALSE | BP101: FALSE
A102: 70 | B102: =OFFSET(InputPriceData!B$15,CalculationsAndCharts!$A102+$A$11,0,1,1) -> 2013-02-06 | C102: =OFFSET(InputPriceData!G$15,CalculationsAndCharts!$A102+$A$11,IF($C$7,8,0),1,1) -> 138762800 | D102: =OFFSET(InputPriceData!C$15,CalculationsAndCharts!$A102+$A$11,IF($C$7,8,0),1,1) -> 150.52 | E102: =OFFSET(InputPriceData!D$15,CalculationsAndCharts!$A102+$A$11,IF($C$7,8,0),1,1) -> 151.26 | F102: =OFFSET(InputPriceData!E$15,CalculationsAndCharts!$A102+$A$11,IF($C$7,8,0),1,1) -> 150.41 | G102: =OFFSET(InputPriceData!F$15,CalculationsAndCharts!$A102+$A$11,IF($C$7,8,0),1,1) -> 151.16 | L102: 13550.77 | M102: 3026.94 | N102: 523.83 | O102: 3550.77 | P102: 9.9 | Q102: 0 | R102: 9.9 | S102: 87.04453441 | T102: 71.99371929 | U102: 71.99371929 | V102: 0.85 | W102: 1.280612436 | X102: 89 | Y102: 0.273 | Z102: 0.113452381 | AA102: 0.1739010989 | AB102: -2.41662824 | AC102: -3.698938551 | AD102: -2.127135749 | AE102: TRUE | AF102: TRUE | AG102: TRUE | AH102: 3 | AI102: FALSE | AJ102: FALSE | AK102: FALSE | AL102: 0 | AM102: FALSE | AN102: FALSE | AO102: FALSE | AP102: FALSE | AQ102: FALSE | AR102: FALSE | AS102: 3 | AT102: 0 | AU102: 0 | AV102: 3 | AW102: 1 | AX102: FALSE | AY102: FALSE | AZ102: FALSE | BA102: FALSE | BB102: FALSE | BC102: FALSE | BD102: FALSE | BE102: 89 | BF102: 90 | BG102: FALSE | BI102: FALSE | BN102: FALSE | BP102: FALSE
A103: 71 | B103: =OFFSET(InputPriceData!B$15,CalculationsAndCharts!$A103+$A$11,0,1,1) -> 2013-02-05 | C103: =OFFSET(InputPriceData!G$15,CalculationsAndCharts!$A103+$A$11,IF($C$7,8,0),1,1) -> 113912400 | D103: =OFFSET(InputPriceData!C$15,CalculationsAndCharts!$A103+$A$11,IF($C$7,8,0),1,1) -> 150.35 | E103: =OFFSET(InputPriceData!D$15,CalculationsAndCharts!$A103+$A$11,IF($C$7,8,0),1,1) -> 151.48 | F103: =OFFSET(InputPriceData!E$15,CalculationsAndCharts!$A103+$A$11,IF($C$7,8,0),1,1) -> 150.29 | G103: =OFFSET(InputPriceData!F$15,CalculationsAndCharts!$A103+$A$11,IF($C$7,8,0),1,1) -> 151.05 | L103: 13540.87 | M103: 3017.04 | N103: 523.83 | O103: 3540.87 | P103: 135.9 | Q103: 0 | R103: 135.9 | S103: 83.58778626 | T103: 74.80844842 | U103: 74.80844842 | V103: 1.94 | W103: 1.303276248 | X103: 89 | Y103: 0.18 | Z103: 0.05142857143 | AA103: 0.1951098901 | AB103: -4.172858354 | AC103: -3.533893372 | AD103: -1.702773851 | AE103: TRUE | AF103: TRUE | AG103: TRUE | AH103: 3 | AI103: FALSE | AJ103: FALSE | AK103: FALSE | AL103: 0 | AM103: FALSE | AN103: FALSE | AO103: FALSE | AP103: FALSE | AQ103: FALSE | AR103: FALSE | AS103: 3 | AT103: 0 | AU103: 0 | AV103: 3 | AW103: 1 | AX103: FALSE | AY103: FALSE | AZ103: FALSE | BA103: FALSE | BB103: FALSE | BC103: FALSE | BD103: FALSE | BE103: 89 | BF103: 90 | BG103: FALSE | BI103: FALSE | BN103: FALSE | BP103: FALSE
A104: 72 | B104: =OFFSET(InputPriceData!B$15,CalculationsAndCharts!$A104+$A$11,0,1,1) -> 2013-02-04 | C104: =OFFSET(InputPriceData!G$15,CalculationsAndCharts!$A104+$A$11,IF($C$7,8,0),1,1) -> 159073600 | D104: =OFFSET(InputPriceData!C$15,CalculationsAndCharts!$A104+$A$11,IF($C$7,8,0),1,1) -> 150.32 | E104: =OFFSET(InputPriceData!D$15,CalculationsAndCharts!$A104+$A$11,IF($C$7,8,0),1,1) -> 151.27 | F104: =OFFSET(InputPriceData!E$15,CalculationsAndCharts!$A104+$A$11,IF($C$7,8,0),1,1) -> 149.43 | G104: =OFFSET(InputPriceData!F$15,CalculationsAndCharts!$A104+$A$11,IF($C$7,8,0),1,1) -> 149.54 | L104: 13404.97 | M104: 2881.14 | N104: 523.83 | O104: 3404.97 | P104: -153 | Q104: 0 | R104: -153 | S104: 45.34883721 | T104: 69.37329364 | U104: 69.37329364 | V104: 1.84 | W104: 1.269764472 | X104: 89 | Y104: -0.107 | Z104: 0.04952380952 | AA104: 0.2345054945 | AB104: -6.32816438 | AC104: -3.169275747 | AD104: -1.391981357 | AE104: FALSE | AF104: TRUE | AG104: TRUE | AH104: 2 | AI104: FALSE | AJ104: FALSE | AK104: FALSE | AL104: 0 | AM104: FALSE | AN104: FALSE | AO104: FALSE | AP104: TRUE | AQ104: FALSE | AR104: FALSE | AS104: 2 | AT104: 1 | AU104: 0 | AV104: 3 | AW104: 1 | AX104: FALSE | AY104: FALSE | AZ104: FALSE | BA104: FALSE | BB104: FALSE | BC104: FALSE | BD104: FALSE | BE104: 89 | BF104: 90 | BG104: FALSE | BI104: FALSE | BN104: FALSE | BP104: FALSE
A105: 73 | B105: =OFFSET(InputPriceData!B$15,CalculationsAndCharts!$A105+$A$11,0,1,1) -> 2013-02-01 | C105: =OFFSET(InputPriceData!G$15,CalculationsAndCharts!$A105+$A$11,IF($C$7,8,0),1,1) -> 131173000 | D105: =OFFSET(InputPriceData!C$15,CalculationsAndCharts!$A105+$A$11,IF($C$7,8,0),1,1) -> 150.65 | E105: =OFFSET(InputPriceData!D$15,CalculationsAndCharts!$A105+$A$11,IF($C$7,8,0),1,1) -> 151.42 | F105: =OFFSET(InputPriceData!E$15,CalculationsAndCharts!$A105+$A$11,IF($C$7,8,0),1,1) -> 150.39 | G105: =OFFSET(InputPriceData!F$15,CalculationsAndCharts!$A105+$A$11,IF($C$7,8,0),1,1) -> 151.24 | L105: 13557.97 | M105: 3034.14 | N105: 523.83 | O105: 3557.97 | P105: 138.6 | Q105: 0 | R105: 138.6 | S105: 95.4887218 | T105: 80.89288832 | U105: 80.89288832 | V105: 1.72 | W105: 1.239752076 | X105: 89 | Y105: 0.138 | Z105: 0.1736904762 | AA105: 0.3093406593 | AB105: -3.785151267 | AC105: -2.1478422 | AD105: -0.8650534693 | AE105: TRUE | AF105: TRUE | AG105: TRUE | AH105: 3 | AI105: FALSE | AJ105: FALSE | AK105: FALSE | AL105: 0 | AM105: FALSE | AN105: FALSE | AO105: FALSE | AP105: FALSE | AQ105: FALSE | AR105: FALSE | AS105: 3 | AT105: 0 | AU105: 0 | AV105: 3 | AW105: 1 | AX105: FALSE | AY105: FALSE | AZ105: FALSE | BA105: FALSE | BB105: FALSE | BC105: FALSE | BD105: FALSE | BE105: 89 | BF105: 90 | BG105: FALSE | BI105: FALSE | BN105: FALSE | BP105: FALSE
A106: 74 | B106: =OFFSET(InputPriceData!B$15,CalculationsAndCharts!$A106+$A$11,0,1,1) -> 2013-01-31 | C106: =OFFSET(InputPriceData!G$15,CalculationsAndCharts!$A106+$A$11,IF($C$7,8,0),1,1) -> 108975800 | D106: =OFFSET(InputPriceData!C$15,CalculationsAndCharts!$A106+$A$11,IF($C$7,8,0),1,1) -> 149.89 | E106: =OFFSET(InputPriceData!D$15,CalculationsAndCharts!$A106+$A$11,IF($C$7,8,0),1,1) -> 150.38 | F106: =OFFSET(InputPriceData!E$15,CalculationsAndCharts!$A106+$A$11,IF($C$7,8,0),1,1) -> 149.6 | G106: =OFFSET(InputPriceData!F$15,CalculationsAndCharts!$A106+$A$11,IF($C$7,8,0),1,1) -> 149.7 | L106: 13419.37 | M106: 2895.54 | N106: 523.83 | O106: 3419.37 | P106: -33.3 | Q106: 0 | R106: -33.3 | S106: 67.2823219 | T106: 81.03464055 | U106: 81.03464055 | V106: 0.78 | W106: 1.214475869 | X106: 89 | Y106: -0.11 | Z106: 0.1316666667 | AA106: 0.3085164835 | AB106: -2.623894002 | AC106: -1.448755447 | AD106: -0.6900841039 | AE106: FALSE | AF106: TRUE | AG106: TRUE | AH106: 2 | AI106: FALSE | AJ106: FALSE | AK106: FALSE | AL106: 0 | AM106: FALSE | AN106: FALSE | AO106: FALSE | AP106: TRUE | AQ106: FALSE | AR106: FALSE | AS106: 2 | AT106: 1 | AU106: 0 | AV106: 3 | AW106: 1 | AX106: FALSE | AY106: FALSE | AZ106: FALSE | BA106: FALSE | BB106: FALSE | BC106: FALSE | BD106: FALSE | BE106: 89 | BF106: 90 | BG106: FALSE | BI106: FALSE | BN106: FALSE | BP106: FALSE
A107: 75 | B107: =OFFSET(InputPriceData!B$15,CalculationsAndCharts!$A107+$A$11,0,1,1) -> 2013-01-30 | C107: =OFFSET(InputPriceData!G$15,CalculationsAndCharts!$A107+$A$11,IF($C$7,8,0),1,1) -> 137447700 | D107: =OFFSET(InputPriceData!C$15,CalculationsAndCharts!$A107+$A$11,IF($C$7,8,0),1,1) -> 150.64 | E107: =OFFSET(InputPriceData!D$15,CalculationsAndCharts!$A107+$A$11,IF($C$7,8,0),1,1) -> 150.94 | F107: =OFFSET(InputPriceData!E$15,CalculationsAndCharts!$A107+$A$11,IF($C$7,8,0),1,1) -> 149.93 | G107: =OFFSET(InputPriceData!F$15,CalculationsAndCharts!$A107+$A$11,IF($C$7,8,0),1,1) -> 150.07 | L107: 13452.67 | M107: 2928.84 | N107: 523.83 | O107: 3452.67 | P107: -53.1 | Q107: 0 | R107: -53.1 | S107: 79.90762125 | T107: 89.84206674 | U107: 89.84206674 | V107: 1.01 | W107: 1.23734302 | X107: 89 | Y107: 0.173 | Z107: 0.2710714286 | AA107: 0.3401648352 | AB107: -0.2902469338 | AC107: -0.1652244621 | AD107: -0.3408272619 | AE107: TRUE | AF107: TRUE | AG107: TRUE | AH107: 3 | AI107: FALSE | AJ107: FALSE | AK107: FALSE | AL107: 0 | AM107: FALSE | AN107: FALSE | AO107: FALSE | AP107: FALSE | AQ107: FALSE | AR107: FALSE | AS107: 3 | AT107: 0 | AU107: 0 | AV107: 3 | AW107: 1 | AX107: FALSE | AY107: FALSE | AZ107: FALSE | BA107: FALSE | BB107: FALSE | BC107: FALSE | BD107: FALSE | BE107: 89 | BF107: 90 | BG107: FALSE | BI107: FALSE | BN107: FALSE | BP107: FALSE
A108: 76 | B108: =OFFSET(InputPriceData!B$15,CalculationsAndCharts!$A108+$A$11,0,1,1) -> 2013-01-29 | C108: =OFFSET(InputPriceData!G$15,CalculationsAndCharts!$A108+$A$11,IF($C$7,8,0),1,1) -> 105694400 | D108: =OFFSET(InputPriceData!C$15,CalculationsAndCharts!$A108+$A$11,IF($C$7,8,0),1,1) -> 149.77 | E108: =OFFSET(InputPriceData!D$15,CalculationsAndCharts!$A108+$A$11,IF($C$7,8,0),1,1) -> 150.85 | F108: =OFFSET(InputPriceData!E$15,CalculationsAndCharts!$A108+$A$11,IF($C$7,8,0),1,1) -> 149.67 | G108: =OFFSET(InputPriceData!F$15,CalculationsAndCharts!$A108+$A$11,IF($C$7,8,0),1,1) -> 150.66 | L108: 13505.77 | M108: 2981.94 | N108: 523.83 | O108: 3505.77 | P108: 53.1 | Q108: 0 | R108: 53.1 | S108: 95.91397849 | T108: 96.53952633 | U108: 96.53952633 | V108: 1.18 | W108: 1.249308442 | X108: 89 | Y108: 0.324 | Z108: 0.3657142857 | AA108: 0.3428021978 | AB108: -0.2612601833 | AC108: 0.4439554621 | AD108: -0.09294961542 | AE108: TRUE | AF108: FALSE | AG108: TRUE | AH108: 2 | AI108: FALSE | AJ108: FALSE | AK108: FALSE | AL108: 0 | AM108: FALSE | AN108: TRUE | AO108: FALSE | AP108: FALSE | AQ108: FALSE | AR108: FALSE | AS108: 3 | AT108: 0 | AU108: 1 | AV108: 2 | AW108: 1 | AX108: FALSE | AY108: FALSE | AZ108: FALSE | BA108: FALSE | BB108: FALSE | BC108: FALSE | BD108: FALSE | BE108: 89 | BF108: 90 | BG108: FALSE | BI108: FALSE | BN108: FALSE | BP108: FALSE
A109: 77 | B109: =OFFSET(InputPriceData!B$15,CalculationsAndCharts!$A109+$A$11,0,1,1) -> 2013-01-28 | C109: =OFFSET(InputPriceData!G$15,CalculationsAndCharts!$A109+$A$11,IF($C$7,8,0),1,1) -> 113357700 | D109: =OFFSET(InputPriceData!C$15,CalculationsAndCharts!$A109+$A$11,IF($C$7,8,0),1,1) -> 150.29 | E109: =OFFSET(InputPriceData!D$15,CalculationsAndCharts!$A109+$A$11,IF($C$7,8,0),1,1) -> 150.33 | F109: =OFFSET(InputPriceData!E$15,CalculationsAndCharts!$A109+$A$11,IF($C$7,8,0),1,1) -> 149.51 | G109: =OFFSET(InputPriceData!F$15,CalculationsAndCharts!$A109+$A$11,IF($C$7,8,0),1,1) -> 150.07 | L109: 13452.67 | M109: 2928.84 | N109: 523.83 | O109: 3452.67 | P109: -16.2 | Q109: 0 | R109: -16.2 | S109: 93.70460048 | T109: 92.06620176 | U109: 92.06620176 | V109: 0.82 | W109: 1.252956255 | X109: 89 | Y109: 0.276 | Z109: 0.4270238095 | AA109: 0.3445604396 | AB109: -0.9004988772 | AC109: 0.0828945485 | AD109: 0.005590162491 | AE109: TRUE | AF109: FALSE | AG109: FALSE | AH109: 1 | AI109: FALSE | AJ109: FALSE | AK109: FALSE | AL109: 0 | AM109: FALSE | AN109: TRUE | AO109: TRUE | AP109: FALSE | AQ109: FALSE | AR109: FALSE | AS109: 3 | AT109: 0 | AU109: 2 | AV109: 1 | AW109: 1 | AX109: FALSE | AY109: FALSE | AZ109: FALSE | BA109: FALSE | BB109: FALSE | BC109: FALSE | BD109: FALSE | BE109: 89 | BF109: 90 | BG109: FALSE | BI109: FALSE | BN109: FALSE | BP109: FALSE
A110: 78 | B110: =OFFSET(InputPriceData!B$15,CalculationsAndCharts!$A110+$A$11,0,1,1) -> 2013-01-25 | C110: =OFFSET(InputPriceData!G$15,CalculationsAndCharts!$A110+$A$11,IF($C$7,8,0),1,1) -> 147211600 | D110: =OFFSET(InputPriceData!C$15,CalculationsAndCharts!$A110+$A$11,IF($C$7,8,0),1,1) -> 149.88 | E110: =OFFSET(InputPriceData!D$15,CalculationsAndCharts!$A110+$A$11,IF($C$7,8,0),1,1) -> 150.25 | F110: =OFFSET(InputPriceData!E$15,CalculationsAndCharts!$A110+$A$11,IF($C$7,8,0),1,1) -> 149.37 | G110: =OFFSET(InputPriceData!F$15,CalculationsAndCharts!$A110+$A$11,IF($C$7,8,0),1,1) -> 150.25 | L110: 13468.87 | M110: 2945.04 | N110: 523.83 | O110: 3468.87 | P110: 75.6 | Q110: 0 | R110: 75.6 | S110: 100 | T110: 93.04204305 | U110: 93.04204305 | V110: 0.88 | W110: 1.275743426 | X110: 89 | Y110: 0.412 | Z110: 0.4639285714 | AA110: 0.3551648352 | AB110: 0.2560502699 | AC110: -0.1080060331 | AD110: 0.1633367071 | AE110: FALSE | AF110: TRUE | AG110: FALSE | AH110: 1 | AI110: FALSE | AJ110: FALSE | AK110: FALSE | AL110: 0 | AM110: TRUE | AN110: FALSE | AO110: TRUE | AP110: FALSE | AQ110: FALSE | AR110: FALSE | AS110: 3 | AT110: 0 | AU110: 2 | AV110: 1 | AW110: 1 | AX110: FALSE | AY110: FALSE | AZ110: FALSE | BA110: FALSE | BB110: FALSE | BC110: FALSE | BD110: FALSE | BE110: 89 | BF110: 90 | BG110: FALSE | BI110: FALSE | BN110: FALSE | BP110: FALSE
A111: 79 | B111: =OFFSET(InputPriceData!B$15,CalculationsAndCharts!$A111+$A$11,0,1,1) -> 2013-01-24 | C111: =OFFSET(InputPriceData!G$15,CalculationsAndCharts!$A111+$A$11,IF($C$7,8,0),1,1) -> 146426400 | D111: =OFFSET(InputPriceData!C$15,CalculationsAndCharts!$A111+$A$11,IF($C$7,8,0),1,1) -> 149.15 | E111: =OFFSET(InputPriceData!D$15,CalculationsAndCharts!$A111+$A$11,IF($C$7,8,0),1,1) -> 150.14 | F111: =OFFSET(InputPriceData!E$15,CalculationsAndCharts!$A111+$A$11,IF($C$7,8,0),1,1) -> 149.01 | G111: =OFFSET(InputPriceData!F$15,CalculationsAndCharts!$A111+$A$11,IF($C$7,8,0),1,1) -> 149.41 | L111: 13393.27 | M111: 2869.44 | N111: 523.83 | O111: 3393.27 | P111: 3.6 | Q111: 0 | R111: 3.6 | S111: 82.4940048 | T111: 93.04204305 | U111: 93.04204305 | V111: 1.13 | W111: 1.296572028 | X111: 89 | Y111: 0.386 | Z111: 0.418452381 | AA111: 0.3201648352 | AB111: 1.093420407 | AC111: -0.4396103409 | AD111: 0.2151012393 | AE111: FALSE | AF111: TRUE | AG111: FALSE | AH111: 1 | AI111: FALSE | AJ111: FALSE | AK111: FALSE | AL111: 0 | AM111: TRUE | AN111: FALSE | AO111: TRUE | AP111: FALSE | AQ111: FALSE | AR111: FALSE | AS111: 3 | AT111: 0 | AU111: 2 | AV111: 1 | AW111: 1 | AX111: FALSE | AY111: FALSE | AZ111: FALSE | BA111: FALSE | BB111: FALSE | BC111: FALSE | BD111: FALSE | BE111: 89 | BF111: 90 | BG111: FALSE | BI111: FALSE | BN111: FALSE | BP111: FALSE
A112: 80 | B112: =OFFSET(InputPriceData!B$15,CalculationsAndCharts!$A112+$A$11,0,1,1) -> 2013-01-23 | C112: =OFFSET(InputPriceData!G$15,CalculationsAndCharts!$A112+$A$11,IF($C$7,8,0),1,1) -> 104596100 | D112: =OFFSET(InputPriceData!C$15,CalculationsAndCharts!$A112+$A$11,IF($C$7,8,0),1,1) -> 149.13 | E112: =OFFSET(InputPriceData!D$15,CalculationsAndCharts!$A112+$A$11,IF($C$7,8,0),1,1) -> 149.5 | F112: =OFFSET(InputPriceData!E$15,CalculationsAndCharts!$A112+$A$11,IF($C$7,8,0),1,1) -> 148.86 | G112: =OFFSET(InputPriceData!F$15,CalculationsAndCharts!$A112+$A$11,IF($C$7,8,0),1,1) -> 149.37 | L112: 13389.67 | M112: 2865.84 | N112: 523.83 | O112: 3389.67 | P112: 21.6 | Q112: 0 | R112: 21.6 | S112: 96.63212435 | T112: 97.3579066 | U112: 97.3579066 | V112: 0.64 | W112: 1.305338977 | X112: 89 | Y112: 0.577 | Z112: 0.376547619 | AA112: 0.2807692308 | AB112: 1.041837884 | AC112: -0.4283202171 | AD112: 0.1806238752 | AE112: FALSE | AF112: TRUE | AG112: FALSE | AH112: 1 | AI112: FALSE | AJ112: FALSE | AK112: FALSE | AL112: 0 | AM112: TRUE | AN112: FALSE | AO112: TRUE | AP112: FALSE | AQ112: FALSE | AR112: FALSE | AS112: 3 | AT112: 0 | AU112: 2 | AV112: 1 | AW112: 1 | AX112: FALSE | AY112: FALSE | AZ112: FALSE | BA112: FALSE | BB112: FALSE | BC112: FALSE | BD112: FALSE | BE112: 89 | BF112: 90 | BG112: FALSE | BI112: FALSE | BN112: FALSE | BP112: FALSE
A113: 81 | B113: =OFFSET(InputPriceData!B$15,CalculationsAndCharts!$A113+$A$11,0,1,1) -> 2013-01-22 | C113: =OFFSET(InputPriceData!G$15,CalculationsAndCharts!$A113+$A$11,IF($C$7,8,0),1,1) -> 111797300 | D113: =OFFSET(InputPriceData!C$15,CalculationsAndCharts!$A113+$A$11,IF($C$7,8,0),1,1) -> 148.33 | E113: =OFFSET(InputPriceData!D$15,CalculationsAndCharts!$A113+$A$11,IF($C$7,8,0),1,1) -> 149.13 | F113: =OFFSET(InputPriceData!E$15,CalculationsAndCharts!$A113+$A$11,IF($C$7,8,0),1,1) -> 147.98 | G113: =OFFSET(InputPriceData!F$15,CalculationsAndCharts!$A113+$A$11,IF($C$7,8,0),1,1) -> 149.13 | L113: 13368.07 | M113: 2844.24 | N113: 523.83 | O113: 3368.07 | P113: 72 | Q113: 0 | R113: 72 | S113: 100 | T113: 94.41076437 | U113: 94.41076437 | V113: 1.15 | W113: 1.340356818 | X113: 89 | Y113: 0.54 | Z113: 0.2823809524 | AA113: 0.2473076923 | AB113: -0.8056404551 | AC113: -0.4133606873 | AD113: 0.5319469221 | AE113: TRUE | AF113: TRUE | AG113: FALSE | AH113: 2 | AI113: FALSE | AJ113: FALSE | AK113: FALSE | AL113: 0 | AM113: FALSE | AN113: FALSE | AO113: TRUE | AP113: FALSE | AQ113: FALSE | AR113: FALSE | AS113: 3 | AT113: 0 | AU113: 1 | AV113: 2 | AW113: 1 | AX113: FALSE | AY113: FALSE | AZ113: FALSE | BA113: FALSE | BB113: FALSE | BC113: FALSE | BD113: FALSE | BE113: 89 | BF113: 90 | BG113: FALSE | BI113: FALSE | BN113: FALSE | BP113: FALSE
A114: 82 | B114: =OFFSET(InputPriceData!B$15,CalculationsAndCharts!$A114+$A$11,0,1,1) -> 2013-01-18 | C114: =OFFSET(InputPriceData!G$15,CalculationsAndCharts!$A114+$A$11,IF($C$7,8,0),1,1) -> 169906000 | D114: =OFFSET(InputPriceData!C$15,CalculationsAndCharts!$A114+$A$11,IF($C$7,8,0),1,1) -> 147.97 | E114: =OFFSET(InputPriceData!D$15,CalculationsAndCharts!$A114+$A$11,IF($C$7,8,0),1,1) -> 148.49 | F114: =OFFSET(InputPriceData!E$15,CalculationsAndCharts!$A114+$A$11,IF($C$7,8,0),1,1) -> 147.43 | G114: =OFFSET(InputPriceData!F$15,CalculationsAndCharts!$A114+$A$11,IF($C$7,8,0),1,1) -> 148.33 | L114: 13296.07 | M114: 2772.24 | N114: 523.83 | O114: 3296.07 | P114: 32.4 | Q114: 0 | R114: 32.4 | S114: 95.44159544 | T114: 91.07743104 | U114: 91.07743104 | V114: 1.06 | W114: 1.350375597 | X114: 89 | Y114: 0.365 | Z114: 0.2560714286 | AA114: 0.1921978022 | AB114: -2.174338132 | AC114: 0.03054619827 | AD114: 1.860496468 | AE114: TRUE | AF114: FALSE | AG114: FALSE | AH114: 1 | AI114: FALSE | AJ114: FALSE | AK114: FALSE | AL114: 0 | AM114: FALSE | AN114: TRUE | AO114: TRUE | AP114: FALSE | AQ114: FALSE | AR114: FALSE | AS114: 3 | AT114: 0 | AU114: 2 | AV114: 1 | AW114: 1 | AX114: FALSE | AY114: FALSE | AZ114: FALSE | BA114: FALSE | BB114: FALSE | BC114: FALSE | BD114: FALSE | BE114: 89 | BF114: 90 | BG114: TRUE | BH114: 147.97 | BI114: FALSE | BK114: 147.97 | BN114: FALSE | BP114: FALSE
A115: 83 | B115: =OFFSET(InputPriceData!B$15,CalculationsAndCharts!$A115+$A$11,0,1,1) -> 2013-01-17 | C115: =OFFSET(InputPriceData!G$15,CalculationsAndCharts!$A115+$A$11,IF($C$7,8,0),1,1) -> 133833500 | D115: =OFFSET(InputPriceData!C$15,CalculationsAndCharts!$A115+$A$11,IF($C$7,8,0),1,1) -> 147.7 | E115: =OFFSET(InputPriceData!D$15,CalculationsAndCharts!$A115+$A$11,IF($C$7,8,0),1,1) -> 148.42 | F115: =OFFSET(InputPriceData!E$15,CalculationsAndCharts!$A115+$A$11,IF($C$7,8,0),1,1) -> 147.15 | G115: =OFFSET(InputPriceData!F$15,CalculationsAndCharts!$A115+$A$11,IF($C$7,8,0),1,1) -> 148 | L115: 13263.67 | M115: 2739.84 | N115: 523.83 | O115: 3263.67 | P115: 0 | Q115: -27 | R115: -27 | S115: 87.79069767 | T115: 90.71517879 | U115: 90.71517879 | V115: 1.37 | W115: 1.365658524 | X115: 89 | Y115: 0.194 | Z115: 0.2698809524 | AA115: 0.2713186813 | AB115: -1.609463256 | AC115: 0.5195774498 | AD115: 3.836855099 | AE115: TRUE | AF115: FALSE | AG115: FALSE | AH115: 1 | AI115: FALSE | AJ115: FALSE | AK115: FALSE | AL115: 0 | AM115: FALSE | AN115: TRUE | AO115: TRUE | AP115: FALSE | AQ115: FALSE | AR115: FALSE | AS115: 3 | AT115: 0 | AU115: 2 | AV115: 1 | AW115: -1 | AX115: FALSE | AY115: FALSE | AZ115: FALSE | BA115: TRUE | BB115: FALSE | BC115: TRUE | BD115: FALSE | BE115: 89 | BF115: 90 | BG115: FALSE | BI115: FALSE | BN115: TRUE | BO115: 147.7 | BP115: TRUE | BQ115: 148 | BR115: 147.7 | BT115: 148
A116: 84 | B116: =OFFSET(InputPriceData!B$15,CalculationsAndCharts!$A116+$A$11,0,1,1) -> 2013-01-16 | C116: =OFFSET(InputPriceData!G$15,CalculationsAndCharts!$A116+$A$11,IF($C$7,8,0),1,1) -> 104849500 | D116: =OFFSET(InputPriceData!C$15,CalculationsAndCharts!$A116+$A$11,IF($C$7,8,0),1,1) -> 146.77 | E116: =OFFSET(InputPriceData!D$15,CalculationsAndCharts!$A116+$A$11,IF($C$7,8,0),1,1) -> 147.28 | F116: =OFFSET(InputPriceData!E$15,CalculationsAndCharts!$A116+$A$11,IF($C$7,8,0),1,1) -> 146.61 | G116: =OFFSET(InputPriceData!F$15,CalculationsAndCharts!$A116+$A$11,IF($C$7,8,0),1,1) -> 147.05 | L116: 13290.67 | M116: 2739.84 | N116: 550.83 | O116: 3290.67 | P116: 0 | Q116: 0 | R116: 0 | S116: 90 | T116: 93.99650997 | U116: 93.99650997 | V116: 0.67 | W116: 1.365430025 | X116: 90 | Y116: -0.006 | Z116: 0.2178571429 | AA116: 0.4090659341 | AB116: 0.5210146196 | AC116: 0.8859060339 | AD116: 5.890192991 | AE116: FALSE | AF116: FALSE | AG116: FALSE | AH116: 0 | AI116: TRUE | AJ116: FALSE | AK116: FALSE | AL116: 1 | AM116: FALSE | AN116: TRUE | AO116: TRUE | AP116: FALSE | AQ116: FALSE | AR116: FALSE | AS116: 2 | AT116: 1 | AU116: 3 | AV116: 0 | AW116: 0 | AX116: FALSE | AY116: FALSE | AZ116: FALSE | BA116: FALSE | BB116: FALSE | BC116: FALSE | BD116: TRUE | BE116: 90 | BF116: 92 | BG116: FALSE | BI116: FALSE | BN116: FALSE | BP116: FALSE
A117: 85 | B117: =OFFSET(InputPriceData!B$15,CalculationsAndCharts!$A117+$A$11,0,1,1) -> 2013-01-15 | C117: =OFFSET(InputPriceData!G$15,CalculationsAndCharts!$A117+$A$11,IF($C$7,8,0),1,1) -> 93172600 | D117: =OFFSET(InputPriceData!C$15,CalculationsAndCharts!$A117+$A$11,IF($C$7,8,0),1,1) -> 146.29 | E117: =OFFSET(InputPriceData!D$15,CalculationsAndCharts!$A117+$A$11,IF($C$7,8,0),1,1) -> 147.21 | F117: =OFFSET(InputPriceData!E$15,CalculationsAndCharts!$A117+$A$11,IF($C$7,8,0),1,1) -> 146.2 | G117: =OFFSET(InputPriceData!F$15,CalculationsAndCharts!$A117+$A$11,IF($C$7,8,0),1,1) -> 147.07 | L117: 13290.67 | M117: 2739.84 | N117: 550.83 | O117: 3290.67 | P117: 0 | Q117: 0 | R117: 0 | S117: 94.35483871 | T117: 96.97942718 | U117: 96.97942718 | V117: 1.01 | W117: 1.402031605 | X117: 90 | Y117: 0.219 | Z117: 0.185952381 | AA117: 0.4891208791 | AB117: 2.360736643 | AC117: 0.7349445202 | AD117: 7.285612446 | AE117: FALSE | AF117: FALSE | AG117: FALSE | AH117: 0 | AI117: FALSE | AJ117: FALSE | AK117: FALSE | AL117: 0 | AM117: TRUE | AN117: TRUE | AO117: TRUE | AP117: FALSE | AQ117: FALSE | AR117: FALSE | AS117: 3 | AT117: 0 | AU117: 3 | AV117: 0 | AW117: 0 | AX117: TRUE | AY117: FALSE | AZ117: FALSE | BA117: FALSE | BB117: FALSE | BC117: FALSE | BD117: FALSE | BE117: 90 | BF117: 92 | BG117: FALSE | BI117: FALSE | BN117: FALSE | BP117: FALSE
A118: 86 | B118: =OFFSET(InputPriceData!B$15,CalculationsAndCharts!$A118+$A$11,0,1,1) -> 2013-01-14 | C118: =OFFSET(InputPriceData!G$15,CalculationsAndCharts!$A118+$A$11,IF($C$7,8,0),1,1) -> 89567200 | D118: =OFFSET(InputPriceData!C$15,CalculationsAndCharts!$A118+$A$11,IF($C$7,8,0),1,1) -> 146.89 | E118: =OFFSET(InputPriceData!D$15,CalculationsAndCharts!$A118+$A$11,IF($C$7,8,0),1,1) -> 147.07 | F118: =OFFSET(InputPriceData!E$15,CalculationsAndCharts!$A118+$A$11,IF($C$7,8,0),1,1) -> 146.43 | G118: =OFFSET(InputPriceData!F$15,CalculationsAndCharts!$A118+$A$11,IF($C$7,8,0),1,1) -> 146.97 | L118: 13290.67 | M118: 2739.84 | N118: 550.83 | O118: 3290.67 | P118: 0 | Q118: 0 | R118: 0 | S118: 97.6346912 | T118: 98.8169975 | U118: 98.8169975 | V118: 0.64 | W118: 1.422664848 | X118: 90 | Y118: 0.399 | Z118: 0.189047619 | AA118: 0.531978022 | AB118: 2.35477739 | AC118: 1.658787208 | AD118: 8.191631651 | AE118: FALSE | AF118: FALSE | AG118: FALSE | AH118: 0 | AI118: FALSE | AJ118: FALSE | AK118: FALSE | AL118: 0 | AM118: TRUE | AN118: TRUE | AO118: TRUE | AP118: FALSE | AQ118: FALSE | AR118: FALSE | AS118: 3 | AT118: 0 | AU118: 3 | AV118: 0 | AW118: 0 | AX118: TRUE | AY118: FALSE | AZ118: FALSE | BA118: FALSE | BB118: FALSE | BC118: FALSE | BD118: FALSE | BE118: 90 | BF118: 92 | BG118: FALSE | BI118: TRUE | BJ118: 146.89 | BL118: 146.89 | BN118: FALSE | BP118: FALSE
A119: 87 | B119: =OFFSET(InputPriceData!B$15,CalculationsAndCharts!$A119+$A$11,0,1,1) -> 2013-01-11 | C119: =OFFSET(InputPriceData!G$15,CalculationsAndCharts!$A119+$A$11,IF($C$7,8,0),1,1) -> 113917300 | D119: =OFFSET(InputPriceData!C$15,CalculationsAndCharts!$A119+$A$11,IF($C$7,8,0),1,1) -> 147.04 | E119: =OFFSET(InputPriceData!D$15,CalculationsAndCharts!$A119+$A$11,IF($C$7,8,0),1,1) -> 147.15 | F119: =OFFSET(InputPriceData!E$15,CalculationsAndCharts!$A119+$A$11,IF($C$7,8,0),1,1) -> 146.61 | G119: =OFFSET(InputPriceData!F$15,CalculationsAndCharts!$A119+$A$11,IF($C$7,8,0),1,1) -> 147.07 | L119: 13290.67 | M119: 2739.84 | N119: 550.83 | O119: 3290.67 | P119: 3.68 | Q119: 0 | R119: 3.68 | S119: 98.94875164 | T119: 96.35225131 | U119: 96.35225131 | V119: 0.54 | W119: 1.463857734 | X119: 90 | Y119: 0.373 | Z119: 0.143452381 | AA119: 0.5296703297 | AB119: 0.810107876 | AC119: 4.395607959 | AD119: 7.714046695 | AE119: FALSE | AF119: FALSE | AG119: FALSE | AH119: 0 | AI119: FALSE | AJ119: FALSE | AK119: FALSE | AL119: 0 | AM119: TRUE | AN119: TRUE | AO119: TRUE | AP119: FALSE | AQ119: FALSE | AR119: FALSE | AS119: 3 | AT119: 0 | AU119: 3 | AV119: 0 | AW119: 1 | AX119: TRUE | AY119: TRUE | AZ119: FALSE | BA119: FALSE | BB119: FALSE | BC119: FALSE | BD119: FALSE | BE119: 90 | BF119: 92 | BG119: TRUE | BH119: 147.04 | BI119: FALSE | BK119: 147.04 | BN119: FALSE | BP119: FALSE
A120: 88 | B120: =OFFSET(InputPriceData!B$15,CalculationsAndCharts!$A120+$A$11,0,1,1) -> 2013-01-10 | C120: =OFFSET(InputPriceData!G$15,CalculationsAndCharts!$A120+$A$11,IF($C$7,8,0),1,1) -> 130735400 | D120: =OFFSET(InputPriceData!C$15,CalculationsAndCharts!$A120+$A$11,IF($C$7,8,0),1,1) -> 146.73 | E120: =OFFSET(InputPriceData!D$15,CalculationsAndCharts!$A120+$A$11,IF($C$7,8,0),1,1) -> 147.09 | F120: =OFFSET(InputPriceData!E$15,CalculationsAndCharts!$A120+$A$11,IF($C$7,8,0),1,1) -> 145.97 | G120: =OFFSET(InputPriceData!F$15,CalculationsAndCharts!$A120+$A$11,IF($C$7,8,0),1,1) -> 147.08 | L120: 13286.99 | M120: 2736.16 | N120: 550.83 | O120: 3286.99 | P120: 0 | Q120: -106.72 | R120: -106.72 | S120: 99.86754967 | T120: 91.70502481 | U120: 91.70502481 | V120: 1.17 | W120: 1.512481826 | X120: 90 | Y120: 0.137 | Z120: 0.3696428571 | AA120: 0.4836263736 | AB120: -1.116801011 | AC120: 8.161009909 | AD120: 6.379631349 | AE120: TRUE | AF120: FALSE | AG120: FALSE | AH120: 1 | AI120: FALSE | AJ120: FALSE | AK120: FALSE | AL120: 0 | AM120: FALSE | AN120: TRUE | AO120: TRUE | AP120: FALSE | AQ120: FALSE | AR120: FALSE | AS120: 3 | AT120: 0 | AU120: 2 | AV120: 1 | AW120: -1 | AX120: FALSE | AY120: FALSE | AZ120: FALSE | BA120: TRUE | BB120: FALSE | BC120: TRUE | BD120: FALSE | BE120: 90 | BF120: 92 | BG120: FALSE | BI120: FALSE | BN120: FALSE | BP120: TRUE | BQ120: 147.08 | BT120: 147.08
A121: 89 | B121: =OFFSET(InputPriceData!B$15,CalculationsAndCharts!$A121+$A$11,0,1,1) -> 2013-01-09 | C121: =OFFSET(InputPriceData!G$15,CalculationsAndCharts!$A121+$A$11,IF($C$7,8,0),1,1) -> 90745600 | D121: =OFFSET(InputPriceData!C$15,CalculationsAndCharts!$A121+$A$11,IF($C$7,8,0),1,1) -> 145.87 | E121: =OFFSET(InputPriceData!D$15,CalculationsAndCharts!$A121+$A$11,IF($C$7,8,0),1,1) -> 146.32 | F121: =OFFSET(InputPriceData!E$15,CalculationsAndCharts!$A121+$A$11,IF($C$7,8,0),1,1) -> 145.64 | G121: =OFFSET(InputPriceData!F$15,CalculationsAndCharts!$A121+$A$11,IF($C$7,8,0),1,1) -> 145.92 | L121: 13393.71 | M121: 2736.16 | N121: 657.55 | O121: 3393.71 | P121: 0 | Q121: -4.6 | R121: -4.6 | S121: 90.24045262 | T121: 88.73173032 | U121: 88.73173032 | V121: 0.77 | W121: 1.530507185 | X121: 91 | Y121: -0.044 | Z121: 0.6821428571 | AA121: 0.3368681319 | AB121: 1.516933385 | AC121: 11.81677493 | AD121: 4.230109074 | AE121: FALSE | AF121: FALSE | AG121: FALSE | AH121: 0 | AI121: TRUE | AJ121: FALSE | AK121: FALSE | AL121: 1 | AM121: FALSE | AN121: TRUE | AO121: TRUE | AP121: FALSE | AQ121: FALSE | AR121: FALSE | AS121: 2 | AT121: 1 | AU121: 3 | AV121: 0 | AW121: -1 | AX121: FALSE | AY121: FALSE | AZ121: FALSE | BA121: FALSE | BB121: FALSE | BC121: FALSE | BD121: FALSE | BE121: 91 | BF121: 92 | BG121: FALSE | BI121: FALSE | BN121: TRUE | BO121: 145.87 | BP121: FALSE | BR121: 145.87
A122: 90 | B122: =OFFSET(InputPriceData!B$15,CalculationsAndCharts!$A122+$A$11,0,1,1) -> 2013-01-08 | C122: =OFFSET(InputPriceData!G$15,CalculationsAndCharts!$A122+$A$11,IF($C$7,8,0),1,1) -> 121265100 | D122: =OFFSET(InputPriceData!C$15,CalculationsAndCharts!$A122+$A$11,IF($C$7,8,0),1,1) -> 145.71 | E122: =OFFSET(InputPriceData!D$15,CalculationsAndCharts!$A122+$A$11,IF($C$7,8,0),1,1) -> 145.91 | F122: =OFFSET(InputPriceData!E$15,CalculationsAndCharts!$A122+$A$11,IF($C$7,8,0),1,1) -> 144.98 | G122: =OFFSET(InputPriceData!F$15,CalculationsAndCharts!$A122+$A$11,IF($C$7,8,0),1,1) -> 145.55 | L122: 13398.31 | M122: 2736.16 | N122: 662.15 | O122: 3398.31 | P122: 0 | Q122: 0 | R122: 0 | S122: 85.00707214 | T122: 90.85337105 | U122: 90.85337105 | V122: 0.99 | W122: 1.570533879 | X122: 92 | Y122: -0.078 | Z122: 0.8235714286 | AA122: 0.2513186813 | AB122: 9.620137181 | AC122: 13.65988859 | AD122: 2.236655038 | AE122: FALSE | AF122: FALSE | AG122: FALSE | AH122: 0 | AI122: TRUE | AJ122: FALSE | AK122: FALSE | AL122: 1 | AM122: FALSE | AN122: TRUE | AO122: TRUE | AP122: FALSE | AQ122: FALSE | AR122: FALSE | AS122: 2 | AT122: 1 | AU122: 3 | AV122: 0 | AW122: 0 | AX122: FALSE | AY122: FALSE | AZ122: FALSE | BA122: FALSE | BB122: FALSE | BC122: FALSE | BD122: TRUE | BE122: 92 | BF122: 92 | BG122: FALSE | BI122: TRUE | BJ122: 145.71 | BL122: 145.71 | BN122: FALSE | BP122: FALSE
A123: 91 | B123: =OFFSET(InputPriceData!B$15,CalculationsAndCharts!$A123+$A$11,0,1,1) -> 2013-01-07 | C123: =OFFSET(InputPriceData!G$15,CalculationsAndCharts!$A123+$A$11,IF($C$7,8,0),1,1) -> 110002500 | D123: =OFFSET(InputPriceData!C$15,CalculationsAndCharts!$A123+$A$11,IF($C$7,8,0),1,1) -> 145.85 | E123: =OFFSET(InputPriceData!D$15,CalculationsAndCharts!$A123+$A$11,IF($C$7,8,0),1,1) -> 146.11 | F123: =OFFSET(InputPriceData!E$15,CalculationsAndCharts!$A123+$A$11,IF($C$7,8,0),1,1) -> 145.43 | G123: =OFFSET(InputPriceData!F$15,CalculationsAndCharts!$A123+$A$11,IF($C$7,8,0),1,1) -> 145.97 | L123: 13398.31 | M123: 2736.16 | N123: 662.15 | O123: 3398.31 | P123: -47.84 | Q123: 0 | R123: -47.84 | S123: 90.9476662 | T123: 92.72753881 | U123: 92.72753881 | V123: 0.94 | W123: 1.601088293 | X123: 91 | Y123: 0.743 | Z123: 0.885 | AA123: 0.1354395604 | AB123: 17.82312265 | AC123: 13.69053589 | AD123: 0.4546148324 | AE123: FALSE | AF123: FALSE | AG123: FALSE | AH123: 0 | AI123: FALSE | AJ123: FALSE | AK123: FALSE | AL123: 0 | AM123: TRUE | AN123: TRUE | AO123: TRUE | AP123: FALSE | AQ123: FALSE | AR123: FALSE | AS123: 3 | AT123: 0 | AU123: 3 | AV123: 0 | AW123: 1 | AX123: TRUE | AY123: TRUE | AZ123: FALSE | BA123: FALSE | BB123: FALSE | BC123: FALSE | BD123: FALSE | BE123: 91 | BF123: 92 | BG123: FALSE | BI123: FALSE | BN123: FALSE | BP123: FALSE
A124: 92 | B124: =OFFSET(InputPriceData!B$15,CalculationsAndCharts!$A124+$A$11,0,1,1) -> 2013-01-04 | C124: =OFFSET(InputPriceData!G$15,CalculationsAndCharts!$A124+$A$11,IF($C$7,8,0),1,1) -> 116817700 | D124: =OFFSET(InputPriceData!C$15,CalculationsAndCharts!$A124+$A$11,IF($C$7,8,0),1,1) -> 145.97 | E124: =OFFSET(InputPriceData!D$15,CalculationsAndCharts!$A124+$A$11,IF($C$7,8,0),1,1) -> 146.61 | F124: =OFFSET(InputPriceData!E$15,CalculationsAndCharts!$A124+$A$11,IF($C$7,8,0),1,1) -> 145.67 | G124: =OFFSET(InputPriceData!F$15,CalculationsAndCharts!$A124+$A$11,IF($C$7,8,0),1,1) -> 146.37 | L124: 13446.15 | M124: 2784 | N124: 662.15 | O124: 3446.15 | P124: 36.8 | Q124: 0 | R124: 36.8 | S124: 96.60537482 | T124: 95.29112562 | U124: 95.29112562 | V124: 0.94 | W124: 1.635882414 | X124: 91 | Y124: 1.6 | Z124: 0.760952381 | AA124: 0.05516483516 | AB124: 21.55900421 | AC124: 9.539957646 | AD124: -1.018507916 | AE124: FALSE | AF124: FALSE | AG124: TRUE | AH124: 1 | AI124: FALSE | AJ124: FALSE | AK124: FALSE | AL124: 0 | AM124: TRUE | AN124: TRUE | AO124: FALSE | AP124: FALSE | AQ124: FALSE | AR124: FALSE | AS124: 3 | AT124: 0 | AU124: 2 | AV124: 1 | AW124: 1 | AX124: FALSE | AY124: FALSE | AZ124: FALSE | BA124: FALSE | BB124: FALSE | BC124: FALSE | BD124: FALSE | BE124: 91 | BF124: 92 | BG124: TRUE | BH124: 145.97 | BI124: FALSE | BK124: 145.97 | BN124: FALSE | BP124: FALSE
A125: 93 | B125: =OFFSET(InputPriceData!B$15,CalculationsAndCharts!$A125+$A$11,0,1,1) -> 2013-01-03 | C125: =OFFSET(InputPriceData!G$15,CalculationsAndCharts!$A125+$A$11,IF($C$7,8,0),1,1) -> 144761800 | D125: =OFFSET(InputPriceData!C$15,CalculationsAndCharts!$A125+$A$11,IF($C$7,8,0),1,1) -> 145.99 | E125: =OFFSET(InputPriceData!D$15,CalculationsAndCharts!$A125+$A$11,IF($C$7,8,0),1,1) -> 146.37 | F125: =OFFSET(InputPriceData!E$15,CalculationsAndCharts!$A125+$A$11,IF($C$7,8,0),1,1) -> 145.34 | G125: =OFFSET(InputPriceData!F$15,CalculationsAndCharts!$A125+$A$11,IF($C$7,8,0),1,1) -> 145.73 | L125: 13409.35 | M125: 2747.2 | N125: 662.15 | O125: 3409.35 | P125: 0 | Q125: 0 | R125: 0 | S125: 90.6295754 | T125: 78.92818611 | U125: 78.92818611 | V125: 1.03 | W125: 1.672507804 | X125: 92 | Y125: 1.437 | Z125: 0.4711904762 | AA125: 0.002472527473 | AB125: 15.96747016 | AC125: 2.288985224 | AD125: -2.707570421 | AE125: FALSE | AF125: FALSE | AG125: TRUE | AH125: 1 | AI125: FALSE | AJ125: FALSE | AK125: FALSE | AL125: 0 | AM125: TRUE | AN125: TRUE | AO125: FALSE | AP125: FALSE | AQ125: FALSE | AR125: FALSE | AS125: 3 | AT125: 0 | AU125: 2 | AV125: 1 | AW125: 0 | AX125: FALSE | AY125: FALSE | AZ125: FALSE | BA125: FALSE | BB125: FALSE | BC125: TRUE | BD125: FALSE | BE125: 92 | BF125: 94 | BG125: FALSE | BI125: FALSE | BN125: FALSE | BP125: FALSE
A126: 94 | B126: =OFFSET(InputPriceData!B$15,CalculationsAndCharts!$A126+$A$11,0,1,1) -> 2013-01-02 | C126: =OFFSET(InputPriceData!G$15,CalculationsAndCharts!$A126+$A$11,IF($C$7,8,0),1,1) -> 192059000 | D126: =OFFSET(InputPriceData!C$15,CalculationsAndCharts!$A126+$A$11,IF($C$7,8,0),1,1) -> 145.11 | E126: =OFFSET(InputPriceData!D$15,CalculationsAndCharts!$A126+$A$11,IF($C$7,8,0),1,1) -> 146.15 | F126: =OFFSET(InputPriceData!E$15,CalculationsAndCharts!$A126+$A$11,IF($C$7,8,0),1,1) -> 144.73 | G126: =OFFSET(InputPriceData!F$15,CalculationsAndCharts!$A126+$A$11,IF($C$7,8,0),1,1) -> 146.06 | L126: 13409.35 | M126: 2747.2 | N126: 662.15 | O126: 3409.35 | P126: 0 | Q126: 0 | R126: 0 | S126: 98.63842663 | T126: 49.6523615 | U126: 49.6523615 | V126: 3.74 | W126: 1.706324005 | X126: 91 | Y126: 0.947 | Z126: -0.0294047619 | AA126: -0.06653846154 | AB126: 7.752224508 | AC126: -6.04435901 | AD126: -4.478469646 | AE126: FALSE | AF126: FALSE | AG126: FALSE | AH126: 0 | AI126: FALSE | AJ126: FALSE | AK126: FALSE | AL126: 0 | AM126: TRUE | AN126: FALSE | AO126: FALSE | AP126: FALSE | AQ126: TRUE | AR126: TRUE | AS126: 1 | AT126: 2 | AU126: 1 | AV126: 2 | AW126: 0 | AX126: FALSE | AY126: FALSE | AZ126: FALSE | BA126: FALSE | BB126: FALSE | BC126: FALSE | BD126: FALSE | BE126: 91 | BF126: 94 | BG126: FALSE | BI126: FALSE | BN126: FALSE | BP126: FALSE
A127: 95 | B127: =OFFSET(InputPriceData!B$15,CalculationsAndCharts!$A127+$A$11,0,1,1) -> 2012-12-31 | C127: =OFFSET(InputPriceData!G$15,CalculationsAndCharts!$A127+$A$11,IF($C$7,8,0),1,1) -> 243935200 | D127: =OFFSET(InputPriceData!C$15,CalculationsAndCharts!$A127+$A$11,IF($C$7,8,0),1,1) -> 139.66 | E127: =OFFSET(InputPriceData!D$15,CalculationsAndCharts!$A127+$A$11,IF($C$7,8,0),1,1) -> 142.56 | F127: =OFFSET(InputPriceData!E$15,CalculationsAndCharts!$A127+$A$11,IF($C$7,8,0),1,1) -> 139.54 | G127: =OFFSET(InputPriceData!F$15,CalculationsAndCharts!$A127+$A$11,IF($C$7,8,0),1,1) -> 142.41 | L127: 13409.35 | M127: 2747.2 | N127: 662.15 | O127: 3409.35 | P127: 0 | Q127: 0 | R127: 0 | S127: 47.51655629 | T127: 26.43130763 | U127: 26.43130763 | V127: 3.02 | W127: 1.599288426 | X127: 94 | Y127: -0.16 | Z127: -0.5107142857 | AA127: -0.1942857143 | AB127: -3.266575592 | AC127: -10.89286778 | AD127: -5.539914146 | AE127: FALSE | AF127: FALSE | AG127: FALSE | AH127: 0 | AI127: FALSE | AJ127: FALSE | AK127: FALSE | AL127: 0 | AM127: FALSE | AN127: FALSE | AO127: FALSE | AP127: TRUE | AQ127: TRUE | AR127: TRUE | AS127: 0 | AT127: 3 | AU127: 0 | AV127: 3 | AW127: 0 | AX127: TRUE | AY127: FALSE | AZ127: FALSE | BA127: FALSE | BB127: FALSE | BC127: FALSE | BD127: FALSE | BE127: 94 | BF127: 94 | BG127: FALSE | BI127: FALSE | BN127: FALSE | BP127: FALSE
A128: 96 | B128: =OFFSET(InputPriceData!B$15,CalculationsAndCharts!$A128+$A$11,0,1,1) -> 2012-12-28 | C128: =OFFSET(InputPriceData!G$15,CalculationsAndCharts!$A128+$A$11,IF($C$7,8,0),1,1) -> 148806700 | D128: =OFFSET(InputPriceData!C$15,CalculationsAndCharts!$A128+$A$11,IF($C$7,8,0),1,1) -> 140.64 | E128: =OFFSET(InputPriceData!D$15,CalculationsAndCharts!$A128+$A$11,IF($C$7,8,0),1,1) -> 141.42 | F128: =OFFSET(InputPriceData!E$15,CalculationsAndCharts!$A128+$A$11,IF($C$7,8,0),1,1) -> 139.87 | G128: =OFFSET(InputPriceData!F$15,CalculationsAndCharts!$A128+$A$11,IF($C$7,8,0),1,1) -> 140.03 | L128: 13409.35 | M128: 2747.2 | N128: 662.15 | O128: 3409.35 | P128: 0 | Q128: 0 | R128: 0 | S128: 2.802101576 | T128: 13.74454379 | U128: 13.74454379 | V128: 1.69 | W128: 1.524514132 | X128: 95 | Y128: -0.631 | Z128: -0.7330952381 | AA128: -0.1933516484 | AB128: -11.97399443 | AC128: -11.63707939 | AD128: -5.652654518 | AE128: FALSE | AF128: FALSE | AG128: FALSE | AH128: 0 | AI128: FALSE | AJ128: FALSE | AK128: FALSE | AL128: 0 | AM128: FALSE | AN128: FALSE | AO128: FALSE | AP128: TRUE | AQ128: TRUE | AR128: TRUE | AS128: 0 | AT128: 3 | AU128: 0 | AV128: 3 | AW128: 0 | AX128: TRUE | AY128: FALSE | AZ128: FALSE | BA128: FALSE | BB128: FALSE | BC128: FALSE | BD128: FALSE | BE128: 95 | BF128: 94 | BG128: FALSE | BI128: TRUE | BJ128: 140.64 | BL128: 140.64 | BN128: FALSE | BP128: FALSE
A129: 97 | B129: =OFFSET(InputPriceData!B$15,CalculationsAndCharts!$A129+$A$11,0,1,1) -> 2012-12-27 | C129: =OFFSET(InputPriceData!G$15,CalculationsAndCharts!$A129+$A$11,IF($C$7,8,0),1,1) -> 167920600 | D129: =OFFSET(InputPriceData!C$15,CalculationsAndCharts!$A129+$A$11,IF($C$7,8,0),1,1) -> 141.79 | E129: =OFFSET(InputPriceData!D$15,CalculationsAndCharts!$A129+$A$11,IF($C$7,8,0),1,1) -> 142.08 | F129: =OFFSET(InputPriceData!E$15,CalculationsAndCharts!$A129+$A$11,IF($C$7,8,0),1,1) -> 139.92 | G129: =OFFSET(InputPriceData!F$15,CalculationsAndCharts!$A129+$A$11,IF($C$7,8,0),1,1) -> 141.56 | L129: 13409.35 | M129: 2747.2 | N129: 662.15 | O129: 3409.35 | P129: 3.76 | Q129: 0 | R129: 3.76 | S129: 28.97526502 | T129: 17.04474417 | U129: 17.04474417 | V129: 2.16 | W129: 1.51580435 | X129: 94 | Y129: -0.816 | Z129: -0.4966666667 | AA129: -0.06324175824 | AB129: -18.25512209 | AC129: -8.698221927 | AD129: -4.822656701 | AE129: FALSE | AF129: FALSE | AG129: FALSE | AH129: 0 | AI129: FALSE | AJ129: FALSE | AK129: FALSE | AL129: 0 | AM129: FALSE | AN129: FALSE | AO129: FALSE | AP129: TRUE | AQ129: TRUE | AR129: TRUE | AS129: 0 | AT129: 3 | AU129: 0 | AV129: 3 | AW129: 1 | AX129: TRUE | AY129: TRUE | AZ129: FALSE | BA129: FALSE | BB129: FALSE | BC129: FALSE | BD129: FALSE | BE129: 94 | BF129: 94 | BG129: FALSE | BI129: FALSE | BN129: FALSE | BP129: FALSE
A130: 98 | B130: =OFFSET(InputPriceData!B$15,CalculationsAndCharts!$A130+$A$11,0,1,1) -> 2012-12-26 | C130: =OFFSET(InputPriceData!G$15,CalculationsAndCharts!$A130+$A$11,IF($C$7,8,0),1,1) -> 106947700 | D130: =OFFSET(InputPriceData!C$15,CalculationsAndCharts!$A130+$A$11,IF($C$7,8,0),1,1) -> 142.64 | E130: =OFFSET(InputPriceData!D$15,CalculationsAndCharts!$A130+$A$11,IF($C$7,8,0),1,1) -> 142.71 | F130: =OFFSET(InputPriceData!E$15,CalculationsAndCharts!$A130+$A$11,IF($C$7,8,0),1,1) -> 141.35 | G130: =OFFSET(InputPriceData!F$15,CalculationsAndCharts!$A130+$A$11,IF($C$7,8,0),1,1) -> 141.75 | L130: 13405.59 | M130: 2743.44 | N130: 662.15 | O130: 3405.59 | P130: -83.66 | Q130: 0 | R130: -83.66 | S130: 9.456264775 | T130: 15.58452069 | U130: 15.58452069 | V130: 1.36 | W130: 1.481899316 | X130: 94 | Y130: -0.785 | Z130: -0.195952381 | AA130: 0.02340659341 | AB130: -17.8905368 | AC130: -4.864298936 | AD130: -3.462508407 | AE130: FALSE | AF130: FALSE | AG130: TRUE | AH130: 1 | AI130: FALSE | AJ130: FALSE | AK130: FALSE | AL130: 0 | AM130: FALSE | AN130: FALSE | AO130: FALSE | AP130: TRUE | AQ130: TRUE | AR130: FALSE | AS130: 1 | AT130: 2 | AU130: 0 | AV130: 3 | AW130: 1 | AX130: FALSE | AY130: FALSE | AZ130: FALSE | BA130: FALSE | BB130: FALSE | BC130: FALSE | BD130: FALSE | BE130: 94 | BF130: 94 | BG130: TRUE | BH130: 142.64 | BI130: FALSE | BK130: 142.64 | BN130: FALSE | BP130: FALSE
A131: 99 | B131: =OFFSET(InputPriceData!B$15,CalculationsAndCharts!$A131+$A$11,0,1,1) -> 2012-12-24 | C131: =OFFSET(InputPriceData!G$15,CalculationsAndCharts!$A131+$A$11,IF($C$7,8,0),1,1) -> 53874600 | D131: =OFFSET(InputPriceData!C$15,CalculationsAndCharts!$A131+$A$11,IF($C$7,8,0),1,1) -> 142.48 | E131: =OFFSET(InputPriceData!D$15,CalculationsAndCharts!$A131+$A$11,IF($C$7,8,0),1,1) -> 142.56 | F131: =OFFSET(InputPriceData!E$15,CalculationsAndCharts!$A131+$A$11,IF($C$7,8,0),1,1) -> 142.19 | G131: =OFFSET(InputPriceData!F$15,CalculationsAndCharts!$A131+$A$11,IF($C$7,8,0),1,1) -> 142.35 | L131: 13489.25 | M131: 2827.1 | N131: 662.15 | O131: 3489.25 | P131: 0 | Q131: 12.22 | R131: 12.22 | S131: 12.7027027 | T131: 41.84419714 | U131: 41.84419714 | V131: 0.6 | W131: 1.488315069 | X131: 94 | Y131: -0.754 | Z131: 0.0530952381 | AA131: 0.1215934066 | AB131: -8.509894922 | AC131: -1.189901203 | AD131: -1.488294648 | AE131: FALSE | AF131: TRUE | AG131: TRUE | AH131: 2 | AI131: FALSE | AJ131: FALSE | AK131: FALSE | AL131: 0 | AM131: FALSE | AN131: FALSE | AO131: FALSE | AP131: TRUE | AQ131: FALSE | AR131: FALSE | AS131: 2 | AT131: 1 | AU131: 0 | AV131: 3 | AW131: -1 | AX131: FALSE | AY131: FALSE | AZ131: FALSE | BA131: TRUE | BB131: FALSE | BC131: TRUE | BD131: FALSE | BE131: 94 | BF131: 94 | BG131: FALSE | BI131: FALSE | BN131: TRUE | BO131: 142.48 | BP131: TRUE | BQ131: 142.35 | BR131: 142.48 | BT131: 142.35
A132: 100 | B132: =OFFSET(InputPriceData!B$15,CalculationsAndCharts!$A132+$A$11,0,1,1) -> 2012-12-21 | C132: =OFFSET(InputPriceData!G$15,CalculationsAndCharts!$A132+$A$11,IF($C$7,8,0),1,1) -> 245883800 | D132: =OFFSET(InputPriceData!C$15,CalculationsAndCharts!$A132+$A$11,IF($C$7,8,0),1,1) -> 142.17 | E132: =OFFSET(InputPriceData!D$15,CalculationsAndCharts!$A132+$A$11,IF($C$7,8,0),1,1) -> 144.09 | F132: =OFFSET(InputPriceData!E$15,CalculationsAndCharts!$A132+$A$11,IF($C$7,8,0),1,1) -> 141.94 | G132: =OFFSET(InputPriceData!F$15,CalculationsAndCharts!$A132+$A$11,IF($C$7,8,0),1,1) -> 142.79 | L132: 13477.03 | M132: 2827.1 | N132: 649.93 | O132: 3477.03 | P132: -219.02 | Q132: 0 | R132: -219.02 | S132: 24.59459459 | T132: 61.21478945 | U132: 61.21478945 | V132: 3.18 | W132: 1.535068494 | X132: 94 | Y132: -0.221 | Z132: 0.1854761905 | AA132: 0.2137912088 | AB132: 1.667424033 | AC132: 0.05774164071 | AD132: -0.2490784378 | AE132: FALSE | AF132: FALSE | AG132: TRUE | AH132: 1 | AI132: TRUE | AJ132: FALSE | AK132: FALSE | AL132: 1 | AM132: FALSE | AN132: TRUE | AO132: FALSE | AP132: FALSE | AQ132: FALSE | AR132: FALSE | AS132: 2 | AT132: 1 | AU132: 2 | AV132: 1 | AW132: 1 | AX132: FALSE | AY132: FALSE | AZ132: FALSE | BA132: FALSE | BB132: TRUE | BC132: FALSE | BD132: TRUE | BE132: 94 | BF132: 94 | BG132: FALSE | BI132: TRUE | BJ132: 142.79 | BM132: 142.79 | BN132: FALSE | BP132: FALSE
A133: 101 | B133: =OFFSET(InputPriceData!B$15,CalculationsAndCharts!$A133+$A$11,0,1,1) -> 2012-12-20 | C133: =OFFSET(InputPriceData!G$15,CalculationsAndCharts!$A133+$A$11,IF($C$7,8,0),1,1) -> 168487000 | D133: =OFFSET(InputPriceData!C$15,CalculationsAndCharts!$A133+$A$11,IF($C$7,8,0),1,1) -> 144.38 | E133: =OFFSET(InputPriceData!D$15,CalculationsAndCharts!$A133+$A$11,IF($C$7,8,0),1,1) -> 145.14 | F133: =OFFSET(InputPriceData!E$15,CalculationsAndCharts!$A133+$A$11,IF($C$7,8,0),1,1) -> 143.98 | G133: =OFFSET(InputPriceData!F$15,CalculationsAndCharts!$A133+$A$11,IF($C$7,8,0),1,1) -> 145.12 | L133: 13696.05 | M133: 3046.12 | N133: 649.93 | O133: 3696.05 | P133: 78.02 | Q133: 0 | R133: 78.02 | S133: 88.23529412 | T133: 85.50522023 | U133: 85.50522023 | V133: 1.16 | W133: 1.448493151 | X133: 94 | Y133: 0.656 | Z133: 0.3041666667 | AA133: 0.2926373626 | AB133: 8.156960572 | AC133: -0.1077324494 | AD133: 0.04633853148 | AE133: FALSE | AF133: TRUE | AG133: FALSE | AH133: 1 | AI133: FALSE | AJ133: FALSE | AK133: FALSE | AL133: 0 | AM133: TRUE | AN133: FALSE | AO133: TRUE | AP133: FALSE | AQ133: FALSE | AR133: FALSE | AS133: 3 | AT133: 0 | AU133: 2 | AV133: 1 | AW133: 1 | AX133: FALSE | AY133: FALSE | AZ133: FALSE | BA133: FALSE | BB133: FALSE | BC133: FALSE | BD133: FALSE | BE133: 94 | BF133: 94 | BG133: FALSE | BI133: FALSE | BN133: FALSE | BP133: FALSE
A134: 102 | B134: =OFFSET(InputPriceData!B$15,CalculationsAndCharts!$A134+$A$11,0,1,1) -> 2012-12-19 | C134: =OFFSET(InputPriceData!G$15,CalculationsAndCharts!$A134+$A$11,IF($C$7,8,0),1,1) -> 150895400 | D134: =OFFSET(InputPriceData!C$15,CalculationsAndCharts!$A134+$A$11,IF($C$7,8,0),1,1) -> 145.53 | E134: =OFFSET(InputPriceData!D$15,CalculationsAndCharts!$A134+$A$11,IF($C$7,8,0),1,1) -> 145.58 | F134: =OFFSET(InputPriceData!E$15,CalculationsAndCharts!$A134+$A$11,IF($C$7,8,0),1,1) -> 144.24 | G134: =OFFSET(InputPriceData!F$15,CalculationsAndCharts!$A134+$A$11,IF($C$7,8,0),1,1) -> 144.29 | L134: 13618.03 | M134: 2968.1 | N134: 649.93 | O134: 3618.03 | P134: -101.52 | Q134: 0 | R134: -101.52 | S134: 70.81447964 | T134: 83.20669317 | U134: 83.20669317 | V134: 1.34 | W134: 1.463677002 | X134: 94 | Y134: 0.659 | Z134: 0.2695238095 | AA134: 0.2668131868 | AB134: 3.890301407 | AC134: -1.948828487 | AD134: -0.8166710064 | AE134: FALSE | AF134: TRUE | AG134: TRUE | AH134: 2 | AI134: FALSE | AJ134: FALSE | AK134: FALSE | AL134: 0 | AM134: TRUE | AN134: FALSE | AO134: FALSE | AP134: FALSE | AQ134: FALSE | AR134: FALSE | AS134: 3 | AT134: 0 | AU134: 1 | AV134: 2 | AW134: 1 | AX134: FALSE | AY134: FALSE | AZ134: FALSE | BA134: FALSE | BB134: FALSE | BC134: FALSE | BD134: FALSE | BE134: 94 | BF134: 94 | BG134: FALSE | BI134: FALSE | BN134: FALSE | BP134: FALSE
A135: 103 | B135: =OFFSET(InputPriceData!B$15,CalculationsAndCharts!$A135+$A$11,0,1,1) -> 2012-12-18 | C135: =OFFSET(InputPriceData!G$15,CalculationsAndCharts!$A135+$A$11,IF($C$7,8,0),1,1) -> 177762800 | D135: =OFFSET(InputPriceData!C$15,CalculationsAndCharts!$A135+$A$11,IF($C$7,8,0),1,1) -> 144 | E135: =OFFSET(InputPriceData!D$15,CalculationsAndCharts!$A135+$A$11,IF($C$7,8,0),1,1) -> 145.5 | F135: =OFFSET(InputPriceData!E$15,CalculationsAndCharts!$A135+$A$11,IF($C$7,8,0),1,1) -> 143.79 | G135: =OFFSET(InputPriceData!F$15,CalculationsAndCharts!$A135+$A$11,IF($C$7,8,0),1,1) -> 145.37 | L135: 13719.55 | M135: 3069.62 | N135: 649.93 | O135: 3719.55 | P135: 150.4 | Q135: 0 | R135: 150.4 | S135: 97.46588694 | T135: 73.39771989 | U135: 73.39771989 | V135: 1.73 | W135: 1.470186317 | X135: 94 | Y135: 0.486 | Z135: 0.2657142857 | AA135: 0.2296703297 | AB135: -3.331714599 | AC135: -2.895859367 | AD135: -1.805864862 | AE135: TRUE | AF135: TRUE | AG135: TRUE | AH135: 3 | AI135: FALSE | AJ135: FALSE | AK135: FALSE | AL135: 0 | AM135: FALSE | AN135: FALSE | AO135: FALSE | AP135: FALSE | AQ135: FALSE | AR135: FALSE | AS135: 3 | AT135: 0 | AU135: 0 | AV135: 3 | AW135: 1 | AX135: FALSE | AY135: FALSE | AZ135: FALSE | BA135: FALSE | BB135: FALSE | BC135: FALSE | BD135: FALSE | BE135: 94 | BF135: 94 | BG135: FALSE | BI135: FALSE | BN135: FALSE | BP135: FALSE
A136: 104 | B136: =OFFSET(InputPriceData!B$15,CalculationsAndCharts!$A136+$A$11,0,1,1) -> 2012-12-17 | C136: =OFFSET(InputPriceData!G$15,CalculationsAndCharts!$A136+$A$11,IF($C$7,8,0),1,1) -> 143238200 | D136: =OFFSET(InputPriceData!C$15,CalculationsAndCharts!$A136+$A$11,IF($C$7,8,0),1,1) -> 142.47 | E136: =OFFSET(InputPriceData!D$15,CalculationsAndCharts!$A136+$A$11,IF($C$7,8,0),1,1) -> 143.85 | F136: =OFFSET(InputPriceData!E$15,CalculationsAndCharts!$A136+$A$11,IF($C$7,8,0),1,1) -> 142.43 | G136: =OFFSET(InputPriceData!F$15,CalculationsAndCharts!$A136+$A$11,IF($C$7,8,0),1,1) -> 143.77 | L136: 13569.15 | M136: 2919.22 | N136: 649.93 | O136: 3569.15 | P136: 156.98 | Q136: 0 | R136: 156.98 | S136: 81.33971292 | T136: 58.93141946 | U136: 58.93141946 | V136: 1.75 | W136: 1.456511913 | X136: 94 | Y136: -0.075 | Z136: 0.1372619048 | AA136: 0.1402197802 | AB136: -8.372103872 | AC136: -2.376100386 | AD136: -2.220407177 | AE136: FALSE | AF136: TRUE | AG136: TRUE | AH136: 2 | AI136: FALSE | AJ136: FALSE | AK136: FALSE | AL136: 0 | AM136: FALSE | AN136: FALSE | AO136: FALSE | AP136: TRUE | AQ136: FALSE | AR136: FALSE | AS136: 2 | AT136: 1 | AU136: 0 | AV136: 3 | AW136: 1 | AX136: FALSE | AY136: FALSE | AZ136: FALSE | BA136: FALSE | BB136: FALSE | BC136: FALSE | BD136: FALSE | BE136: 94 | BF136: 94 | BG136: FALSE | BI136: FALSE | BN136: FALSE | BP136: FALSE
A137: 105 | B137: =OFFSET(InputPriceData!B$15,CalculationsAndCharts!$A137+$A$11,0,1,1) -> 2012-12-14 | C137: =OFFSET(InputPriceData!G$15,CalculationsAndCharts!$A137+$A$11,IF($C$7,8,0),1,1) -> 137701700 | D137: =OFFSET(InputPriceData!C$15,CalculationsAndCharts!$A137+$A$11,IF($C$7,8,0),1,1) -> 142.32 | E137: =OFFSET(InputPriceData!D$15,CalculationsAndCharts!$A137+$A$11,IF($C$7,8,0),1,1) -> 142.58 | F137: =OFFSET(InputPriceData!E$15,CalculationsAndCharts!$A137+$A$11,IF($C$7,8,0),1,1) -> 141.88 | G137: =OFFSET(InputPriceData!F$15,CalculationsAndCharts!$A137+$A$11,IF($C$7,8,0),1,1) -> 142.1 | L137: 13412.17 | M137: 2762.24 | N137: 649.93 | O137: 3412.17 | P137: -49.82 | Q137: 0 | R137: -49.82 | S137: 41.38755981 | T137: 56.85805423 | U137: 56.85805423 | V137: 0.75 | W137: 1.441065172 | X137: 94 | Y137: -0.155 | Z137: 0.1395238095 | AA137: 0.1162087912 | AB137: -6.941216678 | AC137: -0.4635051429 | AD137: -1.970393618 | AE137: FALSE | AF137: TRUE | AG137: TRUE | AH137: 2 | AI137: FALSE | AJ137: FALSE | AK137: FALSE | AL137: 0 | AM137: FALSE | AN137: FALSE | AO137: FALSE | AP137: TRUE | AQ137: FALSE | AR137: FALSE | AS137: 2 | AT137: 1 | AU137: 0 | AV137: 3 | AW137: 1 | AX137: FALSE | AY137: FALSE | AZ137: FALSE | BA137: FALSE | BB137: FALSE | BC137: FALSE | BD137: FALSE | BE137: 94 | BF137: 94 | BG137: FALSE | BI137: FALSE | BN137: FALSE | BP137: FALSE
A138: 106 | B138: =OFFSET(InputPriceData!B$15,CalculationsAndCharts!$A138+$A$11,0,1,1) -> 2012-12-13 | C138: =OFFSET(InputPriceData!G$15,CalculationsAndCharts!$A138+$A$11,IF($C$7,8,0),1,1) -> 135715000 | D138: =OFFSET(InputPriceData!C$15,CalculationsAndCharts!$A138+$A$11,IF($C$7,8,0),1,1) -> 143.42 | E138: =OFFSET(InputPriceData!D$15,CalculationsAndCharts!$A138+$A$11,IF($C$7,8,0),1,1) -> 143.83 | F138: =OFFSET(InputPriceData!E$15,CalculationsAndCharts!$A138+$A$11,IF($C$7,8,0),1,1) -> 142.27 | G138: =OFFSET(InputPriceData!F$15,CalculationsAndCharts!$A138+$A$11,IF($C$7,8,0),1,1) -> 142.63 | L138: 13461.99 | M138: 2812.06 | N138: 649.93 | O138: 3461.99 | P138: -82.72 | Q138: 0 | R138: -82.72 | S138: 54.06698565 | T138: 72.02501896 | U138: 72.02501896 | V138: 1.56 | W138: 1.477437023 | X138: 94 | Y138: 0.148 | Z138: 0.2875 | AA138: 0.180989011 | AB138: -0.747448255 | AC138: 1.030315127 | AD138: -1.460594603 | AE138: TRUE | AF138: FALSE | AG138: TRUE | AH138: 2 | AI138: FALSE | AJ138: FALSE | AK138: FALSE | AL138: 0 | AM138: FALSE | AN138: TRUE | AO138: FALSE | AP138: FALSE | AQ138: FALSE | AR138: FALSE | AS138: 3 | AT138: 0 | AU138: 1 | AV138: 2 | AW138: 1 | AX138: FALSE | AY138: FALSE | AZ138: FALSE | BA138: FALSE | BB138: FALSE | BC138: FALSE | BD138: FALSE | BE138: 94 | BF138: 94 | BG138: FALSE | BI138: FALSE | BN138: FALSE | BP138: FALSE
A139: 107 | B139: =OFFSET(InputPriceData!B$15,CalculationsAndCharts!$A139+$A$11,0,1,1) -> 2012-12-12 | C139: =OFFSET(InputPriceData!G$15,CalculationsAndCharts!$A139+$A$11,IF($C$7,8,0),1,1) -> 145880100 | D139: =OFFSET(InputPriceData!C$15,CalculationsAndCharts!$A139+$A$11,IF($C$7,8,0),1,1) -> 144 | E139: =OFFSET(InputPriceData!D$15,CalculationsAndCharts!$A139+$A$11,IF($C$7,8,0),1,1) -> 144.55 | F139: =OFFSET(InputPriceData!E$15,CalculationsAndCharts!$A139+$A$11,IF($C$7,8,0),1,1) -> 143.31 | G139: =OFFSET(InputPriceData!F$15,CalculationsAndCharts!$A139+$A$11,IF($C$7,8,0),1,1) -> 143.51 | L139: 13544.71 | M139: 2894.78 | N139: 649.93 | O139: 3544.71 | P139: 6.58 | Q139: 0 | R139: 6.58 | S139: 75.11961722 | T139: 83.50949313 | U139: 83.50949313 | V139: 1.24 | W139: 1.473091603 | X139: 94 | Y139: 0.409 | Z139: 0.3417857143 | AA139: 0.1919230769 | AB139: 4.202877678 | AC139: 0.6169186581 | AD139: -1.32802262 | AE139: FALSE | AF139: FALSE | AG139: TRUE | AH139: 1 | AI139: FALSE | AJ139: FALSE | AK139: FALSE | AL139: 0 | AM139: TRUE | AN139: TRUE | AO139: FALSE | AP139: FALSE | AQ139: FALSE | AR139: FALSE | AS139: 3 | AT139: 0 | AU139: 2 | AV139: 1 | AW139: 1 | AX139: FALSE | AY139: FALSE | AZ139: FALSE | BA139: FALSE | BB139: FALSE | BC139: FALSE | BD139: FALSE | BE139: 94 | BF139: 94 | BG139: FALSE | BI139: FALSE | BN139: FALSE | BP139: FALSE
A140: 108 | B140: =OFFSET(InputPriceData!B$15,CalculationsAndCharts!$A140+$A$11,0,1,1) -> 2012-12-11 | C140: =OFFSET(InputPriceData!G$15,CalculationsAndCharts!$A140+$A$11,IF($C$7,8,0),1,1) -> 152570400 | D140: =OFFSET(InputPriceData!C$15,CalculationsAndCharts!$A140+$A$11,IF($C$7,8,0),1,1) -> 143.06 | E140: =OFFSET(InputPriceData!D$15,CalculationsAndCharts!$A140+$A$11,IF($C$7,8,0),1,1) -> 144.11 | F140: =OFFSET(InputPriceData!E$15,CalculationsAndCharts!$A140+$A$11,IF($C$7,8,0),1,1) -> 142.99 | G140: =OFFSET(InputPriceData!F$15,CalculationsAndCharts!$A140+$A$11,IF($C$7,8,0),1,1) -> 143.44 | L140: 13538.13 | M140: 2888.2 | N140: 649.93 | O140: 3538.13 | P140: 91.18 | Q140: 0 | R140: 91.18 | S140: 86.88845401 | T140: 87.46621936 | U140: 87.46621936 | V140: 1.64 | W140: 1.485359582 | X140: 94 | Y140: 0.437 | Z140: 0.2153571429 | AA140: 0.1504395604 | AB140: 5.255155889 | AC140: -1.211064058 | AD140: -1.190569578 | AE140: FALSE | AF140: TRUE | AG140: TRUE | AH140: 2 | AI140: FALSE | AJ140: FALSE | AK140: FALSE | AL140: 0 | AM140: TRUE | AN140: FALSE | AO140: FALSE | AP140: FALSE | AQ140: FALSE | AR140: FALSE | AS140: 3 | AT140: 0 | AU140: 1 | AV140: 2 | AW140: 1 | AX140: FALSE | AY140: FALSE | AZ140: FALSE | BA140: FALSE | BB140: FALSE | BC140: FALSE | BD140: FALSE | BE140: 94 | BF140: 94 | BG140: FALSE | BI140: FALSE | BN140: FALSE | BP140: FALSE
A141: 109 | B141: =OFFSET(InputPriceData!B$15,CalculationsAndCharts!$A141+$A$11,0,1,1) -> 2012-12-10 | C141: =OFFSET(InputPriceData!G$15,CalculationsAndCharts!$A141+$A$11,IF($C$7,8,0),1,1) -> 98840700 | D141: =OFFSET(InputPriceData!C$15,CalculationsAndCharts!$A141+$A$11,IF($C$7,8,0),1,1) -> 142.21 | E141: =OFFSET(InputPriceData!D$15,CalculationsAndCharts!$A141+$A$11,IF($C$7,8,0),1,1) -> 142.81 | F141: =OFFSET(InputPriceData!E$15,CalculationsAndCharts!$A141+$A$11,IF($C$7,8,0),1,1) -> 142.15 | G141: =OFFSET(InputPriceData!F$15,CalculationsAndCharts!$A141+$A$11,IF($C$7,8,0),1,1) -> 142.47 | L141: 13446.95 | M141: 2797.02 | N141: 649.93 | O141: 3446.95 | P141: 5.64 | Q141: 0 | R141: 5.64 | S141: 88.52040816 | T141: 83.84353741 | U141: 83.84353741 | V141: 0.66 | W141: 1.477220613 | X141: 94 | Y141: 0.335 | Z141: 0.06654761905 | AA141: 0.1624175824 | AB141: 1.55149036 | AC141: -2.840273658 | AD141: -0.6734281063 | AE141: FALSE | AF141: TRUE | AG141: TRUE | AH141: 2 | AI141: FALSE | AJ141: FALSE | AK141: FALSE | AL141: 0 | AM141: TRUE | AN141: FALSE | AO141: FALSE | AP141: FALSE | AQ141: FALSE | AR141: FALSE | AS141: 3 | AT141: 0 | AU141: 1 | AV141: 2 | AW141: 1 | AX141: FALSE | AY141: FALSE | AZ141: FALSE | BA141: FALSE | BB141: FALSE | BC141: FALSE | BD141: FALSE | BE141: 94 | BF141: 94 | BG141: FALSE | BI141: FALSE | BN141: FALSE | BP141: FALSE
A142: 110 | B142: =OFFSET(InputPriceData!B$15,CalculationsAndCharts!$A142+$A$11,0,1,1) -> 2012-12-07 | C142: =OFFSET(InputPriceData!G$15,CalculationsAndCharts!$A142+$A$11,IF($C$7,8,0),1,1) -> 108726400 | D142: =OFFSET(InputPriceData!C$15,CalculationsAndCharts!$A142+$A$11,IF($C$7,8,0),1,1) -> 142.53 | E142: =OFFSET(InputPriceData!D$15,CalculationsAndCharts!$A142+$A$11,IF($C$7,8,0),1,1) -> 142.69 | F142: =OFFSET(InputPriceData!E$15,CalculationsAndCharts!$A142+$A$11,IF($C$7,8,0),1,1) -> 141.67 | G142: =OFFSET(InputPriceData!F$15,CalculationsAndCharts!$A142+$A$11,IF($C$7,8,0),1,1) -> 142.41 | L142: 13441.31 | M142: 2791.38 | N142: 649.93 | O142: 3441.31 | P142: 40.42 | Q142: 0 | R142: 40.42 | S142: 86.98979592 | T142: 75.5952381 | U142: 75.5952381 | V142: 1.02 | W142: 1.520232224 | X142: 94 | Y142: 0.265 | Z142: 0.04523809524 | AA142: 0.1983516484 | AB142: -3.835836553 | AC142: -3.952180086 | AD142: 0.5707048665 | AE142: TRUE | AF142: TRUE | AG142: FALSE | AH142: 2 | AI142: FALSE | AJ142: FALSE | AK142: FALSE | AL142: 0 | AM142: FALSE | AN142: FALSE | AO142: TRUE | AP142: FALSE | AQ142: FALSE | AR142: FALSE | AS142: 3 | AT142: 0 | AU142: 1 | AV142: 2 | AW142: 1 | AX142: FALSE | AY142: FALSE | AZ142: FALSE | BA142: FALSE | BB142: FALSE | BC142: FALSE | BD142: FALSE | BE142: 94 | BF142: 94 | BG142: FALSE | BI142: FALSE | BN142: FALSE | BP142: FALSE
A143: 111 | B143: =OFFSET(InputPriceData!B$15,CalculationsAndCharts!$A143+$A$11,0,1,1) -> 2012-12-06 | C143: =OFFSET(InputPriceData!G$15,CalculationsAndCharts!$A143+$A$11,IF($C$7,8,0),1,1) -> 103220600 | D143: =OFFSET(InputPriceData!C$15,CalculationsAndCharts!$A143+$A$11,IF($C$7,8,0),1,1) -> 141.37 | E143: =OFFSET(InputPriceData!D$15,CalculationsAndCharts!$A143+$A$11,IF($C$7,8,0),1,1) -> 142.04 | F143: =OFFSET(InputPriceData!E$15,CalculationsAndCharts!$A143+$A$11,IF($C$7,8,0),1,1) -> 141.16 | G143: =OFFSET(InputPriceData!F$15,CalculationsAndCharts!$A143+$A$11,IF($C$7,8,0),1,1) -> 141.98 | L143: 13400.89 | M143: 2750.96 | N143: 649.93 | O143: 3400.89 | P143: 45.12 | Q143: 0 | R143: 45.12 | S143: 76.02040816 | T143: 68.43059538 | U143: 68.43059538 | V143: 0.88 | W143: 1.546560236 | X143: 94 | Y143: -0.029 | Z143: 0.1004761905 | AA143: 0.2205494505 | AB143: -7.633221651 | AC143: -3.984910473 | AD143: 2.555858437 | AE143: FALSE | AF143: TRUE | AG143: FALSE | AH143: 1 | AI143: FALSE | AJ143: FALSE | AK143: FALSE | AL143: 0 | AM143: FALSE | AN143: FALSE | AO143: TRUE | AP143: TRUE | AQ143: FALSE | AR143: FALSE | AS143: 2 | AT143: 1 | AU143: 1 | AV143: 2 | AW143: 1 | AX143: FALSE | AY143: FALSE | AZ143: FALSE | BA143: FALSE | BB143: FALSE | BC143: FALSE | BD143: FALSE | BE143: 94 | BF143: 94 | BG143: FALSE | BI143: FALSE | BN143: FALSE | BP143: FALSE
A144: 112 | B144: =OFFSET(InputPriceData!B$15,CalculationsAndCharts!$A144+$A$11,0,1,1) -> 2012-12-05 | C144: =OFFSET(InputPriceData!G$15,CalculationsAndCharts!$A144+$A$11,IF($C$7,8,0),1,1) -> 147300500 | D144: =OFFSET(InputPriceData!C$15,CalculationsAndCharts!$A144+$A$11,IF($C$7,8,0),1,1) -> 141.37 | E144: =OFFSET(InputPriceData!D$15,CalculationsAndCharts!$A144+$A$11,IF($C$7,8,0),1,1) -> 142.16 | F144: =OFFSET(InputPriceData!E$15,CalculationsAndCharts!$A144+$A$11,IF($C$7,8,0),1,1) -> 140.37 | G144: =OFFSET(InputPriceData!F$15,CalculationsAndCharts!$A144+$A$11,IF($C$7,8,0),1,1) -> 141.5 | L144: 13355.77 | M144: 2705.84 | N144: 649.93 | O144: 3355.77 | P144: 23.5 | Q144: 0 | R144: 23.5 | S144: 63.7755102 | T144: 68.89691094 | U144: 68.89691094 | V144: 1.79 | W144: 1.581642353 | X144: 94 | Y144: -0.214 | Z144: 0.09226190476 | AA144: 0.3322527473 | AB144: -6.442448249 | AC144: -2.819662491 | AD144: 5.048922913 | AE144: FALSE | AF144: TRUE | AG144: FALSE | AH144: 1 | AI144: FALSE | AJ144: FALSE | AK144: FALSE | AL144: 0 | AM144: FALSE | AN144: FALSE | AO144: TRUE | AP144: TRUE | AQ144: FALSE | AR144: FALSE | AS144: 2 | AT144: 1 | AU144: 1 | AV144: 2 | AW144: 1 | AX144: FALSE | AY144: FALSE | AZ144: FALSE | BA144: FALSE | BB144: FALSE | BC144: FALSE | BD144: FALSE | BE144: 94 | BF144: 94 | BG144: FALSE | BI144: FALSE | BN144: FALSE | BP144: FALSE
A145: 113 | B145: =OFFSET(InputPriceData!B$15,CalculationsAndCharts!$A145+$A$11,0,1,1) -> 2012-12-04 | C145: =OFFSET(InputPriceData!G$15,CalculationsAndCharts!$A145+$A$11,IF($C$7,8,0),1,1) -> 127512200 | D145: =OFFSET(InputPriceData!C$15,CalculationsAndCharts!$A145+$A$11,IF($C$7,8,0),1,1) -> 141.44 | E145: =OFFSET(InputPriceData!D$15,CalculationsAndCharts!$A145+$A$11,IF($C$7,8,0),1,1) -> 141.87 | F145: =OFFSET(InputPriceData!E$15,CalculationsAndCharts!$A145+$A$11,IF($C$7,8,0),1,1) -> 140.87 | G145: =OFFSET(InputPriceData!F$15,CalculationsAndCharts!$A145+$A$11,IF($C$7,8,0),1,1) -> 141.25 | L145: 13332.27 | M145: 2682.34 | N145: 649.93 | O145: 3332.27 | P145: -17.86 | Q145: 0 | R145: -17.86 | S145: 65.49586777 | T145: 79.43524919 | U145: 79.43524919 | V145: 1 | W145: 1.570676161 | X145: 94 | Y145: -0.109 | Z145: 0.08833333333 | AA145: 0.4536813187 | AB145: -2.957054805 | AC145: -0.2877212818 | AD145: 7.334671246 | AE145: FALSE | AF145: TRUE | AG145: FALSE | AH145: 1 | AI145: FALSE | AJ145: FALSE | AK145: FALSE | AL145: 0 | AM145: FALSE | AN145: FALSE | AO145: TRUE | AP145: TRUE | AQ145: FALSE | AR145: FALSE | AS145: 2 | AT145: 1 | AU145: 1 | AV145: 2 | AW145: 1 | AX145: FALSE | AY145: FALSE | AZ145: FALSE | BA145: FALSE | BB145: FALSE | BC145: FALSE | BD145: FALSE | BE145: 94 | BF145: 94 | BG145: TRUE | BH145: 141.44 | BI145: FALSE | BK145: 141.44 | BN145: FALSE | BP145: FALSE
A146: 114 | B146: =OFFSET(InputPriceData!B$15,CalculationsAndCharts!$A146+$A$11,0,1,1) -> 2012-12-03 | C146: =OFFSET(InputPriceData!G$15,CalculationsAndCharts!$A146+$A$11,IF($C$7,8,0),1,1) -> 124656300 | D146: =OFFSET(InputPriceData!C$15,CalculationsAndCharts!$A146+$A$11,IF($C$7,8,0),1,1) -> 142.8 | E146: =OFFSET(InputPriceData!D$15,CalculationsAndCharts!$A146+$A$11,IF($C$7,8,0),1,1) -> 142.92 | F146: =OFFSET(InputPriceData!E$15,CalculationsAndCharts!$A146+$A$11,IF($C$7,8,0),1,1) -> 141.34 | G146: =OFFSET(InputPriceData!F$15,CalculationsAndCharts!$A146+$A$11,IF($C$7,8,0),1,1) -> 141.45 | L146: 13350.13 | M146: 2700.2 | N146: 649.93 | O146: 3350.13 | P146: 0 | Q146: 0 | R146: 0 | S146: 77.41935484 | T146: 89.27209395 | U146: 89.27209395 | V146: 1.58 | W146: 1.600711749 | X146: 94 | Y146: 0.293 | Z146: 0.265952381 | AA146: 0.5452747253 | AB146: -0.2965294136 | AC146: 2.795044365 | AD146: 8.805765868 | AE146: TRUE | AF146: FALSE | AG146: FALSE | AH146: 1 | AI146: FALSE | AJ146: FALSE | AK146: FALSE | AL146: 0 | AM146: FALSE | AN146: TRUE | AO146: TRUE | AP146: FALSE | AQ146: FALSE | AR146: FALSE | AS146: 3 | AT146: 0 | AU146: 2 | AV146: 1 | AW146: 0 | AX146: FALSE | AY146: FALSE | AZ146: FALSE | BA146: FALSE | BB146: FALSE | BC146: TRUE | BD146: FALSE | BE146: 94 | BF146: 96 | BG146: FALSE | BI146: FALSE | BN146: FALSE | BP146: FALSE
A147: 115 | B147: =OFFSET(InputPriceData!B$15,CalculationsAndCharts!$A147+$A$11,0,1,1) -> 2012-11-30 | C147: =OFFSET(InputPriceData!G$15,CalculationsAndCharts!$A147+$A$11,IF($C$7,8,0),1,1) -> 136568300 | D147: =OFFSET(InputPriceData!C$15,CalculationsAndCharts!$A147+$A$11,IF($C$7,8,0),1,1) -> 142.14 | E147: =OFFSET(InputPriceData!D$15,CalculationsAndCharts!$A147+$A$11,IF($C$7,8,0),1,1) -> 142.42 | F147: =OFFSET(InputPriceData!E$15,CalculationsAndCharts!$A147+$A$11,IF($C$7,8,0),1,1) -> 141.66 | G147: =OFFSET(InputPriceData!F$15,CalculationsAndCharts!$A147+$A$11,IF($C$7,8,0),1,1) -> 142.15 | L147: 13350.13 | M147: 2700.2 | N147: 649.93 | O147: 3350.13 | P147: 0 | Q147: 0 | R147: 0 | S147: 95.39052497 | T147: 96.40911212 | U147: 96.40911212 | V147: 0.76 | W147: 1.601801841 | X147: 93 | Y147: 0.399 | Z147: 0.400952381 | AA147: 0.5386263736 | AB147: 0.7942383609 | AC147: 6.286728021 | AD147: 9.436240935 | AE147: FALSE | AF147: FALSE | AG147: FALSE | AH147: 0 | AI147: FALSE | AJ147: FALSE | AK147: FALSE | AL147: 0 | AM147: TRUE | AN147: TRUE | AO147: TRUE | AP147: FALSE | AQ147: FALSE | AR147: FALSE | AS147: 3 | AT147: 0 | AU147: 3 | AV147: 0 | AW147: 0 | AX147: TRUE | AY147: FALSE | AZ147: FALSE | BA147: FALSE | BB147: FALSE | BC147: FALSE | BD147: FALSE | BE147: 93 | BF147: 96 | BG147: FALSE | BI147: FALSE | BN147: FALSE | BP147: FALSE
A148: 116 | B148: =OFFSET(InputPriceData!B$15,CalculationsAndCharts!$A148+$A$11,0,1,1) -> 2012-11-29 | C148: =OFFSET(InputPriceData!G$15,CalculationsAndCharts!$A148+$A$11,IF($C$7,8,0),1,1) -> 151085900 | D148: =OFFSET(InputPriceData!C$15,CalculationsAndCharts!$A148+$A$11,IF($C$7,8,0),1,1) -> 141.99 | E148: =OFFSET(InputPriceData!D$15,CalculationsAndCharts!$A148+$A$11,IF($C$7,8,0),1,1) -> 142.51 | F148: =OFFSET(InputPriceData!E$15,CalculationsAndCharts!$A148+$A$11,IF($C$7,8,0),1,1) -> 141.37 | G148: =OFFSET(InputPriceData!F$15,CalculationsAndCharts!$A148+$A$11,IF($C$7,8,0),1,1) -> 142.12 | L148: 13350.13 | M148: 2700.2 | N148: 649.93 | O148: 3350.13 | P148: 0 | Q148: 0 | R148: 0 | S148: 95.00640205 | T148: 92.62222072 | U148: 92.62222072 | V148: 1.14 | W148: 1.646107201 | X148: 93 | Y148: 0.195 | Z148: 0.4121428571 | AA148: 0.4691208791 | AB148: 2.087230787 | AC148: 9.565343496 | AD148: 9.406991337 | AE148: FALSE | AF148: FALSE | AG148: FALSE | AH148: 0 | AI148: FALSE | AJ148: FALSE | AK148: FALSE | AL148: 0 | AM148: TRUE | AN148: TRUE | AO148: TRUE | AP148: FALSE | AQ148: FALSE | AR148: FALSE | AS148: 3 | AT148: 0 | AU148: 3 | AV148: 0 | AW148: 0 | AX148: TRUE | AY148: FALSE | AZ148: FALSE | BA148: FALSE | BB148: FALSE | BC148: FALSE | BD148: FALSE | BE148: 93 | BF148: 96 | BG148: FALSE | BI148: FALSE | BN148: FALSE | BP148: FALSE
A149: 117 | B149: =OFFSET(InputPriceData!B$15,CalculationsAndCharts!$A149+$A$11,0,1,1) -> 2012-11-28 | C149: =OFFSET(InputPriceData!G$15,CalculationsAndCharts!$A149+$A$11,IF($C$7,8,0),1,1) -> 177086500 | D149: =OFFSET(InputPriceData!C$15,CalculationsAndCharts!$A149+$A$11,IF($C$7,8,0),1,1) -> 139.76 | E149: =OFFSET(InputPriceData!D$15,CalculationsAndCharts!$A149+$A$11,IF($C$7,8,0),1,1) -> 141.54 | F149: =OFFSET(InputPriceData!E$15,CalculationsAndCharts!$A149+$A$11,IF($C$7,8,0),1,1) -> 139 | G149: =OFFSET(InputPriceData!F$15,CalculationsAndCharts!$A149+$A$11,IF($C$7,8,0),1,1) -> 141.46 | L149: 13350.13 | M149: 2700.2 | N149: 649.93 | O149: 3350.13 | P149: 0 | Q149: 0 | R149: 0 | S149: 98.83040936 | T149: 92.54545984 | U149: 92.54545984 | V149: 2.54 | W149: 1.672744422 | X149: 94 | Y149: 0.3 | Z149: 0.5846428571 | AA149: 0.3830769231 | AB149: 6.36943667 | AC149: 12.84034213 | AD149: 9.009226708 | AE149: FALSE | AF149: FALSE | AG149: FALSE | AH149: 0 | AI149: FALSE | AJ149: FALSE | AK149: FALSE | AL149: 0 | AM149: TRUE | AN149: TRUE | AO149: TRUE | AP149: FALSE | AQ149: FALSE | AR149: FALSE | AS149: 3 | AT149: 0 | AU149: 3 | AV149: 0 | AW149: 0 | AX149: TRUE | AY149: FALSE | AZ149: FALSE | BA149: FALSE | BB149: FALSE | BC149: FALSE | BD149: FALSE | BE149: 94 | BF149: 96 | BG149: FALSE | BI149: FALSE | BN149: FALSE | BP149: FALSE
A150: 118 | B150: =OFFSET(InputPriceData!B$15,CalculationsAndCharts!$A150+$A$11,0,1,1) -> 2012-11-27 | C150: =OFFSET(InputPriceData!G$15,CalculationsAndCharts!$A150+$A$11,IF($C$7,8,0),1,1) -> 128646200 | D150: =OFFSET(InputPriceData!C$15,CalculationsAndCharts!$A150+$A$11,IF($C$7,8,0),1,1) -> 140.91 | E150: =OFFSET(InputPriceData!D$15,CalculationsAndCharts!$A150+$A$11,IF($C$7,8,0),1,1) -> 141.39 | F150: =OFFSET(InputPriceData!E$15,CalculationsAndCharts!$A150+$A$11,IF($C$7,8,0),1,1) -> 140.24 | G150: =OFFSET(InputPriceData!F$15,CalculationsAndCharts!$A150+$A$11,IF($C$7,8,0),1,1) -> 140.33 | L150: 13350.13 | M150: 2700.2 | N150: 649.93 | O150: 3350.13 | P150: 0 | Q150: 0 | R150: 0 | S150: 84.02985075 | T150: 92.68656716 | U150: 92.68656716 | V150: 1.15 | W150: 1.627099392 | X150: 95 | Y150: 0.388 | Z150: 0.7467857143 | AA150: 0.3046153846 | AB150: 12.28735194 | AC150: 14.48539094 | AD150: 7.413570147 | AE150: FALSE | AF150: FALSE | AG150: FALSE | AH150: 0 | AI150: FALSE | AJ150: FALSE | AK150: FALSE | AL150: 0 | AM150: TRUE | AN150: TRUE | AO150: TRUE | AP150: FALSE | AQ150: FALSE | AR150: FALSE | AS150: 3 | AT150: 0 | AU150: 3 | AV150: 0 | AW150: 0 | AX150: TRUE | AY150: FALSE | AZ150: FALSE | BA150: FALSE | BB150: FALSE | BC150: FALSE | BD150: FALSE | BE150: 95 | BF150: 96 | BG150: FALSE | BI150: FALSE | BN150: FALSE | BP150: TRUE | BQ150: 140.91 | BS150: 140.91
A151: 119 | B151: =OFFSET(InputPriceData!B$15,CalculationsAndCharts!$A151+$A$11,0,1,1) -> 2012-11-26 | C151: =OFFSET(InputPriceData!G$15,CalculationsAndCharts!$A151+$A$11,IF($C$7,8,0),1,1) -> 100124400 | D151: =OFFSET(InputPriceData!C$15,CalculationsAndCharts!$A151+$A$11,IF($C$7,8,0),1,1) -> 140.65 | E151: =OFFSET(InputPriceData!D$15,CalculationsAndCharts!$A151+$A$11,IF($C$7,8,0),1,1) -> 141.36 | F151: =OFFSET(InputPriceData!E$15,CalculationsAndCharts!$A151+$A$11,IF($C$7,8,0),1,1) -> 140.19 | G151: =OFFSET(InputPriceData!F$15,CalculationsAndCharts!$A151+$A$11,IF($C$7,8,0),1,1) -> 141.05 | L151: 13350.13 | M151: 2700.2 | N151: 649.93 | O151: 3350.13 | P151: 0 | Q151: 67.2 | R151: 67.2 | S151: 94.7761194 | T151: 92.4057471 | U151: 92.4057471 | V151: 1.17 | W151: 1.652209886 | X151: 94 | Y151: 0.6 | Z151: 0.8736904762 | AA151: 0.1954395604 | AB151: 17.24048751 | AC151: 13.88920577 | AD151: 5.1853135 | AE151: FALSE | AF151: FALSE | AG151: FALSE | AH151: 0 | AI151: FALSE | AJ151: FALSE | AK151: FALSE | AL151: 0 | AM151: TRUE | AN151: TRUE | AO151: TRUE | AP151: FALSE | AQ151: FALSE | AR151: FALSE | AS151: 3 | AT151: 0 | AU151: 3 | AV151: 0 | AW151: -1 | AX151: TRUE | AY151: FALSE | AZ151: TRUE | BA151: FALSE | BB151: FALSE | BC151: FALSE | BD151: FALSE | BE151: 94 | BF151: 96 | BG151: FALSE | BI151: FALSE | BN151: FALSE | BP151: FALSE
A152: 120 | B152: =OFFSET(InputPriceData!B$15,CalculationsAndCharts!$A152+$A$11,0,1,1) -> 2012-11-23 | C152: =OFFSET(InputPriceData!G$15,CalculationsAndCharts!$A152+$A$11,IF($C$7,8,0),1,1) -> 65409200 | D152: =OFFSET(InputPriceData!C$15,CalculationsAndCharts!$A152+$A$11,IF($C$7,8,0),1,1) -> 140.13 | E152: =OFFSET(InputPriceData!D$15,CalculationsAndCharts!$A152+$A$11,IF($C$7,8,0),1,1) -> 141.4 | F152: =OFFSET(InputPriceData!E$15,CalculationsAndCharts!$A152+$A$11,IF($C$7,8,0),1,1) -> 140.04 | G152: =OFFSET(InputPriceData!F$15,CalculationsAndCharts!$A152+$A$11,IF($C$7,8,0),1,1) -> 141.35 | L152: 13282.93 | M152: 2700.2 | N152: 582.73 | O152: 3282.93 | P152: 0 | Q152: -117.12 | R152: -117.12 | S152: 99.25373134 | T152: 82.25592315 | U152: 82.25592315 | V152: 1.95 | W152: 1.677589353 | X152: 93 | Y152: 1.028 | Z152: 0.6636904762 | AA152: -0.05159340659 | AB152: 18.61085187 | AC152: 11.12461623 | AD152: 2.623499002 | AE152: FALSE | AF152: FALSE | AG152: FALSE | AH152: 0 | AI152: FALSE | AJ152: FALSE | AK152: TRUE | AL152: 1 | AM152: TRUE | AN152: TRUE | AO152: FALSE | AP152: FALSE | AQ152: FALSE | AR152: FALSE | AS152: 2 | AT152: 1 | AU152: 3 | AV152: 0 | AW152: -1 | AX152: FALSE | AY152: FALSE | AZ152: FALSE | BA152: FALSE | BB152: FALSE | BC152: FALSE | BD152: FALSE | BE152: 93 | BF152: 96 | BG152: FALSE | BI152: FALSE | BN152: TRUE | BO152: 140.13 | BP152: FALSE | BR152: 140.13
A153: 121 | B153: =OFFSET(InputPriceData!B$15,CalculationsAndCharts!$A153+$A$11,0,1,1) -> 2012-11-21 | C153: =OFFSET(InputPriceData!G$15,CalculationsAndCharts!$A153+$A$11,IF($C$7,8,0),1,1) -> 81710800 | D153: =OFFSET(InputPriceData!C$15,CalculationsAndCharts!$A153+$A$11,IF($C$7,8,0),1,1) -> 139.31 | E153: =OFFSET(InputPriceData!D$15,CalculationsAndCharts!$A153+$A$11,IF($C$7,8,0),1,1) -> 139.57 | F153: =OFFSET(InputPriceData!E$15,CalculationsAndCharts!$A153+$A$11,IF($C$7,8,0),1,1) -> 139.03 | G153: =OFFSET(InputPriceData!F$15,CalculationsAndCharts!$A153+$A$11,IF($C$7,8,0),1,1) -> 139.45 | L153: 13400.05 | M153: 2700.2 | N153: 699.85 | O153: 3400.05 | P153: 0 | Q153: 0 | R153: 0 | S153: 83.18739054 | T153: 65.91359849 | U153: 65.91359849 | V153: 0.54 | W153: 1.663251951 | X153: 96 | Y153: 1.032 | Z153: 0.3039285714 | AA153: -0.2630769231 | AB153: 15.55881743 | AC153: 7.607141214 | AD153: 0.5830584206 | AE153: FALSE | AF153: FALSE | AG153: FALSE | AH153: 0 | AI153: FALSE | AJ153: FALSE | AK153: TRUE | AL153: 1 | AM153: TRUE | AN153: TRUE | AO153: FALSE | AP153: FALSE | AQ153: FALSE | AR153: FALSE | AS153: 2 | AT153: 1 | AU153: 3 | AV153: 0 | AW153: 0 | AX153: FALSE | AY153: FALSE | AZ153: FALSE | BA153: FALSE | BB153: FALSE | BC153: FALSE | BD153: TRUE | BE153: 96 | BF153: 95 | BG153: FALSE | BI153: FALSE | BN153: FALSE | BP153: FALSE
A154: 122 | B154: =OFFSET(InputPriceData!B$15,CalculationsAndCharts!$A154+$A$11,0,1,1) -> 2012-11-20 | C154: =OFFSET(InputPriceData!G$15,CalculationsAndCharts!$A154+$A$11,IF($C$7,8,0),1,1) -> 119807400 | D154: =OFFSET(InputPriceData!C$15,CalculationsAndCharts!$A154+$A$11,IF($C$7,8,0),1,1) -> 138.91 | E154: =OFFSET(InputPriceData!D$15,CalculationsAndCharts!$A154+$A$11,IF($C$7,8,0),1,1) -> 139.42 | F154: =OFFSET(InputPriceData!E$15,CalculationsAndCharts!$A154+$A$11,IF($C$7,8,0),1,1) -> 138.08 | G154: =OFFSET(InputPriceData!F$15,CalculationsAndCharts!$A154+$A$11,IF($C$7,8,0),1,1) -> 139.19 | L154: 13400.05 | M154: 2700.2 | N154: 699.85 | O154: 3400.05 | P154: 0 | Q154: 0 | R154: 0 | S154: 64.32664756 | T154: 44.49588177 | U154: 44.49588177 | V154: 1.34 | W154: 1.722370475 | X154: 96 | Y154: 0.995 | Z154: 0.08357142857 | AA154: -0.3891758242 | AB154: 9.367768405 | AC154: 3.999041823 | AD154: -0.9829745496 | AE154: FALSE | AF154: FALSE | AG154: FALSE | AH154: 0 | AI154: FALSE | AJ154: FALSE | AK154: FALSE | AL154: 0 | AM154: TRUE | AN154: TRUE | AO154: FALSE | AP154: FALSE | AQ154: FALSE | AR154: TRUE | AS154: 2 | AT154: 1 | AU154: 2 | AV154: 1 | AW154: 0 | AX154: FALSE | AY154: FALSE | AZ154: FALSE | BA154: FALSE | BB154: FALSE | BC154: FALSE | BD154: FALSE | BE154: 96 | BF154: 95 | BG154: FALSE | BI154: FALSE | BN154: FALSE | BP154: FALSE
A155: 123 | B155: =OFFSET(InputPriceData!B$15,CalculationsAndCharts!$A155+$A$11,0,1,1) -> 2012-11-19 | C155: =OFFSET(InputPriceData!G$15,CalculationsAndCharts!$A155+$A$11,IF($C$7,8,0),1,1) -> 151495800 | D155: =OFFSET(InputPriceData!C$15,CalculationsAndCharts!$A155+$A$11,IF($C$7,8,0),1,1) -> 137.9 | E155: =OFFSET(InputPriceData!D$15,CalculationsAndCharts!$A155+$A$11,IF($C$7,8,0),1,1) -> 139.15 | F155: =OFFSET(InputPriceData!E$15,CalculationsAndCharts!$A155+$A$11,IF($C$7,8,0),1,1) -> 136.41 | G155: =OFFSET(InputPriceData!F$15,CalculationsAndCharts!$A155+$A$11,IF($C$7,8,0),1,1) -> 139.13 | L155: 13400.05 | M155: 2700.2 | N155: 699.85 | O155: 3400.05 | P155: 0 | Q155: 0 | R155: 0 | S155: 50.22675737 | T155: 25.08333024 | U155: 25.08333024 | V155: 2.78 | W155: 1.742495237 | X155: 96 | Y155: 0.312 | Z155: -0.1296428571 | AA155: -0.5355494505 | AB155: 3.348633218 | AC155: -0.5469096083 | AD155: -1.913224934 | AE155: FALSE | AF155: FALSE | AG155: FALSE | AH155: 0 | AI155: FALSE | AJ155: FALSE | AK155: FALSE | AL155: 0 | AM155: TRUE | AN155: FALSE | AO155: FALSE | AP155: FALSE | AQ155: TRUE | AR155: TRUE | AS155: 1 | AT155: 2 | AU155: 1 | AV155: 2 | AW155: 0 | AX155: FALSE | AY155: FALSE | AZ155: FALSE | BA155: FALSE | BB155: FALSE | BC155: FALSE | BD155: FALSE | BE155: 96 | BF155: 95 | BG155: FALSE | BI155: FALSE | BN155: FALSE | BP155: FALSE
A156: 124 | B156: =OFFSET(InputPriceData!B$15,CalculationsAndCharts!$A156+$A$11,0,1,1) -> 2012-11-16 | C156: =OFFSET(InputPriceData!G$15,CalculationsAndCharts!$A156+$A$11,IF($C$7,8,0),1,1) -> 239483900 | D156: =OFFSET(InputPriceData!C$15,CalculationsAndCharts!$A156+$A$11,IF($C$7,8,0),1,1) -> 135.9 | E156: =OFFSET(InputPriceData!D$15,CalculationsAndCharts!$A156+$A$11,IF($C$7,8,0),1,1) -> 136.64 | F156: =OFFSET(InputPriceData!E$15,CalculationsAndCharts!$A156+$A$11,IF($C$7,8,0),1,1) -> 134.7 | G156: =OFFSET(InputPriceData!F$15,CalculationsAndCharts!$A156+$A$11,IF($C$7,8,0),1,1) -> 136.37 | L156: 13400.05 | M156: 2700.2 | N156: 699.85 | O156: 3400.05 | P156: 0 | Q156: 0 | R156: 0 | S156: 18.93424036 | T156: 9.616797944 | U156: 9.616797944 | V156: 1.94 | W156: 1.687889723 | X156: 98 | Y156: -0.589 | Z156: -0.5038095238 | AA156: -0.6108241758 | AB156: -0.02834868702 | AC156: -4.064036976 | AD156: -1.932478418 | AE156: FALSE | AF156: FALSE | AG156: FALSE | AH156: 0 | AI156: FALSE | AJ156: FALSE | AK156: FALSE | AL156: 0 | AM156: FALSE | AN156: FALSE | AO156: FALSE | AP156: TRUE | AQ156: TRUE | AR156: TRUE | AS156: 0 | AT156: 3 | AU156: 0 | AV156: 3 | AW156: 0 | AX156: TRUE | AY156: FALSE | AZ156: FALSE | BA156: FALSE | BB156: FALSE | BC156: FALSE | BD156: FALSE | BE156: 98 | BF156: 95 | BG156: FALSE | BI156: FALSE | BN156: FALSE | BP156: FALSE
A157: 125 | B157: =OFFSET(InputPriceData!B$15,CalculationsAndCharts!$A157+$A$11,0,1,1) -> 2012-11-15 | C157: =OFFSET(InputPriceData!G$15,CalculationsAndCharts!$A157+$A$11,IF($C$7,8,0),1,1) -> 178128400 | D157: =OFFSET(InputPriceData!C$15,CalculationsAndCharts!$A157+$A$11,IF($C$7,8,0),1,1) -> 135.98 | E157: =OFFSET(InputPriceData!D$15,CalculationsAndCharts!$A157+$A$11,IF($C$7,8,0),1,1) -> 136.49 | F157: =OFFSET(InputPriceData!E$15,CalculationsAndCharts!$A157+$A$11,IF($C$7,8,0),1,1) -> 135.18 | G157: =OFFSET(InputPriceData!F$15,CalculationsAndCharts!$A157+$A$11,IF($C$7,8,0),1,1) -> 135.7 | L157: 13400.05 | M157: 2700.2 | N157: 699.85 | O157: 3400.05 | P157: 0 | Q157: 0 | R157: 0 | S157: 6.088992974 | T157: 5.559053252 | U157: 5.559053252 | V157: 1.31 | W157: 1.674620761 | X157: 98 | Y157: -0.726 | Z157: -0.8382142857 | AA157: -0.5677472527 | AB157: -0.6580939754 | AC157: -5.708969795 | AD157: -1.281018481 | AE157: FALSE | AF157: FALSE | AG157: FALSE | AH157: 0 | AI157: FALSE | AJ157: FALSE | AK157: FALSE | AL157: 0 | AM157: FALSE | AN157: FALSE | AO157: FALSE | AP157: TRUE | AQ157: TRUE | AR157: TRUE | AS157: 0 | AT157: 3 | AU157: 0 | AV157: 3 | AW157: 0 | AX157: TRUE | AY157: FALSE | AZ157: FALSE | BA157: FALSE | BB157: FALSE | BC157: FALSE | BD157: FALSE | BE157: 98 | BF157: 95 | BG157: FALSE | BI157: FALSE | BN157: FALSE | BP157: TRUE | BQ157: 135.98 | BS157: 135.98
A158: 126 | B158: =OFFSET(InputPriceData!B$15,CalculationsAndCharts!$A158+$A$11,0,1,1) -> 2012-11-14 | C158: =OFFSET(InputPriceData!G$15,CalculationsAndCharts!$A158+$A$11,IF($C$7,8,0),1,1) -> 191505000 | D158: =OFFSET(InputPriceData!C$15,CalculationsAndCharts!$A158+$A$11,IF($C$7,8,0),1,1) -> 138.21 | E158: =OFFSET(InputPriceData!D$15,CalculationsAndCharts!$A158+$A$11,IF($C$7,8,0),1,1) -> 138.43 | F158: =OFFSET(InputPriceData!E$15,CalculationsAndCharts!$A158+$A$11,IF($C$7,8,0),1,1) -> 135.62 | G158: =OFFSET(InputPriceData!F$15,CalculationsAndCharts!$A158+$A$11,IF($C$7,8,0),1,1) -> 135.93 | L158: 13400.05 | M158: 2700.2 | N158: 699.85 | O158: 3400.05 | P158: 0 | Q158: -39.9 | R158: -39.9 | S158: 3.827160494 | T158: 7.419178231 | U158: 7.419178231 | V158: 2.81 | W158: 1.693811327 | X158: 98 | Y158: -0.459 | Z158: -0.8514285714 | AA158: -0.4741758242 | AB158: -4.653255434 | AC158: -5.121855653 | AD158: -0.405982419 | AE158: FALSE | AF158: FALSE | AG158: FALSE | AH158: 0 | AI158: FALSE | AJ158: FALSE | AK158: FALSE | AL158: 0 | AM158: FALSE | AN158: FALSE | AO158: FALSE | AP158: TRUE | AQ158: TRUE | AR158: TRUE | AS158: 0 | AT158: 3 | AU158: 0 | AV158: 3 | AW158: -1 | AX158: TRUE | AY158: FALSE | AZ158: TRUE | BA158: FALSE | BB158: FALSE | BC158: FALSE | BD158: FALSE | BE158: 98 | BF158: 95 | BG158: FALSE | BI158: FALSE | BN158: FALSE | BP158: FALSE
A159: 127 | B159: =OFFSET(InputPriceData!B$15,CalculationsAndCharts!$A159+$A$11,0,1,1) -> 2012-11-13 | C159: =OFFSET(InputPriceData!G$15,CalculationsAndCharts!$A159+$A$11,IF($C$7,8,0),1,1) -> 123018300 | D159: =OFFSET(InputPriceData!C$15,CalculationsAndCharts!$A159+$A$11,IF($C$7,8,0),1,1) -> 137.54 | E159: =OFFSET(InputPriceData!D$15,CalculationsAndCharts!$A159+$A$11,IF($C$7,8,0),1,1) -> 139.25 | F159: =OFFSET(InputPriceData!E$15,CalculationsAndCharts!$A159+$A$11,IF($C$7,8,0),1,1) -> 137.36 | G159: =OFFSET(InputPriceData!F$15,CalculationsAndCharts!$A159+$A$11,IF($C$7,8,0),1,1) -> 137.79 | L159: 13439.95 | M159: 2700.2 | N159: 739.75 | O159: 3439.95 | P159: 0 | Q159: 45.6 | R159: 45.6 | S159: 6.761006289 | T159: 9.438974004 | U159: 9.438974004 | V159: 1.89 | W159: 1.635064555 | X159: 97 | Y159: -0.363 | Z159: -0.7186904762 | AA159: -0.3444505495 | AB159: -8.410357757 | AC159: -3.825465637 | AD159: 0.2854387135 | AE159: FALSE | AF159: FALSE | AG159: FALSE | AH159: 0 | AI159: FALSE | AJ159: FALSE | AK159: TRUE | AL159: 1 | AM159: FALSE | AN159: FALSE | AO159: FALSE | AP159: TRUE | AQ159: TRUE | AR159: FALSE | AS159: 0 | AT159: 3 | AU159: 1 | AV159: 2 | AW159: -1 | AX159: FALSE | AY159: FALSE | AZ159: FALSE | BA159: FALSE | BB159: FALSE | BC159: FALSE | BD159: FALSE | BE159: 97 | BF159: 95 | BG159: FALSE | BI159: FALSE | BN159: FALSE | BP159: FALSE
A160: 128 | B160: =OFFSET(InputPriceData!B$15,CalculationsAndCharts!$A160+$A$11,0,1,1) -> 2012-11-12 | C160: =OFFSET(InputPriceData!G$15,CalculationsAndCharts!$A160+$A$11,IF($C$7,8,0),1,1) -> 97677500 | D160: =OFFSET(InputPriceData!C$15,CalculationsAndCharts!$A160+$A$11,IF($C$7,8,0),1,1) -> 138.59 | E160: =OFFSET(InputPriceData!D$15,CalculationsAndCharts!$A160+$A$11,IF($C$7,8,0),1,1) -> 138.81 | F160: =OFFSET(InputPriceData!E$15,CalculationsAndCharts!$A160+$A$11,IF($C$7,8,0),1,1) -> 137.96 | G160: =OFFSET(InputPriceData!F$15,CalculationsAndCharts!$A160+$A$11,IF($C$7,8,0),1,1) -> 138.27 | L160: 13394.35 | M160: 2700.2 | N160: 694.15 | O160: 3394.35 | P160: 0 | Q160: -10.45 | R160: -10.45 | S160: 11.66936791 | T160: 7.818581003 | U160: 7.818581003 | V160: 0.85 | W160: 1.6216469 | X160: 96 | Y160: -1.094 | Z160: -0.7570238095 | AA160: -0.2714835165 | AB160: -9.857537542 | AC160: -2.235291327 | AD160: 0.7496063463 | AE160: FALSE | AF160: FALSE | AG160: FALSE | AH160: 0 | AI160: FALSE | AJ160: FALSE | AK160: TRUE | AL160: 1 | AM160: FALSE | AN160: FALSE | AO160: FALSE | AP160: TRUE | AQ160: TRUE | AR160: FALSE | AS160: 0 | AT160: 3 | AU160: 1 | AV160: 2 | AW160: -1 | AX160: FALSE | AY160: FALSE | AZ160: FALSE | BA160: FALSE | BB160: FALSE | BC160: FALSE | BD160: FALSE | BE160: 96 | BF160: 95 | BG160: FALSE | BI160: FALSE | BN160: FALSE | BP160: FALSE
A161: 129 | B161: =OFFSET(InputPriceData!B$15,CalculationsAndCharts!$A161+$A$11,0,1,1) -> 2012-11-09 | C161: =OFFSET(InputPriceData!G$15,CalculationsAndCharts!$A161+$A$11,IF($C$7,8,0),1,1) -> 201055300 | D161: =OFFSET(InputPriceData!C$15,CalculationsAndCharts!$A161+$A$11,IF($C$7,8,0),1,1) -> 137.62 | E161: =OFFSET(InputPriceData!D$15,CalculationsAndCharts!$A161+$A$11,IF($C$7,8,0),1,1) -> 139.44 | F161: =OFFSET(InputPriceData!E$15,CalculationsAndCharts!$A161+$A$11,IF($C$7,8,0),1,1) -> 137.55 | G161: =OFFSET(InputPriceData!F$15,CalculationsAndCharts!$A161+$A$11,IF($C$7,8,0),1,1) -> 138.16 | L161: =IF(A161=$A$8,IF($D$21,$D$25,$D$26),IF(A161<$A$8,L162,NA()))+R161 -> 13404.8 | M161: =IF(A161=$A$8,0,IF(A161<$A$8,M162,NA()))+P161 -> 2700.2 | N161: =IF(A161=$A$8,0,IF(A161<$A$8,N162,NA()))+Q161 -> 704.6 | O161: =O162+R161 -> 3404.8 | P161: =IF(AY161,AW162*BF162*(D161-G162)*$D$23,IF( AW161 <=0,0,IF(BC162,AW161*BF161*(G161-D161)*$D$23,AW161*BF161*(G161-G162)*$D$23))) -> 0 | Q161: =IF(AZ161,AW162*BF162*(D161-G162)*$D$23,IF( AW161 >=0,0,IF(BD162,AW161*BF161*(G161-D161)*$D$23, AW161*BF161*(G161-G162)*$D$23))) -> -11.4 | R161: =P161+Q161 -> -11.4 | S161: =(G161-MIN(OFFSET(F161,0,0,$A$21,1)))/(MAX(OFFSET(E161,0,0,$A$21,1))-MIN(OFFSET(F161,0,0,$A$21,1)))*100 -> 9.886547812 | T161: 8.649821743 | U161: =IF($A$20,S161,T161) -> 8.649821743 | V161: =MAX(E161-F161,IF(A161<$A$8,MAX(ABS(E161-G162),ABS(F161-G162)),0)) -> 1.89 | W161: =IF(A161<$W$31,(W162*($D$22-1)+V161)/$D$22,IF(A161=$W$31,AVERAGE(OFFSET(V161,0,0,$D$22,1)),NA())) -> 1.662259895 | X161: =INT(IF($D$20,IF($D$21,L161/(W161*$D$23),L161/G161),1)) -> 97 | Y161: =-SLOPE(OFFSET(G161,0,0,$A$22,1),OFFSET(A161,0,0,$A$22,1)) -> -1.23 | Z161: =-SLOPE(OFFSET(G161,0,0,$A$23,1),OFFSET(A161,0,0,$A$23,1)) -> -0.603452381 | AA161: =-SLOPE(OFFSET(G161,0,0,$A$24,1),OFFSET(A161,0,0,$A$24,1)) -> -0.2626373626 | AB161: =-SLOPE(OFFSET(U161,0,0,$A$22,1),OFFSET(A161,0,0,$A$22,1)) -> -5.120851696 | AC161: =-SLOPE(OFFSET(U161,0,0,$A$23,1),OFFSET(A161,0,0,$A$23,1)) -> 0.5724274669 | AD161: =-SLOPE(OFFSET(U161,0,0,$A$24,1),OFFSET(A161,0,0,$A$24,1)) -> 0.6662464724 | AE161: FALSE | AF161: FALSE | AG161: FALSE | AH161: 0 | AI161: FALSE | AJ161: TRUE | AK161: TRUE | AL161: 2 | AM161: FALSE | AN161: FALSE | AO161: FALSE | AP161: TRUE | AQ161: FALSE | AR161: FALSE | AS161: 0 | AT161: 3 | AU161: 2 | AV161: 1 | AW161: =AW162+IF(BD162,-1,0)+IF(BC162,1,0)+IF(AY162,-1,0)+IF(AZ162,1,0)+IF(BA162,1,0)+IF(BB162,-1,0) -> -1 | AX161: =OR(AND(AS161=$A$27,AU161=$A$27),AND(AT161=$A$27,AV161=$A$27)) -> FALSE | AY161: =AND(AX161,AW161>0) -> FALSE | AZ161: =AND(AX161,AW161<0) -> FALSE | BA161: =AND(AW161<0,AH161>=$A$25) -> FALSE | BB161: =AND(NOT($A$26),AW161>0,AL161>=$A$25) -> FALSE | BC161: =AND(AW161<=0,AH161>=$A$25) -> FALSE | BD161: =AND(NOT($A$26),AW161>=0,AL161>=$A$25) -> FALSE | BE161: =INT(IF(NOT($D$20),$D$24,IF($D$21,L161/(W161*$D$23),L161/G161))) -> 97 | BF161: =IF(AND(AW162=0,AW161<>0,OR(BC162,BD162)),BE162,BF162) -> 95 | BG161: FALSE | BH161: =IF(BC162,D161,NA()) ->  | BI161: =OR(AY162,BB161) -> FALSE | BJ161: =IF(AY162,D161,IF(BB161,G161,NA())) ->  | BK161: =IF(BC162,D161,NA()) ->  | BL161: =IF(AY162,D161,NA()) ->  | BM161: =IF(BB161,G161,NA()) ->  | BN161: FALSE | BO161: =IF(BD162,D161,NA()) ->  | BP161: =OR(AZ162,BA161) -> FALSE | BQ161: =IF(AZ162,D161,IF(BA161,G161,NA())) ->  | BR161: =IF(BD162,D161,NA()) ->  | BS161: =IF(AZ162,D161,NA()) ->  | BT161: =IF(BA161,G161,NA()) -> 
A162: 130 | B162: =OFFSET(InputPriceData!B$15,CalculationsAndCharts!$A162+$A$11,0,1,1) -> 2012-11-08 | C162: =OFFSET(InputPriceData!G$15,CalculationsAndCharts!$A162+$A$11,IF($C$7,8,0),1,1) -> 181517300 | D162: =OFFSET(InputPriceData!C$15,CalculationsAndCharts!$A162+$A$11,IF($C$7,8,0),1,1) -> 139.7 | E162: =OFFSET(InputPriceData!D$15,CalculationsAndCharts!$A162+$A$11,IF($C$7,8,0),1,1) -> 140.41 | F162: =OFFSET(InputPriceData!E$15,CalculationsAndCharts!$A162+$A$11,IF($C$7,8,0),1,1) -> 137.93 | G162: =OFFSET(InputPriceData!F$15,CalculationsAndCharts!$A162+$A$11,IF($C$7,8,0),1,1) -> 138.04 | L162: 13416.2 | M162: 2700.2 | N162: 716 | O162: 3416.2 | P162: 0 | Q162: 157.7 | R162: 157.7 | S162: 1.899827288 | T162: =AVERAGE(S162:S164) -> 31.08003153 | U162: 31.08003153 | V162: 2.48 | W162: 1.650273573 | X162: 97 | Y162: -0.917 | Z162: -0.3647619048 | AA162: -0.2206593407 | AB162: 2.327566059 | AC162: 3.796404344 | AD162: 0.1482890363 | AE162: =AND(Y162>0,AB162<0) -> FALSE | AF162: =AND(Z162>0,AC162<0) -> FALSE | AG162: =AND(AA162>0,AD162<0) -> FALSE | AH162: =COUNTIF(AE162:AG162,TRUE) -> 0 | AI162: =AND(Y162<0,AB162>0) -> TRUE | AJ162: =AND(Z162<0,AC162>0) -> TRUE | AK162: =AND(AA162<0,AD162>0) -> TRUE | AL162: =COUNTIF(AI162:AK162,TRUE) -> 3 | AM162: =AND(Y162>0,AB162>0) -> FALSE | AN162: =AND(Z162>0,AC162>0) -> FALSE | AO162: =AND(AA162>0,AD162>0) -> FALSE | AP162: =AND(Y162<0,AB162<0) -> FALSE | AQ162: =AND(Z162<0,AC162<0) -> FALSE | AR162: =AND(AA162<0,AD162<0) -> FALSE | AS162: =COUNTIF(Y162:AA162,">=0") -> 0 | AT162: =COUNTIF(Y162:AA162,"<0") -> 3 | AU162: =COUNTIF(AB162:AD162,">=0") -> 3 | AV162: =COUNTIF(AB162:AD162,"<0") -> 0 | AW162: -1 | AX162: FALSE | AY162: FALSE | AZ162: FALSE | BA162: FALSE | BB162: FALSE | BC162: FALSE | BD162: FALSE | BE162: 97 | BF162: 95 | BG162: =BC163 -> FALSE | BI162: FALSE | BN162: =BD163 -> TRUE | BO162: 139.7 | BP162: FALSE | BR162: 139.7
A163: 131 | B163: =OFFSET(InputPriceData!B$15,CalculationsAndCharts!$A163+$A$11,0,1,1) -> 2012-11-07 | C163: =OFFSET(InputPriceData!G$15,CalculationsAndCharts!$A163+$A$11,IF($C$7,8,0),1,1) -> 264304500 | D163: =OFFSET(InputPriceData!C$15,CalculationsAndCharts!$A163+$A$11,IF($C$7,8,0),1,1) -> 141.66 | E163: =OFFSET(InputPriceData!D$15,CalculationsAndCharts!$A163+$A$11,IF($C$7,8,0),1,1) -> 141.68 | F163: =OFFSET(InputPriceData!E$15,CalculationsAndCharts!$A163+$A$11,IF($C$7,8,0),1,1) -> 139.06 | G163: =OFFSET(InputPriceData!F$15,CalculationsAndCharts!$A163+$A$11,IF($C$7,8,0),1,1) -> 139.72 | L163: 13258.5 | M163: 2700.2 | N163: 558.3 | O163: 3258.5 | P163: -307.8 | Q163: 0 | R163: -307.8 | S163: 14.16309013 | T163: 39.86003752 | U163: 39.86003752 | V163: 3.9 | W163: 1.606603761 | X163: 94 | Y163: -0.482 | Z163: -0.04392857143 | AA163: -0.2254395604 | AB163: 4.895369916 | AC163: 4.827714405 | AD163: -1.452207791 | AE163: FALSE | AF163: FALSE | AG163: FALSE | AH163: 0 | AI163: TRUE | AJ163: TRUE | AK163: FALSE | AL163: 2 | AM163: FALSE | AN163: FALSE | AO163: FALSE | AP163: FALSE | AQ163: FALSE | AR163: TRUE | AS163: 0 | AT163: 3 | AU163: 2 | AV163: 1 | AW163: 1 | AX163: FALSE | AY163: FALSE | AZ163: FALSE | BA163: FALSE | BB163: TRUE | BC163: FALSE | BD163: TRUE | BE163: 94 | BF163: 95 | BG163: FALSE | BI163: TRUE | BJ163: 139.72 | BM163: 139.72 | BN163: FALSE | BP163: FALSE
A164: 132 | B164: =OFFSET(InputPriceData!B$15,CalculationsAndCharts!$A164+$A$11,0,1,1) -> 2012-11-06 | C164: =OFFSET(InputPriceData!G$15,CalculationsAndCharts!$A164+$A$11,IF($C$7,8,0),1,1) -> 107068100 | D164: =OFFSET(InputPriceData!C$15,CalculationsAndCharts!$A164+$A$11,IF($C$7,8,0),1,1) -> 142.28 | E164: =OFFSET(InputPriceData!D$15,CalculationsAndCharts!$A164+$A$11,IF($C$7,8,0),1,1) -> 143.52 | F164: =OFFSET(InputPriceData!E$15,CalculationsAndCharts!$A164+$A$11,IF($C$7,8,0),1,1) -> 142.13 | G164: =OFFSET(InputPriceData!F$15,CalculationsAndCharts!$A164+$A$11,IF($C$7,8,0),1,1) -> 142.96 | L164: 13566.3 | M164: 3008 | N164: 558.3 | O164: 3566.3 | P164: 105.45 | Q164: 0 | R164: 105.45 | S164: 77.17717718 | T164: 41.50116082 | U164: 41.50116082 | V164: 1.67 | W164: 1.485898696 | X164: 94 | Y164: 0.224 | Z164: 0.2117857143 | AA164: -0.2646153846 | AB164: 5.782053209 | AC164: 4.067030513 | AD164: -2.75098693 | AE164: FALSE | AF164: FALSE | AG164: FALSE | AH164: 0 | AI164: FALSE | AJ164: FALSE | AK164: FALSE | AL164: 0 | AM164: TRUE | AN164: TRUE | AO164: FALSE | AP164: FALSE | AQ164: FALSE | AR164: TRUE | AS164: 2 | AT164: 1 | AU164: 2 | AV164: 1 | AW164: 1 | AX164: FALSE | AY164: FALSE | AZ164: FALSE | BA164: FALSE | BB164: FALSE | BC164: FALSE | BD164: FALSE | BE164: 94 | BF164: 95 | BG164: FALSE | BI164: FALSE | BN164: FALSE | BP164: FALSE
A165: 133 | B165: =OFFSET(InputPriceData!B$15,CalculationsAndCharts!$A165+$A$11,0,1,1) -> 2012-11-05 | C165: =OFFSET(InputPriceData!G$15,CalculationsAndCharts!$A165+$A$11,IF($C$7,8,0),1,1) -> 98378500 | D165: =OFFSET(InputPriceData!C$15,CalculationsAndCharts!$A165+$A$11,IF($C$7,8,0),1,1) -> 141.35 | E165: =OFFSET(InputPriceData!D$15,CalculationsAndCharts!$A165+$A$11,IF($C$7,8,0),1,1) -> 142.17 | F165: =OFFSET(InputPriceData!E$15,CalculationsAndCharts!$A165+$A$11,IF($C$7,8,0),1,1) -> 140.93 | G165: =OFFSET(InputPriceData!F$15,CalculationsAndCharts!$A165+$A$11,IF($C$7,8,0),1,1) -> 141.85 | L165: 13460.85 | M165: 2902.55 | N165: 558.3 | O165: 3460.85 | P165: 27.55 | Q165: 0 | R165: 27.55 | S165: 28.23984526 | T165: 29.04351558 | U165: 29.04351558 | V165: 1.24 | W165: 1.476209154 | X165: 94 | Y165: 0.121 | Z165: 0.1179761905 | AA165: -0.371043956 | AB165: 4.503869574 | AC165: 2.041569735 | AD165: -3.214601295 | AE165: FALSE | AF165: FALSE | AG165: FALSE | AH165: 0 | AI165: FALSE | AJ165: FALSE | AK165: FALSE | AL165: 0 | AM165: TRUE | AN165: TRUE | AO165: FALSE | AP165: FALSE | AQ165: FALSE | AR165: TRUE | AS165: 2 | AT165: 1 | AU165: 2 | AV165: 1 | AW165: 1 | AX165: FALSE | AY165: FALSE | AZ165: FALSE | BA165: FALSE | BB165: FALSE | BC165: FALSE | BD165: FALSE | BE165: 94 | BF165: 95 | BG165: FALSE | BI165: FALSE | BN165: FALSE | BP165: FALSE
A166: 134 | B166: =OFFSET(InputPriceData!B$15,CalculationsAndCharts!$A166+$A$11,0,1,1) -> 2012-11-02 | C166: =OFFSET(InputPriceData!G$15,CalculationsAndCharts!$A166+$A$11,IF($C$7,8,0),1,1) -> 137702200 | D166: =OFFSET(InputPriceData!C$15,CalculationsAndCharts!$A166+$A$11,IF($C$7,8,0),1,1) -> 143.68 | E166: =OFFSET(InputPriceData!D$15,CalculationsAndCharts!$A166+$A$11,IF($C$7,8,0),1,1) -> 143.72 | F166: =OFFSET(InputPriceData!E$15,CalculationsAndCharts!$A166+$A$11,IF($C$7,8,0),1,1) -> 141.41 | G166: =OFFSET(InputPriceData!F$15,CalculationsAndCharts!$A166+$A$11,IF($C$7,8,0),1,1) -> 141.56 | L166: 13433.3 | M166: 2875 | N166: 558.3 | O166: 3433.3 | P166: -120.65 | Q166: 0 | R166: -120.65 | S166: 19.08646003 | T166: 24.85046221 | U166: 24.85046221 | V166: 2.31 | W166: 1.488641215 | X166: 94 | Y166: 0.174 | Z166: -0.0594047619 | AA166: -0.3724725275 | AB166: 4.297658556 | AC166: -0.8573307056 | AD166: -2.599048947 | AE166: FALSE | AF166: FALSE | AG166: FALSE | AH166: 0 | AI166: FALSE | AJ166: FALSE | AK166: FALSE | AL166: 0 | AM166: TRUE | AN166: FALSE | AO166: FALSE | AP166: FALSE | AQ166: TRUE | AR166: TRUE | AS166: 1 | AT166: 2 | AU166: 1 | AV166: 2 | AW166: 1 | AX166: FALSE | AY166: FALSE | AZ166: FALSE | BA166: FALSE | BB166: FALSE | BC166: FALSE | BD166: FALSE | BE166: 94 | BF166: 95 | BG166: FALSE | BI166: FALSE | BN166: FALSE | BP166: FALSE
A167: 135 | B167: =OFFSET(InputPriceData!B$15,CalculationsAndCharts!$A167+$A$11,0,1,1) -> 2012-11-01 | C167: =OFFSET(InputPriceData!G$15,CalculationsAndCharts!$A167+$A$11,IF($C$7,8,0),1,1) -> 100995600 | D167: =OFFSET(InputPriceData!C$15,CalculationsAndCharts!$A167+$A$11,IF($C$7,8,0),1,1) -> 141.65 | E167: =OFFSET(InputPriceData!D$15,CalculationsAndCharts!$A167+$A$11,IF($C$7,8,0),1,1) -> 143.01 | F167: =OFFSET(InputPriceData!E$15,CalculationsAndCharts!$A167+$A$11,IF($C$7,8,0),1,1) -> 141.52 | G167: =OFFSET(InputPriceData!F$15,CalculationsAndCharts!$A167+$A$11,IF($C$7,8,0),1,1) -> 142.83 | L167: 13553.95 | M167: 2995.65 | N167: 558.3 | O167: 3553.95 | P167: 112.1 | Q167: 0 | R167: 112.1 | S167: 39.80424144 | T167: 23.70853725 | U167: 23.70853725 | V167: 1.66 | W167: 1.445411805 | X167: 94 | Y167: 0.354 | Z167: -0.1669047619 | AA167: -0.3112637363 | AB167: 2.587501328 | AC167: -4.517595446 | AD167: -1.588672692 | AE167: FALSE | AF167: FALSE | AG167: FALSE | AH167: 0 | AI167: FALSE | AJ167: FALSE | AK167: FALSE | AL167: 0 | AM167: TRUE | AN167: FALSE | AO167: FALSE | AP167: FALSE | AQ167: TRUE | AR167: TRUE | AS167: 1 | AT167: 2 | AU167: 1 | AV167: 2 | AW167: 1 | AX167: FALSE | AY167: FALSE | AZ167: FALSE | BA167: FALSE | BB167: FALSE | BC167: FALSE | BD167: FALSE | BE167: 94 | BF167: 95 | BG167: TRUE | BH167: 141.65 | BI167: FALSE | BK167: 141.65 | BN167: FALSE | BP167: FALSE
A168: 136 | B168: =OFFSET(InputPriceData!B$15,CalculationsAndCharts!$A168+$A$11,0,1,1) -> 2012-10-31 | C168: =OFFSET(InputPriceData!G$15,CalculationsAndCharts!$A168+$A$11,IF($C$7,8,0),1,1) -> 103438500 | D168: =OFFSET(InputPriceData!C$15,CalculationsAndCharts!$A168+$A$11,IF($C$7,8,0),1,1) -> 141.85 | E168: =OFFSET(InputPriceData!D$15,CalculationsAndCharts!$A168+$A$11,IF($C$7,8,0),1,1) -> 142.03 | F168: =OFFSET(InputPriceData!E$15,CalculationsAndCharts!$A168+$A$11,IF($C$7,8,0),1,1) -> 140.68 | G168: =OFFSET(InputPriceData!F$15,CalculationsAndCharts!$A168+$A$11,IF($C$7,8,0),1,1) -> 141.35 | L168: 13441.85 | M168: 2883.55 | N168: 558.3 | O168: 3441.85 | P168: 0 | Q168: 0 | R168: 0 | S168: 15.66068515 | T168: 15.25838394 | U168: 15.25838394 | V168: 1.35 | W168: 1.434117689 | X168: 95 | Y168: 0.019 | Z168: -0.5694047619 | AA168: -0.3070879121 | AB168: -1.017067226 | AC168: -8.519462753 | AD168: -0.8897178774 | AE168: TRUE | AF168: FALSE | AG168: FALSE | AH168: 1 | AI168: FALSE | AJ168: FALSE | AK168: FALSE | AL168: 0 | AM168: FALSE | AN168: FALSE | AO168: FALSE | AP168: FALSE | AQ168: TRUE | AR168: TRUE | AS168: 1 | AT168: 2 | AU168: 0 | AV168: 3 | AW168: 0 | AX168: FALSE | AY168: FALSE | AZ168: FALSE | BA168: FALSE | BB168: FALSE | BC168: TRUE | BD168: FALSE | BE168: 95 | BF168: 92 | BG168: FALSE | BI168: FALSE | BN168: FALSE | BP168: FALSE
A169: 137 | B169: =OFFSET(InputPriceData!B$15,CalculationsAndCharts!$A169+$A$11,0,1,1) -> 2012-10-26 | C169: =OFFSET(InputPriceData!G$15,CalculationsAndCharts!$A169+$A$11,IF($C$7,8,0),1,1) -> 146023500 | D169: =OFFSET(InputPriceData!C$15,CalculationsAndCharts!$A169+$A$11,IF($C$7,8,0),1,1) -> 141.3 | E169: =OFFSET(InputPriceData!D$15,CalculationsAndCharts!$A169+$A$11,IF($C$7,8,0),1,1) -> 141.84 | F169: =OFFSET(InputPriceData!E$15,CalculationsAndCharts!$A169+$A$11,IF($C$7,8,0),1,1) -> 140.39 | G169: =OFFSET(InputPriceData!F$15,CalculationsAndCharts!$A169+$A$11,IF($C$7,8,0),1,1) -> 141.35 | L169: 13441.85 | M169: 2883.55 | N169: 558.3 | O169: 3441.85 | P169: 0 | Q169: 0 | R169: 0 | S169: 15.66068515 | T169: 11.32020684 | U169: 11.32020684 | V169: 1.45 | W169: 1.438544936 | X169: 95 | Y169: -0.411 | Z169: -0.7738095238 | AA169: -0.2404395604 | AB169: -6.563049895 | AC169: -9.423462039 | AD169: -0.5501924615 | AE169: FALSE | AF169: FALSE | AG169: FALSE | AH169: 0 | AI169: FALSE | AJ169: FALSE | AK169: FALSE | AL169: 0 | AM169: FALSE | AN169: FALSE | AO169: FALSE | AP169: TRUE | AQ169: TRUE | AR169: TRUE | AS169: 0 | AT169: 3 | AU169: 0 | AV169: 3 | AW169: 0 | AX169: TRUE | AY169: FALSE | AZ169: FALSE | BA169: FALSE | BB169: FALSE | BC169: FALSE | BD169: FALSE | BE169: 95 | BF169: 92 | BG169: FALSE | BI169: FALSE | BN169: FALSE | BP169: FALSE
A170: 138 | B170: =OFFSET(InputPriceData!B$15,CalculationsAndCharts!$A170+$A$11,0,1,1) -> 2012-10-25 | C170: =OFFSET(InputPriceData!G$15,CalculationsAndCharts!$A170+$A$11,IF($C$7,8,0),1,1) -> 134457400 | D170: =OFFSET(InputPriceData!C$15,CalculationsAndCharts!$A170+$A$11,IF($C$7,8,0),1,1) -> 142.02 | E170: =OFFSET(InputPriceData!D$15,CalculationsAndCharts!$A170+$A$11,IF($C$7,8,0),1,1) -> 142.28 | F170: =OFFSET(InputPriceData!E$15,CalculationsAndCharts!$A170+$A$11,IF($C$7,8,0),1,1) -> 140.57 | G170: =OFFSET(InputPriceData!F$15,CalculationsAndCharts!$A170+$A$11,IF($C$7,8,0),1,1) -> 141.43 | L170: 13441.85 | M170: 2883.55 | N170: 558.3 | O170: 3441.85 | P170: 0 | Q170: 0 | R170: 0 | S170: 14.45378151 | T170: 9.556334633 | U170: 9.556334633 | V170: 1.71 | W170: 1.437942038 | X170: 95 | Y170: -0.631 | Z170: -0.8077380952 | AA170: -0.1935164835 | AB170: -12.01425245 | AC170: -6.861135521 | AD170: -0.744440728 | AE170: FALSE | AF170: FALSE | AG170: FALSE | AH170: 0 | AI170: FALSE | AJ170: FALSE | AK170: FALSE | AL170: 0 | AM170: FALSE | AN170: FALSE | AO170: FALSE | AP170: TRUE | AQ170: TRUE | AR170: TRUE | AS170: 0 | AT170: 3 | AU170: 0 | AV170: 3 | AW170: 0 | AX170: TRUE | AY170: FALSE | AZ170: FALSE | BA170: FALSE | BB170: FALSE | BC170: FALSE | BD170: FALSE | BE170: 95 | BF170: 92 | BG170: FALSE | BI170: FALSE | BN170: FALSE | BP170: TRUE | BQ170: 142.02 | BS170: 142.02
A171: 139 | B171: =OFFSET(InputPriceData!B$15,CalculationsAndCharts!$A171+$A$11,0,1,1) -> 2012-10-24 | C171: =OFFSET(InputPriceData!G$15,CalculationsAndCharts!$A171+$A$11,IF($C$7,8,0),1,1) -> 120179400 | D171: =OFFSET(InputPriceData!C$15,CalculationsAndCharts!$A171+$A$11,IF($C$7,8,0),1,1) -> 141.93 | E171: =OFFSET(InputPriceData!D$15,CalculationsAndCharts!$A171+$A$11,IF($C$7,8,0),1,1) -> 142.1 | F171: =OFFSET(InputPriceData!E$15,CalculationsAndCharts!$A171+$A$11,IF($C$7,8,0),1,1) -> 140.8 | G171: =OFFSET(InputPriceData!F$15,CalculationsAndCharts!$A171+$A$11,IF($C$7,8,0),1,1) -> 141.02 | L171: 13441.85 | M171: 2883.55 | N171: 558.3 | O171: 3441.85 | P171: 0 | Q171: -46.92 | R171: -46.92 | S171: 3.846153846 | T171: 13.62205526 | U171: 13.62205526 | V171: 1.3 | W171: 1.423623198 | X171: 95 | Y171: -1.157 | Z171: -0.6288095238 | AA171: -0.1814835165 | AB171: -15.32834255 | AC171: -1.941806415 | AD171: -1.23597213 | AE171: FALSE | AF171: FALSE | AG171: FALSE | AH171: 0 | AI171: FALSE | AJ171: FALSE | AK171: FALSE | AL171: 0 | AM171: FALSE | AN171: FALSE | AO171: FALSE | AP171: TRUE | AQ171: TRUE | AR171: TRUE | AS171: 0 | AT171: 3 | AU171: 0 | AV171: 3 | AW171: -1 | AX171: TRUE | AY171: FALSE | AZ171: TRUE | BA171: FALSE | BB171: FALSE | BC171: FALSE | BD171: FALSE | BE171: 95 | BF171: 92 | BG171: FALSE | BI171: FALSE | BN171: FALSE | BP171: FALSE
A172: 140 | B172: =OFFSET(InputPriceData!B$15,CalculationsAndCharts!$A172+$A$11,0,1,1) -> 2012-10-23 | C172: =OFFSET(InputPriceData!G$15,CalculationsAndCharts!$A172+$A$11,IF($C$7,8,0),1,1) -> 192056300 | D172: =OFFSET(InputPriceData!C$15,CalculationsAndCharts!$A172+$A$11,IF($C$7,8,0),1,1) -> 141.86 | E172: =OFFSET(InputPriceData!D$15,CalculationsAndCharts!$A172+$A$11,IF($C$7,8,0),1,1) -> 142.06 | F172: =OFFSET(InputPriceData!E$15,CalculationsAndCharts!$A172+$A$11,IF($C$7,8,0),1,1) -> 140.83 | G172: =OFFSET(InputPriceData!F$15,CalculationsAndCharts!$A172+$A$11,IF($C$7,8,0),1,1) -> 141.42 | L172: 13488.77 | M172: 2883.55 | N172: 605.22 | O172: 3488.77 | P172: 0 | Q172: 183.08 | R172: 183.08 | S172: 10.36906854 | T172: 19.19279586 | U172: 19.19279586 | V172: 2.58 | W172: 1.430129682 | X172: 95 | Y172: -1.197 | Z172: -0.2436904762 | AA172: -0.147032967 | AB172: -11.1380152 | AC172: 3.46075348 | AD172: -1.434279879 | AE172: FALSE | AF172: FALSE | AG172: FALSE | AH172: 0 | AI172: FALSE | AJ172: TRUE | AK172: FALSE | AL172: 1 | AM172: FALSE | AN172: FALSE | AO172: FALSE | AP172: TRUE | AQ172: FALSE | AR172: TRUE | AS172: 0 | AT172: 3 | AU172: 1 | AV172: 2 | AW172: -1 | AX172: FALSE | AY172: FALSE | AZ172: FALSE | BA172: FALSE | BB172: FALSE | BC172: FALSE | BD172: FALSE | BE172: 95 | BF172: 92 | BG172: FALSE | BI172: FALSE | BN172: FALSE | BP172: FALSE
A173: 141 | B173: =OFFSET(InputPriceData!B$15,CalculationsAndCharts!$A173+$A$11,0,1,1) -> 2012-10-22 | C173: =OFFSET(InputPriceData!G$15,CalculationsAndCharts!$A173+$A$11,IF($C$7,8,0),1,1) -> 125578600 | D173: =OFFSET(InputPriceData!C$15,CalculationsAndCharts!$A173+$A$11,IF($C$7,8,0),1,1) -> 143.15 | E173: =OFFSET(InputPriceData!D$15,CalculationsAndCharts!$A173+$A$11,IF($C$7,8,0),1,1) -> 143.67 | F173: =OFFSET(InputPriceData!E$15,CalculationsAndCharts!$A173+$A$11,IF($C$7,8,0),1,1) -> 142.28 | G173: =OFFSET(InputPriceData!F$15,CalculationsAndCharts!$A173+$A$11,IF($C$7,8,0),1,1) -> 143.41 | L173: 13305.69 | M173: 2883.55 | N173: 422.14 | O173: 3305.69 | P173: 0 | Q173: -23.92 | R173: -23.92 | S173: 26.6509434 | T173: 39.3172257 | U173: 39.3172257 | V173: 1.39 | W173: 1.369610191 | X173: 92 | Y173: -0.707 | Z173: 0.1039285714 | AA173: -0.09950549451 | AB173: 0.7175744012 | AC173: 7.448792128 | AD173: -1.095250682 | AE173: FALSE | AF173: FALSE | AG173: FALSE | AH173: 0 | AI173: TRUE | AJ173: FALSE | AK173: FALSE | AL173: 1 | AM173: FALSE | AN173: TRUE | AO173: FALSE | AP173: FALSE | AQ173: FALSE | AR173: TRUE | AS173: 1 | AT173: 2 | AU173: 2 | AV173: 1 | AW173: -1 | AX173: FALSE | AY173: FALSE | AZ173: FALSE | BA173: FALSE | BB173: FALSE | BC173: FALSE | BD173: FALSE | BE173: 92 | BF173: 92 | BG173: FALSE | BI173: FALSE | BN173: TRUE | BO173: 143.15 | BP173: FALSE | BR173: 143.15
A174: 142 | B174: =OFFSET(InputPriceData!B$15,CalculationsAndCharts!$A174+$A$11,0,1,1) -> 2012-10-19 | C174: =OFFSET(InputPriceData!G$15,CalculationsAndCharts!$A174+$A$11,IF($C$7,8,0),1,1) -> 185645200 | D174: =OFFSET(InputPriceData!C$15,CalculationsAndCharts!$A174+$A$11,IF($C$7,8,0),1,1) -> 145.55 | E174: =OFFSET(InputPriceData!D$15,CalculationsAndCharts!$A174+$A$11,IF($C$7,8,0),1,1) -> 145.56 | F174: =OFFSET(InputPriceData!E$15,CalculationsAndCharts!$A174+$A$11,IF($C$7,8,0),1,1) -> 143.05 | G174: =OFFSET(InputPriceData!F$15,CalculationsAndCharts!$A174+$A$11,IF($C$7,8,0),1,1) -> 143.39 | L174: 13329.61 | M174: 2883.55 | N174: 446.06 | O174: 3329.61 | P174: -223.56 | Q174: 0 | R174: -223.56 | S174: 20.55837563 | T174: 56.78001167 | U174: 56.78001167 | V174: 2.77 | W174: 1.368537044 | X174: 92 | Y174: -0.11 | Z174: 0.2911904762 | AA174: -0.06835164835 | AB174: 11.95449881 | AC174: 7.558415706 | AD174: -0.7349713495 | AE174: FALSE | AF174: FALSE | AG174: FALSE | AH174: 0 | AI174: TRUE | AJ174: FALSE | AK174: FALSE | AL174: 1 | AM174: FALSE | AN174: TRUE | AO174: FALSE | AP174: FALSE | AQ174: FALSE | AR174: TRUE | AS174: 1 | AT174: 2 | AU174: 2 | AV174: 1 | AW174: 1 | AX174: FALSE | AY174: FALSE | AZ174: FALSE | BA174: FALSE | BB174: TRUE | BC174: FALSE | BD174: TRUE | BE174: 92 | BF174: 92 | BG174: FALSE | BI174: TRUE | BJ174: 143.39 | BM174: 143.39 | BN174: FALSE | BP174: FALSE
A175: 143 | B175: =OFFSET(InputPriceData!B$15,CalculationsAndCharts!$A175+$A$11,0,1,1) -> 2012-10-18 | C175: =OFFSET(InputPriceData!G$15,CalculationsAndCharts!$A175+$A$11,IF($C$7,8,0),1,1) -> 148108500 | D175: =OFFSET(InputPriceData!C$15,CalculationsAndCharts!$A175+$A$11,IF($C$7,8,0),1,1) -> 145.82 | E175: =OFFSET(InputPriceData!D$15,CalculationsAndCharts!$A175+$A$11,IF($C$7,8,0),1,1) -> 146.52 | F175: =OFFSET(InputPriceData!E$15,CalculationsAndCharts!$A175+$A$11,IF($C$7,8,0),1,1) -> 145.33 | G175: =OFFSET(InputPriceData!F$15,CalculationsAndCharts!$A175+$A$11,IF($C$7,8,0),1,1) -> 145.82 | L175: 13553.17 | M175: 3107.11 | N175: 446.06 | O175: 3553.17 | P175: 0 | Q175: 0 | R175: 0 | S175: 70.74235808 | T175: 71.47016012 | U175: 71.47016012 | V175: 1.19 | W175: 1.294775835 | X175: 92 | Y175: 0.798 | Z175: 0.4008333333 | AA175: -0.007747252747 | AB175: 17.43150256 | AC175: 3.665601834 | AD175: -0.6842166049 | AE175: FALSE | AF175: FALSE | AG175: FALSE | AH175: 0 | AI175: FALSE | AJ175: FALSE | AK175: FALSE | AL175: 0 | AM175: TRUE | AN175: TRUE | AO175: FALSE | AP175: FALSE | AQ175: FALSE | AR175: TRUE | AS175: 2 | AT175: 1 | AU175: 2 | AV175: 1 | AW175: 1 | AX175: FALSE | AY175: FALSE | AZ175: FALSE | BA175: FALSE | BB175: FALSE | BC175: FALSE | BD175: FALSE | BE175: 92 | BF175: 92 | BG175: TRUE | BH175: 145.82 | BI175: FALSE | BK175: 145.82 | BN175: FALSE | BP175: FALSE
A176: 144 | B176: =OFFSET(InputPriceData!B$15,CalculationsAndCharts!$A176+$A$11,0,1,1) -> 2012-10-17 | C176: =OFFSET(InputPriceData!G$15,CalculationsAndCharts!$A176+$A$11,IF($C$7,8,0),1,1) -> 128834100 | D176: =OFFSET(InputPriceData!C$15,CalculationsAndCharts!$A176+$A$11,IF($C$7,8,0),1,1) -> 145.64 | E176: =OFFSET(InputPriceData!D$15,CalculationsAndCharts!$A176+$A$11,IF($C$7,8,0),1,1) -> 146.32 | F176: =OFFSET(InputPriceData!E$15,CalculationsAndCharts!$A176+$A$11,IF($C$7,8,0),1,1) -> 145.42 | G176: =OFFSET(InputPriceData!F$15,CalculationsAndCharts!$A176+$A$11,IF($C$7,8,0),1,1) -> 146.2 | L176: 13553.17 | M176: 3107.11 | N176: 446.06 | O176: 3553.17 | P176: 0 | Q176: 0 | R176: 0 | S176: 79.03930131 | T176: 58.80640466 | U176: 58.80640466 | V176: 0.9 | W176: 1.300290353 | X176: 92 | Y176: 0.833 | Z176: 0.1494047619 | AA176: -0.02956043956 | AB176: 11.8976428 | AC176: -3.358741225 | AD176: -1.294641011 | AE176: FALSE | AF176: TRUE | AG176: FALSE | AH176: 1 | AI176: FALSE | AJ176: FALSE | AK176: FALSE | AL176: 0 | AM176: TRUE | AN176: FALSE | AO176: FALSE | AP176: FALSE | AQ176: FALSE | AR176: TRUE | AS176: 2 | AT176: 1 | AU176: 1 | AV176: 2 | AW176: 0 | AX176: FALSE | AY176: FALSE | AZ176: FALSE | BA176: FALSE | BB176: FALSE | BC176: TRUE | BD176: FALSE | BE176: 92 | BF176: 93 | BG176: FALSE | BI176: FALSE | BN176: FALSE | BP176: FALSE
A177: 145 | B177: =OFFSET(InputPriceData!B$15,CalculationsAndCharts!$A177+$A$11,0,1,1) -> 2012-10-16 | C177: =OFFSET(InputPriceData!G$15,CalculationsAndCharts!$A177+$A$11,IF($C$7,8,0),1,1) -> 108815500 | D177: =OFFSET(InputPriceData!C$15,CalculationsAndCharts!$A177+$A$11,IF($C$7,8,0),1,1) -> 144.76 | E177: =OFFSET(InputPriceData!D$15,CalculationsAndCharts!$A177+$A$11,IF($C$7,8,0),1,1) -> 145.64 | F177: =OFFSET(InputPriceData!E$15,CalculationsAndCharts!$A177+$A$11,IF($C$7,8,0),1,1) -> 144.66 | G177: =OFFSET(InputPriceData!F$15,CalculationsAndCharts!$A177+$A$11,IF($C$7,8,0),1,1) -> 145.54 | L177: 13553.17 | M177: 3107.11 | N177: 446.06 | O177: 3553.17 | P177: 0 | Q177: 0 | R177: 0 | S177: 64.62882096 | T177: 34.71615721 | U177: 34.71615721 | V177: 1.56 | W177: 1.321358266 | X177: 93 | Y177: 0.524 | Z177: -0.1886904762 | AA177: -0.06153846154 | AB177: 0.5649023935 | AC177: -8.714166279 | AD177: -1.353729281 | AE177: FALSE | AF177: FALSE | AG177: FALSE | AH177: 0 | AI177: FALSE | AJ177: FALSE | AK177: FALSE | AL177: 0 | AM177: TRUE | AN177: FALSE | AO177: FALSE | AP177: FALSE | AQ177: TRUE | AR177: TRUE | AS177: 1 | AT177: 2 | AU177: 1 | AV177: 2 | AW177: 0 | AX177: FALSE | AY177: FALSE | AZ177: FALSE | BA177: FALSE | BB177: FALSE | BC177: FALSE | BD177: FALSE | BE177: 93 | BF177: 93 | BG177: FALSE | BI177: FALSE | BN177: FALSE | BP177: TRUE | BQ177: 144.76 | BS177: 144.76
A178: 146 | B178: =OFFSET(InputPriceData!B$15,CalculationsAndCharts!$A178+$A$11,0,1,1) -> 2012-10-15 | C178: =OFFSET(InputPriceData!G$15,CalculationsAndCharts!$A178+$A$11,IF($C$7,8,0),1,1) -> 107689100 | D178: =OFFSET(InputPriceData!C$15,CalculationsAndCharts!$A178+$A$11,IF($C$7,8,0),1,1) -> 143.23 | E178: =OFFSET(InputPriceData!D$15,CalculationsAndCharts!$A178+$A$11,IF($C$7,8,0),1,1) -> 144.23 | F178: =OFFSET(InputPriceData!E$15,CalculationsAndCharts!$A178+$A$11,IF($C$7,8,0),1,1) -> 142.77 | G178: =OFFSET(InputPriceData!F$15,CalculationsAndCharts!$A178+$A$11,IF($C$7,8,0),1,1) -> 144.08 | L178: 13553.17 | M178: 3107.11 | N178: 446.06 | O178: 3553.17 | P178: 0 | Q178: -31.62 | R178: -31.62 | S178: 32.7510917 | T178: 15.3845191 | U178: 15.3845191 | V178: 1.46 | W178: 1.308798175 | X178: 94 | Y178: -0.063 | Z178: -0.4566666667 | AA178: -0.1024725275 | AB178: -10.88648193 | AC178: -10.08203948 | AD178: -0.4811147458 | AE178: FALSE | AF178: FALSE | AG178: FALSE | AH178: 0 | AI178: FALSE | AJ178: FALSE | AK178: FALSE | AL178: 0 | AM178: FALSE | AN178: FALSE | AO178: FALSE | AP178: TRUE | AQ178: TRUE | AR178: TRUE | AS178: 0 | AT178: 3 | AU178: 0 | AV178: 3 | AW178: -1 | AX178: TRUE | AY178: FALSE | AZ178: TRUE | BA178: FALSE | BB178: FALSE | BC178: FALSE | BD178: FALSE | BE178: 94 | BF178: 93 | BG178: FALSE | BI178: FALSE | BN178: FALSE | BP178: FALSE
A179: 147 | B179: =OFFSET(InputPriceData!B$15,CalculationsAndCharts!$A179+$A$11,0,1,1) -> 2012-10-12 | C179: =OFFSET(InputPriceData!G$15,CalculationsAndCharts!$A179+$A$11,IF($C$7,8,0),1,1) -> 124181900 | D179: =OFFSET(InputPriceData!C$15,CalculationsAndCharts!$A179+$A$11,IF($C$7,8,0),1,1) -> 143.46 | E179: =OFFSET(InputPriceData!D$15,CalculationsAndCharts!$A179+$A$11,IF($C$7,8,0),1,1) -> 143.95 | F179: =OFFSET(InputPriceData!E$15,CalculationsAndCharts!$A179+$A$11,IF($C$7,8,0),1,1) -> 142.58 | G179: =OFFSET(InputPriceData!F$15,CalculationsAndCharts!$A179+$A$11,IF($C$7,8,0),1,1) -> 142.89 | L179: 13584.79 | M179: 3107.11 | N179: 477.68 | O179: 3584.79 | P179: 0 | Q179: 43.71 | R179: 43.71 | S179: 6.768558952 | T179: 6.023590085 | U179: 6.023590085 | V179: 1.37 | W179: 1.300840184 | X179: 95 | Y179: -0.634 | Z179: -0.4675 | AA179: -0.04769230769 | AB179: -18.08421218 | AC179: -7.339981387 | AD179: 0.8801716574 | AE179: FALSE | AF179: FALSE | AG179: FALSE | AH179: 0 | AI179: FALSE | AJ179: FALSE | AK179: TRUE | AL179: 1 | AM179: FALSE | AN179: FALSE | AO179: FALSE | AP179: TRUE | AQ179: TRUE | AR179: FALSE | AS179: 0 | AT179: 3 | AU179: 1 | AV179: 2 | AW179: -1 | AX179: FALSE | AY179: FALSE | AZ179: FALSE | BA179: FALSE | BB179: FALSE | BC179: FALSE | BD179: FALSE | BE179: 95 | BF179: 93 | BG179: FALSE | BI179: FALSE | BN179: FALSE | BP179: FALSE
A180: 148 | B180: =OFFSET(InputPriceData!B$15,CalculationsAndCharts!$A180+$A$11,0,1,1) -> 2012-10-11 | C180: =OFFSET(InputPriceData!G$15,CalculationsAndCharts!$A180+$A$11,IF($C$7,8,0),1,1) -> 123601500 | D180: =OFFSET(InputPriceData!C$15,CalculationsAndCharts!$A180+$A$11,IF($C$7,8,0),1,1) -> 144.28 | E180: =OFFSET(InputPriceData!D$15,CalculationsAndCharts!$A180+$A$11,IF($C$7,8,0),1,1) -> 144.49 | F180: =OFFSET(InputPriceData!E$15,CalculationsAndCharts!$A180+$A$11,IF($C$7,8,0),1,1) -> 143.33 | G180: =OFFSET(InputPriceData!F$15,CalculationsAndCharts!$A180+$A$11,IF($C$7,8,0),1,1) -> 143.36 | L180: 13541.08 | M180: 3107.11 | N180: 433.97 | O180: 3541.08 | P180: 0 | Q180: -7.44 | R180: -7.44 | S180: 6.633906634 | T180: 13.66447423 | U180: 13.66447423 | V180: 1.21 | W180: 1.297200194 | X180: 94 | Y180: -0.792 | Z180: -0.2776190476 | AA180: 0.02181318681 | AB180: -15.96264997 | AC180: -2.084373022 | AD180: 2.124730773 | AE180: FALSE | AF180: FALSE | AG180: FALSE | AH180: 0 | AI180: FALSE | AJ180: FALSE | AK180: FALSE | AL180: 0 | AM180: FALSE | AN180: FALSE | AO180: TRUE | AP180: TRUE | AQ180: TRUE | AR180: FALSE | AS180: 1 | AT180: 2 | AU180: 1 | AV180: 2 | AW180: -1 | AX180: FALSE | AY180: FALSE | AZ180: FALSE | BA180: FALSE | BB180: FALSE | BC180: FALSE | BD180: FALSE | BE180: 94 | BF180: 93 | BG180: FALSE | BI180: FALSE | BN180: FALSE | BP180: FALSE
A181: 149 | B181: =OFFSET(InputPriceData!B$15,CalculationsAndCharts!$A181+$A$11,0,1,1) -> 2012-10-10 | C181: =OFFSET(InputPriceData!G$15,CalculationsAndCharts!$A181+$A$11,IF($C$7,8,0),1,1) -> 124247500 | D181: =OFFSET(InputPriceData!C$15,CalculationsAndCharts!$A181+$A$11,IF($C$7,8,0),1,1) -> 144.18 | E181: =OFFSET(InputPriceData!D$15,CalculationsAndCharts!$A181+$A$11,IF($C$7,8,0),1,1) -> 144.32 | F181: =OFFSET(InputPriceData!E$15,CalculationsAndCharts!$A181+$A$11,IF($C$7,8,0),1,1) -> 143.09 | G181: =OFFSET(InputPriceData!F$15,CalculationsAndCharts!$A181+$A$11,IF($C$7,8,0),1,1) -> 143.28 | L181: 13548.52 | M181: 3107.11 | N181: 441.41 | O181: 3548.52 | P181: 0 | Q181: 83.7 | R181: 83.7 | S181: 4.668304668 | T181: 32.75166767 | U181: 32.75166767 | V181: 1.23 | W181: 1.301789678 | X181: 94 | Y181: -0.764 | Z181: -0.08726190476 | AA181: 0.02879120879 | AB181: -6.900070806 | AC181: 3.065376852 | AD181: 2.514220297 | AE181: FALSE | AF181: FALSE | AG181: FALSE | AH181: 0 | AI181: FALSE | AJ181: TRUE | AK181: FALSE | AL181: 1 | AM181: FALSE | AN181: FALSE | AO181: TRUE | AP181: TRUE | AQ181: FALSE | AR181: FALSE | AS181: 1 | AT181: 2 | AU181: 2 | AV181: 1 | AW181: -1 | AX181: FALSE | AY181: FALSE | AZ181: FALSE | BA181: FALSE | BB181: FALSE | BC181: FALSE | BD181: FALSE | BE181: 94 | BF181: 93 | BG181: FALSE | BI181: FALSE | BN181: TRUE | BO181: 144.18 | BP181: FALSE | BR181: 144.18
A182: 150 | B182: =OFFSET(InputPriceData!B$15,CalculationsAndCharts!$A182+$A$11,0,1,1) -> 2012-10-09 | C182: =OFFSET(InputPriceData!G$15,CalculationsAndCharts!$A182+$A$11,IF($C$7,8,0),1,1) -> 148872900 | D182: =OFFSET(InputPriceData!C$15,CalculationsAndCharts!$A182+$A$11,IF($C$7,8,0),1,1) -> 145.53 | E182: =OFFSET(InputPriceData!D$15,CalculationsAndCharts!$A182+$A$11,IF($C$7,8,0),1,1) -> 145.65 | F182: =OFFSET(InputPriceData!E$15,CalculationsAndCharts!$A182+$A$11,IF($C$7,8,0),1,1) -> 144.15 | G182: =OFFSET(InputPriceData!F$15,CalculationsAndCharts!$A182+$A$11,IF($C$7,8,0),1,1) -> 144.2 | L182: 13464.82 | M182: 3107.11 | N182: 357.71 | O182: 3464.82 | P182: 0 | Q182: 0 | R182: 0 | S182: 29.6912114 | T182: 56.45288994 | U182: 56.45288994 | V182: 1.5 | W182: 1.305568082 | X182: 93 | Y182: -0.227 | Z182: 0.1669047619 | AA182: 0.04417582418 | AB182: 4.488567125 | AC182: 7.297389358 | AD182: 2.051060142 | AE182: FALSE | AF182: FALSE | AG182: FALSE | AH182: 0 | AI182: TRUE | AJ182: FALSE | AK182: FALSE | AL182: 1 | AM182: FALSE | AN182: TRUE | AO182: TRUE | AP182: FALSE | AQ182: FALSE | AR182: FALSE | AS182: 2 | AT182: 1 | AU182: 3 | AV182: 0 | AW182: 0 | AX182: FALSE | AY182: FALSE | AZ182: FALSE | BA182: FALSE | BB182: FALSE | BC182: FALSE | BD182: TRUE | BE182: 93 | BF182: 92 | BG182: FALSE | BI182: TRUE | BJ182: 145.53 | BL182: 145.53 | BN182: FALSE | BP182: FALSE
A183: 151 | B183: =OFFSET(InputPriceData!B$15,CalculationsAndCharts!$A183+$A$11,0,1,1) -> 2012-10-08 | C183: =OFFSET(InputPriceData!G$15,CalculationsAndCharts!$A183+$A$11,IF($C$7,8,0),1,1) -> 78415400 | D183: =OFFSET(InputPriceData!C$15,CalculationsAndCharts!$A183+$A$11,IF($C$7,8,0),1,1) -> 145.6 | E183: =OFFSET(InputPriceData!D$15,CalculationsAndCharts!$A183+$A$11,IF($C$7,8,0),1,1) -> 146.12 | F183: =OFFSET(InputPriceData!E$15,CalculationsAndCharts!$A183+$A$11,IF($C$7,8,0),1,1) -> 145.31 | G183: =OFFSET(InputPriceData!F$15,CalculationsAndCharts!$A183+$A$11,IF($C$7,8,0),1,1) -> 145.64 | L183: 13464.82 | M183: 3107.11 | N183: 357.71 | O183: 3464.82 | P183: -49.68 | Q183: 0 | R183: -49.68 | S183: 63.89548694 | T183: 75.05044313 | U183: 75.05044313 | V183: 0.83 | W183: 1.295334823 | X183: 92 | Y183: 0.333 | Z183: 0.2830952381 | AA183: 0.01071428571 | AB183: 11.79098846 | AC183: 9.249617898 | AD183: 0.5513732587 | AE183: FALSE | AF183: FALSE | AG183: FALSE | AH183: 0 | AI183: FALSE | AJ183: FALSE | AK183: FALSE | AL183: 0 | AM183: TRUE | AN183: TRUE | AO183: TRUE | AP183: FALSE | AQ183: FALSE | AR183: FALSE | AS183: 3 | AT183: 0 | AU183: 3 | AV183: 0 | AW183: 1 | AX183: TRUE | AY183: TRUE | AZ183: FALSE | BA183: FALSE | BB183: FALSE | BC183: FALSE | BD183: FALSE | BE183: 92 | BF183: 92 | BG183: FALSE | BI183: FALSE | BN183: FALSE | BP183: FALSE
A184: 152 | B184: =OFFSET(InputPriceData!B$15,CalculationsAndCharts!$A184+$A$11,0,1,1) -> 2012-10-05 | C184: =OFFSET(InputPriceData!G$15,CalculationsAndCharts!$A184+$A$11,IF($C$7,8,0),1,1) -> 124842100 | D184: =OFFSET(InputPriceData!C$15,CalculationsAndCharts!$A184+$A$11,IF($C$7,8,0),1,1) -> 146.91 | E184: =OFFSET(InputPriceData!D$15,CalculationsAndCharts!$A184+$A$11,IF($C$7,8,0),1,1) -> 147.16 | F184: =OFFSET(InputPriceData!E$15,CalculationsAndCharts!$A184+$A$11,IF($C$7,8,0),1,1) -> 145.7 | G184: =OFFSET(InputPriceData!F$15,CalculationsAndCharts!$A184+$A$11,IF($C$7,8,0),1,1) -> 146.14 | L184: 13514.5 | M184: 3156.79 | N184: 357.71 | O184: 3514.5 | P184: 0.92 | Q184: 0 | R184: 0.92 | S184: 75.7719715 | T184: 72.32833638 | U184: 72.32833638 | V184: 1.46 | W184: 1.31982613 | X184: 92 | Y184: 0.521 | Z184: 0.3679761905 | AA184: -0.06401098901 | AB184: 11.26611008 | AC184: 7.848898765 | AD184: -1.698756946 | AE184: FALSE | AF184: FALSE | AG184: FALSE | AH184: 0 | AI184: FALSE | AJ184: FALSE | AK184: FALSE | AL184: 0 | AM184: TRUE | AN184: TRUE | AO184: FALSE | AP184: FALSE | AQ184: FALSE | AR184: TRUE | AS184: 2 | AT184: 1 | AU184: 2 | AV184: 1 | AW184: 1 | AX184: FALSE | AY184: FALSE | AZ184: FALSE | BA184: FALSE | BB184: FALSE | BC184: FALSE | BD184: FALSE | BE184: 92 | BF184: 92 | BG184: FALSE | BI184: FALSE | BN184: FALSE | BP184: FALSE
A185: 153 | B185: =OFFSET(InputPriceData!B$15,CalculationsAndCharts!$A185+$A$11,0,1,1) -> 2012-10-04 | C185: =OFFSET(InputPriceData!G$15,CalculationsAndCharts!$A185+$A$11,IF($C$7,8,0),1,1) -> 124311600 | D185: =OFFSET(InputPriceData!C$15,CalculationsAndCharts!$A185+$A$11,IF($C$7,8,0),1,1) -> 145.64 | E185: =OFFSET(InputPriceData!D$15,CalculationsAndCharts!$A185+$A$11,IF($C$7,8,0),1,1) -> 146.34 | F185: =OFFSET(InputPriceData!E$15,CalculationsAndCharts!$A185+$A$11,IF($C$7,8,0),1,1) -> 145.44 | G185: =OFFSET(InputPriceData!F$15,CalculationsAndCharts!$A185+$A$11,IF($C$7,8,0),1,1) -> 146.13 | L185: 13513.58 | M185: 3155.87 | N185: 357.71 | O185: 3513.58 | P185: 95.68 | Q185: 0 | R185: 95.68 | S185: 85.48387097 | T185: 59.31429848 | U185: 59.31429848 | V185: 1.25 | W185: 1.312448558 | X185: 92 | Y185: 0.506 | Z185: 0.2758333333 | AA185: -0.1495054945 | AB185: 8.824696518 | AC185: 4.150839037 | AD185: -3.939454805 | AE185: FALSE | AF185: FALSE | AG185: FALSE | AH185: 0 | AI185: FALSE | AJ185: FALSE | AK185: FALSE | AL185: 0 | AM185: TRUE | AN185: TRUE | AO185: FALSE | AP185: FALSE | AQ185: FALSE | AR185: TRUE | AS185: 2 | AT185: 1 | AU185: 2 | AV185: 1 | AW185: 1 | AX185: FALSE | AY185: FALSE | AZ185: FALSE | BA185: FALSE | BB185: FALSE | BC185: FALSE | BD185: FALSE | BE185: 92 | BF185: 92 | BG185: FALSE | BI185: FALSE | BN185: FALSE | BP185: FALSE
A186: 154 | B186: =OFFSET(InputPriceData!B$15,CalculationsAndCharts!$A186+$A$11,0,1,1) -> 2012-10-03 | C186: =OFFSET(InputPriceData!G$15,CalculationsAndCharts!$A186+$A$11,IF($C$7,8,0),1,1) -> 121283100 | D186: =OFFSET(InputPriceData!C$15,CalculationsAndCharts!$A186+$A$11,IF($C$7,8,0),1,1) -> 144.89 | E186: =OFFSET(InputPriceData!D$15,CalculationsAndCharts!$A186+$A$11,IF($C$7,8,0),1,1) -> 145.43 | F186: =OFFSET(InputPriceData!E$15,CalculationsAndCharts!$A186+$A$11,IF($C$7,8,0),1,1) -> 144.13 | G186: =OFFSET(InputPriceData!F$15,CalculationsAndCharts!$A186+$A$11,IF($C$7,8,0),1,1) -> 145.09 | L186: 13417.9 | M186: 3060.19 | N186: 357.71 | O186: 3417.9 | P186: 54.28 | Q186: 0 | R186: 54.28 | S186: 55.72916667 | T186: 41.87812665 | U186: 41.87812665 | V186: 1.3 | W186: 1.315735324 | X186: 92 | Y186: 0.143 | Z186: 0.007023809524 | AA186: -0.2359340659 | AB186: 6.454984323 | AC186: -0.8708671858 | AD186: -5.76279934 | AE186: FALSE | AF186: TRUE | AG186: FALSE | AH186: 1 | AI186: FALSE | AJ186: FALSE | AK186: FALSE | AL186: 0 | AM186: TRUE | AN186: FALSE | AO186: FALSE | AP186: FALSE | AQ186: FALSE | AR186: TRUE | AS186: 2 | AT186: 1 | AU186: 1 | AV186: 2 | AW186: 1 | AX186: FALSE | AY186: FALSE | AZ186: FALSE | BA186: FALSE | BB186: FALSE | BC186: FALSE | BD186: FALSE | BE186: 92 | BF186: 92 | BG186: FALSE | BI186: FALSE | BN186: FALSE | BP186: FALSE
A187: 155 | B187: =OFFSET(InputPriceData!B$15,CalculationsAndCharts!$A187+$A$11,0,1,1) -> 2012-10-02 | C187: =OFFSET(InputPriceData!G$15,CalculationsAndCharts!$A187+$A$11,IF($C$7,8,0),1,1) -> 113422200 | D187: =OFFSET(InputPriceData!C$15,CalculationsAndCharts!$A187+$A$11,IF($C$7,8,0),1,1) -> 144.92 | E187: =OFFSET(InputPriceData!D$15,CalculationsAndCharts!$A187+$A$11,IF($C$7,8,0),1,1) -> 145.15 | F187: =OFFSET(InputPriceData!E$15,CalculationsAndCharts!$A187+$A$11,IF($C$7,8,0),1,1) -> 143.83 | G187: =OFFSET(InputPriceData!F$15,CalculationsAndCharts!$A187+$A$11,IF($C$7,8,0),1,1) -> 144.5 | L187: 13363.62 | M187: 3005.91 | N187: 357.71 | O187: 3363.62 | P187: -38.64 | Q187: 0 | R187: -38.64 | S187: 36.72985782 | T187: 31.32060568 | U187: 31.32060568 | V187: 1.32 | W187: 1.316563499 | X187: 92 | Y187: 0.213 | Z187: -0.1801190476 | AA187: -0.2954945055 | AB187: 3.975607937 | AC187: -4.992069514 | AD187: -6.904191173 | AE187: FALSE | AF187: FALSE | AG187: FALSE | AH187: 0 | AI187: FALSE | AJ187: FALSE | AK187: FALSE | AL187: 0 | AM187: TRUE | AN187: FALSE | AO187: FALSE | AP187: FALSE | AQ187: TRUE | AR187: TRUE | AS187: 1 | AT187: 2 | AU187: 1 | AV187: 2 | AW187: 1 | AX187: FALSE | AY187: FALSE | AZ187: FALSE | BA187: FALSE | BB187: FALSE | BC187: FALSE | BD187: FALSE | BE187: 92 | BF187: 92 | BG187: TRUE | BH187: 144.92 | BI187: FALSE | BK187: 144.92 | BN187: FALSE | BP187: FALSE
A188: 156 | B188: =OFFSET(InputPriceData!B$15,CalculationsAndCharts!$A188+$A$11,0,1,1) -> 2012-10-01 | C188: =OFFSET(InputPriceData!G$15,CalculationsAndCharts!$A188+$A$11,IF($C$7,8,0),1,1) -> 135911200 | D188: =OFFSET(InputPriceData!C$15,CalculationsAndCharts!$A188+$A$11,IF($C$7,8,0),1,1) -> 144.52 | E188: =OFFSET(InputPriceData!D$15,CalculationsAndCharts!$A188+$A$11,IF($C$7,8,0),1,1) -> 145.69 | F188: =OFFSET(InputPriceData!E$15,CalculationsAndCharts!$A188+$A$11,IF($C$7,8,0),1,1) -> 144.01 | G188: =OFFSET(InputPriceData!F$15,CalculationsAndCharts!$A188+$A$11,IF($C$7,8,0),1,1) -> 144.35 | L188: 13402.26 | M188: 3044.55 | N188: 357.71 | O188: 3402.26 | P188: 0 | Q188: 0 | R188: 0 | S188: 33.17535545 | T188: 29.9946324 | U188: 29.9946324 | V188: 1.72 | W188: 1.31638263 | X188: 92 | Y188: 0.118 | Z188: -0.3554761905 | AA188: -0.2991208791 | AB188: -0.6311185693 | AC188: -8.180256979 | AD188: -7.343371536 | AE188: TRUE | AF188: FALSE | AG188: FALSE | AH188: 1 | AI188: FALSE | AJ188: FALSE | AK188: FALSE | AL188: 0 | AM188: FALSE | AN188: FALSE | AO188: FALSE | AP188: FALSE | AQ188: TRUE | AR188: TRUE | AS188: 1 | AT188: 2 | AU188: 0 | AV188: 3 | AW188: 0 | AX188: FALSE | AY188: FALSE | AZ188: FALSE | BA188: FALSE | BB188: FALSE | BC188: TRUE | BD188: FALSE | BE188: 92 | BF188: 93 | BG188: FALSE | BI188: FALSE | BN188: FALSE | BP188: FALSE
A189: 157 | B189: =OFFSET(InputPriceData!B$15,CalculationsAndCharts!$A189+$A$11,0,1,1) -> 2012-09-28 | C189: =OFFSET(InputPriceData!G$15,CalculationsAndCharts!$A189+$A$11,IF($C$7,8,0),1,1) -> 150696100 | D189: =OFFSET(InputPriceData!C$15,CalculationsAndCharts!$A189+$A$11,IF($C$7,8,0),1,1) -> 144.09 | E189: =OFFSET(InputPriceData!D$15,CalculationsAndCharts!$A189+$A$11,IF($C$7,8,0),1,1) -> 144.56 | F189: =OFFSET(InputPriceData!E$15,CalculationsAndCharts!$A189+$A$11,IF($C$7,8,0),1,1) -> 143.46 | G189: =OFFSET(InputPriceData!F$15,CalculationsAndCharts!$A189+$A$11,IF($C$7,8,0),1,1) -> 143.97 | L189: 13402.26 | M189: 3044.55 | N189: 357.71 | O189: 3402.26 | P189: 0 | Q189: 0 | R189: 0 | S189: 24.05660377 | T189: 21.13256301 | U189: 21.13256301 | V189: 1.18 | W189: 1.295139611 | X189: 93 | Y189: -0.282 | Z189: -0.4613095238 | AA189: -0.212967033 | AB189: -8.897818388 | AC189: -10.52357878 | AD189: -7.229718605 | AE189: FALSE | AF189: FALSE | AG189: FALSE | AH189: 0 | AI189: FALSE | AJ189: FALSE | AK189: FALSE | AL189: 0 | AM189: FALSE | AN189: FALSE | AO189: FALSE | AP189: TRUE | AQ189: TRUE | AR189: TRUE | AS189: 0 | AT189: 3 | AU189: 0 | AV189: 3 | AW189: 0 | AX189: TRUE | AY189: FALSE | AZ189: FALSE | BA189: FALSE | BB189: FALSE | BC189: FALSE | BD189: FALSE | BE189: 93 | BF189: 93 | BG189: FALSE | BI189: TRUE | BJ189: 144.09 | BL189: 144.09 | BN189: FALSE | BP189: FALSE
A190: 158 | B190: =OFFSET(InputPriceData!B$15,CalculationsAndCharts!$A190+$A$11,0,1,1) -> 2012-09-27 | C190: =OFFSET(InputPriceData!G$15,CalculationsAndCharts!$A190+$A$11,IF($C$7,8,0),1,1) -> 111830300 | D190: =OFFSET(InputPriceData!C$15,CalculationsAndCharts!$A190+$A$11,IF($C$7,8,0),1,1) -> 143.89 | E190: =OFFSET(InputPriceData!D$15,CalculationsAndCharts!$A190+$A$11,IF($C$7,8,0),1,1) -> 144.97 | F190: =OFFSET(InputPriceData!E$15,CalculationsAndCharts!$A190+$A$11,IF($C$7,8,0),1,1) -> 143.51 | G190: =OFFSET(InputPriceData!F$15,CalculationsAndCharts!$A190+$A$11,IF($C$7,8,0),1,1) -> 144.64 | L190: 13402.26 | M190: 3044.55 | N190: 357.71 | O190: 3402.26 | P190: 55.8 | Q190: 0 | R190: 55.8 | S190: 32.75193798 | T190: 14.69722637 | U190: 14.69722637 | V190: 1.68 | W190: 1.30119959 | X190: 92 | Y190: -0.482 | Z190: -0.4638095238 | AA190: -0.09615384615 | AB190: -14.04328561 | AC190: -11.0338841 | AD190: -6.483545184 | AE190: FALSE | AF190: FALSE | AG190: FALSE | AH190: 0 | AI190: FALSE | AJ190: FALSE | AK190: FALSE | AL190: 0 | AM190: FALSE | AN190: FALSE | AO190: FALSE | AP190: TRUE | AQ190: TRUE | AR190: TRUE | AS190: 0 | AT190: 3 | AU190: 0 | AV190: 3 | AW190: 1 | AX190: TRUE | AY190: TRUE | AZ190: FALSE | BA190: FALSE | BB190: FALSE | BC190: FALSE | BD190: FALSE | BE190: 92 | BF190: 93 | BG190: FALSE | BI190: FALSE | BN190: FALSE | BP190: FALSE
A191: 159 | B191: =OFFSET(InputPriceData!B$15,CalculationsAndCharts!$A191+$A$11,0,1,1) -> 2012-09-26 | C191: =OFFSET(InputPriceData!G$15,CalculationsAndCharts!$A191+$A$11,IF($C$7,8,0),1,1) -> 146502200 | D191: =OFFSET(InputPriceData!C$15,CalculationsAndCharts!$A191+$A$11,IF($C$7,8,0),1,1) -> 144.07 | E191: =OFFSET(InputPriceData!D$15,CalculationsAndCharts!$A191+$A$11,IF($C$7,8,0),1,1) -> 144.11 | F191: =OFFSET(InputPriceData!E$15,CalculationsAndCharts!$A191+$A$11,IF($C$7,8,0),1,1) -> 142.95 | G191: =OFFSET(InputPriceData!F$15,CalculationsAndCharts!$A191+$A$11,IF($C$7,8,0),1,1) -> 143.29 | L191: 13346.46 | M191: 2988.75 | N191: 357.71 | O191: 3346.46 | P191: -75.33 | Q191: 0 | R191: -75.33 | S191: 6.589147287 | T191: 19.09126902 | U191: 19.09126902 | V191: 1.16 | W191: 1.281262727 | X191: 93 | Y191: -0.861 | Z191: -0.485 | AA191: 0.007747252747 | AB191: -14.60320465 | AC191: -9.730195799 | AD191: -5.253263423 | AE191: FALSE | AF191: FALSE | AG191: TRUE | AH191: 1 | AI191: FALSE | AJ191: FALSE | AK191: FALSE | AL191: 0 | AM191: FALSE | AN191: FALSE | AO191: FALSE | AP191: TRUE | AQ191: TRUE | AR191: FALSE | AS191: 1 | AT191: 2 | AU191: 0 | AV191: 3 | AW191: 1 | AX191: FALSE | AY191: FALSE | AZ191: FALSE | BA191: FALSE | BB191: FALSE | BC191: FALSE | BD191: FALSE | BE191: 93 | BF191: 93 | BG191: FALSE | BI191: FALSE | BN191: FALSE | BP191: FALSE
A192: 160 | B192: =OFFSET(InputPriceData!B$15,CalculationsAndCharts!$A192+$A$11,0,1,1) -> 2012-09-25 | C192: =OFFSET(InputPriceData!G$15,CalculationsAndCharts!$A192+$A$11,IF($C$7,8,0),1,1) -> 133165200 | D192: =OFFSET(InputPriceData!C$15,CalculationsAndCharts!$A192+$A$11,IF($C$7,8,0),1,1) -> 145.96 | E192: =OFFSET(InputPriceData!D$15,CalculationsAndCharts!$A192+$A$11,IF($C$7,8,0),1,1) -> 146.24 | F192: =OFFSET(InputPriceData!E$15,CalculationsAndCharts!$A192+$A$11,IF($C$7,8,0),1,1) -> 144.06 | G192: =OFFSET(InputPriceData!F$15,CalculationsAndCharts!$A192+$A$11,IF($C$7,8,0),1,1) -> 144.1 | L192: 13421.79 | M192: 3064.08 | N192: 357.71 | O192: 3421.79 | P192: -144.15 | Q192: 0 | R192: -144.15 | S192: 4.750593824 | T192: 34.17087225 | U192: 34.17087225 | V192: 2.18 | W192: 1.287644975 | X192: 93 | Y192: -0.626 | Z192: -0.3532142857 | AA192: 0.1303296703 | AB192: -11.22027039 | AC192: -7.517077077 | AD192: -3.343664963 | AE192: FALSE | AF192: FALSE | AG192: TRUE | AH192: 1 | AI192: FALSE | AJ192: FALSE | AK192: FALSE | AL192: 0 | AM192: FALSE | AN192: FALSE | AO192: FALSE | AP192: TRUE | AQ192: TRUE | AR192: FALSE | AS192: 1 | AT192: 2 | AU192: 0 | AV192: 3 | AW192: 1 | AX192: FALSE | AY192: FALSE | AZ192: FALSE | BA192: FALSE | BB192: FALSE | BC192: FALSE | BD192: FALSE | BE192: 93 | BF192: 93 | BG192: FALSE | BI192: FALSE | BN192: FALSE | BP192: FALSE
A193: 161 | B193: =OFFSET(InputPriceData!B$15,CalculationsAndCharts!$A193+$A$11,0,1,1) -> 2012-09-24 | C193: =OFFSET(InputPriceData!G$15,CalculationsAndCharts!$A193+$A$11,IF($C$7,8,0),1,1) -> 95682000 | D193: =OFFSET(InputPriceData!C$15,CalculationsAndCharts!$A193+$A$11,IF($C$7,8,0),1,1) -> 145.15 | E193: =OFFSET(InputPriceData!D$15,CalculationsAndCharts!$A193+$A$11,IF($C$7,8,0),1,1) -> 145.98 | F193: =OFFSET(InputPriceData!E$15,CalculationsAndCharts!$A193+$A$11,IF($C$7,8,0),1,1) -> 145.04 | G193: =OFFSET(InputPriceData!F$15,CalculationsAndCharts!$A193+$A$11,IF($C$7,8,0),1,1) -> 145.65 | L193: 13565.94 | M193: 3208.23 | N193: 357.71 | O193: 3565.94 | P193: -20.46 | Q193: 0 | R193: -20.46 | S193: 45.93406593 | T193: 55.88483201 | U193: 55.88483201 | V193: 0.94 | W193: 1.240678922 | X193: 93 | Y193: -0.277 | Z193: -0.16 | AA193: 0.2459340659 | AB193: -6.996764961 | AC193: -5.121429533 | AD193: -0.9331709617 | AE193: FALSE | AF193: FALSE | AG193: TRUE | AH193: 1 | AI193: FALSE | AJ193: FALSE | AK193: FALSE | AL193: 0 | AM193: FALSE | AN193: FALSE | AO193: FALSE | AP193: TRUE | AQ193: TRUE | AR193: FALSE | AS193: 1 | AT193: 2 | AU193: 0 | AV193: 3 | AW193: 1 | AX193: FALSE | AY193: FALSE | AZ193: FALSE | BA193: FALSE | BB193: FALSE | BC193: FALSE | BD193: FALSE | BE193: 93 | BF193: 93 | BG193: FALSE | BI193: FALSE | BN193: FALSE | BP193: FALSE
A194: 162 | B194: =OFFSET(InputPriceData!B$15,CalculationsAndCharts!$A194+$A$11,0,1,1) -> 2012-09-21 | C194: =OFFSET(InputPriceData!G$15,CalculationsAndCharts!$A194+$A$11,IF($C$7,8,0),1,1) -> 108737500 | D194: =OFFSET(InputPriceData!C$15,CalculationsAndCharts!$A194+$A$11,IF($C$7,8,0),1,1) -> 146.64 | E194: =OFFSET(InputPriceData!D$15,CalculationsAndCharts!$A194+$A$11,IF($C$7,8,0),1,1) -> 146.67 | F194: =OFFSET(InputPriceData!E$15,CalculationsAndCharts!$A194+$A$11,IF($C$7,8,0),1,1) -> 145.81 | G194: =OFFSET(InputPriceData!F$15,CalculationsAndCharts!$A194+$A$11,IF($C$7,8,0),1,1) -> 145.87 | L194: 13586.4 | M194: 3228.69 | N194: 357.71 | O194: 3586.4 | P194: -78.12 | Q194: 0 | R194: -78.12 | S194: 51.82795699 | T194: 66.51687293 | U194: 66.51687293 | V194: 0.9 | W194: 1.256504128 | X194: 93 | Y194: -0.165 | Z194: 0.1097619048 | AA194: 0.3943956044 | AB194: -5.19803241 | AC194: -3.244442939 | AD194: 1.494341666 | AE194: FALSE | AF194: TRUE | AG194: FALSE | AH194: 1 | AI194: FALSE | AJ194: FALSE | AK194: FALSE | AL194: 0 | AM194: FALSE | AN194: FALSE | AO194: TRUE | AP194: TRUE | AQ194: FALSE | AR194: FALSE | AS194: 2 | AT194: 1 | AU194: 1 | AV194: 2 | AW194: 1 | AX194: FALSE | AY194: FALSE | AZ194: FALSE | BA194: FALSE | BB194: FALSE | BC194: FALSE | BD194: FALSE | BE194: 93 | BF194: 93 | BG194: FALSE | BI194: FALSE | BN194: FALSE | BP194: FALSE
A195: 163 | B195: =OFFSET(InputPriceData!B$15,CalculationsAndCharts!$A195+$A$11,0,1,1) -> 2012-09-20 | C195: =OFFSET(InputPriceData!G$15,CalculationsAndCharts!$A195+$A$11,IF($C$7,8,0),1,1) -> 154009800 | D195: =OFFSET(InputPriceData!C$15,CalculationsAndCharts!$A195+$A$11,IF($C$7,8,0),1,1) -> 146.03 | E195: =OFFSET(InputPriceData!D$15,CalculationsAndCharts!$A195+$A$11,IF($C$7,8,0),1,1) -> 146.79 | F195: =OFFSET(InputPriceData!E$15,CalculationsAndCharts!$A195+$A$11,IF($C$7,8,0),1,1) -> 145.63 | G195: =OFFSET(InputPriceData!F$15,CalculationsAndCharts!$A195+$A$11,IF($C$7,8,0),1,1) -> 146.71 | L195: 13664.52 | M195: 3306.81 | N195: 357.71 | O195: 3664.52 | P195: 0.93 | Q195: 0 | R195: 0.93 | S195: 69.89247312 | T195: 75.9342919 | U195: 75.9342919 | V195: 1.16 | W195: 1.275267503 | X195: 93 | Y195: -0.11 | Z195: 0.365952381 | AA195: 0.5043956044 | AB195: -4.233345235 | AC195: -1.815248199 | AD195: 3.72195935 | AE195: FALSE | AF195: TRUE | AG195: FALSE | AH195: 1 | AI195: FALSE | AJ195: FALSE | AK195: FALSE | AL195: 0 | AM195: FALSE | AN195: FALSE | AO195: TRUE | AP195: TRUE | AQ195: FALSE | AR195: FALSE | AS195: 2 | AT195: 1 | AU195: 1 | AV195: 2 | AW195: 1 | AX195: FALSE | AY195: FALSE | AZ195: FALSE | BA195: FALSE | BB195: FALSE | BC195: FALSE | BD195: FALSE | BE195: 93 | BF195: 93 | BG195: FALSE | BI195: FALSE | BN195: FALSE | BP195: FALSE
A196: 164 | B196: =OFFSET(InputPriceData!B$15,CalculationsAndCharts!$A196+$A$11,0,1,1) -> 2012-09-19 | C196: =OFFSET(InputPriceData!G$15,CalculationsAndCharts!$A196+$A$11,IF($C$7,8,0),1,1) -> 128318300 | D196: =OFFSET(InputPriceData!C$15,CalculationsAndCharts!$A196+$A$11,IF($C$7,8,0),1,1) -> 146.79 | E196: =OFFSET(InputPriceData!D$15,CalculationsAndCharts!$A196+$A$11,IF($C$7,8,0),1,1) -> 147.17 | F196: =OFFSET(InputPriceData!E$15,CalculationsAndCharts!$A196+$A$11,IF($C$7,8,0),1,1) -> 146.41 | G196: =OFFSET(InputPriceData!F$15,CalculationsAndCharts!$A196+$A$11,IF($C$7,8,0),1,1) -> 146.7 | L196: 13663.59 | M196: 3305.88 | N196: 357.71 | O196: 3663.59 | P196: -8.37 | Q196: 0 | R196: -8.37 | S196: 77.83018868 | T196: 80.24749426 | U196: 80.24749426 | V196: 0.76 | W196: 1.281334214 | X196: 93 | Y196: -0.04 | Z196: 0.5188095238 | AA196: 0.5512087912 | AB196: -3.353738042 | AC196: -1.21184294 | AD196: 5.197980171 | AE196: FALSE | AF196: TRUE | AG196: FALSE | AH196: 1 | AI196: FALSE | AJ196: FALSE | AK196: FALSE | AL196: 0 | AM196: FALSE | AN196: FALSE | AO196: TRUE | AP196: TRUE | AQ196: FALSE | AR196: FALSE | AS196: 2 | AT196: 1 | AU196: 1 | AV196: 2 | AW196: 1 | AX196: FALSE | AY196: FALSE | AZ196: FALSE | BA196: FALSE | BB196: FALSE | BC196: FALSE | BD196: FALSE | BE196: 93 | BF196: 93 | BG196: TRUE | BH196: 146.79 | BI196: FALSE | BK196: 146.79 | BN196: FALSE | BP196: FALSE
A197: 165 | B197: =OFFSET(InputPriceData!B$15,CalculationsAndCharts!$A197+$A$11,0,1,1) -> 2012-09-18 | C197: =OFFSET(InputPriceData!G$15,CalculationsAndCharts!$A197+$A$11,IF($C$7,8,0),1,1) -> 98326600 | D197: =OFFSET(InputPriceData!C$15,CalculationsAndCharts!$A197+$A$11,IF($C$7,8,0),1,1) -> 146.49 | E197: =OFFSET(InputPriceData!D$15,CalculationsAndCharts!$A197+$A$11,IF($C$7,8,0),1,1) -> 146.81 | F197: =OFFSET(InputPriceData!E$15,CalculationsAndCharts!$A197+$A$11,IF($C$7,8,0),1,1) -> 146.25 | G197: =OFFSET(InputPriceData!F$15,CalculationsAndCharts!$A197+$A$11,IF($C$7,8,0),1,1) -> 146.62 | L197: 13671.96 | M197: 3314.25 | N197: 357.71 | O197: 3671.96 | P197: 0 | Q197: 0 | R197: 0 | S197: 80.0802139 | T197: 84.00334616 | U197: 84.00334616 | V197: 0.56 | W197: 1.308772857 | X197: 93 | Y197: 0.461 | Z197: 0.5282142857 | AA197: 0.59 | AB197: -1.104798876 | AC197: 0.3851075657 | AD197: 6.169166693 | AE197: TRUE | AF197: FALSE | AG197: FALSE | AH197: 1 | AI197: FALSE | AJ197: FALSE | AK197: FALSE | AL197: 0 | AM197: FALSE | AN197: TRUE | AO197: TRUE | AP197: FALSE | AQ197: FALSE | AR197: FALSE | AS197: 3 | AT197: 0 | AU197: 2 | AV197: 1 | AW197: 0 | AX197: FALSE | AY197: FALSE | AZ197: FALSE | BA197: FALSE | BB197: FALSE | BC197: TRUE | BD197: FALSE | BE197: 93 | BF197: 94 | BG197: FALSE | BI197: FALSE | BN197: FALSE | BP197: FALSE
A198: 166 | B198: =OFFSET(InputPriceData!B$15,CalculationsAndCharts!$A198+$A$11,0,1,1) -> 2012-09-17 | C198: =OFFSET(InputPriceData!G$15,CalculationsAndCharts!$A198+$A$11,IF($C$7,8,0),1,1) -> 119427800 | D198: =OFFSET(InputPriceData!C$15,CalculationsAndCharts!$A198+$A$11,IF($C$7,8,0),1,1) -> 146.94 | E198: =OFFSET(InputPriceData!D$15,CalculationsAndCharts!$A198+$A$11,IF($C$7,8,0),1,1) -> 147.19 | F198: =OFFSET(InputPriceData!E$15,CalculationsAndCharts!$A198+$A$11,IF($C$7,8,0),1,1) -> 146.37 | G198: =OFFSET(InputPriceData!F$15,CalculationsAndCharts!$A198+$A$11,IF($C$7,8,0),1,1) -> 146.74 | L198: 13671.96 | M198: 3314.25 | N198: 357.71 | O198: 3671.96 | P198: 0 | Q198: 0 | R198: 0 | S198: 82.8320802 | T198: 88.47250785 | U198: 88.47250785 | V198: 0.87 | W198: 1.348181954 | X198: 93 | Y198: 0.851 | Z198: 0.5364285714 | AA198: 0.5641208791 | AB198: 0.5953840594 | AC198: 3.454459635 | AD198: 6.339809169 | AE198: FALSE | AF198: FALSE | AG198: FALSE | AH198: 0 | AI198: FALSE | AJ198: FALSE | AK198: FALSE | AL198: 0 | AM198: TRUE | AN198: TRUE | AO198: TRUE | AP198: FALSE | AQ198: FALSE | AR198: FALSE | AS198: 3 | AT198: 0 | AU198: 3 | AV198: 0 | AW198: 0 | AX198: TRUE | AY198: FALSE | AZ198: FALSE | BA198: FALSE | BB198: FALSE | BC198: FALSE | BD198: FALSE | BE198: 93 | BF198: 94 | BG198: FALSE | BI198: FALSE | BN198: FALSE | BP198: FALSE
